Workbook

Sheet ACCUEIL
F7: 2020-05-10

Sheet Accueilagence
A1: Accueil
E7: =ACCUEIL!F7 -> 2020-05-10

Sheet Accueilsecteur
A1: Accueil
E7: =ACCUEIL!F7 -> 2020-05-10

Sheet AccueilDircom
A1: Accueil
E7: =ACCUEIL!F7 -> 2020-05-10

Sheet DC_FICHE
A1: Accueil
A2: BAROMETRE BDD
A4: UNITE: | B4: DIRECTION REGIONALE | E4: ETP perf : | F4: =VLOOKUP(A5,'RECAP DIRCOM'!$G$6:$I$12,3,FALSE) -> 273.11
A5: =VLOOKUP(B5,LISTES!$M$6:$N$12,2,FALSE) -> 262 | B5: BAS-RHIN
C6: Coefficient du critére | E6: Résultats | I6: Ecart au 1ier | M6: Evolution | O6: Rang
E7: du 1ier | G7: DIRECTION | I7: Du mois | K7: Au 31/12/2019
A9: RANG au CLASSEMENT GENERAL | K9: =VLOOKUP($A$5,'RECAP DIRCOM AN'!$G$6:$FS$312,168,FALSE) -> 6 | M9: =+K9-O9 -> 0 | O9: =VLOOKUP($A$5,'RECAP DIRCOM'!$G$6:$FS$312,168,FALSE) -> 6
A11: CRITERE CLIENTS | C11: 15% | O11: =VLOOKUP($A$5,'RECAP DIRCOM'!$G$6:$FS$312,23,FALSE) -> 7
B12: PNB Evolution nette Clients BP | C12: 4% | E12: ='RECAP DIRCOM'!K4 -> 0.1 | G12: =VLOOKUP($A$5,'RECAP DIRCOM'!$G$6:$FS$312,6,FALSE) -> -0.8 | I12: =VLOOKUP($A$5,'RECAP DIRCOM'!$G$6:$FS$312,7,FALSE) -> 84% | K12: =VLOOKUP($A$5,'RECAP DIRCOM AN'!$G$6:$FS$312,7,FALSE) -> 92% | M12: =+K12-I12 -> 9% | O12: =VLOOKUP($A$5,'RECAP DIRCOM'!$G$6:$FS$312,8,FALSE) -> 6
B13: PNB Evolution nette Clients PREMIUM | C13: 5% | E13: ='RECAP DIRCOM'!O4 -> 0.5 | G13: =VLOOKUP($A$5,'RECAP DIRCOM'!$G$6:$FS$312,10,FALSE) -> 0.4 | I13: =VLOOKUP($A$5,'RECAP DIRCOM'!$G$6:$FS$312,11,FALSE) -> 33% | K13: =VLOOKUP($A$5,'RECAP DIRCOM AN'!$G$6:$FS$312,11,FALSE) -> 21% | M13: =+K13-I13 -> -12% | O13: =VLOOKUP($A$5,'RECAP DIRCOM'!$G$6:$FS$312,12,FALSE) -> 6
B14: PNB Evolution nette Clients Jeunes Equipés | C14: 3% | E14: ='RECAP DIRCOM'!S4 -> -0.2 | G14: =VLOOKUP($A$5,'RECAP DIRCOM'!$G$6:$FS$312,14,FALSE) -> -0.3 | I14: =VLOOKUP($A$5,'RECAP DIRCOM'!$G$6:$FS$312,15,FALSE) -> 70% | K14: =VLOOKUP($A$5,'RECAP DIRCOM AN'!$G$6:$FS$312,15,FALSE) -> 77% | M14: =+K14-I14 -> 8% | O14: =VLOOKUP($A$5,'RECAP DIRCOM'!$G$6:$FS$312,16,FALSE) -> 3
B15: PNB Evolution nette Clients Pro Actifs Equipés | C15: 3% | E15: ='RECAP DIRCOM'!W4 -> 0.2 | G15: =VLOOKUP($A$5,'RECAP DIRCOM'!$G$6:$FS$312,18,FALSE) -> -0.1 | I15: =VLOOKUP($A$5,'RECAP DIRCOM'!$G$6:$FS$312,19,FALSE) -> 150% | K15: =VLOOKUP($A$5,'RECAP DIRCOM AN'!$G$6:$FS$312,19,FALSE) -> 149% | M15: =+K15-I15 -> -1% | O15: =VLOOKUP($A$5,'RECAP DIRCOM'!$G$6:$FS$312,20,FALSE) -> 7
A17: CRITERE BANCARISATION | C17: 15% | O17: =VLOOKUP($A$5,'RECAP DIRCOM'!$G$6:$FS$312,48,FALSE) -> 3
B18: PNB Ventes nettes forfaits | C18: 4% | E18: ='RECAP DIRCOM'!AJ4 -> 1.9 | G18: =VLOOKUP($A$5,'RECAP DIRCOM'!$G$6:$FS$312,31,FALSE) -> 0.5 | I18: =VLOOKUP($A$5,'RECAP DIRCOM'!$G$6:$FS$312,32,FALSE) -> 73% | K18: =VLOOKUP($A$5,'RECAP DIRCOM AN'!$G$6:$FS$312,32,FALSE) -> 100% | M18: =+K18-I18 -> 27% | O18: =VLOOKUP($A$5,'RECAP DIRCOM'!$G$6:$FS$312,33,FALSE) -> 4
B19: PNB Ventes nettes IZICARTES Débit Différé | C19: 4% | E19: ='RECAP DIRCOM'!AN4 -> 3.2 | G19: =VLOOKUP($A$5,'RECAP DIRCOM'!$G$6:$FS$312,35,FALSE) -> 2.9 | I19: =VLOOKUP($A$5,'RECAP DIRCOM'!$G$6:$FS$312,36,FALSE) -> 11% | K19: =VLOOKUP($A$5,'RECAP DIRCOM AN'!$G$6:$FS$312,36,FALSE) -> 13% | M19: =+K19-I19 -> 2% | O19: =VLOOKUP($A$5,'RECAP DIRCOM'!$G$6:$FS$312,37,FALSE) -> 3
B20: PNB Ventes nettes cartes HDG Débit Différé | C20: 4% | E20: ='RECAP DIRCOM'!AR4 -> 4.5 | G20: =VLOOKUP($A$5,'RECAP DIRCOM'!$G$6:$FS$312,39,FALSE) -> 4.5 | I20: =VLOOKUP($A$5,'RECAP DIRCOM'!$G$6:$FS$312,40,FALSE) -> 0% | K20: =VLOOKUP($A$5,'RECAP DIRCOM AN'!$G$6:$FS$312,40,FALSE) -> 0% | M20: =+K20-I20 -> 0% | O20: =VLOOKUP($A$5,'RECAP DIRCOM'!$G$6:$FS$312,41,FALSE) -> 1
B21: PNB Ventes nettes Forfaits Pro, Carte pro | C21: 3% | E21: ='RECAP DIRCOM'!AV4 -> 0.5 | G21: =VLOOKUP($A$5,'RECAP DIRCOM'!$G$6:$FS$312,43,FALSE) -> 0.2 | I21: =VLOOKUP($A$5,'RECAP DIRCOM'!$G$6:$FS$312,44,FALSE) -> 70% | K21: =VLOOKUP($A$5,'RECAP DIRCOM AN'!$G$6:$FS$312,44,FALSE) -> 84% | M21: =+K21-I21 -> 15% | O21: =VLOOKUP($A$5,'RECAP DIRCOM'!$G$6:$FS$312,45,FALSE) -> 5
A23: CRITERE EPARGNE | C23: 10% | O23: =VLOOKUP($A$5,'RECAP DIRCOM'!$G$6:$FS$312,69,FALSE) -> 2
B24: PNB Epargne Liquide | C24: 3% | E24: ='RECAP DIRCOM'!BI4 -> 6.9 | G24: =VLOOKUP($A$5,'RECAP DIRCOM'!$G$6:$FS$312,56,FALSE) -> 6.0 | I24: =VLOOKUP($A$5,'RECAP DIRCOM'!$G$6:$FS$312,57,FALSE) -> 13% | K24: =VLOOKUP($A$5,'RECAP DIRCOM AN'!$G$6:$FS$312,57,FALSE) -> 15% | M24: =+K24-I24 -> 3% | O24: =VLOOKUP($A$5,'RECAP DIRCOM'!$G$6:$FS$312,58,FALSE) -> 3
B25: PNB CA UC + arbitrage | C25: 4% | E25: ='RECAP DIRCOM'!BM4 -> 0.6 | G25: =VLOOKUP($A$5,'RECAP DIRCOM'!$G$6:$FS$312,60,FALSE) -> 0.5 | I25: =VLOOKUP($A$5,'RECAP DIRCOM'!$G$6:$FS$312,61,FALSE) -> 7% | K25: =VLOOKUP($A$5,'RECAP DIRCOM AN'!$G$6:$FS$312,61,FALSE) -> 19% | M25: =+K25-I25 -> 12% | O25: =VLOOKUP($A$5,'RECAP DIRCOM'!$G$6:$FS$312,62,FALSE) -> 2
B26: PNB Excédent assurance vie | C26: 3% | E26: ='RECAP DIRCOM'!BQ4 -> 0.1 | G26: =VLOOKUP($A$5,'RECAP DIRCOM'!$G$6:$FS$312,64,FALSE) -> -0.8 | I26: =VLOOKUP($A$5,'RECAP DIRCOM'!$G$6:$FS$312,65,FALSE) -> 56% | K26: =VLOOKUP($A$5,'RECAP DIRCOM AN'!$G$6:$FS$312,65,FALSE) -> 54% | M26: =+K26-I26 -> -2% | O26: =VLOOKUP($A$5,'RECAP DIRCOM'!$G$6:$FS$312,66,FALSE) -> 2
A28: CRITERE CREDITS | C28: 15% | O28: =VLOOKUP($A$5,'RECAP DIRCOM'!$G$6:$FS$312,102,FALSE) -> 6
B29: PNB crédit conso | C29: 4% | E29: ='RECAP DIRCOM'!CD4 -> 15.0 | G29: =VLOOKUP($A$5,'RECAP DIRCOM'!$G$6:$FS$312,77,FALSE) -> 11.6 | I29: =VLOOKUP($A$5,'RECAP DIRCOM'!$G$6:$FS$312,78,FALSE) -> 23% | K29: =VLOOKUP($A$5,'RECAP DIRCOM AN'!$G$6:$FS$312,78,FALSE) -> 20% | M29: =+K29-I29 -> -3% | O29: =VLOOKUP($A$5,'RECAP DIRCOM'!$G$6:$FS$312,79,FALSE) -> 6
B30: PNB ADE crédit conso | C30: 1% | E30: ='RECAP DIRCOM'!CH4 -> 3.3 | G30: =VLOOKUP($A$5,'RECAP DIRCOM'!$G$6:$FS$312,81,FALSE) -> 2.9 | I30: =VLOOKUP($A$5,'RECAP DIRCOM'!$G$6:$FS$312,82,FALSE) -> 13% | K30: =VLOOKUP($A$5,'RECAP DIRCOM AN'!$G$6:$FS$312,82,FALSE) -> 15% | M30: 2% | O30: =VLOOKUP($A$5,'RECAP DIRCOM'!$G$6:$FS$312,83,FALSE) -> 4
B31: PNB crédit immo | C31: 4% | E31: ='RECAP DIRCOM'!CL4 -> 26.4 | G31: =VLOOKUP($A$5,'RECAP DIRCOM'!$G$6:$FS$312,85,FALSE) -> 14.3 | I31: =VLOOKUP($A$5,'RECAP DIRCOM'!$G$6:$FS$312,86,FALSE) -> 46% | K31: =VLOOKUP($A$5,'RECAP DIRCOM AN'!$G$6:$FS$312,86,FALSE) -> 48% | M31: 2% | O31: =VLOOKUP($A$5,'RECAP DIRCOM'!$G$6:$FS$312,87,FALSE) -> 7
B32: PNB ADE crédit immo | C32: 2% | E32: ='RECAP DIRCOM'!CP4 -> 17.2 | G32: =VLOOKUP($A$5,'RECAP DIRCOM'!$G$6:$FS$312,89,FALSE) -> 8.7 | I32: =VLOOKUP($A$5,'RECAP DIRCOM'!$G$6:$FS$312,90,FALSE) -> 49% | K32: =VLOOKUP($A$5,'RECAP DIRCOM AN'!$G$6:$FS$312,90,FALSE) -> 51% | M32: 2% | O32: =VLOOKUP($A$5,'RECAP DIRCOM'!$G$6:$FS$312,91,FALSE) -> 5
B33: PNB SACCEF | C33: 2% | E33: ='RECAP DIRCOM'!CT4 -> 1.6 | G33: =VLOOKUP($A$5,'RECAP DIRCOM'!$G$6:$FS$312,93,FALSE) -> 0.8 | I33: =VLOOKUP($A$5,'RECAP DIRCOM'!$G$6:$FS$312,94,FALSE) -> 47% | K33: =VLOOKUP($A$5,'RECAP DIRCOM AN'!$G$6:$FS$312,94,FALSE) -> 45% | M33: -2% | O33: =VLOOKUP($A$5,'RECAP DIRCOM'!$G$6:$FS$312,95,FALSE) -> 4
B34: PNB Crédit MLT + Crédit Bail | C34: 2% | E34: ='RECAP DIRCOM'!CX4 -> 5.3 | G34: =VLOOKUP($A$5,'RECAP DIRCOM'!$G$6:$FS$312,97,FALSE) -> 3.3 | I34: =VLOOKUP($A$5,'RECAP DIRCOM'!$G$6:$FS$312,98,FALSE) -> 38% | K34: =VLOOKUP($A$5,'RECAP DIRCOM AN'!$G$6:$FS$312,98,FALSE) -> 30% | M34: -9% | O34: =VLOOKUP($A$5,'RECAP DIRCOM'!$G$6:$FS$312,99,FALSE) -> 3
A36: CRITERE IARD PREVOYANCE | C36: 15% | O36: =VLOOKUP($A$5,'RECAP DIRCOM'!$G$6:$FS$312,119,FALSE) -> 6
B37: PNB Ventes nettes IARD | C37: 9% | E37: ='RECAP DIRCOM'!DK4 -> 0.6 | G37: =VLOOKUP($A$5,'RECAP DIRCOM'!$G$6:$FS$312,110,FALSE) -> 0.1 | I37: =VLOOKUP($A$5,'RECAP DIRCOM'!$G$6:$FS$312,111,FALSE) -> 86% | K37: =VLOOKUP($A$5,'RECAP DIRCOM AN'!$G$6:$FS$312,111,FALSE) -> 84% | M37: =+K37-I37 -> -2% | O37: =VLOOKUP($A$5,'RECAP DIRCOM'!$G$6:$FS$312,112,FALSE) -> 6
B38: PNB Ventes nettes Prévoyance | C38: 6% | E38: ='RECAP DIRCOM'!DO4 -> 0.3 | G38: =VLOOKUP($A$5,'RECAP DIRCOM'!$G$6:$FS$312,114,FALSE) -> 0.3 | I38: =VLOOKUP($A$5,'RECAP DIRCOM'!$G$6:$FS$312,115,FALSE) -> 4% | K38: =VLOOKUP($A$5,'RECAP DIRCOM AN'!$G$6:$FS$312,115,FALSE) -> 0% | M38: =+K38-I38 -> -4% | O38: =VLOOKUP($A$5,'RECAP DIRCOM'!$G$6:$FS$312,116,FALSE) -> 3
A40: CRITERE ACCELERATEURS PNB | C40: 15% | O40: =VLOOKUP($A$5,'RECAP DIRCOM'!$G$6:$FS$312,144,FALSE) -> 3
B41: PNB Ventes brutes SED Finalisées | C41: 6% | E41: ='RECAP DIRCOM'!EB4 -> 0.2 | G41: =VLOOKUP($A$5,'RECAP DIRCOM'!$G$6:$FS$312,127,FALSE) -> 0.2 | I41: =VLOOKUP($A$5,'RECAP DIRCOM'!$G$6:$FS$312,128,FALSE) -> 23% | K41: =VLOOKUP($A$5,'RECAP DIRCOM AN'!$G$6:$FS$312,128,FALSE) -> 18% | M41: =+K41-I41 -> -5% | O41: =VLOOKUP($A$5,'RECAP DIRCOM'!$G$6:$FS$312,129,FALSE) -> 4
B42: PNB clients équipés E documents | C42: 3% | E42: ='RECAP DIRCOM'!EF4 -> 0.6 | G42: =VLOOKUP($A$5,'RECAP DIRCOM'!$G$6:$FS$312,131,FALSE) -> 0.5 | I42: =VLOOKUP($A$5,'RECAP DIRCOM'!$G$6:$FS$312,132,FALSE) -> 14% | K42: =VLOOKUP($A$5,'RECAP DIRCOM AN'!$G$6:$FS$312,132,FALSE) -> 150% | M42: =+K42-I42 -> 136% | O42: =VLOOKUP($A$5,'RECAP DIRCOM'!$G$6:$FS$312,133,FALSE) -> 3
B43: Economie opt'in | C43: 3% | E43: ='RECAP DIRCOM'!EJ4 -> 0.3 | G43: =VLOOKUP($A$5,'RECAP DIRCOM'!$G$6:$FS$312,135,FALSE) -> 0.3 | I43: =VLOOKUP($A$5,'RECAP DIRCOM'!$G$6:$FS$312,136,FALSE) -> 0% | K43: =VLOOKUP($A$5,'RECAP DIRCOM AN'!$G$6:$FS$312,136,FALSE) -> 125% | M43: =+K43-I43 -> 125% | O43: =VLOOKUP($A$5,'RECAP DIRCOM'!$G$6:$FS$312,137,FALSE) -> 1
B44: Remises commerciales | C44: 3% | E44: ='RECAP DIRCOM'!EN4 -> -0.8 | G44: =VLOOKUP($A$5,'RECAP DIRCOM'!$G$6:$FS$312,139,FALSE) -> -0.9 | I44: =VLOOKUP($A$5,'RECAP DIRCOM'!$G$6:$FS$312,140,FALSE) -> 25% | K44: =VLOOKUP($A$5,'RECAP DIRCOM AN'!$G$6:$FS$312,140,FALSE) -> 34% | M44: =+K44-I44 -> 9% | O44: =VLOOKUP($A$5,'RECAP DIRCOM'!$G$6:$FS$312,141,FALSE) -> 4
A46: CRITERE Qualité-Satisfaction Clients | C46: 15% | O46: =VLOOKUP($A$5,'RECAP DIRCOM'!$G$6:$FS$312,159,FALSE) -> 6
B47: Objectifs NPS* | C47: 8% | E47: ='RECAP DIRCOM'!FA4 -> -9 | G47: =VLOOKUP($A$5,'RECAP DIRCOM'!$G$6:$FS$312,137,FALSE) -> 1 | I47: =VLOOKUP($A$5,'RECAP DIRCOM'!$G$6:$FS$312,152,FALSE) -> 133% | K47: =VLOOKUP($A$5,'RECAP DIRCOM AN'!$G$6:$FS$312,152,FALSE) -> 133% | M47: =+K47-I47 -> 0% | O47: =VLOOKUP($A$5,'RECAP DIRCOM'!$G$6:$FS$312,153,FALSE) -> 6
B48: Enquête Qualité Haute Définition | C48: 7% | E48: ='RECAP DIRCOM'!FD4 -> 57% | G48: =VLOOKUP($A$5,'RECAP DIRCOM'!$G$6:$FS$312,140,FALSE) -> 25% | I48: =VLOOKUP($A$5,'RECAP DIRCOM'!$G$6:$FS$312,155,FALSE) -> 32% | K48: =VLOOKUP($A$5,'RECAP DIRCOM AN'!$G$6:$FS$312,155,FALSE) -> 33% | M48: =+K48-I48 -> 1% | O48: =VLOOKUP($A$5,'RECAP DIRCOM'!$G$6:$FS$312,156,FALSE) -> 6

Sheet DC_TOTAL
B1: Accueil | D1: BAROMETRE BDD - DIRECTIONS REGIONALES
D2: TOTAL GENERAL
D3: =ACCUEIL!F7 -> 2020-05-10
D7: TOTAL GENERAL | G7: Total Clients | J7: Total Bancarisation | M7: Total Epargne | P7: Total Crédits | S7: Total IARD Prévoyance | V7: Total Accélérateurs PNB | Y7: Total Qualité-Satisfaction Clients
E8: coef | F8: 100% | H8: coef | I8: ='RECAP DIRCOM'!$AC$4 -> 15% | K8: coef | L8: ='RECAP DIRCOM'!$BB$4 -> 15% | N8: coef | O8: ='RECAP DIRCOM'!$BW$4 -> 10% | Q8: coef | R8: ='RECAP DIRCOM'!$DD$4 -> 15% | T8: coef | U8: ='RECAP DIRCOM'!$DU$4 -> 15% | W8: coef | X8: ='RECAP DIRCOM'!$ET$4 -> 15% | Z8: coef | AA8: ='RECAP DIRCOM'!$FI$4 -> 15%
A9: eds | B9: Direction | C9: ETP perf | D9: Moyenne ecart au 1er | E9: % Ecart au 1er | F9: Rang CEGEE | G9: Moyenne ecart au 1er | H9: % Ecart au 1er | I9: Rang CEGEE | J9: Moyenne ecart au 1er | K9: % Ecart au 1er | L9: Rang CEGEE | M9: Moyenne ecart au 1er | N9: % Ecart au 1er | O9: Rang CEGEE | P9: Moyenne ecart au 1er | Q9: % Ecart au 1er | R9: Rang CEGEE | S9: Moyenne ecart au 1er | T9: % Ecart au 1er | U9: Rang CEGEE | V9: Moyenne ecart au 1er | W9: % Ecart au 1er | X9: Rang CEGEE | Y9: Moyenne ecart au 1er | Z9: % Ecart au 1er | AA9: Rang CEGEE
A10: 110 | B10: Meurthe et Moselle Meuse | C10: 243 | D10: 3% | E10: 0% | F10: 1 | G10: 19% | H10: 0% | I10: 1 | J10: 7% | K10: 0% | L10: 1 | M10: 27% | N10: 13% | O10: 4 | P10: 11% | Q10: 1% | R10: 2 | S10: 0% | T10: 0% | U10: 1 | V10: 14% | W10: 0% | X10: 1 | Y10: 12% | Z10: 12% | AA10: 2
A11: 30 | B11: Marne-Ardennes | C11: 230 | D11: 8% | E11: 4% | F11: 2 | G11: 40% | H11: 21% | I11: 2 | J11: 9% | K11: 3% | L11: 2 | M11: 25% | N11: 11% | O11: 3 | P11: 10% | Q11: 0% | R11: 1 | S11: 18% | T11: 18% | U11: 2 | V11: 16% | W11: 1% | X11: 2 | Y11: 0% | Z11: 0% | AA11: 1
A12: 80 | B12: Vosges | C12: 137 | D12: 28% | E12: 25% | F12: 3 | G12: 57% | H12: 38% | I12: 5 | J12: 42% | K12: 35% | L12: 4 | M12: 13% | N12: 0% | O12: 1 | P12: 33% | Q12: 23% | R12: 5 | S12: 45% | T12: 45% | U12: 3 | V12: 43% | W12: 29% | X12: 7 | Y12: 18% | Z12: 18% | AA12: 4
A13: 50 | B13: Aube Haute Marne | C13: 133 | D13: 29% | E13: 26% | F13: 4 | G13: 44% | H13: 25% | I13: 3 | J13: 56% | K13: 49% | L13: 6 | M13: 53% | N13: 40% | O13: 7 | P13: 27% | Q13: 17% | R13: 4 | S13: 49% | T13: 49% | U13: 5 | V13: 25% | W13: 10% | X13: 4 | Y13: 16% | Z13: 16% | AA13: 3
A14: 160 | B14: Moselle | C14: 278 | D14: 32% | E14: 29% | F14: 5 | G14: 52% | H14: 34% | I14: 4 | J14: 53% | K14: 47% | L14: 5 | M14: 42% | N14: 29% | O14: 5 | P14: 24% | Q14: 14% | R14: 3 | S14: 48% | T14: 48% | U14: 4 | V14: 29% | W14: 14% | X14: 5 | Y14: 37% | Z14: 37% | AA14: 5
A15: 262 | B15: Bas-Rhin | C15: 273 | D15: 39% | E15: 36% | F15: 6 | G15: 77% | H15: 59% | I15: 7 | J15: 36% | K15: 30% | L15: 3 | M15: 23% | N15: 10% | O15: 2 | P15: 37% | Q15: 27% | R15: 6 | S15: 53% | T15: 53% | U15: 6 | V15: 17% | W15: 3% | X15: 3 | Y15: 86% | Z15: 86% | AA15: 6
A16: 264 | B16: Haut-Rhin | C16: 164 | D16: 60% | E16: 56% | F16: 7 | G16: 71% | H16: 52% | I16: 6 | J16: 85% | K16: 78% | L16: 7 | M16: 50% | N16: 37% | O16: 6 | P16: 41% | Q16: 31% | R16: 7 | S16: 89% | T16: 89% | U16: 7 | V16: 43% | W16: 29% | X16: 6 | Y16: 94% | Z16: 94% | AA16: 7
B17: Total CEGEE Directions Régionales | C17: =SUM(C10:C16) -> 1458

Sheet DC_BANCA
B1: Accueil | D1: BAROMETRE BDD - DIRECTIONS REGIONALES
D2: BANCARISATION
D3: =ACCUEIL!F7 -> 2020-05-10
D7: Ventes nettes FORFAITS | H7: Ventes nettes IZICARTES débit différé | L7: Ventes nettes Cartes HDG débit différé | P7: Ventes nettes Forfaits Pro Cartes Pro | T7: Total Bancarisation
F8: coef | G8: ='RECAP DIRCOM'!AM4 -> 4% | J8: coef | K8: ='RECAP DIRCOM'!AQ4 -> 4% | N8: coef | O8: ='RECAP DIRCOM'!AU4 -> 4% | R8: coef | S8: ='RECAP DIRCOM'!AY4 -> 3% | U8: coef | V8: ='RECAP DIRCOM'!BB4 -> 15%
B9: Direction | C9: ETP perf | D9: Nb / ETP | E9: PNB / ETP | F9: % Ecart au 1er | G9: Rang | H9: Nb / ETP | I9: PNB / ETP | J9: % Ecart au 1er | K9: Rang | L9: Nb / ETP | M9: PNB / ETP | N9: % Ecart au 1er | O9: Rang | P9: Nb / ETP | Q9: PNB / ETP | R9: % Ecart au 1er | S9: Rang | T9: Moyenne ecart au 1er | U9: % Ecart au 1er | V9: Rang CEGEE
A10: 50 | B10: Aube Haute Marne | C10: =VLOOKUP($A10,'RECAP DIRCOM'!$G$6:$FJ$12,3,FALSE) -> 133 | D10: =VLOOKUP($A10,'RECAP DIRCOM'!$G$6:$FJ$12,30,FALSE) -> -0.05 | E10: =VLOOKUP($A10,'RECAP DIRCOM'!$G$6:$FJ$12,31,FALSE) -> -0.48 | F10: =VLOOKUP($A10,'RECAP DIRCOM'!$G$6:$FJ$12,32,FALSE) -> 126% | G10: =VLOOKUP($A10,'RECAP DIRCOM'!$G$6:$FJ$12,33,FALSE) -> 6 | H10: =VLOOKUP($A10,'RECAP DIRCOM'!$G$6:$FJ$12,34,FALSE) -> 3.50 | I10: =VLOOKUP($A10,'RECAP DIRCOM'!$G$6:$FJ$12,35,FALSE) -> 2.12 | J10: =VLOOKUP($A10,'RECAP DIRCOM'!$G$6:$FJ$12,36,FALSE) -> 35% | K10: =VLOOKUP($A10,'RECAP DIRCOM'!$G$6:$FJ$12,37,FALSE) -> 6 | L10: =VLOOKUP($A10,'RECAP DIRCOM'!$G$6:$FJ$12,38,FALSE) -> 3.93 | M10: =VLOOKUP($A10,'RECAP DIRCOM'!$G$6:$FJ$12,39,FALSE) -> 2.65 | N10: =VLOOKUP($A10,'RECAP DIRCOM'!$G$6:$FJ$12,40,FALSE) -> 41% | O10: =VLOOKUP($A10,'RECAP DIRCOM'!$G$6:$FJ$12,41,FALSE) -> 6 | P10: =VLOOKUP($A10,'RECAP DIRCOM'!$G$6:$FJ$12,42,FALSE) -> 0.64 | Q10: =VLOOKUP($A10,'RECAP DIRCOM'!$G$6:$FJ$12,43,FALSE) -> 0.47 | R10: =VLOOKUP($A10,'RECAP DIRCOM'!$G$6:$FJ$12,44,FALSE) -> 10% | S10: =VLOOKUP($A10,'RECAP DIRCOM'!$G$6:$FJ$12,45,FALSE) -> 2 | T10: =VLOOKUP($A10,'RECAP DIRCOM'!$G$6:$FJ$12,46,FALSE) -> 56% | U10: =VLOOKUP($A10,'RECAP DIRCOM'!$G$6:$FJ$12,47,FALSE) -> 49% | V10: =VLOOKUP($A10,'RECAP DIRCOM'!$G$6:$FJ$12,48,FALSE) -> 6
A11: 262 | B11: Bas-Rhin | C11: =VLOOKUP($A11,'RECAP DIRCOM'!$G$6:$FJ$12,3,FALSE) -> 273 | D11: =VLOOKUP($A11,'RECAP DIRCOM'!$G$6:$FJ$12,30,FALSE) -> 1.78 | E11: =VLOOKUP($A11,'RECAP DIRCOM'!$G$6:$FJ$12,31,FALSE) -> 0.50 | F11: =VLOOKUP($A11,'RECAP DIRCOM'!$G$6:$FJ$12,32,FALSE) -> 73% | G11: =VLOOKUP($A11,'RECAP DIRCOM'!$G$6:$FJ$12,33,FALSE) -> 4 | H11: =VLOOKUP($A11,'RECAP DIRCOM'!$G$6:$FJ$12,34,FALSE) -> 4.33 | I11: =VLOOKUP($A11,'RECAP DIRCOM'!$G$6:$FJ$12,35,FALSE) -> 2.89 | J11: =VLOOKUP($A11,'RECAP DIRCOM'!$G$6:$FJ$12,36,FALSE) -> 11% | K11: =VLOOKUP($A11,'RECAP DIRCOM'!$G$6:$FJ$12,37,FALSE) -> 3 | L11: =VLOOKUP($A11,'RECAP DIRCOM'!$G$6:$FJ$12,38,FALSE) -> 6.76 | M11: =VLOOKUP($A11,'RECAP DIRCOM'!$G$6:$FJ$12,39,FALSE) -> 4.49 | N11: =VLOOKUP($A11,'RECAP DIRCOM'!$G$6:$FJ$12,40,FALSE) -> 0% | O11: =VLOOKUP($A11,'RECAP DIRCOM'!$G$6:$FJ$12,41,FALSE) -> 1 | P11: =VLOOKUP($A11,'RECAP DIRCOM'!$G$6:$FJ$12,42,FALSE) -> 0.32 | Q11: =VLOOKUP($A11,'RECAP DIRCOM'!$G$6:$FJ$12,43,FALSE) -> 0.16 | R11: =VLOOKUP($A11,'RECAP DIRCOM'!$G$6:$FJ$12,44,FALSE) -> 70% | S11: =VLOOKUP($A11,'RECAP DIRCOM'!$G$6:$FJ$12,45,FALSE) -> 5 | T11: =VLOOKUP($A11,'RECAP DIRCOM'!$G$6:$FJ$12,46,FALSE) -> 36% | U11: =VLOOKUP($A11,'RECAP DIRCOM'!$G$6:$FJ$12,47,FALSE) -> 30% | V11: =VLOOKUP($A11,'RECAP DIRCOM'!$G$6:$FJ$12,48,FALSE) -> 3
A12: 264 | B12: Haut-Rhin | C12: =VLOOKUP($A12,'RECAP DIRCOM'!$G$6:$FJ$12,3,FALSE) -> 164 | D12: =VLOOKUP($A12,'RECAP DIRCOM'!$G$6:$FJ$12,30,FALSE) -> -1.07 | E12: =VLOOKUP($A12,'RECAP DIRCOM'!$G$6:$FJ$12,31,FALSE) -> -0.78 | F12: =VLOOKUP($A12,'RECAP DIRCOM'!$G$6:$FJ$12,32,FALSE) -> 142% | G12: =VLOOKUP($A12,'RECAP DIRCOM'!$G$6:$FJ$12,33,FALSE) -> 7 | H12: =VLOOKUP($A12,'RECAP DIRCOM'!$G$6:$FJ$12,34,FALSE) -> 1.86 | I12: =VLOOKUP($A12,'RECAP DIRCOM'!$G$6:$FJ$12,35,FALSE) -> 1.32 | J12: =VLOOKUP($A12,'RECAP DIRCOM'!$G$6:$FJ$12,36,FALSE) -> 59% | K12: =VLOOKUP($A12,'RECAP DIRCOM'!$G$6:$FJ$12,37,FALSE) -> 7 | L12: =VLOOKUP($A12,'RECAP DIRCOM'!$G$6:$FJ$12,38,FALSE) -> 3.22 | M12: =VLOOKUP($A12,'RECAP DIRCOM'!$G$6:$FJ$12,39,FALSE) -> 2.27 | N12: =VLOOKUP($A12,'RECAP DIRCOM'!$G$6:$FJ$12,40,FALSE) -> 50% | O12: =VLOOKUP($A12,'RECAP DIRCOM'!$G$6:$FJ$12,41,FALSE) -> 7 | P12: =VLOOKUP($A12,'RECAP DIRCOM'!$G$6:$FJ$12,42,FALSE) -> 0.14 | Q12: =VLOOKUP($A12,'RECAP DIRCOM'!$G$6:$FJ$12,43,FALSE) -> 0.06 | R12: =VLOOKUP($A12,'RECAP DIRCOM'!$G$6:$FJ$12,44,FALSE) -> 89% | S12: =VLOOKUP($A12,'RECAP DIRCOM'!$G$6:$FJ$12,45,FALSE) -> 6 | T12: =VLOOKUP($A12,'RECAP DIRCOM'!$G$6:$FJ$12,46,FALSE) -> 85% | U12: =VLOOKUP($A12,'RECAP DIRCOM'!$G$6:$FJ$12,47,FALSE) -> 78% | V12: =VLOOKUP($A12,'RECAP DIRCOM'!$G$6:$FJ$12,48,FALSE) -> 7
A13: 30 | B13: Marne-Ardennes | C13: =VLOOKUP($A13,'RECAP DIRCOM'!$G$6:$FJ$12,3,FALSE) -> 230 | D13: =VLOOKUP($A13,'RECAP DIRCOM'!$G$6:$FJ$12,30,FALSE) -> 3.83 | E13: =VLOOKUP($A13,'RECAP DIRCOM'!$G$6:$FJ$12,31,FALSE) -> 1.85 | F13: =VLOOKUP($A13,'RECAP DIRCOM'!$G$6:$FJ$12,32,FALSE) -> 0% | G13: =VLOOKUP($A13,'RECAP DIRCOM'!$G$6:$FJ$12,33,FALSE) -> 1 | H13: =VLOOKUP($A13,'RECAP DIRCOM'!$G$6:$FJ$12,34,FALSE) -> 4.86 | I13: =VLOOKUP($A13,'RECAP DIRCOM'!$G$6:$FJ$12,35,FALSE) -> 3.25 | J13: =VLOOKUP($A13,'RECAP DIRCOM'!$G$6:$FJ$12,36,FALSE) -> 0% | K13: =VLOOKUP($A13,'RECAP DIRCOM'!$G$6:$FJ$12,37,FALSE) -> 1 | L13: =VLOOKUP($A13,'RECAP DIRCOM'!$G$6:$FJ$12,38,FALSE) -> 5.46 | M13: =VLOOKUP($A13,'RECAP DIRCOM'!$G$6:$FJ$12,39,FALSE) -> 3.74 | N13: =VLOOKUP($A13,'RECAP DIRCOM'!$G$6:$FJ$12,40,FALSE) -> 17% | O13: =VLOOKUP($A13,'RECAP DIRCOM'!$G$6:$FJ$12,41,FALSE) -> 4 | P13: =VLOOKUP($A13,'RECAP DIRCOM'!$G$6:$FJ$12,42,FALSE) -> 0.57 | Q13: =VLOOKUP($A13,'RECAP DIRCOM'!$G$6:$FJ$12,43,FALSE) -> 0.39 | R13: =VLOOKUP($A13,'RECAP DIRCOM'!$G$6:$FJ$12,44,FALSE) -> 24% | S13: =VLOOKUP($A13,'RECAP DIRCOM'!$G$6:$FJ$12,45,FALSE) -> 3 | T13: =VLOOKUP($A13,'RECAP DIRCOM'!$G$6:$FJ$12,46,FALSE) -> 9% | U13: =VLOOKUP($A13,'RECAP DIRCOM'!$G$6:$FJ$12,47,FALSE) -> 3% | V13: =VLOOKUP($A13,'RECAP DIRCOM'!$G$6:$FJ$12,48,FALSE) -> 2
A14: 110 | B14: Meurthe et Moselle Meuse | C14: =VLOOKUP($A14,'RECAP DIRCOM'!$G$6:$FJ$12,3,FALSE) -> 243 | D14: =VLOOKUP($A14,'RECAP DIRCOM'!$G$6:$FJ$12,30,FALSE) -> 3.65 | E14: =VLOOKUP($A14,'RECAP DIRCOM'!$G$6:$FJ$12,31,FALSE) -> 1.50 | F14: =VLOOKUP($A14,'RECAP DIRCOM'!$G$6:$FJ$12,32,FALSE) -> 19% | G14: =VLOOKUP($A14,'RECAP DIRCOM'!$G$6:$FJ$12,33,FALSE) -> 2 | H14: =VLOOKUP($A14,'RECAP DIRCOM'!$G$6:$FJ$12,34,FALSE) -> 4.81 | I14: =VLOOKUP($A14,'RECAP DIRCOM'!$G$6:$FJ$12,35,FALSE) -> 3.14 | J14: =VLOOKUP($A14,'RECAP DIRCOM'!$G$6:$FJ$12,36,FALSE) -> 3% | K14: =VLOOKUP($A14,'RECAP DIRCOM'!$G$6:$FJ$12,37,FALSE) -> 2 | L14: =VLOOKUP($A14,'RECAP DIRCOM'!$G$6:$FJ$12,38,FALSE) -> 6.52 | M14: =VLOOKUP($A14,'RECAP DIRCOM'!$G$6:$FJ$12,39,FALSE) -> 4.37 | N14: =VLOOKUP($A14,'RECAP DIRCOM'!$G$6:$FJ$12,40,FALSE) -> 3% | O14: =VLOOKUP($A14,'RECAP DIRCOM'!$G$6:$FJ$12,41,FALSE) -> 2 | P14: =VLOOKUP($A14,'RECAP DIRCOM'!$G$6:$FJ$12,42,FALSE) -> 0.75 | Q14: =VLOOKUP($A14,'RECAP DIRCOM'!$G$6:$FJ$12,43,FALSE) -> 0.52 | R14: =VLOOKUP($A14,'RECAP DIRCOM'!$G$6:$FJ$12,44,FALSE) -> 0% | S14: =VLOOKUP($A14,'RECAP DIRCOM'!$G$6:$FJ$12,45,FALSE) -> 1 | T14: =VLOOKUP($A14,'RECAP DIRCOM'!$G$6:$FJ$12,46,FALSE) -> 7% | U14: =VLOOKUP($A14,'RECAP DIRCOM'!$G$6:$FJ$12,47,FALSE) -> 0% | V14: =VLOOKUP($A14,'RECAP DIRCOM'!$G$6:$FJ$12,48,FALSE) -> 1
A15: 160 | B15: Moselle | C15: =VLOOKUP($A15,'RECAP DIRCOM'!$G$6:$FJ$12,3,FALSE) -> 278 | D15: =VLOOKUP($A15,'RECAP DIRCOM'!$G$6:$FJ$12,30,FALSE) -> 2.11 | E15: =VLOOKUP($A15,'RECAP DIRCOM'!$G$6:$FJ$12,31,FALSE) -> 0.95 | F15: =VLOOKUP($A15,'RECAP DIRCOM'!$G$6:$FJ$12,32,FALSE) -> 49% | G15: =VLOOKUP($A15,'RECAP DIRCOM'!$G$6:$FJ$12,33,FALSE) -> 3 | H15: =VLOOKUP($A15,'RECAP DIRCOM'!$G$6:$FJ$12,34,FALSE) -> 3.32 | I15: =VLOOKUP($A15,'RECAP DIRCOM'!$G$6:$FJ$12,35,FALSE) -> 2.27 | J15: =VLOOKUP($A15,'RECAP DIRCOM'!$G$6:$FJ$12,36,FALSE) -> 30% | K15: =VLOOKUP($A15,'RECAP DIRCOM'!$G$6:$FJ$12,37,FALSE) -> 5 | L15: =VLOOKUP($A15,'RECAP DIRCOM'!$G$6:$FJ$12,38,FALSE) -> 4.52 | M15: =VLOOKUP($A15,'RECAP DIRCOM'!$G$6:$FJ$12,39,FALSE) -> 3.16 | N15: =VLOOKUP($A15,'RECAP DIRCOM'!$G$6:$FJ$12,40,FALSE) -> 30% | O15: =VLOOKUP($A15,'RECAP DIRCOM'!$G$6:$FJ$12,41,FALSE) -> 5 | P15: =VLOOKUP($A15,'RECAP DIRCOM'!$G$6:$FJ$12,42,FALSE) -> 0.04 | Q15: =VLOOKUP($A15,'RECAP DIRCOM'!$G$6:$FJ$12,43,FALSE) -> -0.11 | R15: =VLOOKUP($A15,'RECAP DIRCOM'!$G$6:$FJ$12,44,FALSE) -> 121% | S15: =VLOOKUP($A15,'RECAP DIRCOM'!$G$6:$FJ$12,45,FALSE) -> 7 | T15: =VLOOKUP($A15,'RECAP DIRCOM'!$G$6:$FJ$12,46,FALSE) -> 53% | U15: =VLOOKUP($A15,'RECAP DIRCOM'!$G$6:$FJ$12,47,FALSE) -> 47% | V15: =VLOOKUP($A15,'RECAP DIRCOM'!$G$6:$FJ$12,48,FALSE) -> 5
A16: 80 | B16: Vosges | C16: =VLOOKUP($A16,'RECAP DIRCOM'!$G$6:$FJ$12,3,FALSE) -> 137 | D16: =VLOOKUP($A16,'RECAP DIRCOM'!$G$6:$FJ$12,30,FALSE) -> 1.45 | E16: =VLOOKUP($A16,'RECAP DIRCOM'!$G$6:$FJ$12,31,FALSE) -> 0.13 | F16: =VLOOKUP($A16,'RECAP DIRCOM'!$G$6:$FJ$12,32,FALSE) -> 93% | G16: =VLOOKUP($A16,'RECAP DIRCOM'!$G$6:$FJ$12,33,FALSE) -> 5 | H16: =VLOOKUP($A16,'RECAP DIRCOM'!$G$6:$FJ$12,34,FALSE) -> 3.69 | I16: =VLOOKUP($A16,'RECAP DIRCOM'!$G$6:$FJ$12,35,FALSE) -> 2.41 | J16: =VLOOKUP($A16,'RECAP DIRCOM'!$G$6:$FJ$12,36,FALSE) -> 26% | K16: =VLOOKUP($A16,'RECAP DIRCOM'!$G$6:$FJ$12,37,FALSE) -> 4 | L16: =VLOOKUP($A16,'RECAP DIRCOM'!$G$6:$FJ$12,38,FALSE) -> 5.69 | M16: =VLOOKUP($A16,'RECAP DIRCOM'!$G$6:$FJ$12,39,FALSE) -> 3.78 | N16: =VLOOKUP($A16,'RECAP DIRCOM'!$G$6:$FJ$12,40,FALSE) -> 16% | O16: =VLOOKUP($A16,'RECAP DIRCOM'!$G$6:$FJ$12,41,FALSE) -> 3 | P16: =VLOOKUP($A16,'RECAP DIRCOM'!$G$6:$FJ$12,42,FALSE) -> 0.47 | Q16: =VLOOKUP($A16,'RECAP DIRCOM'!$G$6:$FJ$12,43,FALSE) -> 0.36 | R16: =VLOOKUP($A16,'RECAP DIRCOM'!$G$6:$FJ$12,44,FALSE) -> 31% | S16: =VLOOKUP($A16,'RECAP DIRCOM'!$G$6:$FJ$12,45,FALSE) -> 4 | T16: =VLOOKUP($A16,'RECAP DIRCOM'!$G$6:$FJ$12,46,FALSE) -> 42% | U16: =VLOOKUP($A16,'RECAP DIRCOM'!$G$6:$FJ$12,47,FALSE) -> 35% | V16: =VLOOKUP($A16,'RECAP DIRCOM'!$G$6:$FJ$12,48,FALSE) -> 4
B17: Total CEGEE Directions Régionales | C17: =SUM(C10:C16) -> 1458

Sheet DC_EPARGNE
B1: Accueil | D1: BAROMETRE BDD - DIRECTIONS REGIONALES
D2: EPARGNE
D3: =ACCUEIL!F7 -> 2020-05-10
D7: Excédent Epargne Liquide | H7: CA UC + arbitrage | L7: Excédent Assurance Vie | P7: Total Epargne
F8: coef | G8: ='RECAP DIRCOM'!BL4 -> 3% | J8: coef | K8: ='RECAP DIRCOM'!BP4 -> 4% | N8: coef | O8: ='RECAP DIRCOM'!BT4 -> 3% | Q8: coef | R8: ='RECAP DIRCOM'!BW4 -> 10%
B9: Direction | C9: ETP perf | D9: Réal / ETP | E9: PNB / ETP | F9: % Ecart au 1er | G9: Rang | H9: Réal / ETP | I9: PNB / ETP | J9: % Ecart au 1er | K9: Rang | L9: Réal / ETP | M9: PNB / ETP | N9: % Ecart au 1er | O9: Rang | P9: Moyenne ecart au 1er | Q9: % Ecart au 1er | R9: Rang CEGEE
A10: 50 | B10: Aube Haute Marne | C10: =VLOOKUP($A10,'RECAP DIRCOM'!$G$6:$FJ$12,3,FALSE) -> 133 | D10: =VLOOKUP($A10,'RECAP DIRCOM'!$G$6:$FJ$12,55,FALSE) -> 242.11 | E10: =VLOOKUP($A10,'RECAP DIRCOM'!$G$6:$FJ$12,56,FALSE) -> 5.16 | F10: =VLOOKUP($A10,'RECAP DIRCOM'!$G$6:$FJ$12,57,FALSE) -> 25% | G10: =VLOOKUP($A10,'RECAP DIRCOM'!$G$6:$FJ$12,58,FALSE) -> 6 | H10: =VLOOKUP($A10,'RECAP DIRCOM'!$G$6:$FJ$12,59,FALSE) -> 55.39 | I10: =VLOOKUP($A10,'RECAP DIRCOM'!$G$6:$FJ$12,60,FALSE) -> 0.49 | J10: =VLOOKUP($A10,'RECAP DIRCOM'!$G$6:$FJ$12,61,FALSE) -> 17% | K10: =VLOOKUP($A10,'RECAP DIRCOM'!$G$6:$FJ$12,62,FALSE) -> 7 | L10: =VLOOKUP($A10,'RECAP DIRCOM'!$G$6:$FJ$12,63,FALSE) -> -54 | M10: =VLOOKUP($A10,'RECAP DIRCOM'!$G$6:$FJ$12,64,FALSE) -> -1.94 | N10: =VLOOKUP($A10,'RECAP DIRCOM'!$G$6:$FJ$12,65,FALSE) -> 130% | O10: =VLOOKUP($A10,'RECAP DIRCOM'!$G$6:$FJ$12,66,FALSE) -> 6 | P10: =VLOOKUP($A10,'RECAP DIRCOM'!$G$6:$FJ$12,67,FALSE) -> 53% | Q10: =VLOOKUP($A10,'RECAP DIRCOM'!$G$6:$FJ$12,68,FALSE) -> 40% | R10: =VLOOKUP($A10,'RECAP DIRCOM'!$G$6:$FJ$12,69,FALSE) -> 7
A11: 262 | B11: Bas-Rhin | C11: =VLOOKUP($A11,'RECAP DIRCOM'!$G$6:$FJ$12,3,FALSE) -> 273 | D11: =VLOOKUP($A11,'RECAP DIRCOM'!$G$6:$FJ$12,55,FALSE) -> 275.68 | E11: =VLOOKUP($A11,'RECAP DIRCOM'!$G$6:$FJ$12,56,FALSE) -> 5.97 | F11: =VLOOKUP($A11,'RECAP DIRCOM'!$G$6:$FJ$12,57,FALSE) -> 13% | G11: =VLOOKUP($A11,'RECAP DIRCOM'!$G$6:$FJ$12,58,FALSE) -> 3 | H11: =VLOOKUP($A11,'RECAP DIRCOM'!$G$6:$FJ$12,59,FALSE) -> 68.08 | I11: =VLOOKUP($A11,'RECAP DIRCOM'!$G$6:$FJ$12,60,FALSE) -> 0.55 | J11: =VLOOKUP($A11,'RECAP DIRCOM'!$G$6:$FJ$12,61,FALSE) -> 7% | K11: =VLOOKUP($A11,'RECAP DIRCOM'!$G$6:$FJ$12,62,FALSE) -> 2 | L11: =VLOOKUP($A11,'RECAP DIRCOM'!$G$6:$FJ$12,63,FALSE) -> -21 | M11: =VLOOKUP($A11,'RECAP DIRCOM'!$G$6:$FJ$12,64,FALSE) -> -0.76 | N11: =VLOOKUP($A11,'RECAP DIRCOM'!$G$6:$FJ$12,65,FALSE) -> 56% | O11: =VLOOKUP($A11,'RECAP DIRCOM'!$G$6:$FJ$12,66,FALSE) -> 2 | P11: =VLOOKUP($A11,'RECAP DIRCOM'!$G$6:$FJ$12,67,FALSE) -> 23% | Q11: =VLOOKUP($A11,'RECAP DIRCOM'!$G$6:$FJ$12,68,FALSE) -> 10% | R11: =VLOOKUP($A11,'RECAP DIRCOM'!$G$6:$FJ$12,69,FALSE) -> 2
A12: 264 | B12: Haut-Rhin | C12: =VLOOKUP($A12,'RECAP DIRCOM'!$G$6:$FJ$12,3,FALSE) -> 164 | D12: =VLOOKUP($A12,'RECAP DIRCOM'!$G$6:$FJ$12,55,FALSE) -> 266.65 | E12: =VLOOKUP($A12,'RECAP DIRCOM'!$G$6:$FJ$12,56,FALSE) -> 5.63 | F12: =VLOOKUP($A12,'RECAP DIRCOM'!$G$6:$FJ$12,57,FALSE) -> 18% | G12: =VLOOKUP($A12,'RECAP DIRCOM'!$G$6:$FJ$12,58,FALSE) -> 4 | H12: =VLOOKUP($A12,'RECAP DIRCOM'!$G$6:$FJ$12,59,FALSE) -> 58.91 | I12: =VLOOKUP($A12,'RECAP DIRCOM'!$G$6:$FJ$12,60,FALSE) -> 0.59 | J12: =VLOOKUP($A12,'RECAP DIRCOM'!$G$6:$FJ$12,61,FALSE) -> 0% | K12: =VLOOKUP($A12,'RECAP DIRCOM'!$G$6:$FJ$12,62,FALSE) -> 1 | L12: =VLOOKUP($A12,'RECAP DIRCOM'!$G$6:$FJ$12,63,FALSE) -> -63 | M12: =VLOOKUP($A12,'RECAP DIRCOM'!$G$6:$FJ$12,64,FALSE) -> -2.26 | N12: =VLOOKUP($A12,'RECAP DIRCOM'!$G$6:$FJ$12,65,FALSE) -> 150% | O12: =VLOOKUP($A12,'RECAP DIRCOM'!$G$6:$FJ$12,66,FALSE) -> 7 | P12: =VLOOKUP($A12,'RECAP DIRCOM'!$G$6:$FJ$12,67,FALSE) -> 50% | Q12: =VLOOKUP($A12,'RECAP DIRCOM'!$G$6:$FJ$12,68,FALSE) -> 37% | R12: =VLOOKUP($A12,'RECAP DIRCOM'!$G$6:$FJ$12,69,FALSE) -> 6
A13: 30 | B13: Marne-Ardennes | C13: =VLOOKUP($A13,'RECAP DIRCOM'!$G$6:$FJ$12,3,FALSE) -> 230 | D13: =VLOOKUP($A13,'RECAP DIRCOM'!$G$6:$FJ$12,55,FALSE) -> 310.54 | E13: =VLOOKUP($A13,'RECAP DIRCOM'!$G$6:$FJ$12,56,FALSE) -> 6.85 | F13: =VLOOKUP($A13,'RECAP DIRCOM'!$G$6:$FJ$12,57,FALSE) -> 0% | G13: =VLOOKUP($A13,'RECAP DIRCOM'!$G$6:$FJ$12,58,FALSE) -> 1 | H13: =VLOOKUP($A13,'RECAP DIRCOM'!$G$6:$FJ$12,59,FALSE) -> 68.94 | I13: =VLOOKUP($A13,'RECAP DIRCOM'!$G$6:$FJ$12,60,FALSE) -> 0.51 | J13: =VLOOKUP($A13,'RECAP DIRCOM'!$G$6:$FJ$12,61,FALSE) -> 13% | K13: =VLOOKUP($A13,'RECAP DIRCOM'!$G$6:$FJ$12,62,FALSE) -> 5 | L13: =VLOOKUP($A13,'RECAP DIRCOM'!$G$6:$FJ$12,63,FALSE) -> -25 | M13: =VLOOKUP($A13,'RECAP DIRCOM'!$G$6:$FJ$12,64,FALSE) -> -0.89 | N13: =VLOOKUP($A13,'RECAP DIRCOM'!$G$6:$FJ$12,65,FALSE) -> 64% | O13: =VLOOKUP($A13,'RECAP DIRCOM'!$G$6:$FJ$12,66,FALSE) -> 4 | P13: =VLOOKUP($A13,'RECAP DIRCOM'!$G$6:$FJ$12,67,FALSE) -> 25% | Q13: =VLOOKUP($A13,'RECAP DIRCOM'!$G$6:$FJ$12,68,FALSE) -> 11% | R13: =VLOOKUP($A13,'RECAP DIRCOM'!$G$6:$FJ$12,69,FALSE) -> 3
A14: 110 | B14: Meurthe et Moselle Meuse | C14: =VLOOKUP($A14,'RECAP DIRCOM'!$G$6:$FJ$12,3,FALSE) -> 243 | D14: =VLOOKUP($A14,'RECAP DIRCOM'!$G$6:$FJ$12,55,FALSE) -> 283.65 | E14: =VLOOKUP($A14,'RECAP DIRCOM'!$G$6:$FJ$12,56,FALSE) -> 6.23 | F14: =VLOOKUP($A14,'RECAP DIRCOM'!$G$6:$FJ$12,57,FALSE) -> 9% | G14: =VLOOKUP($A14,'RECAP DIRCOM'!$G$6:$FJ$12,58,FALSE) -> 2 | H14: =VLOOKUP($A14,'RECAP DIRCOM'!$G$6:$FJ$12,59,FALSE) -> 69.78 | I14: =VLOOKUP($A14,'RECAP DIRCOM'!$G$6:$FJ$12,60,FALSE) -> 0.51 | J14: =VLOOKUP($A14,'RECAP DIRCOM'!$G$6:$FJ$12,61,FALSE) -> 13% | K14: =VLOOKUP($A14,'RECAP DIRCOM'!$G$6:$FJ$12,62,FALSE) -> 3 | L14: =VLOOKUP($A14,'RECAP DIRCOM'!$G$6:$FJ$12,63,FALSE) -> -24 | M14: =VLOOKUP($A14,'RECAP DIRCOM'!$G$6:$FJ$12,64,FALSE) -> -0.85 | N14: =VLOOKUP($A14,'RECAP DIRCOM'!$G$6:$FJ$12,65,FALSE) -> 62% | O14: =VLOOKUP($A14,'RECAP DIRCOM'!$G$6:$FJ$12,66,FALSE) -> 3 | P14: =VLOOKUP($A14,'RECAP DIRCOM'!$G$6:$FJ$12,67,FALSE) -> 27% | Q14: =VLOOKUP($A14,'RECAP DIRCOM'!$G$6:$FJ$12,68,FALSE) -> 13% | R14: =VLOOKUP($A14,'RECAP DIRCOM'!$G$6:$FJ$12,69,FALSE) -> 4
A15: 160 | B15: Moselle | C15: =VLOOKUP($A15,'RECAP DIRCOM'!$G$6:$FJ$12,3,FALSE) -> 278 | D15: =VLOOKUP($A15,'RECAP DIRCOM'!$G$6:$FJ$12,55,FALSE) -> 238.76 | E15: =VLOOKUP($A15,'RECAP DIRCOM'!$G$6:$FJ$12,56,FALSE) -> 5.19 | F15: =VLOOKUP($A15,'RECAP DIRCOM'!$G$6:$FJ$12,57,FALSE) -> 24% | G15: =VLOOKUP($A15,'RECAP DIRCOM'!$G$6:$FJ$12,58,FALSE) -> 5 | H15: =VLOOKUP($A15,'RECAP DIRCOM'!$G$6:$FJ$12,59,FALSE) -> 64.83 | I15: =VLOOKUP($A15,'RECAP DIRCOM'!$G$6:$FJ$12,60,FALSE) -> 0.50 | J15: =VLOOKUP($A15,'RECAP DIRCOM'!$G$6:$FJ$12,61,FALSE) -> 14% | K15: =VLOOKUP($A15,'RECAP DIRCOM'!$G$6:$FJ$12,62,FALSE) -> 6 | L15: =VLOOKUP($A15,'RECAP DIRCOM'!$G$6:$FJ$12,63,FALSE) -> -39 | M15: =VLOOKUP($A15,'RECAP DIRCOM'!$G$6:$FJ$12,64,FALSE) -> -1.40 | N15: =VLOOKUP($A15,'RECAP DIRCOM'!$G$6:$FJ$12,65,FALSE) -> 96% | O15: =VLOOKUP($A15,'RECAP DIRCOM'!$G$6:$FJ$12,66,FALSE) -> 5 | P15: =VLOOKUP($A15,'RECAP DIRCOM'!$G$6:$FJ$12,67,FALSE) -> 42% | Q15: =VLOOKUP($A15,'RECAP DIRCOM'!$G$6:$FJ$12,68,FALSE) -> 29% | R15: =VLOOKUP($A15,'RECAP DIRCOM'!$G$6:$FJ$12,69,FALSE) -> 5
A16: 80 | B16: Vosges | C16: =VLOOKUP($A16,'RECAP DIRCOM'!$G$6:$FJ$12,3,FALSE) -> 137 | D16: =VLOOKUP($A16,'RECAP DIRCOM'!$G$6:$FJ$12,55,FALSE) -> 212.60 | E16: =VLOOKUP($A16,'RECAP DIRCOM'!$G$6:$FJ$12,56,FALSE) -> 5.05 | F16: =VLOOKUP($A16,'RECAP DIRCOM'!$G$6:$FJ$12,57,FALSE) -> 26% | G16: =VLOOKUP($A16,'RECAP DIRCOM'!$G$6:$FJ$12,58,FALSE) -> 7 | H16: =VLOOKUP($A16,'RECAP DIRCOM'!$G$6:$FJ$12,59,FALSE) -> 76.36 | I16: =VLOOKUP($A16,'RECAP DIRCOM'!$G$6:$FJ$12,60,FALSE) -> 0.51 | J16: =VLOOKUP($A16,'RECAP DIRCOM'!$G$6:$FJ$12,61,FALSE) -> 13% | K16: =VLOOKUP($A16,'RECAP DIRCOM'!$G$6:$FJ$12,62,FALSE) -> 4 | L16: =VLOOKUP($A16,'RECAP DIRCOM'!$G$6:$FJ$12,63,FALSE) -> 4 | M16: =VLOOKUP($A16,'RECAP DIRCOM'!$G$6:$FJ$12,64,FALSE) -> 0.14 | N16: =VLOOKUP($A16,'RECAP DIRCOM'!$G$6:$FJ$12,65,FALSE) -> 0% | O16: =VLOOKUP($A16,'RECAP DIRCOM'!$G$6:$FJ$12,66,FALSE) -> 1 | P16: =VLOOKUP($A16,'RECAP DIRCOM'!$G$6:$FJ$12,67,FALSE) -> 13% | Q16: =VLOOKUP($A16,'RECAP DIRCOM'!$G$6:$FJ$12,68,FALSE) -> 0% | R16: =VLOOKUP($A16,'RECAP DIRCOM'!$G$6:$FJ$12,69,FALSE) -> 1
B17: Total CEGEE Directions Régionales | C17: =SUM(C10:C16) -> 1458

Sheet DC_CREDIT
B1: Accueil | D1: BAROMETRE BDD - DIRECTIONS REGIONALES
D2: CREDITS
D3: =ACCUEIL!F7 -> 2020-05-10
D7: Engagements crédits conso | H7: ADE crédits conso | L7: Engagements crédits immo | P7: ADE crédits immo | T7: SACCEF | X7: Engagement Crédits MLT + Crédits Bail | AB7: Total Crédits
F8: coef | G8: ='RECAP DIRCOM'!CG4 -> 4% | J8: coef | K8: ='RECAP DIRCOM'!CK4 -> 1% | N8: coef | O8: ='RECAP DIRCOM'!CO4 -> 4% | R8: coef | S8: ='RECAP DIRCOM'!CS4 -> 2% | V8: coef | W8: ='RECAP DIRCOM'!CW4 -> 2% | Z8: coef | AA8: ='RECAP DIRCOM'!DA4 -> 2% | AC8: coef | AD8: ='RECAP DIRCOM'!DD4 -> 15%
B9: Direction | C9: ETP perf | D9: Réal / ETP | E9: PNB / ETP | F9: % Ecart au 1er | G9: Rang | I9: PNB / ETP | J9: % Ecart au 1er | K9: Rang | L9: Réal / ETP | M9: PNB / ETP | N9: % Ecart au 1er | O9: Rang | Q9: PNB / ETP | R9: % Ecart au 1er | S9: Rang | U9: PNB / ETP | V9: % Ecart au 1er | W9: Rang | X9: Réal / ETP | Y9: PNB / ETP | Z9: % Ecart au 1er | AA9: Rang | AB9: Moyenne ecart au 1er | AC9: % Ecart au 1er | AD9: Rang CEGEE
A10: 50 | B10: Aube Haute Marne | C10: =VLOOKUP($A10,'RECAP DIRCOM'!$G$6:$FJ$12,3,FALSE) -> 133 | D10: =VLOOKUP($A10,'RECAP DIRCOM'!$G$6:$FJ$12,76,FALSE) -> 152.51 | E10: =VLOOKUP($A10,'RECAP DIRCOM'!$G$6:$FJ$12,77,FALSE) -> 15.01 | F10: =VLOOKUP($A10,'RECAP DIRCOM'!$G$6:$FJ$12,78,FALSE) -> 0% | G10: =VLOOKUP($A10,'RECAP DIRCOM'!$G$6:$FJ$12,79,FALSE) -> 1 | I10: =VLOOKUP($A10,'RECAP DIRCOM'!$G$6:$FJ$12,81,FALSE) -> 3.00 | J10: =VLOOKUP($A10,'RECAP DIRCOM'!$G$6:$FJ$12,82,FALSE) -> 10% | K10: =VLOOKUP($A10,'RECAP DIRCOM'!$G$6:$FJ$12,83,FALSE) -> 2 | L10: =VLOOKUP($A10,'RECAP DIRCOM'!$G$6:$FJ$12,84,FALSE) -> 350.16 | M10: =VLOOKUP($A10,'RECAP DIRCOM'!$G$6:$FJ$12,85,FALSE) -> 14.70 | N10: =VLOOKUP($A10,'RECAP DIRCOM'!$G$6:$FJ$12,86,FALSE) -> 44% | O10: =VLOOKUP($A10,'RECAP DIRCOM'!$G$6:$FJ$12,87,FALSE) -> 6 | Q10: =VLOOKUP($A10,'RECAP DIRCOM'!$G$6:$FJ$12,89,FALSE) -> 6.28 | R10: =VLOOKUP($A10,'RECAP DIRCOM'!$G$6:$FJ$12,90,FALSE) -> 63% | S10: =VLOOKUP($A10,'RECAP DIRCOM'!$G$6:$FJ$12,91,FALSE) -> 7 | U10: =VLOOKUP($A10,'RECAP DIRCOM'!$G$6:$FJ$12,93,FALSE) -> 0.81 | V10: =VLOOKUP($A10,'RECAP DIRCOM'!$G$6:$FJ$12,94,FALSE) -> 48% | W10: =VLOOKUP($A10,'RECAP DIRCOM'!$G$6:$FJ$12,95,FALSE) -> 6 | X10: =VLOOKUP($A10,'RECAP DIRCOM'!$G$6:$FJ$12,96,FALSE) -> 119.66 | Y10: =VLOOKUP($A10,'RECAP DIRCOM'!$G$6:$FJ$12,97,FALSE) -> 5.28 | Z10: =VLOOKUP($A10,'RECAP DIRCOM'!$G$6:$FJ$12,98,FALSE) -> 0% | AA10: =VLOOKUP($A10,'RECAP DIRCOM'!$G$6:$FJ$12,99,FALSE) -> 1 | AB10: =VLOOKUP($A10,'RECAP DIRCOM'!$G$6:$FJ$12,100,FALSE) -> 27% | AC10: =VLOOKUP($A10,'RECAP DIRCOM'!$G$6:$FJ$12,101,FALSE) -> 17% | AD10: =VLOOKUP($A10,'RECAP DIRCOM'!$G$6:$FJ$12,102,FALSE) -> 4
A11: 262 | B11: Bas-Rhin | C11: =VLOOKUP($A11,'RECAP DIRCOM'!$G$6:$FJ$12,3,FALSE) -> 273 | D11: =VLOOKUP($A11,'RECAP DIRCOM'!$G$6:$FJ$12,76,FALSE) -> 128.82 | E11: =VLOOKUP($A11,'RECAP DIRCOM'!$G$6:$FJ$12,77,FALSE) -> 11.59 | F11: =VLOOKUP($A11,'RECAP DIRCOM'!$G$6:$FJ$12,78,FALSE) -> 23% | G11: =VLOOKUP($A11,'RECAP DIRCOM'!$G$6:$FJ$12,79,FALSE) -> 6 | I11: =VLOOKUP($A11,'RECAP DIRCOM'!$G$6:$FJ$12,81,FALSE) -> 2.90 | J11: =VLOOKUP($A11,'RECAP DIRCOM'!$G$6:$FJ$12,82,FALSE) -> 13% | K11: =VLOOKUP($A11,'RECAP DIRCOM'!$G$6:$FJ$12,83,FALSE) -> 4 | L11: =VLOOKUP($A11,'RECAP DIRCOM'!$G$6:$FJ$12,84,FALSE) -> 443.16 | M11: =VLOOKUP($A11,'RECAP DIRCOM'!$G$6:$FJ$12,85,FALSE) -> 14.34 | N11: =VLOOKUP($A11,'RECAP DIRCOM'!$G$6:$FJ$12,86,FALSE) -> 46% | O11: =VLOOKUP($A11,'RECAP DIRCOM'!$G$6:$FJ$12,87,FALSE) -> 7 | Q11: =VLOOKUP($A11,'RECAP DIRCOM'!$G$6:$FJ$12,89,FALSE) -> 8.73 | R11: =VLOOKUP($A11,'RECAP DIRCOM'!$G$6:$FJ$12,90,FALSE) -> 49% | S11: =VLOOKUP($A11,'RECAP DIRCOM'!$G$6:$FJ$12,91,FALSE) -> 5 | U11: =VLOOKUP($A11,'RECAP DIRCOM'!$G$6:$FJ$12,93,FALSE) -> 0.83 | V11: =VLOOKUP($A11,'RECAP DIRCOM'!$G$6:$FJ$12,94,FALSE) -> 47% | W11: =VLOOKUP($A11,'RECAP DIRCOM'!$G$6:$FJ$12,95,FALSE) -> 4 | X11: =VLOOKUP($A11,'RECAP DIRCOM'!$G$6:$FJ$12,96,FALSE) -> 82.57 | Y11: =VLOOKUP($A11,'RECAP DIRCOM'!$G$6:$FJ$12,97,FALSE) -> 3.25 | Z11: =VLOOKUP($A11,'RECAP DIRCOM'!$G$6:$FJ$12,98,FALSE) -> 38% | AA11: =VLOOKUP($A11,'RECAP DIRCOM'!$G$6:$FJ$12,99,FALSE) -> 3 | AB11: =VLOOKUP($A11,'RECAP DIRCOM'!$G$6:$FJ$12,100,FALSE) -> 37% | AC11: =VLOOKUP($A11,'RECAP DIRCOM'!$G$6:$FJ$12,101,FALSE) -> 27% | AD11: =VLOOKUP($A11,'RECAP DIRCOM'!$G$6:$FJ$12,102,FALSE) -> 6
A12: 264 | B12: Haut-Rhin | C12: =VLOOKUP($A12,'RECAP DIRCOM'!$G$6:$FJ$12,3,FALSE) -> 164 | D12: =VLOOKUP($A12,'RECAP DIRCOM'!$G$6:$FJ$12,76,FALSE) -> 116.44 | E12: =VLOOKUP($A12,'RECAP DIRCOM'!$G$6:$FJ$12,77,FALSE) -> 10.62 | F12: =VLOOKUP($A12,'RECAP DIRCOM'!$G$6:$FJ$12,78,FALSE) -> 29% | G12: =VLOOKUP($A12,'RECAP DIRCOM'!$G$6:$FJ$12,79,FALSE) -> 7 | I12: =VLOOKUP($A12,'RECAP DIRCOM'!$G$6:$FJ$12,81,FALSE) -> 2.34 | J12: =VLOOKUP($A12,'RECAP DIRCOM'!$G$6:$FJ$12,82,FALSE) -> 29% | K12: =VLOOKUP($A12,'RECAP DIRCOM'!$G$6:$FJ$12,83,FALSE) -> 7 | L12: =VLOOKUP($A12,'RECAP DIRCOM'!$G$6:$FJ$12,84,FALSE) -> 436.46 | M12: =VLOOKUP($A12,'RECAP DIRCOM'!$G$6:$FJ$12,85,FALSE) -> 15.66 | N12: =VLOOKUP($A12,'RECAP DIRCOM'!$G$6:$FJ$12,86,FALSE) -> 41% | O12: =VLOOKUP($A12,'RECAP DIRCOM'!$G$6:$FJ$12,87,FALSE) -> 5 | Q12: =VLOOKUP($A12,'RECAP DIRCOM'!$G$6:$FJ$12,89,FALSE) -> 8.24 | R12: =VLOOKUP($A12,'RECAP DIRCOM'!$G$6:$FJ$12,90,FALSE) -> 52% | S12: =VLOOKUP($A12,'RECAP DIRCOM'!$G$6:$FJ$12,91,FALSE) -> 6 | U12: =VLOOKUP($A12,'RECAP DIRCOM'!$G$6:$FJ$12,93,FALSE) -> 0.73 | V12: =VLOOKUP($A12,'RECAP DIRCOM'!$G$6:$FJ$12,94,FALSE) -> 54% | W12: =VLOOKUP($A12,'RECAP DIRCOM'!$G$6:$FJ$12,95,FALSE) -> 7 | X12: =VLOOKUP($A12,'RECAP DIRCOM'!$G$6:$FJ$12,96,FALSE) -> 83.83 | Y12: =VLOOKUP($A12,'RECAP DIRCOM'!$G$6:$FJ$12,97,FALSE) -> 2.77 | Z12: =VLOOKUP($A12,'RECAP DIRCOM'!$G$6:$FJ$12,98,FALSE) -> 47% | AA12: =VLOOKUP($A12,'RECAP DIRCOM'!$G$6:$FJ$12,99,FALSE) -> 5 | AB12: =VLOOKUP($A12,'RECAP DIRCOM'!$G$6:$FJ$12,100,FALSE) -> 41% | AC12: =VLOOKUP($A12,'RECAP DIRCOM'!$G$6:$FJ$12,101,FALSE) -> 31% | AD12: =VLOOKUP($A12,'RECAP DIRCOM'!$G$6:$FJ$12,102,FALSE) -> 7
A13: 30 | B13: Marne-Ardennes | C13: =VLOOKUP($A13,'RECAP DIRCOM'!$G$6:$FJ$12,3,FALSE) -> 230 | D13: =VLOOKUP($A13,'RECAP DIRCOM'!$G$6:$FJ$12,76,FALSE) -> 134.43 | E13: =VLOOKUP($A13,'RECAP DIRCOM'!$G$6:$FJ$12,77,FALSE) -> 12.31 | F13: =VLOOKUP($A13,'RECAP DIRCOM'!$G$6:$FJ$12,78,FALSE) -> 18% | G13: =VLOOKUP($A13,'RECAP DIRCOM'!$G$6:$FJ$12,79,FALSE) -> 5 | I13: =VLOOKUP($A13,'RECAP DIRCOM'!$G$6:$FJ$12,81,FALSE) -> 2.82 | J13: =VLOOKUP($A13,'RECAP DIRCOM'!$G$6:$FJ$12,82,FALSE) -> 15% | K13: =VLOOKUP($A13,'RECAP DIRCOM'!$G$6:$FJ$12,83,FALSE) -> 6 | L13: =VLOOKUP($A13,'RECAP DIRCOM'!$G$6:$FJ$12,84,FALSE) -> 659.60 | M13: =VLOOKUP($A13,'RECAP DIRCOM'!$G$6:$FJ$12,85,FALSE) -> 26.43 | N13: =VLOOKUP($A13,'RECAP DIRCOM'!$G$6:$FJ$12,86,FALSE) -> 0% | O13: =VLOOKUP($A13,'RECAP DIRCOM'!$G$6:$FJ$12,87,FALSE) -> 1 | Q13: =VLOOKUP($A13,'RECAP DIRCOM'!$G$6:$FJ$12,89,FALSE) -> 17.17 | R13: =VLOOKUP($A13,'RECAP DIRCOM'!$G$6:$FJ$12,90,FALSE) -> 0% | S13: =VLOOKUP($A13,'RECAP DIRCOM'!$G$6:$FJ$12,91,FALSE) -> 1 | U13: =VLOOKUP($A13,'RECAP DIRCOM'!$G$6:$FJ$12,93,FALSE) -> 1.48 | V13: =VLOOKUP($A13,'RECAP DIRCOM'!$G$6:$FJ$12,94,FALSE) -> 5% | W13: =VLOOKUP($A13,'RECAP DIRCOM'!$G$6:$FJ$12,95,FALSE) -> 2 | X13: =VLOOKUP($A13,'RECAP DIRCOM'!$G$6:$FJ$12,96,FALSE) -> 130.64 | Y13: =VLOOKUP($A13,'RECAP DIRCOM'!$G$6:$FJ$12,97,FALSE) -> 3.88 | Z13: =VLOOKUP($A13,'RECAP DIRCOM'!$G$6:$FJ$12,98,FALSE) -> 26% | AA13: =VLOOKUP($A13,'RECAP DIRCOM'!$G$6:$FJ$12,99,FALSE) -> 2 | AB13: =VLOOKUP($A13,'RECAP DIRCOM'!$G$6:$FJ$12,100,FALSE) -> 10% | AC13: =VLOOKUP($A13,'RECAP DIRCOM'!$G$6:$FJ$12,101,FALSE) -> 0% | AD13: =VLOOKUP($A13,'RECAP DIRCOM'!$G$6:$FJ$12,102,FALSE) -> 1
A14: 110 | B14: Meurthe et Moselle Meuse | C14: =VLOOKUP($A14,'RECAP DIRCOM'!$G$6:$FJ$12,3,FALSE) -> 243 | D14: =VLOOKUP($A14,'RECAP DIRCOM'!$G$6:$FJ$12,76,FALSE) -> 153.55 | E14: =VLOOKUP($A14,'RECAP DIRCOM'!$G$6:$FJ$12,77,FALSE) -> 14.76 | F14: =VLOOKUP($A14,'RECAP DIRCOM'!$G$6:$FJ$12,78,FALSE) -> 2% | G14: =VLOOKUP($A14,'RECAP DIRCOM'!$G$6:$FJ$12,79,FALSE) -> 2 | I14: =VLOOKUP($A14,'RECAP DIRCOM'!$G$6:$FJ$12,81,FALSE) -> 3.31 | J14: =VLOOKUP($A14,'RECAP DIRCOM'!$G$6:$FJ$12,82,FALSE) -> 0% | K14: =VLOOKUP($A14,'RECAP DIRCOM'!$G$6:$FJ$12,83,FALSE) -> 1 | L14: =VLOOKUP($A14,'RECAP DIRCOM'!$G$6:$FJ$12,84,FALSE) -> 670.28 | M14: =VLOOKUP($A14,'RECAP DIRCOM'!$G$6:$FJ$12,85,FALSE) -> 26.27 | N14: =VLOOKUP($A14,'RECAP DIRCOM'!$G$6:$FJ$12,86,FALSE) -> 1% | O14: =VLOOKUP($A14,'RECAP DIRCOM'!$G$6:$FJ$12,87,FALSE) -> 2 | Q14: =VLOOKUP($A14,'RECAP DIRCOM'!$G$6:$FJ$12,89,FALSE) -> 15.17 | R14: =VLOOKUP($A14,'RECAP DIRCOM'!$G$6:$FJ$12,90,FALSE) -> 12% | S14: =VLOOKUP($A14,'RECAP DIRCOM'!$G$6:$FJ$12,91,FALSE) -> 2 | U14: =VLOOKUP($A14,'RECAP DIRCOM'!$G$6:$FJ$12,93,FALSE) -> 1.57 | V14: =VLOOKUP($A14,'RECAP DIRCOM'!$G$6:$FJ$12,94,FALSE) -> 0% | W14: =VLOOKUP($A14,'RECAP DIRCOM'!$G$6:$FJ$12,95,FALSE) -> 1 | X14: =VLOOKUP($A14,'RECAP DIRCOM'!$G$6:$FJ$12,96,FALSE) -> 41.13 | Y14: =VLOOKUP($A14,'RECAP DIRCOM'!$G$6:$FJ$12,97,FALSE) -> 1.88 | Z14: =VLOOKUP($A14,'RECAP DIRCOM'!$G$6:$FJ$12,98,FALSE) -> 64% | AA14: =VLOOKUP($A14,'RECAP DIRCOM'!$G$6:$FJ$12,99,FALSE) -> 6 | AB14: =VLOOKUP($A14,'RECAP DIRCOM'!$G$6:$FJ$12,100,FALSE) -> 11% | AC14: =VLOOKUP($A14,'RECAP DIRCOM'!$G$6:$FJ$12,101,FALSE) -> 1% | AD14: =VLOOKUP($A14,'RECAP DIRCOM'!$G$6:$FJ$12,102,FALSE) -> 2
A15: 160 | B15: Moselle | C15: =VLOOKUP($A15,'RECAP DIRCOM'!$G$6:$FJ$12,3,FALSE) -> 278 | D15: =VLOOKUP($A15,'RECAP DIRCOM'!$G$6:$FJ$12,76,FALSE) -> 148.85 | E15: =VLOOKUP($A15,'RECAP DIRCOM'!$G$6:$FJ$12,77,FALSE) -> 14.10 | F15: =VLOOKUP($A15,'RECAP DIRCOM'!$G$6:$FJ$12,78,FALSE) -> 6% | G15: =VLOOKUP($A15,'RECAP DIRCOM'!$G$6:$FJ$12,79,FALSE) -> 3 | I15: =VLOOKUP($A15,'RECAP DIRCOM'!$G$6:$FJ$12,81,FALSE) -> 2.92 | J15: =VLOOKUP($A15,'RECAP DIRCOM'!$G$6:$FJ$12,82,FALSE) -> 12% | K15: =VLOOKUP($A15,'RECAP DIRCOM'!$G$6:$FJ$12,83,FALSE) -> 3 | L15: =VLOOKUP($A15,'RECAP DIRCOM'!$G$6:$FJ$12,84,FALSE) -> 596.36 | M15: =VLOOKUP($A15,'RECAP DIRCOM'!$G$6:$FJ$12,85,FALSE) -> 23.02 | N15: =VLOOKUP($A15,'RECAP DIRCOM'!$G$6:$FJ$12,86,FALSE) -> 13% | O15: =VLOOKUP($A15,'RECAP DIRCOM'!$G$6:$FJ$12,87,FALSE) -> 3 | Q15: =VLOOKUP($A15,'RECAP DIRCOM'!$G$6:$FJ$12,89,FALSE) -> 10.13 | R15: =VLOOKUP($A15,'RECAP DIRCOM'!$G$6:$FJ$12,90,FALSE) -> 41% | S15: =VLOOKUP($A15,'RECAP DIRCOM'!$G$6:$FJ$12,91,FALSE) -> 3 | U15: =VLOOKUP($A15,'RECAP DIRCOM'!$G$6:$FJ$12,93,FALSE) -> 1.26 | V15: =VLOOKUP($A15,'RECAP DIRCOM'!$G$6:$FJ$12,94,FALSE) -> 19% | W15: =VLOOKUP($A15,'RECAP DIRCOM'!$G$6:$FJ$12,95,FALSE) -> 3 | X15: =VLOOKUP($A15,'RECAP DIRCOM'!$G$6:$FJ$12,96,FALSE) -> 30.08 | Y15: =VLOOKUP($A15,'RECAP DIRCOM'!$G$6:$FJ$12,97,FALSE) -> 1.11 | Z15: =VLOOKUP($A15,'RECAP DIRCOM'!$G$6:$FJ$12,98,FALSE) -> 79% | AA15: =VLOOKUP($A15,'RECAP DIRCOM'!$G$6:$FJ$12,99,FALSE) -> 7 | AB15: =VLOOKUP($A15,'RECAP DIRCOM'!$G$6:$FJ$12,100,FALSE) -> 24% | AC15: =VLOOKUP($A15,'RECAP DIRCOM'!$G$6:$FJ$12,101,FALSE) -> 14% | AD15: =VLOOKUP($A15,'RECAP DIRCOM'!$G$6:$FJ$12,102,FALSE) -> 3
A16: 80 | B16: Vosges | C16: =VLOOKUP($A16,'RECAP DIRCOM'!$G$6:$FJ$12,3,FALSE) -> 137 | D16: =VLOOKUP($A16,'RECAP DIRCOM'!$G$6:$FJ$12,76,FALSE) -> 140.39 | E16: =VLOOKUP($A16,'RECAP DIRCOM'!$G$6:$FJ$12,77,FALSE) -> 12.94 | F16: =VLOOKUP($A16,'RECAP DIRCOM'!$G$6:$FJ$12,78,FALSE) -> 14% | G16: =VLOOKUP($A16,'RECAP DIRCOM'!$G$6:$FJ$12,79,FALSE) -> 4 | I16: =VLOOKUP($A16,'RECAP DIRCOM'!$G$6:$FJ$12,81,FALSE) -> 2.88 | J16: =VLOOKUP($A16,'RECAP DIRCOM'!$G$6:$FJ$12,82,FALSE) -> 13% | K16: =VLOOKUP($A16,'RECAP DIRCOM'!$G$6:$FJ$12,83,FALSE) -> 5 | L16: =VLOOKUP($A16,'RECAP DIRCOM'!$G$6:$FJ$12,84,FALSE) -> 371.32 | M16: =VLOOKUP($A16,'RECAP DIRCOM'!$G$6:$FJ$12,85,FALSE) -> 17.04 | N16: =VLOOKUP($A16,'RECAP DIRCOM'!$G$6:$FJ$12,86,FALSE) -> 36% | O16: =VLOOKUP($A16,'RECAP DIRCOM'!$G$6:$FJ$12,87,FALSE) -> 4 | Q16: =VLOOKUP($A16,'RECAP DIRCOM'!$G$6:$FJ$12,89,FALSE) -> 8.82 | R16: =VLOOKUP($A16,'RECAP DIRCOM'!$G$6:$FJ$12,90,FALSE) -> 49% | S16: =VLOOKUP($A16,'RECAP DIRCOM'!$G$6:$FJ$12,91,FALSE) -> 4 | U16: =VLOOKUP($A16,'RECAP DIRCOM'!$G$6:$FJ$12,93,FALSE) -> 0.81 | V16: =VLOOKUP($A16,'RECAP DIRCOM'!$G$6:$FJ$12,94,FALSE) -> 48% | W16: =VLOOKUP($A16,'RECAP DIRCOM'!$G$6:$FJ$12,95,FALSE) -> 5 | X16: =VLOOKUP($A16,'RECAP DIRCOM'!$G$6:$FJ$12,96,FALSE) -> 61.85 | Y16: =VLOOKUP($A16,'RECAP DIRCOM'!$G$6:$FJ$12,97,FALSE) -> 2.93 | Z16: =VLOOKUP($A16,'RECAP DIRCOM'!$G$6:$FJ$12,98,FALSE) -> 45% | AA16: =VLOOKUP($A16,'RECAP DIRCOM'!$G$6:$FJ$12,99,FALSE) -> 4 | AB16: =VLOOKUP($A16,'RECAP DIRCOM'!$G$6:$FJ$12,100,FALSE) -> 33% | AC16: =VLOOKUP($A16,'RECAP DIRCOM'!$G$6:$FJ$12,101,FALSE) -> 23% | AD16: =VLOOKUP($A16,'RECAP DIRCOM'!$G$6:$FJ$12,102,FALSE) -> 5
B17: Total CEGEE Directions Régionales | C17: =SUM(C10:C16) -> 1458

Sheet DC_IARD
B1: Accueil | D1: BAROMETRE BDD - DIRECTIONS REGIONALES
D2: IARD ET PREVOYANCE
D3: =ACCUEIL!F7 -> 2020-05-10
D7: Ventes nettes IARD | H7: Ventes nettes Prévoyance | L7: Total IARD Prévoyance
F8: coef | G8: ='RECAP DIRCOM'!DN4 -> 9% | J8: coef | K8: ='RECAP DIRCOM'!DR4 -> 6% | M8: coef | N8: ='RECAP DIRCOM'!DU4 -> 15%
B9: Direction | C9: ETP perf | D9: Nb / ETP | E9: PNB / ETP | F9: % Ecart au 1er | G9: Rang | H9: Nb / ETP | I9: PNB / ETP | J9: % Ecart au 1er | K9: Rang | L9: Moyenne ecart au 1er | M9: % Ecart au 1er | N9: Rang CEGEE
A10: 50 | B10: Aube Haute Marne | C10: =VLOOKUP($A10,'RECAP DIRCOM'!$G$6:$FJ$12,3,FALSE) -> 133 | D10: =VLOOKUP($A10,'RECAP DIRCOM'!$G$6:$FJ$12,109,FALSE) -> 2.14 | E10: =VLOOKUP($A10,'RECAP DIRCOM'!$G$6:$FJ$12,110,FALSE) -> 0.22 | F10: =VLOOKUP($A10,'RECAP DIRCOM'!$G$6:$FJ$12,111,FALSE) -> 61% | G10: =VLOOKUP($A10,'RECAP DIRCOM'!$G$6:$FJ$12,112,FALSE) -> 5 | H10: =VLOOKUP($A10,'RECAP DIRCOM'!$G$6:$FJ$12,113,FALSE) -> 1.24 | I10: =VLOOKUP($A10,'RECAP DIRCOM'!$G$6:$FJ$12,114,FALSE) -> 0.24 | J10: =VLOOKUP($A10,'RECAP DIRCOM'!$G$6:$FJ$12,115,FALSE) -> 32% | K10: =VLOOKUP($A10,'RECAP DIRCOM'!$G$6:$FJ$12,116,FALSE) -> 5 | L10: =VLOOKUP($A10,'RECAP DIRCOM'!$G$6:$FJ$12,117,FALSE) -> 49% | M10: =VLOOKUP($A10,'RECAP DIRCOM'!$G$6:$FJ$12,118,FALSE) -> 49% | N10: =VLOOKUP($A10,'RECAP DIRCOM'!$G$6:$FJ$12,119,FALSE) -> 5
A11: 262 | B11: Bas-Rhin | C11: =VLOOKUP($A11,'RECAP DIRCOM'!$G$6:$FJ$12,3,FALSE) -> 273 | D11: =VLOOKUP($A11,'RECAP DIRCOM'!$G$6:$FJ$12,109,FALSE) -> 0.92 | E11: =VLOOKUP($A11,'RECAP DIRCOM'!$G$6:$FJ$12,110,FALSE) -> 0.08 | F11: =VLOOKUP($A11,'RECAP DIRCOM'!$G$6:$FJ$12,111,FALSE) -> 86% | G11: =VLOOKUP($A11,'RECAP DIRCOM'!$G$6:$FJ$12,112,FALSE) -> 6 | H11: =VLOOKUP($A11,'RECAP DIRCOM'!$G$6:$FJ$12,113,FALSE) -> 1.96 | I11: =VLOOKUP($A11,'RECAP DIRCOM'!$G$6:$FJ$12,114,FALSE) -> 0.33 | J11: =VLOOKUP($A11,'RECAP DIRCOM'!$G$6:$FJ$12,115,FALSE) -> 4% | K11: =VLOOKUP($A11,'RECAP DIRCOM'!$G$6:$FJ$12,116,FALSE) -> 3 | L11: =VLOOKUP($A11,'RECAP DIRCOM'!$G$6:$FJ$12,117,FALSE) -> 53% | M11: =VLOOKUP($A11,'RECAP DIRCOM'!$G$6:$FJ$12,118,FALSE) -> 53% | N11: =VLOOKUP($A11,'RECAP DIRCOM'!$G$6:$FJ$12,119,FALSE) -> 6
A12: 264 | B12: Haut-Rhin | C12: =VLOOKUP($A12,'RECAP DIRCOM'!$G$6:$FJ$12,3,FALSE) -> 164 | D12: =VLOOKUP($A12,'RECAP DIRCOM'!$G$6:$FJ$12,109,FALSE) -> 0.17 | E12: =VLOOKUP($A12,'RECAP DIRCOM'!$G$6:$FJ$12,110,FALSE) -> 0.01 | F12: =VLOOKUP($A12,'RECAP DIRCOM'!$G$6:$FJ$12,111,FALSE) -> 99% | G12: =VLOOKUP($A12,'RECAP DIRCOM'!$G$6:$FJ$12,112,FALSE) -> 7 | H12: =VLOOKUP($A12,'RECAP DIRCOM'!$G$6:$FJ$12,113,FALSE) -> -0.50 | I12: =VLOOKUP($A12,'RECAP DIRCOM'!$G$6:$FJ$12,114,FALSE) -> 0.09 | J12: =VLOOKUP($A12,'RECAP DIRCOM'!$G$6:$FJ$12,115,FALSE) -> 74% | K12: =VLOOKUP($A12,'RECAP DIRCOM'!$G$6:$FJ$12,116,FALSE) -> 7 | L12: =VLOOKUP($A12,'RECAP DIRCOM'!$G$6:$FJ$12,117,FALSE) -> 89% | M12: =VLOOKUP($A12,'RECAP DIRCOM'!$G$6:$FJ$12,118,FALSE) -> 89% | N12: =VLOOKUP($A12,'RECAP DIRCOM'!$G$6:$FJ$12,119,FALSE) -> 7
A13: 30 | B13: Marne-Ardennes | C13: =VLOOKUP($A13,'RECAP DIRCOM'!$G$6:$FJ$12,3,FALSE) -> 230 | D13: =VLOOKUP($A13,'RECAP DIRCOM'!$G$6:$FJ$12,109,FALSE) -> 3.74 | E13: =VLOOKUP($A13,'RECAP DIRCOM'!$G$6:$FJ$12,110,FALSE) -> 0.39 | F13: =VLOOKUP($A13,'RECAP DIRCOM'!$G$6:$FJ$12,111,FALSE) -> 30% | G13: =VLOOKUP($A13,'RECAP DIRCOM'!$G$6:$FJ$12,112,FALSE) -> 2 | H13: =VLOOKUP($A13,'RECAP DIRCOM'!$G$6:$FJ$12,113,FALSE) -> 1.99 | I13: =VLOOKUP($A13,'RECAP DIRCOM'!$G$6:$FJ$12,114,FALSE) -> 0.35 | J13: =VLOOKUP($A13,'RECAP DIRCOM'!$G$6:$FJ$12,115,FALSE) -> 0% | K13: =VLOOKUP($A13,'RECAP DIRCOM'!$G$6:$FJ$12,116,FALSE) -> 1 | L13: =VLOOKUP($A13,'RECAP DIRCOM'!$G$6:$FJ$12,117,FALSE) -> 18% | M13: =VLOOKUP($A13,'RECAP DIRCOM'!$G$6:$FJ$12,118,FALSE) -> 18% | N13: =VLOOKUP($A13,'RECAP DIRCOM'!$G$6:$FJ$12,119,FALSE) -> 2
A14: 110 | B14: Meurthe et Moselle Meuse | C14: =VLOOKUP($A14,'RECAP DIRCOM'!$G$6:$FJ$12,3,FALSE) -> 243 | D14: =VLOOKUP($A14,'RECAP DIRCOM'!$G$6:$FJ$12,109,FALSE) -> 5.75 | E14: =VLOOKUP($A14,'RECAP DIRCOM'!$G$6:$FJ$12,110,FALSE) -> 0.56 | F14: =VLOOKUP($A14,'RECAP DIRCOM'!$G$6:$FJ$12,111,FALSE) -> 0% | G14: =VLOOKUP($A14,'RECAP DIRCOM'!$G$6:$FJ$12,112,FALSE) -> 1 | H14: =VLOOKUP($A14,'RECAP DIRCOM'!$G$6:$FJ$12,113,FALSE) -> 2.66 | I14: =VLOOKUP($A14,'RECAP DIRCOM'!$G$6:$FJ$12,114,FALSE) -> 0.34 | J14: =VLOOKUP($A14,'RECAP DIRCOM'!$G$6:$FJ$12,115,FALSE) -> 1% | K14: =VLOOKUP($A14,'RECAP DIRCOM'!$G$6:$FJ$12,116,FALSE) -> 2 | L14: =VLOOKUP($A14,'RECAP DIRCOM'!$G$6:$FJ$12,117,FALSE) -> 0% | M14: =VLOOKUP($A14,'RECAP DIRCOM'!$G$6:$FJ$12,118,FALSE) -> 0% | N14: =VLOOKUP($A14,'RECAP DIRCOM'!$G$6:$FJ$12,119,FALSE) -> 1
A15: 160 | B15: Moselle | C15: =VLOOKUP($A15,'RECAP DIRCOM'!$G$6:$FJ$12,3,FALSE) -> 278 | D15: =VLOOKUP($A15,'RECAP DIRCOM'!$G$6:$FJ$12,109,FALSE) -> 2.66 | E15: =VLOOKUP($A15,'RECAP DIRCOM'!$G$6:$FJ$12,110,FALSE) -> 0.26 | F15: =VLOOKUP($A15,'RECAP DIRCOM'!$G$6:$FJ$12,111,FALSE) -> 53% | G15: =VLOOKUP($A15,'RECAP DIRCOM'!$G$6:$FJ$12,112,FALSE) -> 3 | H15: =VLOOKUP($A15,'RECAP DIRCOM'!$G$6:$FJ$12,113,FALSE) -> 0.69 | I15: =VLOOKUP($A15,'RECAP DIRCOM'!$G$6:$FJ$12,114,FALSE) -> 0.20 | J15: =VLOOKUP($A15,'RECAP DIRCOM'!$G$6:$FJ$12,115,FALSE) -> 42% | K15: =VLOOKUP($A15,'RECAP DIRCOM'!$G$6:$FJ$12,116,FALSE) -> 6 | L15: =VLOOKUP($A15,'RECAP DIRCOM'!$G$6:$FJ$12,117,FALSE) -> 48% | M15: =VLOOKUP($A15,'RECAP DIRCOM'!$G$6:$FJ$12,118,FALSE) -> 48% | N15: =VLOOKUP($A15,'RECAP DIRCOM'!$G$6:$FJ$12,119,FALSE) -> 4
A16: 80 | B16: Vosges | C16: =VLOOKUP($A16,'RECAP DIRCOM'!$G$6:$FJ$12,3,FALSE) -> 137 | D16: =VLOOKUP($A16,'RECAP DIRCOM'!$G$6:$FJ$12,109,FALSE) -> 2.28 | E16: =VLOOKUP($A16,'RECAP DIRCOM'!$G$6:$FJ$12,110,FALSE) -> 0.25 | F16: =VLOOKUP($A16,'RECAP DIRCOM'!$G$6:$FJ$12,111,FALSE) -> 56% | G16: =VLOOKUP($A16,'RECAP DIRCOM'!$G$6:$FJ$12,112,FALSE) -> 4 | H16: =VLOOKUP($A16,'RECAP DIRCOM'!$G$6:$FJ$12,113,FALSE) -> 1.04 | I16: =VLOOKUP($A16,'RECAP DIRCOM'!$G$6:$FJ$12,114,FALSE) -> 0.25 | J16: =VLOOKUP($A16,'RECAP DIRCOM'!$G$6:$FJ$12,115,FALSE) -> 29% | K16: =VLOOKUP($A16,'RECAP DIRCOM'!$G$6:$FJ$12,116,FALSE) -> 4 | L16: =VLOOKUP($A16,'RECAP DIRCOM'!$G$6:$FJ$12,117,FALSE) -> 45% | M16: =VLOOKUP($A16,'RECAP DIRCOM'!$G$6:$FJ$12,118,FALSE) -> 45% | N16: =VLOOKUP($A16,'RECAP DIRCOM'!$G$6:$FJ$12,119,FALSE) -> 3
B17: Total CEGEE Directions Régionales | C17: =SUM(C10:C16) -> 1458

Sheet DC_CONQUETE
B1: Accueil | D1: BAROMETRE BDD - DIRECTIONS REGIONALES
D2: CLIENTS
D3: =ACCUEIL!F7 -> 2020-05-10
D7: Evolution nette clients Bancarisés Principaux | H7: Evolution nette relations PREMIUM | L7: Evolution nette clients Jeunes équipés | P7: Evolution nette clients Pro actif équipés | T7: Total Clients
F8: coef | G8: ='RECAP DIRCOM'!N4 -> 4% | J8: coef | K8: ='RECAP DIRCOM'!R4 -> 5% | N8: coef | O8: ='RECAP DIRCOM'!V4 -> 3% | R8: coef | S8: ='RECAP DIRCOM'!Z4 -> 3% | U8: coef | V8: ='RECAP DIRCOM'!AC4 -> 15%
B9: Direction | C9: ETP perf | D9: Nb / ETP | E9: PNB / ETP | F9: % Ecart au 1er | G9: Rang | H9: Nb / ETP | I9: PNB / ETP | J9: % Ecart au 1er | K9: Rang | L9: Nb / ETP | M9: PNB / ETP | N9: % Ecart au 1er | O9: Rang | P9: Nb / ETP | Q9: PNB / ETP | R9: % Ecart au 1er | S9: Rang | T9: Moyenne ecart au 1er | U9: % Ecart au 1er | V9: Rang CEGEE
A10: 50 | B10: Aube Haute Marne | C10: =VLOOKUP($A10,'RECAP DIRCOM'!$G$6:$FJ$12,3,FALSE) -> 133 | D10: =VLOOKUP($A10,'RECAP DIRCOM'!$G$6:$FJ$12,5,FALSE) -> -0.75 | E10: =VLOOKUP($A10,'RECAP DIRCOM'!$G$6:$FJ$12,6,FALSE) -> -0.38 | F10: =VLOOKUP($A10,'RECAP DIRCOM'!$G$6:$FJ$12,7,FALSE) -> 45% | G10: =VLOOKUP($A10,'RECAP DIRCOM'!$G$6:$FJ$12,8,FALSE) -> 3 | H10: =VLOOKUP($A10,'RECAP DIRCOM'!$G$6:$FJ$12,9,FALSE) -> 0.78 | I10: =VLOOKUP($A10,'RECAP DIRCOM'!$G$6:$FJ$12,10,FALSE) -> 0.54 | J10: =VLOOKUP($A10,'RECAP DIRCOM'!$G$6:$FJ$12,11,FALSE) -> 0% | K10: =VLOOKUP($A10,'RECAP DIRCOM'!$G$6:$FJ$12,12,FALSE) -> 1 | L10: =VLOOKUP($A10,'RECAP DIRCOM'!$G$6:$FJ$12,13,FALSE) -> -2.40 | M10: =VLOOKUP($A10,'RECAP DIRCOM'!$G$6:$FJ$12,14,FALSE) -> -0.36 | N10: =VLOOKUP($A10,'RECAP DIRCOM'!$G$6:$FJ$12,15,FALSE) -> 98% | O10: =VLOOKUP($A10,'RECAP DIRCOM'!$G$6:$FJ$12,16,FALSE) -> 6 | P10: =VLOOKUP($A10,'RECAP DIRCOM'!$G$6:$FJ$12,17,FALSE) -> 0.02 | Q10: =VLOOKUP($A10,'RECAP DIRCOM'!$G$6:$FJ$12,18,FALSE) -> 0.06 | R10: =VLOOKUP($A10,'RECAP DIRCOM'!$G$6:$FJ$12,19,FALSE) -> 60% | S10: =VLOOKUP($A10,'RECAP DIRCOM'!$G$6:$FJ$12,20,FALSE) -> 3 | T10: =VLOOKUP($A10,'RECAP DIRCOM'!$G$6:$FJ$12,21,FALSE) -> 44% | U10: =VLOOKUP($A10,'RECAP DIRCOM'!$G$6:$FJ$12,22,FALSE) -> 25% | V10: =VLOOKUP($A10,'RECAP DIRCOM'!$G$6:$FJ$12,23,FALSE) -> 3
A11: 262 | B11: Bas-Rhin | C11: =VLOOKUP($A11,'RECAP DIRCOM'!$G$6:$FJ$12,3,FALSE) -> 273 | D11: =VLOOKUP($A11,'RECAP DIRCOM'!$G$6:$FJ$12,5,FALSE) -> -1.57 | E11: =VLOOKUP($A11,'RECAP DIRCOM'!$G$6:$FJ$12,6,FALSE) -> -0.79 | F11: =VLOOKUP($A11,'RECAP DIRCOM'!$G$6:$FJ$12,7,FALSE) -> 84% | G11: =VLOOKUP($A11,'RECAP DIRCOM'!$G$6:$FJ$12,8,FALSE) -> 6 | H11: =VLOOKUP($A11,'RECAP DIRCOM'!$G$6:$FJ$12,9,FALSE) -> 0.52 | I11: =VLOOKUP($A11,'RECAP DIRCOM'!$G$6:$FJ$12,10,FALSE) -> 0.37 | J11: =VLOOKUP($A11,'RECAP DIRCOM'!$G$6:$FJ$12,11,FALSE) -> 33% | K11: =VLOOKUP($A11,'RECAP DIRCOM'!$G$6:$FJ$12,12,FALSE) -> 6 | L11: =VLOOKUP($A11,'RECAP DIRCOM'!$G$6:$FJ$12,13,FALSE) -> -2.05 | M11: =VLOOKUP($A11,'RECAP DIRCOM'!$G$6:$FJ$12,14,FALSE) -> -0.31 | N11: =VLOOKUP($A11,'RECAP DIRCOM'!$G$6:$FJ$12,15,FALSE) -> 70% | O11: =VLOOKUP($A11,'RECAP DIRCOM'!$G$6:$FJ$12,16,FALSE) -> 3 | P11: =VLOOKUP($A11,'RECAP DIRCOM'!$G$6:$FJ$12,17,FALSE) -> -0.04 | Q11: =VLOOKUP($A11,'RECAP DIRCOM'!$G$6:$FJ$12,18,FALSE) -> -0.11 | R11: =VLOOKUP($A11,'RECAP DIRCOM'!$G$6:$FJ$12,19,FALSE) -> 150% | S11: =VLOOKUP($A11,'RECAP DIRCOM'!$G$6:$FJ$12,20,FALSE) -> 7 | T11: =VLOOKUP($A11,'RECAP DIRCOM'!$G$6:$FJ$12,21,FALSE) -> 77% | U11: =VLOOKUP($A11,'RECAP DIRCOM'!$G$6:$FJ$12,22,FALSE) -> 59% | V11: =VLOOKUP($A11,'RECAP DIRCOM'!$G$6:$FJ$12,23,FALSE) -> 7
A12: 264 | B12: Haut-Rhin | C12: =VLOOKUP($A12,'RECAP DIRCOM'!$G$6:$FJ$12,3,FALSE) -> 164 | D12: =VLOOKUP($A12,'RECAP DIRCOM'!$G$6:$FJ$12,5,FALSE) -> -2.96 | E12: =VLOOKUP($A12,'RECAP DIRCOM'!$G$6:$FJ$12,6,FALSE) -> -1.48 | F12: =VLOOKUP($A12,'RECAP DIRCOM'!$G$6:$FJ$12,7,FALSE) -> 150% | G12: =VLOOKUP($A12,'RECAP DIRCOM'!$G$6:$FJ$12,8,FALSE) -> 7 | H12: =VLOOKUP($A12,'RECAP DIRCOM'!$G$6:$FJ$12,9,FALSE) -> 0.69 | I12: =VLOOKUP($A12,'RECAP DIRCOM'!$G$6:$FJ$12,10,FALSE) -> 0.49 | J12: =VLOOKUP($A12,'RECAP DIRCOM'!$G$6:$FJ$12,11,FALSE) -> 10% | K12: =VLOOKUP($A12,'RECAP DIRCOM'!$G$6:$FJ$12,12,FALSE) -> 4 | L12: =VLOOKUP($A12,'RECAP DIRCOM'!$G$6:$FJ$12,13,FALSE) -> -2.85 | M12: =VLOOKUP($A12,'RECAP DIRCOM'!$G$6:$FJ$12,14,FALSE) -> -0.43 | N12: =VLOOKUP($A12,'RECAP DIRCOM'!$G$6:$FJ$12,15,FALSE) -> 136% | O12: =VLOOKUP($A12,'RECAP DIRCOM'!$G$6:$FJ$12,16,FALSE) -> 7 | P12: =VLOOKUP($A12,'RECAP DIRCOM'!$G$6:$FJ$12,17,FALSE) -> 0.07 | Q12: =VLOOKUP($A12,'RECAP DIRCOM'!$G$6:$FJ$12,18,FALSE) -> 0.17 | R12: =VLOOKUP($A12,'RECAP DIRCOM'!$G$6:$FJ$12,19,FALSE) -> 0% | S12: =VLOOKUP($A12,'RECAP DIRCOM'!$G$6:$FJ$12,20,FALSE) -> 1 | T12: =VLOOKUP($A12,'RECAP DIRCOM'!$G$6:$FJ$12,21,FALSE) -> 71% | U12: =VLOOKUP($A12,'RECAP DIRCOM'!$G$6:$FJ$12,22,FALSE) -> 52% | V12: =VLOOKUP($A12,'RECAP DIRCOM'!$G$6:$FJ$12,23,FALSE) -> 6
A13: 30 | B13: Marne-Ardennes | C13: =VLOOKUP($A13,'RECAP DIRCOM'!$G$6:$FJ$12,3,FALSE) -> 230 | D13: =VLOOKUP($A13,'RECAP DIRCOM'!$G$6:$FJ$12,5,FALSE) -> 0.19 | E13: =VLOOKUP($A13,'RECAP DIRCOM'!$G$6:$FJ$12,6,FALSE) -> 0.09 | F13: =VLOOKUP($A13,'RECAP DIRCOM'!$G$6:$FJ$12,7,FALSE) -> 0% | G13: =VLOOKUP($A13,'RECAP DIRCOM'!$G$6:$FJ$12,8,FALSE) -> 1 | H13: =VLOOKUP($A13,'RECAP DIRCOM'!$G$6:$FJ$12,9,FALSE) -> 0.40 | I13: =VLOOKUP($A13,'RECAP DIRCOM'!$G$6:$FJ$12,10,FALSE) -> 0.28 | J13: =VLOOKUP($A13,'RECAP DIRCOM'!$G$6:$FJ$12,11,FALSE) -> 49% | K13: =VLOOKUP($A13,'RECAP DIRCOM'!$G$6:$FJ$12,12,FALSE) -> 7 | L13: =VLOOKUP($A13,'RECAP DIRCOM'!$G$6:$FJ$12,13,FALSE) -> -1.39 | M13: =VLOOKUP($A13,'RECAP DIRCOM'!$G$6:$FJ$12,14,FALSE) -> -0.21 | N13: =VLOOKUP($A13,'RECAP DIRCOM'!$G$6:$FJ$12,15,FALSE) -> 15% | O13: =VLOOKUP($A13,'RECAP DIRCOM'!$G$6:$FJ$12,16,FALSE) -> 2 | P13: =VLOOKUP($A13,'RECAP DIRCOM'!$G$6:$FJ$12,17,FALSE) -> -0.01 | Q13: =VLOOKUP($A13,'RECAP DIRCOM'!$G$6:$FJ$12,18,FALSE) -> -0.02 | R13: =VLOOKUP($A13,'RECAP DIRCOM'!$G$6:$FJ$12,19,FALSE) -> 102% | S13: =VLOOKUP($A13,'RECAP DIRCOM'!$G$6:$FJ$12,20,FALSE) -> 6 | T13: =VLOOKUP($A13,'RECAP DIRCOM'!$G$6:$FJ$12,21,FALSE) -> 40% | U13: =VLOOKUP($A13,'RECAP DIRCOM'!$G$6:$FJ$12,22,FALSE) -> 21% | V13: =VLOOKUP($A13,'RECAP DIRCOM'!$G$6:$FJ$12,23,FALSE) -> 2
A14: 110 | B14: Meurthe et Moselle Meuse | C14: =VLOOKUP($A14,'RECAP DIRCOM'!$G$6:$FJ$12,3,FALSE) -> 243 | D14: =VLOOKUP($A14,'RECAP DIRCOM'!$G$6:$FJ$12,5,FALSE) -> -0.24 | E14: =VLOOKUP($A14,'RECAP DIRCOM'!$G$6:$FJ$12,6,FALSE) -> -0.12 | F14: =VLOOKUP($A14,'RECAP DIRCOM'!$G$6:$FJ$12,7,FALSE) -> 20% | G14: =VLOOKUP($A14,'RECAP DIRCOM'!$G$6:$FJ$12,8,FALSE) -> 2 | H14: =VLOOKUP($A14,'RECAP DIRCOM'!$G$6:$FJ$12,9,FALSE) -> 0.71 | I14: =VLOOKUP($A14,'RECAP DIRCOM'!$G$6:$FJ$12,10,FALSE) -> 0.50 | J14: =VLOOKUP($A14,'RECAP DIRCOM'!$G$6:$FJ$12,11,FALSE) -> 9% | K14: =VLOOKUP($A14,'RECAP DIRCOM'!$G$6:$FJ$12,12,FALSE) -> 3 | L14: =VLOOKUP($A14,'RECAP DIRCOM'!$G$6:$FJ$12,13,FALSE) -> -1.21 | M14: =VLOOKUP($A14,'RECAP DIRCOM'!$G$6:$FJ$12,14,FALSE) -> -0.18 | N14: =VLOOKUP($A14,'RECAP DIRCOM'!$G$6:$FJ$12,15,FALSE) -> 0% | O14: =VLOOKUP($A14,'RECAP DIRCOM'!$G$6:$FJ$12,16,FALSE) -> 1 | P14: =VLOOKUP($A14,'RECAP DIRCOM'!$G$6:$FJ$12,17,FALSE) -> 0.03 | Q14: =VLOOKUP($A14,'RECAP DIRCOM'!$G$6:$FJ$12,18,FALSE) -> 0.07 | R14: =VLOOKUP($A14,'RECAP DIRCOM'!$G$6:$FJ$12,19,FALSE) -> 52% | S14: =VLOOKUP($A14,'RECAP DIRCOM'!$G$6:$FJ$12,20,FALSE) -> 2 | T14: =VLOOKUP($A14,'RECAP DIRCOM'!$G$6:$FJ$12,21,FALSE) -> 19% | U14: =VLOOKUP($A14,'RECAP DIRCOM'!$G$6:$FJ$12,22,FALSE) -> 0% | V14: =VLOOKUP($A14,'RECAP DIRCOM'!$G$6:$FJ$12,23,FALSE) -> 1
A15: 160 | B15: Moselle | C15: =VLOOKUP($A15,'RECAP DIRCOM'!$G$6:$FJ$12,3,FALSE) -> 278 | D15: =VLOOKUP($A15,'RECAP DIRCOM'!$G$6:$FJ$12,5,FALSE) -> -1.14 | E15: =VLOOKUP($A15,'RECAP DIRCOM'!$G$6:$FJ$12,6,FALSE) -> -0.57 | F15: =VLOOKUP($A15,'RECAP DIRCOM'!$G$6:$FJ$12,7,FALSE) -> 63% | G15: =VLOOKUP($A15,'RECAP DIRCOM'!$G$6:$FJ$12,8,FALSE) -> 4 | H15: =VLOOKUP($A15,'RECAP DIRCOM'!$G$6:$FJ$12,9,FALSE) -> 0.72 | I15: =VLOOKUP($A15,'RECAP DIRCOM'!$G$6:$FJ$12,10,FALSE) -> 0.51 | J15: =VLOOKUP($A15,'RECAP DIRCOM'!$G$6:$FJ$12,11,FALSE) -> 7% | K15: =VLOOKUP($A15,'RECAP DIRCOM'!$G$6:$FJ$12,12,FALSE) -> 2 | L15: =VLOOKUP($A15,'RECAP DIRCOM'!$G$6:$FJ$12,13,FALSE) -> -2.24 | M15: =VLOOKUP($A15,'RECAP DIRCOM'!$G$6:$FJ$12,14,FALSE) -> -0.34 | N15: =VLOOKUP($A15,'RECAP DIRCOM'!$G$6:$FJ$12,15,FALSE) -> 85% | O15: =VLOOKUP($A15,'RECAP DIRCOM'!$G$6:$FJ$12,16,FALSE) -> 5 | P15: =VLOOKUP($A15,'RECAP DIRCOM'!$G$6:$FJ$12,17,FALSE) -> 0.01 | Q15: =VLOOKUP($A15,'RECAP DIRCOM'!$G$6:$FJ$12,18,FALSE) -> 0.02 | R15: =VLOOKUP($A15,'RECAP DIRCOM'!$G$6:$FJ$12,19,FALSE) -> 81% | S15: =VLOOKUP($A15,'RECAP DIRCOM'!$G$6:$FJ$12,20,FALSE) -> 5 | T15: =VLOOKUP($A15,'RECAP DIRCOM'!$G$6:$FJ$12,21,FALSE) -> 52% | U15: =VLOOKUP($A15,'RECAP DIRCOM'!$G$6:$FJ$12,22,FALSE) -> 34% | V15: =VLOOKUP($A15,'RECAP DIRCOM'!$G$6:$FJ$12,23,FALSE) -> 4
A16: 80 | B16: Vosges | C16: =VLOOKUP($A16,'RECAP DIRCOM'!$G$6:$FJ$12,3,FALSE) -> 137 | D16: =VLOOKUP($A16,'RECAP DIRCOM'!$G$6:$FJ$12,5,FALSE) -> -1.22 | E16: =VLOOKUP($A16,'RECAP DIRCOM'!$G$6:$FJ$12,6,FALSE) -> -0.61 | F16: =VLOOKUP($A16,'RECAP DIRCOM'!$G$6:$FJ$12,7,FALSE) -> 67% | G16: =VLOOKUP($A16,'RECAP DIRCOM'!$G$6:$FJ$12,8,FALSE) -> 5 | H16: =VLOOKUP($A16,'RECAP DIRCOM'!$G$6:$FJ$12,9,FALSE) -> 0.63 | I16: =VLOOKUP($A16,'RECAP DIRCOM'!$G$6:$FJ$12,10,FALSE) -> 0.44 | J16: =VLOOKUP($A16,'RECAP DIRCOM'!$G$6:$FJ$12,11,FALSE) -> 18% | K16: =VLOOKUP($A16,'RECAP DIRCOM'!$G$6:$FJ$12,12,FALSE) -> 5 | L16: =VLOOKUP($A16,'RECAP DIRCOM'!$G$6:$FJ$12,13,FALSE) -> -2.21 | M16: =VLOOKUP($A16,'RECAP DIRCOM'!$G$6:$FJ$12,14,FALSE) -> -0.33 | N16: =VLOOKUP($A16,'RECAP DIRCOM'!$G$6:$FJ$12,15,FALSE) -> 83% | O16: =VLOOKUP($A16,'RECAP DIRCOM'!$G$6:$FJ$12,16,FALSE) -> 4 | P16: =VLOOKUP($A16,'RECAP DIRCOM'!$G$6:$FJ$12,17,FALSE) -> 0.01 | Q16: =VLOOKUP($A16,'RECAP DIRCOM'!$G$6:$FJ$12,18,FALSE) -> 0.02 | R16: =VLOOKUP($A16,'RECAP DIRCOM'!$G$6:$FJ$12,19,FALSE) -> 81% | S16: =VLOOKUP($A16,'RECAP DIRCOM'!$G$6:$FJ$12,20,FALSE) -> 4 | T16: =VLOOKUP($A16,'RECAP DIRCOM'!$G$6:$FJ$12,21,FALSE) -> 57% | U16: =VLOOKUP($A16,'RECAP DIRCOM'!$G$6:$FJ$12,22,FALSE) -> 38% | V16: =VLOOKUP($A16,'RECAP DIRCOM'!$G$6:$FJ$12,23,FALSE) -> 5
B17: Total CEGEE Directions Régionales | C17: =SUM(C10:C16) -> 1458

Sheet DC_ACCELER
B1: Accueil | D1: BAROMETRE BDD - DIRECTIONS REGIONALES
D2: ACCELERATEURS DE PNB
D3: =ACCUEIL!F7 -> 2020-05-10
D7: Ventes brutes SED finalisées | H7: Clients Equipés E documents | L7: Economie Opt'in | P7: Remises Commerciales | T7: Total Accélérateurs PNB
F8: coef | G8: ='RECAP DIRCOM'!EE4 -> 6% | J8: coef | K8: ='RECAP DIRCOM'!EI4 -> 3% | N8: coef | O8: ='RECAP DIRCOM'!EM4 -> 3% | R8: coef | S8: ='RECAP DIRCOM'!EQ4 -> 3% | U8: coef | V8: ='RECAP DIRCOM'!ET4 -> 15%
B9: Direction | C9: ETP perf | D9: Nb / ETP | E9: PNB / ETP | F9: % Ecart au 1er | G9: Rang | H9: Nb / ETP | I9: PNB / ETP | J9: % Ecart au 1er | K9: Rang | L9: Nb / ETP | M9: PNB / ETP | N9: % Ecart au 1er | O9: Rang | P9: Rem / ETP | Q9: PNB / ETP | R9: % Ecart au 1er | S9: Rang | T9: Moyenne ecart au 1er | U9: % Ecart au 1er | V9: Rang CEGEE
A10: 50 | B10: Aube Haute Marne | C10: =VLOOKUP($A10,'RECAP DIRCOM'!$G$6:$FJ$12,3,FALSE) -> 133 | D10: =VLOOKUP($A10,'RECAP DIRCOM'!$G$6:$FJ$12,126,FALSE) -> 13.45 | E10: =VLOOKUP($A10,'RECAP DIRCOM'!$G$6:$FJ$12,127,FALSE) -> 0.13 | F10: =VLOOKUP($A10,'RECAP DIRCOM'!$G$6:$FJ$12,128,FALSE) -> 32% | G10: =VLOOKUP($A10,'RECAP DIRCOM'!$G$6:$FJ$12,129,FALSE) -> 5 | H10: =VLOOKUP($A10,'RECAP DIRCOM'!$G$6:$FJ$12,130,FALSE) -> 8.56 | I10: =VLOOKUP($A10,'RECAP DIRCOM'!$G$6:$FJ$12,131,FALSE) -> 0.43 | J10: =VLOOKUP($A10,'RECAP DIRCOM'!$G$6:$FJ$12,132,FALSE) -> 24% | K10: =VLOOKUP($A10,'RECAP DIRCOM'!$G$6:$FJ$12,133,FALSE) -> 5 | L10: =VLOOKUP($A10,'RECAP DIRCOM'!$G$6:$FJ$12,134,FALSE) -> 10.61 | M10: =VLOOKUP($A10,'RECAP DIRCOM'!$G$6:$FJ$12,135,FALSE) -> 0.16 | N10: =VLOOKUP($A10,'RECAP DIRCOM'!$G$6:$FJ$12,136,FALSE) -> 37% | O10: =VLOOKUP($A10,'RECAP DIRCOM'!$G$6:$FJ$12,137,FALSE) -> 2 | P10: =VLOOKUP($A10,'RECAP DIRCOM'!$G$6:$FJ$12,138,FALSE) -> -100.07 | Q10: =VLOOKUP($A10,'RECAP DIRCOM'!$G$6:$FJ$12,139,FALSE) -> -0.75 | R10: =VLOOKUP($A10,'RECAP DIRCOM'!$G$6:$FJ$12,140,FALSE) -> 0% | S10: =VLOOKUP($A10,'RECAP DIRCOM'!$G$6:$FJ$12,141,FALSE) -> 1 | T10: =VLOOKUP($A10,'RECAP DIRCOM'!$G$6:$FJ$12,142,FALSE) -> 25% | U10: =VLOOKUP($A10,'RECAP DIRCOM'!$G$6:$FJ$12,143,FALSE) -> 10% | V10: =VLOOKUP($A10,'RECAP DIRCOM'!$G$6:$FJ$12,144,FALSE) -> 4
A11: 262 | B11: Bas-Rhin | C11: =VLOOKUP($A11,'RECAP DIRCOM'!$G$6:$FJ$12,3,FALSE) -> 273 | D11: =VLOOKUP($A11,'RECAP DIRCOM'!$G$6:$FJ$12,126,FALSE) -> 15.17 | E11: =VLOOKUP($A11,'RECAP DIRCOM'!$G$6:$FJ$12,127,FALSE) -> 0.15 | F11: =VLOOKUP($A11,'RECAP DIRCOM'!$G$6:$FJ$12,128,FALSE) -> 23% | G11: =VLOOKUP($A11,'RECAP DIRCOM'!$G$6:$FJ$12,129,FALSE) -> 4 | H11: =VLOOKUP($A11,'RECAP DIRCOM'!$G$6:$FJ$12,130,FALSE) -> 9.61 | I11: =VLOOKUP($A11,'RECAP DIRCOM'!$G$6:$FJ$12,131,FALSE) -> 0.48 | J11: =VLOOKUP($A11,'RECAP DIRCOM'!$G$6:$FJ$12,132,FALSE) -> 14% | K11: =VLOOKUP($A11,'RECAP DIRCOM'!$G$6:$FJ$12,133,FALSE) -> 3 | L11: =VLOOKUP($A11,'RECAP DIRCOM'!$G$6:$FJ$12,134,FALSE) -> 16.90 | M11: =VLOOKUP($A11,'RECAP DIRCOM'!$G$6:$FJ$12,135,FALSE) -> 0.25 | N11: =VLOOKUP($A11,'RECAP DIRCOM'!$G$6:$FJ$12,136,FALSE) -> 0% | O11: =VLOOKUP($A11,'RECAP DIRCOM'!$G$6:$FJ$12,137,FALSE) -> 1 | P11: =VLOOKUP($A11,'RECAP DIRCOM'!$G$6:$FJ$12,138,FALSE) -> -257.03 | Q11: =VLOOKUP($A11,'RECAP DIRCOM'!$G$6:$FJ$12,139,FALSE) -> -0.94 | R11: =VLOOKUP($A11,'RECAP DIRCOM'!$G$6:$FJ$12,140,FALSE) -> 25% | S11: =VLOOKUP($A11,'RECAP DIRCOM'!$G$6:$FJ$12,141,FALSE) -> 4 | T11: =VLOOKUP($A11,'RECAP DIRCOM'!$G$6:$FJ$12,142,FALSE) -> 17% | U11: =VLOOKUP($A11,'RECAP DIRCOM'!$G$6:$FJ$12,143,FALSE) -> 3% | V11: =VLOOKUP($A11,'RECAP DIRCOM'!$G$6:$FJ$12,144,FALSE) -> 3
A12: 264 | B12: Haut-Rhin | C12: =VLOOKUP($A12,'RECAP DIRCOM'!$G$6:$FJ$12,3,FALSE) -> 164 | D12: =VLOOKUP($A12,'RECAP DIRCOM'!$G$6:$FJ$12,126,FALSE) -> 10.31 | E12: =VLOOKUP($A12,'RECAP DIRCOM'!$G$6:$FJ$12,127,FALSE) -> 0.10 | F12: =VLOOKUP($A12,'RECAP DIRCOM'!$G$6:$FJ$12,128,FALSE) -> 47% | G12: =VLOOKUP($A12,'RECAP DIRCOM'!$G$6:$FJ$12,129,FALSE) -> 7 | H12: =VLOOKUP($A12,'RECAP DIRCOM'!$G$6:$FJ$12,130,FALSE) -> 8.05 | I12: =VLOOKUP($A12,'RECAP DIRCOM'!$G$6:$FJ$12,131,FALSE) -> 0.40 | J12: =VLOOKUP($A12,'RECAP DIRCOM'!$G$6:$FJ$12,132,FALSE) -> 28% | K12: =VLOOKUP($A12,'RECAP DIRCOM'!$G$6:$FJ$12,133,FALSE) -> 6 | L12: =VLOOKUP($A12,'RECAP DIRCOM'!$G$6:$FJ$12,134,FALSE) -> 6.36 | M12: =VLOOKUP($A12,'RECAP DIRCOM'!$G$6:$FJ$12,135,FALSE) -> 0.10 | N12: =VLOOKUP($A12,'RECAP DIRCOM'!$G$6:$FJ$12,136,FALSE) -> 62% | O12: =VLOOKUP($A12,'RECAP DIRCOM'!$G$6:$FJ$12,137,FALSE) -> 5 | P12: =VLOOKUP($A12,'RECAP DIRCOM'!$G$6:$FJ$12,138,FALSE) -> -161.70 | Q12: =VLOOKUP($A12,'RECAP DIRCOM'!$G$6:$FJ$12,139,FALSE) -> -0.99 | R12: =VLOOKUP($A12,'RECAP DIRCOM'!$G$6:$FJ$12,140,FALSE) -> 31% | S12: =VLOOKUP($A12,'RECAP DIRCOM'!$G$6:$FJ$12,141,FALSE) -> 7 | T12: =VLOOKUP($A12,'RECAP DIRCOM'!$G$6:$FJ$12,142,FALSE) -> 43% | U12: =VLOOKUP($A12,'RECAP DIRCOM'!$G$6:$FJ$12,143,FALSE) -> 29% | V12: =VLOOKUP($A12,'RECAP DIRCOM'!$G$6:$FJ$12,144,FALSE) -> 6
A13: 30 | B13: Marne-Ardennes | C13: =VLOOKUP($A13,'RECAP DIRCOM'!$G$6:$FJ$12,3,FALSE) -> 230 | D13: =VLOOKUP($A13,'RECAP DIRCOM'!$G$6:$FJ$12,126,FALSE) -> 18.98 | E13: =VLOOKUP($A13,'RECAP DIRCOM'!$G$6:$FJ$12,127,FALSE) -> 0.19 | F13: =VLOOKUP($A13,'RECAP DIRCOM'!$G$6:$FJ$12,128,FALSE) -> 3% | G13: =VLOOKUP($A13,'RECAP DIRCOM'!$G$6:$FJ$12,129,FALSE) -> 2 | H13: =VLOOKUP($A13,'RECAP DIRCOM'!$G$6:$FJ$12,130,FALSE) -> 11.20 | I13: =VLOOKUP($A13,'RECAP DIRCOM'!$G$6:$FJ$12,131,FALSE) -> 0.56 | J13: =VLOOKUP($A13,'RECAP DIRCOM'!$G$6:$FJ$12,132,FALSE) -> 0% | K13: =VLOOKUP($A13,'RECAP DIRCOM'!$G$6:$FJ$12,133,FALSE) -> 1 | L13: =VLOOKUP($A13,'RECAP DIRCOM'!$G$6:$FJ$12,134,FALSE) -> 6.66 | M13: =VLOOKUP($A13,'RECAP DIRCOM'!$G$6:$FJ$12,135,FALSE) -> 0.10 | N13: =VLOOKUP($A13,'RECAP DIRCOM'!$G$6:$FJ$12,136,FALSE) -> 61% | O13: =VLOOKUP($A13,'RECAP DIRCOM'!$G$6:$FJ$12,137,FALSE) -> 4 | P13: =VLOOKUP($A13,'RECAP DIRCOM'!$G$6:$FJ$12,138,FALSE) -> -191.46 | Q13: =VLOOKUP($A13,'RECAP DIRCOM'!$G$6:$FJ$12,139,FALSE) -> -0.83 | R13: =VLOOKUP($A13,'RECAP DIRCOM'!$G$6:$FJ$12,140,FALSE) -> 10% | S13: =VLOOKUP($A13,'RECAP DIRCOM'!$G$6:$FJ$12,141,FALSE) -> 2 | T13: =VLOOKUP($A13,'RECAP DIRCOM'!$G$6:$FJ$12,142,FALSE) -> 16% | U13: =VLOOKUP($A13,'RECAP DIRCOM'!$G$6:$FJ$12,143,FALSE) -> 1% | V13: =VLOOKUP($A13,'RECAP DIRCOM'!$G$6:$FJ$12,144,FALSE) -> 2
A14: 110 | B14: Meurthe et Moselle Meuse | C14: =VLOOKUP($A14,'RECAP DIRCOM'!$G$6:$FJ$12,3,FALSE) -> 243 | D14: =VLOOKUP($A14,'RECAP DIRCOM'!$G$6:$FJ$12,126,FALSE) -> 19.64 | E14: =VLOOKUP($A14,'RECAP DIRCOM'!$G$6:$FJ$12,127,FALSE) -> 0.20 | F14: =VLOOKUP($A14,'RECAP DIRCOM'!$G$6:$FJ$12,128,FALSE) -> 0% | G14: =VLOOKUP($A14,'RECAP DIRCOM'!$G$6:$FJ$12,129,FALSE) -> 1 | H14: =VLOOKUP($A14,'RECAP DIRCOM'!$G$6:$FJ$12,130,FALSE) -> 10.84 | I14: =VLOOKUP($A14,'RECAP DIRCOM'!$G$6:$FJ$12,131,FALSE) -> 0.54 | J14: =VLOOKUP($A14,'RECAP DIRCOM'!$G$6:$FJ$12,132,FALSE) -> 3% | K14: =VLOOKUP($A14,'RECAP DIRCOM'!$G$6:$FJ$12,133,FALSE) -> 2 | L14: =VLOOKUP($A14,'RECAP DIRCOM'!$G$6:$FJ$12,134,FALSE) -> 9.66 | M14: =VLOOKUP($A14,'RECAP DIRCOM'!$G$6:$FJ$12,135,FALSE) -> 0.14 | N14: =VLOOKUP($A14,'RECAP DIRCOM'!$G$6:$FJ$12,136,FALSE) -> 43% | O14: =VLOOKUP($A14,'RECAP DIRCOM'!$G$6:$FJ$12,137,FALSE) -> 3 | P14: =VLOOKUP($A14,'RECAP DIRCOM'!$G$6:$FJ$12,138,FALSE) -> -229.39 | Q14: =VLOOKUP($A14,'RECAP DIRCOM'!$G$6:$FJ$12,139,FALSE) -> -0.95 | R14: =VLOOKUP($A14,'RECAP DIRCOM'!$G$6:$FJ$12,140,FALSE) -> 25% | S14: =VLOOKUP($A14,'RECAP DIRCOM'!$G$6:$FJ$12,141,FALSE) -> 5 | T14: =VLOOKUP($A14,'RECAP DIRCOM'!$G$6:$FJ$12,142,FALSE) -> 14% | U14: =VLOOKUP($A14,'RECAP DIRCOM'!$G$6:$FJ$12,143,FALSE) -> 0% | V14: =VLOOKUP($A14,'RECAP DIRCOM'!$G$6:$FJ$12,144,FALSE) -> 1
A15: 160 | B15: Moselle | C15: =VLOOKUP($A15,'RECAP DIRCOM'!$G$6:$FJ$12,3,FALSE) -> 278 | D15: =VLOOKUP($A15,'RECAP DIRCOM'!$G$6:$FJ$12,126,FALSE) -> 16.97 | E15: =VLOOKUP($A15,'RECAP DIRCOM'!$G$6:$FJ$12,127,FALSE) -> 0.17 | F15: =VLOOKUP($A15,'RECAP DIRCOM'!$G$6:$FJ$12,128,FALSE) -> 14% | G15: =VLOOKUP($A15,'RECAP DIRCOM'!$G$6:$FJ$12,129,FALSE) -> 3 | H15: =VLOOKUP($A15,'RECAP DIRCOM'!$G$6:$FJ$12,130,FALSE) -> 8.86 | I15: =VLOOKUP($A15,'RECAP DIRCOM'!$G$6:$FJ$12,131,FALSE) -> 0.44 | J15: =VLOOKUP($A15,'RECAP DIRCOM'!$G$6:$FJ$12,132,FALSE) -> 21% | K15: =VLOOKUP($A15,'RECAP DIRCOM'!$G$6:$FJ$12,133,FALSE) -> 4 | L15: =VLOOKUP($A15,'RECAP DIRCOM'!$G$6:$FJ$12,134,FALSE) -> 4.29 | M15: =VLOOKUP($A15,'RECAP DIRCOM'!$G$6:$FJ$12,135,FALSE) -> 0.06 | N15: =VLOOKUP($A15,'RECAP DIRCOM'!$G$6:$FJ$12,136,FALSE) -> 75% | O15: =VLOOKUP($A15,'RECAP DIRCOM'!$G$6:$FJ$12,137,FALSE) -> 7 | P15: =VLOOKUP($A15,'RECAP DIRCOM'!$G$6:$FJ$12,138,FALSE) -> -253.58 | Q15: =VLOOKUP($A15,'RECAP DIRCOM'!$G$6:$FJ$12,139,FALSE) -> -0.91 | R15: =VLOOKUP($A15,'RECAP DIRCOM'!$G$6:$FJ$12,140,FALSE) -> 21% | S15: =VLOOKUP($A15,'RECAP DIRCOM'!$G$6:$FJ$12,141,FALSE) -> 3 | T15: =VLOOKUP($A15,'RECAP DIRCOM'!$G$6:$FJ$12,142,FALSE) -> 29% | U15: =VLOOKUP($A15,'RECAP DIRCOM'!$G$6:$FJ$12,143,FALSE) -> 14% | V15: =VLOOKUP($A15,'RECAP DIRCOM'!$G$6:$FJ$12,144,FALSE) -> 5
A16: 80 | B16: Vosges | C16: =VLOOKUP($A16,'RECAP DIRCOM'!$G$6:$FJ$12,3,FALSE) -> 137 | D16: =VLOOKUP($A16,'RECAP DIRCOM'!$G$6:$FJ$12,126,FALSE) -> 11.76 | E16: =VLOOKUP($A16,'RECAP DIRCOM'!$G$6:$FJ$12,127,FALSE) -> 0.12 | F16: =VLOOKUP($A16,'RECAP DIRCOM'!$G$6:$FJ$12,128,FALSE) -> 40% | G16: =VLOOKUP($A16,'RECAP DIRCOM'!$G$6:$FJ$12,129,FALSE) -> 6 | H16: =VLOOKUP($A16,'RECAP DIRCOM'!$G$6:$FJ$12,130,FALSE) -> 6.88 | I16: =VLOOKUP($A16,'RECAP DIRCOM'!$G$6:$FJ$12,131,FALSE) -> 0.34 | J16: =VLOOKUP($A16,'RECAP DIRCOM'!$G$6:$FJ$12,132,FALSE) -> 39% | K16: =VLOOKUP($A16,'RECAP DIRCOM'!$G$6:$FJ$12,133,FALSE) -> 7 | L16: =VLOOKUP($A16,'RECAP DIRCOM'!$G$6:$FJ$12,134,FALSE) -> 5.39 | M16: =VLOOKUP($A16,'RECAP DIRCOM'!$G$6:$FJ$12,135,FALSE) -> 0.08 | N16: =VLOOKUP($A16,'RECAP DIRCOM'!$G$6:$FJ$12,136,FALSE) -> 68% | O16: =VLOOKUP($A16,'RECAP DIRCOM'!$G$6:$FJ$12,137,FALSE) -> 6 | P16: =VLOOKUP($A16,'RECAP DIRCOM'!$G$6:$FJ$12,138,FALSE) -> -134.50 | Q16: =VLOOKUP($A16,'RECAP DIRCOM'!$G$6:$FJ$12,139,FALSE) -> -0.98 | R16: =VLOOKUP($A16,'RECAP DIRCOM'!$G$6:$FJ$12,140,FALSE) -> 30% | S16: =VLOOKUP($A16,'RECAP DIRCOM'!$G$6:$FJ$12,141,FALSE) -> 6 | T16: =VLOOKUP($A16,'RECAP DIRCOM'!$G$6:$FJ$12,142,FALSE) -> 43% | U16: =VLOOKUP($A16,'RECAP DIRCOM'!$G$6:$FJ$12,143,FALSE) -> 29% | V16: =VLOOKUP($A16,'RECAP DIRCOM'!$G$6:$FJ$12,144,FALSE) -> 7
B17: Total CEGEE Directions Régionales | C17: =SUM(C10:C16) -> 1458

Sheet DC_SATISFACTION
B1: Accueil | D1: BAROMETRE BDD - DIRECTIONS REGIONALES
D2: QUALITE / SATISFACTION
D3: =ACCUEIL!F7 -> 2020-05-10
D7: N P S | G7: Enquête Qualité Haute Définition | J7: Total Satisfaction Clients
E8: coef | F8: ='RECAP DIRCOM'!FC4 -> 8% | H8: coef | I8: ='RECAP DIRCOM'!FF4 -> 7% | K8: coef | L8: ='RECAP DIRCOM'!FI4 -> 15%
B9: Direction | C9: ETP perf | E9: % Ecart au 1er | F9: Rang | H9: % Ecart au 1er | I9: Rang | J9: Moyenne ecart au 1er | K9: % Ecart au 1er | L9: Rang CEGEE
A10: 50 | B10: Aube Haute Marne | C10: =VLOOKUP($A10,'RECAP DIRCOM'!$G$6:$FJ$12,3,FALSE) -> 133 | D10: =VLOOKUP($A10,'RECAP DIRCOM'!$G$6:$FJ$12,151,FALSE) -> -10 | E10: =VLOOKUP($A10,'RECAP DIRCOM'!$G$6:$FJ$12,152,FALSE) -> 11% | F10: =VLOOKUP($A10,'RECAP DIRCOM'!$G$6:$FJ$12,153,FALSE) -> 2 | G10: =VLOOKUP($A10,'RECAP DIRCOM'!$G$6:$FJ$12,154,FALSE) -> 45% | H10: =VLOOKUP($A10,'RECAP DIRCOM'!$G$6:$FJ$12,155,FALSE) -> 21% | I10: =VLOOKUP($A10,'RECAP DIRCOM'!$G$6:$FJ$12,156,FALSE) -> 5 | J10: =VLOOKUP($A10,'RECAP DIRCOM'!$G$6:$FJ$12,157,FALSE) -> 16% | K10: =VLOOKUP($A10,'RECAP DIRCOM'!$G$6:$FJ$12,158,FALSE) -> 16% | L10: =VLOOKUP($A10,'RECAP DIRCOM'!$G$6:$FJ$12,159,FALSE) -> 3
A11: 262 | B11: Bas-Rhin | C11: =VLOOKUP($A11,'RECAP DIRCOM'!$G$6:$FJ$12,3,FALSE) -> 273 | D11: =VLOOKUP($A11,'RECAP DIRCOM'!$G$6:$FJ$12,151,FALSE) -> -21 | E11: =VLOOKUP($A11,'RECAP DIRCOM'!$G$6:$FJ$12,152,FALSE) -> 133% | F11: =VLOOKUP($A11,'RECAP DIRCOM'!$G$6:$FJ$12,153,FALSE) -> 6 | G11: =VLOOKUP($A11,'RECAP DIRCOM'!$G$6:$FJ$12,154,FALSE) -> 39% | H11: =VLOOKUP($A11,'RECAP DIRCOM'!$G$6:$FJ$12,155,FALSE) -> 32% | I11: =VLOOKUP($A11,'RECAP DIRCOM'!$G$6:$FJ$12,156,FALSE) -> 6 | J11: =VLOOKUP($A11,'RECAP DIRCOM'!$G$6:$FJ$12,157,FALSE) -> 86% | K11: =VLOOKUP($A11,'RECAP DIRCOM'!$G$6:$FJ$12,158,FALSE) -> 86% | L11: =VLOOKUP($A11,'RECAP DIRCOM'!$G$6:$FJ$12,159,FALSE) -> 6
A12: 264 | B12: Haut-Rhin | C12: =VLOOKUP($A12,'RECAP DIRCOM'!$G$6:$FJ$12,3,FALSE) -> 164 | D12: =VLOOKUP($A12,'RECAP DIRCOM'!$G$6:$FJ$12,151,FALSE) -> -22 | E12: =VLOOKUP($A12,'RECAP DIRCOM'!$G$6:$FJ$12,152,FALSE) -> 144% | F12: =VLOOKUP($A12,'RECAP DIRCOM'!$G$6:$FJ$12,153,FALSE) -> 7 | G12: =VLOOKUP($A12,'RECAP DIRCOM'!$G$6:$FJ$12,154,FALSE) -> 36% | H12: =VLOOKUP($A12,'RECAP DIRCOM'!$G$6:$FJ$12,155,FALSE) -> 37% | I12: =VLOOKUP($A12,'RECAP DIRCOM'!$G$6:$FJ$12,156,FALSE) -> 7 | J12: =VLOOKUP($A12,'RECAP DIRCOM'!$G$6:$FJ$12,157,FALSE) -> 94% | K12: =VLOOKUP($A12,'RECAP DIRCOM'!$G$6:$FJ$12,158,FALSE) -> 94% | L12: =VLOOKUP($A12,'RECAP DIRCOM'!$G$6:$FJ$12,159,FALSE) -> 7
A13: 30 | B13: Marne-Ardennes | C13: =VLOOKUP($A13,'RECAP DIRCOM'!$G$6:$FJ$12,3,FALSE) -> 230 | D13: =VLOOKUP($A13,'RECAP DIRCOM'!$G$6:$FJ$12,151,FALSE) -> -9 | E13: =VLOOKUP($A13,'RECAP DIRCOM'!$G$6:$FJ$12,152,FALSE) -> 0% | F13: =VLOOKUP($A13,'RECAP DIRCOM'!$G$6:$FJ$12,153,FALSE) -> 1 | G13: =VLOOKUP($A13,'RECAP DIRCOM'!$G$6:$FJ$12,154,FALSE) -> 57% | H13: =VLOOKUP($A13,'RECAP DIRCOM'!$G$6:$FJ$12,155,FALSE) -> 0% | I13: =VLOOKUP($A13,'RECAP DIRCOM'!$G$6:$FJ$12,156,FALSE) -> 1 | J13: =VLOOKUP($A13,'RECAP DIRCOM'!$G$6:$FJ$12,157,FALSE) -> 0% | K13: =VLOOKUP($A13,'RECAP DIRCOM'!$G$6:$FJ$12,158,FALSE) -> 0% | L13: =VLOOKUP($A13,'RECAP DIRCOM'!$G$6:$FJ$12,159,FALSE) -> 1
A14: 110 | B14: Meurthe et Moselle Meuse | C14: =VLOOKUP($A14,'RECAP DIRCOM'!$G$6:$FJ$12,3,FALSE) -> 243 | D14: =VLOOKUP($A14,'RECAP DIRCOM'!$G$6:$FJ$12,151,FALSE) -> -10 | E14: =VLOOKUP($A14,'RECAP DIRCOM'!$G$6:$FJ$12,152,FALSE) -> 11% | F14: =VLOOKUP($A14,'RECAP DIRCOM'!$G$6:$FJ$12,153,FALSE) -> 2 | G14: =VLOOKUP($A14,'RECAP DIRCOM'!$G$6:$FJ$12,154,FALSE) -> 50% | H14: =VLOOKUP($A14,'RECAP DIRCOM'!$G$6:$FJ$12,155,FALSE) -> 13% | I14: =VLOOKUP($A14,'RECAP DIRCOM'!$G$6:$FJ$12,156,FALSE) -> 3 | J14: =VLOOKUP($A14,'RECAP DIRCOM'!$G$6:$FJ$12,157,FALSE) -> 12% | K14: =VLOOKUP($A14,'RECAP DIRCOM'!$G$6:$FJ$12,158,FALSE) -> 12% | L14: =VLOOKUP($A14,'RECAP DIRCOM'!$G$6:$FJ$12,159,FALSE) -> 2
A15: 160 | B15: Moselle | C15: =VLOOKUP($A15,'RECAP DIRCOM'!$G$6:$FJ$12,3,FALSE) -> 278 | D15: =VLOOKUP($A15,'RECAP DIRCOM'!$G$6:$FJ$12,151,FALSE) -> -14 | E15: =VLOOKUP($A15,'RECAP DIRCOM'!$G$6:$FJ$12,152,FALSE) -> 56% | F15: =VLOOKUP($A15,'RECAP DIRCOM'!$G$6:$FJ$12,153,FALSE) -> 5 | G15: =VLOOKUP($A15,'RECAP DIRCOM'!$G$6:$FJ$12,154,FALSE) -> 48% | H15: =VLOOKUP($A15,'RECAP DIRCOM'!$G$6:$FJ$12,155,FALSE) -> 16% | I15: =VLOOKUP($A15,'RECAP DIRCOM'!$G$6:$FJ$12,156,FALSE) -> 4 | J15: =VLOOKUP($A15,'RECAP DIRCOM'!$G$6:$FJ$12,157,FALSE) -> 37% | K15: =VLOOKUP($A15,'RECAP DIRCOM'!$G$6:$FJ$12,158,FALSE) -> 37% | L15: =VLOOKUP($A15,'RECAP DIRCOM'!$G$6:$FJ$12,159,FALSE) -> 5
A16: 80 | B16: Vosges | C16: =VLOOKUP($A16,'RECAP DIRCOM'!$G$6:$FJ$12,3,FALSE) -> 137 | D16: =VLOOKUP($A16,'RECAP DIRCOM'!$G$6:$FJ$12,151,FALSE) -> -11 | E16: =VLOOKUP($A16,'RECAP DIRCOM'!$G$6:$FJ$12,152,FALSE) -> 22% | F16: =VLOOKUP($A16,'RECAP DIRCOM'!$G$6:$FJ$12,153,FALSE) -> 4 | G16: =VLOOKUP($A16,'RECAP DIRCOM'!$G$6:$FJ$12,154,FALSE) -> 50% | H16: =VLOOKUP($A16,'RECAP DIRCOM'!$G$6:$FJ$12,155,FALSE) -> 12% | I16: =VLOOKUP($A16,'RECAP DIRCOM'!$G$6:$FJ$12,156,FALSE) -> 2 | J16: =VLOOKUP($A16,'RECAP DIRCOM'!$G$6:$FJ$12,157,FALSE) -> 18% | K16: =VLOOKUP($A16,'RECAP DIRCOM'!$G$6:$FJ$12,158,FALSE) -> 18% | L16: =VLOOKUP($A16,'RECAP DIRCOM'!$G$6:$FJ$12,159,FALSE) -> 4
B17: Total CEGEE Directions Régionales | C17: =SUM(C10:C16) -> 1458

Sheet SE_FICHE
A1: Accueil
A2: BAROMETRE BDD
A4: UNITE: | B4: TERRITOIRE | E4: ETP perf : | F4: =VLOOKUP(A5,'RECAP SECT'!$G$6:$I$23,3,FALSE) -> 68.41
A5: =VLOOKUP(B5,LISTES!$H$6:$I$23,2,FALSE) -> 5130 | B5: COLMAR
C6: Coefficient du critére | E6: Résultats | I6: Ecart au 1ier | M6: Evolution | O6: Rang
E7: du 1ier | G7: du territoire | I7: Du mois | K7: Au 31/12/2019
A9: RANG au CLASSEMENT GENERAL | K9: =VLOOKUP($A$5,'RECAP SECT AN'!$G$6:$FS$312,168,FALSE) -> 16 | M9: =+K9-O9 -> 0 | O9: =VLOOKUP($A$5,'RECAP SECT'!$G$6:$FS$312,168,FALSE) -> 16 | S9: =VLOOKUP($A$5,'RECAP SECT AN'!$G$6:$FE$312,154,FALSE) -> 0 | U9: =+S9-O9 -> -16
A11: CRITERE CONQUETE | C11: 15% | O11: =VLOOKUP($A$5,'RECAP SECT'!$G$6:$FS$312,23,FALSE) -> 14
B12: PNB Evolution nette Clients BP | C12: 4% | E12: ='RECAP SECT'!K4 -> 0.4 | G12: =VLOOKUP($A$5,'RECAP SECT'!$G$6:$FS$312,6,FALSE) -> -1.5 | I12: =VLOOKUP($A$5,'RECAP SECT'!$G$6:$FS$312,7,FALSE) -> 115% | K12: =VLOOKUP($A$5,'RECAP SECT AN'!$G$6:$FS$312,7,FALSE) -> 125% | M12: =+K12-I12 -> 10% | O12: =VLOOKUP($A$5,'RECAP SECT'!$G$6:$FS$312,8,FALSE) -> 16 | S12: =VLOOKUP($A$5,'RECAP SECT AN'!$G$6:$FE$312,6,FALSE) -> -63% | U12: =+S12-I12 -> -178%
B13: PNB Evolution nette Clients PREMIUM | C13: 5% | E13: ='RECAP SECT'!O4 -> 0.9 | G13: =VLOOKUP($A$5,'RECAP SECT'!$G$6:$FS$312,10,FALSE) -> 0.7 | I13: =VLOOKUP($A$5,'RECAP SECT'!$G$6:$FS$312,11,FALSE) -> 27% | K13: =VLOOKUP($A$5,'RECAP SECT AN'!$G$6:$FS$312,11,FALSE) -> 35% | M13: =+K13-I13 -> 8% | O13: =VLOOKUP($A$5,'RECAP SECT'!$G$6:$FS$312,12,FALSE) -> 7 | S13: =VLOOKUP($A$5,'RECAP SECT AN'!$G$6:$FE$312,9,FALSE) -> 88% | U13: =+S13-I13 -> 61%
B14: PNB Evolution nette Clients Jeunes Equipés | C14: 3% | E14: ='RECAP SECT'!S4 -> -0.1 | G14: =VLOOKUP($A$5,'RECAP SECT'!$G$6:$FS$312,14,FALSE) -> -0.5 | I14: =VLOOKUP($A$5,'RECAP SECT'!$G$6:$FS$312,15,FALSE) -> 121% | K14: =VLOOKUP($A$5,'RECAP SECT AN'!$G$6:$FS$312,15,FALSE) -> 101% | M14: =+K14-I14 -> -20% | O14: =VLOOKUP($A$5,'RECAP SECT'!$G$6:$FS$312,16,FALSE) -> 16 | S14: =VLOOKUP($A$5,'RECAP SECT AN'!$G$6:$FE$312,12,FALSE) -> 800% | U14: =+S14-I14 -> 679%
B15: PNB Evolution nette Clients Pro Actifs Equipés | C15: 3% | E15: ='RECAP SECT'!W4 -> 0.4 | G15: =VLOOKUP($A$5,'RECAP SECT'!$G$6:$FS$312,18,FALSE) -> 0.3 | I15: =VLOOKUP($A$5,'RECAP SECT'!$G$6:$FS$312,19,FALSE) -> 35% | K15: =VLOOKUP($A$5,'RECAP SECT AN'!$G$6:$FS$312,19,FALSE) -> 55% | M15: =+K15-I15 -> 21% | O15: =VLOOKUP($A$5,'RECAP SECT'!$G$6:$FS$312,20,FALSE) -> 2 | S15: =VLOOKUP($A$5,'RECAP SECT AN'!$G$6:$FE$312,15,FALSE) -> 101% | U15: =+S15-I15 -> 67%
A17: CRITERE BANCARISATION | C17: 15% | O17: =VLOOKUP($A$5,'RECAP SECT'!$G$6:$FS$312,48,FALSE) -> 10
B18: PNB Ventes nettes forfaits | C18: 4% | E18: ='RECAP SECT'!AJ4 -> 3.6 | G18: =VLOOKUP($A$5,'RECAP SECT'!$G$6:$FS$312,31,FALSE) -> 0.5 | I18: =VLOOKUP($A$5,'RECAP SECT'!$G$6:$FS$312,32,FALSE) -> 75% | K18: =VLOOKUP($A$5,'RECAP SECT AN'!$G$6:$FS$312,32,FALSE) -> 74% | M18: =+K18-I18 -> -1% | O18: =VLOOKUP($A$5,'RECAP SECT'!$G$6:$FS$312,33,FALSE) -> 11 | S18: =VLOOKUP($A$5,'RECAP SECT AN'!$G$6:$FE$312,27,FALSE) -> 0% | U18: =+S18-I18 -> -75%
B19: PNB Ventes nettes IZICARTES Débit Différé | C19: 4% | E19: ='RECAP SECT'!AN4 -> 6.0 | G19: =VLOOKUP($A$5,'RECAP SECT'!$G$6:$FS$312,35,FALSE) -> 2.0 | I19: =VLOOKUP($A$5,'RECAP SECT'!$G$6:$FS$312,36,FALSE) -> 66% | K19: =VLOOKUP($A$5,'RECAP SECT AN'!$G$6:$FS$312,36,FALSE) -> 79% | M19: =+K19-I19 -> 13% | O19: =VLOOKUP($A$5,'RECAP SECT'!$G$6:$FS$312,37,FALSE) -> 16 | S19: =VLOOKUP($A$5,'RECAP SECT AN'!$G$6:$FE$312,30,FALSE) -> 72% | U19: =+S19-I19 -> 7%
B20: PNB Ventes nettes cartes HDG Débit Différé | C20: 4% | E20: ='RECAP SECT'!AR4 -> 9.0 | G20: =VLOOKUP($A$5,'RECAP SECT'!$G$6:$FS$312,39,FALSE) -> 3.3 | I20: =VLOOKUP($A$5,'RECAP SECT'!$G$6:$FS$312,40,FALSE) -> 64% | K20: =VLOOKUP($A$5,'RECAP SECT AN'!$G$6:$FS$312,40,FALSE) -> 76% | M20: =+K20-I20 -> 12% | O20: =VLOOKUP($A$5,'RECAP SECT'!$G$6:$FS$312,41,FALSE) -> 14 | S20: =VLOOKUP($A$5,'RECAP SECT AN'!$G$6:$FE$312,33,FALSE) -> 600% | U20: =+S20-I20 -> 536%
B21: PNB Ventes nettes Forfaits Pro, Carte pro | C21: 3% | E21: ='RECAP SECT'!AV4 -> 0.8 | G21: =VLOOKUP($A$5,'RECAP SECT'!$G$6:$FS$312,43,FALSE) -> 0.4 | I21: =VLOOKUP($A$5,'RECAP SECT'!$G$6:$FS$312,44,FALSE) -> 52% | K21: =VLOOKUP($A$5,'RECAP SECT AN'!$G$6:$FS$312,44,FALSE) -> 44% | M21: =+K21-I21 -> -8% | O21: =VLOOKUP($A$5,'RECAP SECT'!$G$6:$FS$312,45,FALSE) -> 9 | S21: =VLOOKUP($A$5,'RECAP SECT AN'!$G$6:$FE$312,39,FALSE) -> 196% | U21: =+S21-I21 -> 144%
A23: CRITERE EPARGNE | C23: 10% | O23: =VLOOKUP($A$5,'RECAP SECT'!$G$6:$FS$312,69,FALSE) -> 9
B24: PNB Epargne Liquide | C24: 3% | E24: ='RECAP SECT'!BI4 -> 10.8 | G24: =VLOOKUP($A$5,'RECAP SECT'!$G$6:$FS$312,56,FALSE) -> 7.3 | I24: =VLOOKUP($A$5,'RECAP SECT'!$G$6:$FS$312,57,FALSE) -> 32% | K24: =VLOOKUP($A$5,'RECAP SECT AN'!$G$6:$FS$312,57,FALSE) -> 34% | M24: =+K24-I24 -> 2% | O24: =VLOOKUP($A$5,'RECAP SECT'!$G$6:$FS$312,58,FALSE) -> 8 | S24: =VLOOKUP($A$5,'RECAP SECT AN'!$G$6:$FE$312,51,FALSE) -> 0% | U24: =+S24-I24 -> -32%
B25: PNB CA UC + arbitrage | C25: 4% | E25: ='RECAP SECT'!BM4 -> 1.1 | G25: =VLOOKUP($A$5,'RECAP SECT'!$G$6:$FS$312,60,FALSE) -> 1.1 | I25: =VLOOKUP($A$5,'RECAP SECT'!$G$6:$FS$312,61,FALSE) -> 0% | K25: =VLOOKUP($A$5,'RECAP SECT AN'!$G$6:$FS$312,61,FALSE) -> 0% | M25: =+K25-I25 -> 0% | O25: =VLOOKUP($A$5,'RECAP SECT'!$G$6:$FS$312,62,FALSE) -> 1 | S25: =VLOOKUP($A$5,'RECAP SECT AN'!$G$6:$FE$312,57,FALSE) -> 34% | U25: =+S25-I25 -> 34%
B26: PNB Excédent assurance vie | C26: 3% | E26: ='RECAP SECT'!BQ4 -> 1.2 | G26: =VLOOKUP($A$5,'RECAP SECT'!$G$6:$FS$312,64,FALSE) -> -2.7 | I26: =VLOOKUP($A$5,'RECAP SECT'!$G$6:$FS$312,65,FALSE) -> 121% | K26: =VLOOKUP($A$5,'RECAP SECT AN'!$G$6:$FS$312,65,FALSE) -> 129% | M26: =+K26-I26 -> 9% | O26: =VLOOKUP($A$5,'RECAP SECT'!$G$6:$FS$312,66,FALSE) -> 14 | S26: =VLOOKUP($A$5,'RECAP SECT AN'!$G$6:$FE$312,60,FALSE) -> 104% | U26: =+S26-I26 -> -17%
A28: CRITERE CREDITS | C28: 15% | O28: =VLOOKUP($A$5,'RECAP SECT'!$G$6:$FS$312,102,FALSE) -> 17
B29: PNB crédit conso | C29: 4% | E29: ='RECAP SECT'!CD4 -> 22.1 | G29: =VLOOKUP($A$5,'RECAP SECT'!$G$6:$FS$312,77,FALSE) -> 11.1 | I29: =VLOOKUP($A$5,'RECAP SECT'!$G$6:$FS$312,78,FALSE) -> 50% | K29: =VLOOKUP($A$5,'RECAP SECT AN'!$G$6:$FS$312,78,FALSE) -> 50% | M29: =+K29-I29 -> 0% | O29: =VLOOKUP($A$5,'RECAP SECT'!$G$6:$FS$312,79,FALSE) -> 18 | S29: =VLOOKUP($A$5,'RECAP SECT AN'!$G$6:$FE$312,75,FALSE) -> 0% | U29: =+S29-I29 -> -50%
B30: PNB ADE crédit conso | C30: 1% | E30: ='RECAP SECT'!CH4 -> 4.9 | G30: =VLOOKUP($A$5,'RECAP SECT'!$G$6:$FS$312,81,FALSE) -> 2.4 | I30: =VLOOKUP($A$5,'RECAP SECT'!$G$6:$FS$312,82,FALSE) -> 50% | K30: =VLOOKUP($A$5,'RECAP SECT AN'!$G$6:$FS$312,82,FALSE) -> 51% | M30: 1% | O30: =VLOOKUP($A$5,'RECAP SECT'!$G$6:$FS$312,83,FALSE) -> 18 | S30: =VLOOKUP($A$5,'RECAP SECT AN'!$G$6:$FE$312,78,FALSE) -> 50% | U30: -0%
B31: PNB crédit immo | C31: 4% | E31: ='RECAP SECT'!CL4 -> 38.0 | G31: =VLOOKUP($A$5,'RECAP SECT'!$G$6:$FS$312,85,FALSE) -> 17.8 | I31: =VLOOKUP($A$5,'RECAP SECT'!$G$6:$FS$312,86,FALSE) -> 53% | K31: =VLOOKUP($A$5,'RECAP SECT AN'!$G$6:$FS$312,86,FALSE) -> 54% | M31: 1% | O31: =VLOOKUP($A$5,'RECAP SECT'!$G$6:$FS$312,87,FALSE) -> 16 | S31: =VLOOKUP($A$5,'RECAP SECT AN'!$G$6:$FE$312,81,FALSE) -> 199% | U31: 146%
B32: PNB ADE crédit immo | C32: 2% | E32: ='RECAP SECT'!CP4 -> 24.4 | G32: =VLOOKUP($A$5,'RECAP SECT'!$G$6:$FS$312,89,FALSE) -> 8.0 | I32: =VLOOKUP($A$5,'RECAP SECT'!$G$6:$FS$312,90,FALSE) -> 67% | K32: =VLOOKUP($A$5,'RECAP SECT AN'!$G$6:$FS$312,90,FALSE) -> 66% | M32: -2% | O32: =VLOOKUP($A$5,'RECAP SECT'!$G$6:$FS$312,91,FALSE) -> 17 | S32: =VLOOKUP($A$5,'RECAP SECT AN'!$G$6:$FE$312,84,FALSE) -> 42350% | U32: 42283%
B33: PNB SACCEF | C33: 2% | E33: ='RECAP SECT'!CT4 -> 2.2 | G33: =VLOOKUP($A$5,'RECAP SECT'!$G$6:$FS$312,93,FALSE) -> 1.0 | I33: =VLOOKUP($A$5,'RECAP SECT'!$G$6:$FS$312,94,FALSE) -> 56% | K33: =VLOOKUP($A$5,'RECAP SECT AN'!$G$6:$FS$312,94,FALSE) -> 61% | M33: 5% | O33: =VLOOKUP($A$5,'RECAP SECT'!$G$6:$FS$312,95,FALSE) -> 14 | S33: =VLOOKUP($A$5,'RECAP SECT AN'!$G$6:$FE$312,87,FALSE) -> 1500% | U33: 1444%
B34: PNB Crédit MLT + Crédit Bail | C34: 2% | E34: ='RECAP SECT'!CX4 -> 9.4 | G34: =VLOOKUP($A$5,'RECAP SECT'!$G$6:$FS$312,97,FALSE) -> 3.6 | I34: =VLOOKUP($A$5,'RECAP SECT'!$G$6:$FS$312,98,FALSE) -> 62% | K34: =VLOOKUP($A$5,'RECAP SECT AN'!$G$6:$FS$312,98,FALSE) -> 48% | M34: -13% | O34: =VLOOKUP($A$5,'RECAP SECT'!$G$6:$FS$312,99,FALSE) -> 6 | S34: =VLOOKUP($A$5,'RECAP SECT AN'!$G$6:$FE$312,90,FALSE) -> 66% | U34: 4%
A36: CRITERE IARD PREVOYANCE | C36: 15% | O36: =VLOOKUP($A$5,'RECAP SECT'!$G$6:$FS$312,119,FALSE) -> 16
B37: PNB Ventes nettes IARD | C37: 9% | E37: ='RECAP SECT'!DK4 -> 1.0 | G37: =VLOOKUP($A$5,'RECAP SECT'!$G$6:$FS$312,110,FALSE) -> 0.1 | I37: =VLOOKUP($A$5,'RECAP SECT'!$G$6:$FS$312,111,FALSE) -> 93% | K37: =VLOOKUP($A$5,'RECAP SECT AN'!$G$6:$FS$312,111,FALSE) -> 90% | M37: =+K37-I37 -> -2% | O37: =VLOOKUP($A$5,'RECAP SECT'!$G$6:$FS$312,112,FALSE) -> 16 | S37: =VLOOKUP($A$5,'RECAP SECT AN'!$G$6:$FE$312,102,FALSE) -> 1800% | U37: =+S37-I37 -> 1707%
B38: PNB Ventes nettes Prévoyance | C38: 6% | E38: ='RECAP SECT'!DO4 -> 0.6 | G38: =VLOOKUP($A$5,'RECAP SECT'!$G$6:$FS$312,114,FALSE) -> 0.2 | I38: =VLOOKUP($A$5,'RECAP SECT'!$G$6:$FS$312,115,FALSE) -> 75% | K38: =VLOOKUP($A$5,'RECAP SECT AN'!$G$6:$FS$312,115,FALSE) -> 69% | M38: =+K38-I38 -> -6% | O38: =VLOOKUP($A$5,'RECAP SECT'!$G$6:$FS$312,116,FALSE) -> 17 | S38: =VLOOKUP($A$5,'RECAP SECT AN'!$G$6:$FE$312,105,FALSE) -> 0% | U38: =+S38-I38 -> -75%
A40: CRITERE ACCELERATEURS PNB | C40: 15% | O40: =VLOOKUP($A$5,'RECAP SECT'!$G$6:$FS$312,144,FALSE) -> 16
B41: PNB Ventes brutes SED Finalisées | C41: 6% | E41: ='RECAP SECT'!EB4 -> 0.3 | G41: =VLOOKUP($A$5,'RECAP SECT'!$G$6:$FS$312,127,FALSE) -> 0.1 | I41: =VLOOKUP($A$5,'RECAP SECT'!$G$6:$FS$312,128,FALSE) -> 51% | K41: =VLOOKUP($A$5,'RECAP SECT AN'!$G$6:$FS$312,128,FALSE) -> 53% | M41: =+K41-I41 -> 1% | O41: =VLOOKUP($A$5,'RECAP SECT'!$G$6:$FS$312,129,FALSE) -> 16 | S41: =VLOOKUP($A$5,'RECAP SECT AN'!$G$6:$FE$312,120,FALSE) -> 0% | U41: =+S41-I41 -> -51%
B42: PNB clients équipés E documents | C42: 3% | E42: ='RECAP SECT'!EF4 -> 0.8 | G42: =VLOOKUP($A$5,'RECAP SECT'!$G$6:$FS$312,131,FALSE) -> 0.5 | I42: =VLOOKUP($A$5,'RECAP SECT'!$G$6:$FS$312,132,FALSE) -> 39% | K42: =VLOOKUP($A$5,'RECAP SECT AN'!$G$6:$FS$312,132,FALSE) -> 46% | M42: =+K42-I42 -> 7% | O42: =VLOOKUP($A$5,'RECAP SECT'!$G$6:$FS$312,133,FALSE) -> 13 | S42: =VLOOKUP($A$5,'RECAP SECT AN'!$G$6:$FE$312,123,FALSE) -> 0% | U42: =+S42-I42 -> -39%
B43: Economie opt'in | C43: 3% | E43: ='RECAP SECT'!EJ4 -> 0.5 | G43: =VLOOKUP($A$5,'RECAP SECT'!$G$6:$FS$312,135,FALSE) -> 0.1 | I43: =VLOOKUP($A$5,'RECAP SECT'!$G$6:$FS$312,136,FALSE) -> 70% | K43: =VLOOKUP($A$5,'RECAP SECT AN'!$G$6:$FS$312,136,FALSE) -> 46% | M43: =+K43-I43 -> -24% | O43: =VLOOKUP($A$5,'RECAP SECT'!$G$6:$FS$312,137,FALSE) -> 11
B44: Remises commerciales | C44: 3% | E44: ='RECAP SECT'!EN4 -> -0.7 | G44: =VLOOKUP($A$5,'RECAP SECT'!$G$6:$FS$312,139,FALSE) -> -1.2 | I44: =VLOOKUP($A$5,'RECAP SECT'!$G$6:$FS$312,140,FALSE) -> 72% | K44: =VLOOKUP($A$5,'RECAP SECT AN'!$G$6:$FS$312,140,FALSE) -> 73% | M44: =+K44-I44 -> 0% | O44: =VLOOKUP($A$5,'RECAP SECT'!$G$6:$FS$312,141,FALSE) -> 15 | S44: =VLOOKUP($A$5,'RECAP SECT AN'!$G$6:$FE$312,126,FALSE) -> 1043% | U44: =+S44-I44 -> 970%
A46: CRITERE Satisfaction Clients | C46: 15% | O46: =VLOOKUP($A$5,'RECAP SECT'!$G$6:$FS$312,159,FALSE) -> 14
B47: Objectifs NPS* | C47: 8% | E47: ='RECAP SECT'!FA4 -> -2 | G47: =VLOOKUP($A$5,'RECAP SECT'!$G$6:$FS$312,137,FALSE) -> 11 | I47: =VLOOKUP($A$5,'RECAP SECT'!$G$6:$FS$312,152,FALSE) -> 86% | K47: =VLOOKUP($A$5,'RECAP SECT AN'!$G$6:$FS$312,152,FALSE) -> 86% | M47: =+K47-I47 -> 0% | O47: =VLOOKUP($A$5,'RECAP SECT'!$G$6:$FS$312,153,FALSE) -> 13 | S47: =VLOOKUP($A$5,'RECAP SECT AN'!$G$6:$FE$312,138,FALSE) -> -6036% | U47: =+S47-I47 -> -6121%
B48: Enquête Qualité Haute Définition | C48: 7% | E48: ='RECAP SECT'!FD4 -> 64% | G48: =VLOOKUP($A$5,'RECAP SECT'!$G$6:$FS$312,140,FALSE) -> 72% | I48: =VLOOKUP($A$5,'RECAP SECT'!$G$6:$FS$312,155,FALSE) -> 36% | K48: =VLOOKUP($A$5,'RECAP SECT AN'!$G$6:$FS$312,155,FALSE) -> 37% | M48: =+K48-I48 -> 1% | O48: =VLOOKUP($A$5,'RECAP SECT'!$G$6:$FS$312,156,FALSE) -> 14 | S48: =VLOOKUP($A$5,'RECAP SECT AN'!$G$6:$FE$312,141,FALSE) -> 1500% | U48: =+S48-I48 -> 1464%

Sheet SE_TOTAL
B1: Accueil | F1: BAROMETRE BDD - TERRITOIRES
F2: TOTAL GENERAL
F3: =ACCUEIL!F7 -> 2020-05-10
F7: TOTAL GENERAL | I7: Total Clients | L7: Total Bancarisation | O7: Total Epargne | R7: Total Crédits | U7: Total IARD Prévoyance | X7: Total Accélérateurs PNB | AA7: Total Qualité-Satisfaction Clients
G8: coef | H8: 100% | J8: coef | K8: ='RECAP DIRCOM'!$AC$4 -> 15% | M8: coef | N8: ='RECAP DIRCOM'!$BB$4 -> 15% | P8: coef | Q8: ='RECAP DIRCOM'!$BW$4 -> 10% | S8: coef | T8: ='RECAP DIRCOM'!$DD$4 -> 15% | V8: coef | W8: ='RECAP DIRCOM'!$DU$4 -> 15% | Y8: coef | Z8: ='RECAP DIRCOM'!$ET$4 -> 15% | AB8: coef | AC8: ='RECAP DIRCOM'!$FI$4 -> 15%
B9: Direction | C9: eds | D9: Territoire | E9: ETP perf | F9: Moyenne ecart au 1er | G9: % Ecart au 1er | H9: Rang CEGEE | I9: Moyenne ecart au 1er | J9: % Ecart au 1er | K9: Rang CEGEE | L9: Moyenne ecart au 1er | M9: % Ecart au 1er | N9: Rang CEGEE | O9: Moyenne ecart au 1er | P9: % Ecart au 1er | Q9: Rang CEGEE | R9: Moyenne ecart au 1er | S9: % Ecart au 1er | T9: Rang CEGEE | U9: Moyenne ecart au 1er | V9: % Ecart au 1er | W9: Rang CEGEE | X9: Moyenne ecart au 1er | Y9: % Ecart au 1er | Z9: Rang CEGEE | AA9: Moyenne ecart au 1er | AB9: % Ecart au 1er | AC9: Rang CEGEE
A10: 110 | B10: MEURTHE ET MOSELLE MEUSE | C10: 27 | D10: PONT A MOUSSON | E10: 76.5 | F10: 12% | G10: 0% | H10: 1 | I10: 11% | J10: 0% | K10: 1 | L10: 17% | M10: 0% | N10: 1 | O10: 34% | P10: 12% | Q10: 2 | R10: 13% | S10: 0% | T10: 1 | U10: 6% | V10: 0% | W10: 1 | X10: 28% | Y10: 15% | Z10: 3 | AA10: 60% | AB10: 54% | AC10: 13
A11: 30 | B11: MARNE-ARDENNES | C11: 11 | D11: REIMS | E11: 80.4 | F11: 24% | G11: 12% | H11: 2 | I11: 43% | J11: 33% | K11: 2 | L11: 37% | M11: 20% | N11: 5 | O11: 44% | P11: 22% | Q11: 6 | R11: 14% | S11: 1% | T11: 2 | U11: 47% | V11: 42% | W11: 4 | X11: 48% | Y11: 34% | Z11: 12 | AA11: 19% | AB11: 13% | AC11: 3
A12: 30 | B12: MARNE-ARDENNES | C12: 2 | D12: CHARLEVILLE MEZIERES | E12: 57.5 | F12: 24% | G12: 12% | H12: 3 | I12: 68% | J12: 57% | K12: 10 | L12: 24% | M12: 7% | N12: 3 | O12: 43% | P12: 21% | Q12: 5 | R12: 28% | S12: 15% | T12: 3 | U12: 42% | V12: 36% | W12: 2 | X12: 13% | Y12: 0% | Z12: 1 | AA12: 34% | AB12: 28% | AC12: 8
A13: 110 | B13: MEURTHE ET MOSELLE MEUSE | C13: 26 | D13: NANCY | E13: 68.0 | F13: 27% | G13: 16% | H13: 4 | I13: 50% | J13: 40% | K13: 4 | L13: 36% | M13: 19% | N13: 4 | O13: 63% | P13: 41% | Q13: 15 | R13: 30% | S13: 17% | T13: 4 | U13: 54% | V13: 48% | W13: 7 | X13: 29% | Y13: 16% | Z13: 4 | AA13: 21% | AB13: 14% | AC13: 4
A14: 30 | B14: MARNE-ARDENNES | C14: 6 | D14: CHALONS EN CHAMPAGNE | E14: 46.4 | F14: 30% | G14: 18% | H14: 5 | I14: 54% | J14: 43% | K14: 7 | L14: 56% | M14: 39% | N14: 7 | O14: 47% | P14: 25% | Q14: 10 | R14: 35% | S14: 22% | T14: 6 | U14: 46% | V14: 41% | W14: 3 | X14: 30% | Y14: 16% | Z14: 5 | AA14: 26% | AB14: 19% | AC14: 6
A15: 50 | B15: AUBE HAUTE MARNE | C15: 21 | D15: CHAUMONT | E15: 36.2 | F15: 35% | G15: 23% | H15: 6 | I15: 50% | J15: 39% | K15: 3 | L15: 65% | M15: 48% | N15: 11 | O15: 61% | P15: 39% | Q15: 14 | R15: 37% | S15: 24% | T15: 8 | U15: 64% | V15: 58% | W15: 10 | X15: 35% | Y15: 21% | Z15: 6 | AA15: 19% | AB15: 13% | AC15: 2
A16: 110 | B16: MEURTHE ET MOSELLE MEUSE | C16: 31 | D16: VERDUN | E16: 54.4 | F16: 35% | G16: 23% | H16: 7 | I16: 71% | J16: 60% | K16: 13 | L16: 66% | M16: 48% | N16: 12 | O16: 46% | P16: 23% | Q16: 8 | R16: 37% | S16: 24% | T16: 9 | U16: 53% | V16: 48% | W16: 6 | X16: 49% | Y16: 35% | Z16: 13 | AA16: 6% | AB16: 0% | AC16: 1
A17: 80 | B17: VOSGES | C17: 55 | D17: SAINT DIE | E17: 50.2 | F17: 36% | G17: 24% | H17: 8 | I17: 81% | J17: 71% | K17: 16 | L17: 45% | M17: 28% | N17: 6 | O17: 22% | P17: 0% | Q17: 1 | R17: 45% | S17: 32% | T17: 12 | U17: 57% | V17: 51% | W17: 8 | X17: 54% | Y17: 40% | Z17: 15 | AA17: 23% | AB17: 16% | AC17: 5
A18: 262 | B18: BAS-RHIN | C18: 5006 | D18: STRASBOURG | E18: 79.3 | F18: 36% | G18: 25% | H18: 9 | I18: 53% | J18: 42% | K18: 5 | L18: 24% | M18: 7% | N18: 2 | O18: 35% | P18: 13% | Q18: 3 | R18: 42% | S18: 29% | T18: 11 | U18: 48% | V18: 43% | W18: 5 | X18: 26% | Y18: 13% | Z18: 2 | AA18: 105% | AB18: 98% | AC18: 18
A19: 160 | B19: MOSELLE | C19: 45 | D19: METZ | E19: 89.4 | F19: 39% | G19: 28% | H19: 10 | I19: 53% | J19: 42% | K19: 6 | L19: 74% | M19: 57% | N19: 16 | O19: 45% | P19: 22% | Q19: 7 | R19: 37% | S19: 24% | T19: 7 | U19: 68% | V19: 63% | W19: 12 | X19: 45% | Y19: 32% | Z19: 10 | AA19: 36% | AB19: 30% | AC19: 10
A20: 50 | B20: AUBE HAUTE MARNE | C20: 14 | D20: TROYES | E20: 69.8 | F20: 44% | G20: 32% | H20: 11 | I20: 64% | J20: 53% | K20: 9 | L20: 65% | M20: 48% | N20: 9 | O20: 65% | P20: 43% | Q20: 16 | R20: 41% | S20: 28% | T20: 10 | U20: 67% | V20: 61% | W20: 11 | X20: 43% | Y20: 30% | Z20: 9 | AA20: 49% | AB20: 43% | AC20: 12
A21: 160 | B21: MOSELLE | C21: 44 | D21: MOSELLE NORD | E21: 69.6 | F21: 44% | G21: 33% | H21: 12 | I21: 71% | J21: 60% | K21: 12 | L21: 61% | M21: 44% | N21: 8 | O21: 53% | P21: 31% | Q21: 11 | R21: 33% | S21: 21% | T21: 5 | U21: 59% | V21: 53% | W21: 9 | X21: 39% | Y21: 26% | Z21: 7 | AA21: 77% | AB21: 71% | AC21: 15
A22: 80 | B22: VOSGES | C22: 57 | D22: EPINAL | E22: 62.9 | F22: 45% | G22: 34% | H22: 13 | I22: 56% | J22: 45% | K22: 8 | L22: 69% | M22: 52% | N22: 13 | O22: 55% | P22: 33% | Q22: 12 | R22: 45% | S22: 32% | T22: 13 | U22: 70% | V22: 65% | W22: 13 | X22: 62% | Y22: 49% | Z22: 18 | AA22: 44% | AB22: 38% | AC22: 11
A23: 262 | B23: BAS-RHIN | C23: 5060 | D23: HAGUENAU | E23: 80.0 | F23: 46% | G23: 35% | H23: 14 | I23: 77% | J23: 67% | K23: 15 | L23: 73% | M23: 56% | N23: 15 | O23: 60% | P23: 38% | Q23: 13 | R23: 56% | S23: 43% | T23: 18 | U23: 72% | V23: 66% | W23: 14 | X23: 41% | Y23: 28% | Z23: 8 | AA23: 29% | AB23: 23% | AC23: 7
A24: 160 | B24: MOSELLE | C24: 42 | D24: MOSELLE EST | E24: 76.7 | F24: 48% | G24: 36% | H24: 15 | I24: 71% | J24: 60% | K24: 11 | L24: 72% | M24: 55% | N24: 14 | O24: 78% | P24: 56% | Q24: 17 | R24: 46% | S24: 33% | T24: 14 | U24: 74% | V24: 68% | W24: 15 | X24: 51% | Y24: 37% | Z24: 14 | AA24: 35% | AB24: 29% | AC24: 9
A25: 264 | B25: HAUT-RHIN | C25: 5130 | D25: COLMAR | E25: 68.4 | F25: 52% | G25: 40% | H25: 16 | I25: 71% | J25: 60% | K25: 14 | L25: 65% | M25: 48% | N25: 10 | O25: 46% | P25: 23% | Q25: 9 | R25: 55% | S25: 43% | T25: 17 | U25: 86% | V25: 80% | W25: 16 | X25: 57% | Y25: 43% | Z25: 16 | AA25: 63% | AB25: 56% | AC25: 14
A26: 262 | B26: BAS-RHIN | C26: 5101 | D26: SELESTAT | E26: 64.8 | F26: 61% | G26: 49% | H26: 17 | I26: 114% | J26: 103% | K26: 18 | L26: 75% | M26: 58% | N26: 17 | O26: 41% | P26: 19% | Q26: 4 | R26: 47% | S26: 34% | T26: 16 | U26: 92% | V26: 87% | W26: 17 | X26: 48% | Y26: 34% | Z26: 11 | AA26: 84% | AB26: 77% | AC26: 16
A27: 264 | B27: HAUT-RHIN | C27: 5169 | D27: MULHOUSE | E27: 64.5 | F27: 71% | G27: 59% | H27: 18 | I27: 95% | J27: 84% | K27: 17 | L27: 108% | M27: 91% | N27: 18 | O27: 78% | P27: 56% | Q27: 18 | R27: 46% | S27: 33% | T27: 15 | U27: 100% | V27: 95% | W27: 18 | X27: 60% | Y27: 46% | Z27: 17 | AA27: 93% | AB27: 87% | AC27: 17
A28: Total CEGEE Directions Régionales | E28: =SUM(E10:E27) -> 1195

Sheet SE_BANCA
B1: Accueil | F1: BAROMETRE BDD - TERRITOIRES
F2: BANCARISATION
F3: =ACCUEIL!F7 -> 2020-05-10
F7: Ventes nettes FORFAITS | J7: Ventes nettes IZICARTES débit différé | N7: Ventes nettes Cartes HDG débit différé | R7: Ventes nettes Forfaits Pro Cartes Pro | V7: Total Bancarisation
H8: coef | I8: ='RECAP DIRCOM'!AM4 -> 4% | L8: coef | M8: ='RECAP DIRCOM'!AQ4 -> 4% | P8: coef | Q8: ='RECAP DIRCOM'!AU4 -> 4% | T8: coef | U8: ='RECAP DIRCOM'!AY4 -> 3% | W8: coef | X8: ='RECAP DIRCOM'!BB4 -> 15%
B9: Direction | C9: eds | D9: Territoire | E9: ETP perf | F9: Nb / ETP | G9: PNB / ETP | H9: % Ecart au 1er | I9: Rang | J9: Nb / ETP | K9: PNB / ETP | L9: % Ecart au 1er | M9: Rang | N9: Nb / ETP | O9: PNB / ETP | P9: % Ecart au 1er | Q9: Rang | R9: Nb / ETP | S9: PNB / ETP | T9: % Ecart au 1er | U9: Rang | V9: Moyenne ecart au 1er | W9: % Ecart au 1er | X9: Rang CEGEE
A10: 50 | B10: AUBE HAUTE MARNE | C10: 21 | D10: CHAUMONT | E10: =VLOOKUP($C10,'RECAP SECT'!$G$6:$FJ$253,3,FALSE) -> 36.2 | F10: =VLOOKUP($C10,'RECAP SECT'!$G$6:$FJ$253,30,FALSE) -> -0.08 | G10: =VLOOKUP($C10,'RECAP SECT'!$G$6:$FJ$253,31,FALSE) -> -0.70 | H10: =VLOOKUP($C10,'RECAP SECT'!$G$6:$FJ$253,32,FALSE) -> 105% | I10: =VLOOKUP($C10,'RECAP SECT'!$G$6:$FJ$253,33,FALSE) -> 17 | J10: =VLOOKUP($C10,'RECAP SECT'!$G$6:$FJ$253,34,FALSE) -> 5.06 | K10: =VLOOKUP($C10,'RECAP SECT'!$G$6:$FJ$253,35,FALSE) -> 3.12 | L10: =VLOOKUP($C10,'RECAP SECT'!$G$6:$FJ$253,36,FALSE) -> 48% | M10: =VLOOKUP($C10,'RECAP SECT'!$G$6:$FJ$253,37,FALSE) -> 9 | N10: =VLOOKUP($C10,'RECAP SECT'!$G$6:$FJ$253,38,FALSE) -> 5.36 | O10: =VLOOKUP($C10,'RECAP SECT'!$G$6:$FJ$253,39,FALSE) -> 3.62 | P10: =VLOOKUP($C10,'RECAP SECT'!$G$6:$FJ$253,40,FALSE) -> 60% | Q10: =VLOOKUP($C10,'RECAP SECT'!$G$6:$FJ$253,41,FALSE) -> 12 | R10: =VLOOKUP($C10,'RECAP SECT'!$G$6:$FJ$253,42,FALSE) -> 0.66 | S10: =VLOOKUP($C10,'RECAP SECT'!$G$6:$FJ$253,43,FALSE) -> 0.48 | T10: =VLOOKUP($C10,'RECAP SECT'!$G$6:$FJ$253,44,FALSE) -> 42% | U10: =VLOOKUP($C10,'RECAP SECT'!$G$6:$FJ$253,45,FALSE) -> 8 | V10: =VLOOKUP($C10,'RECAP SECT'!$G$6:$FJ$253,46,FALSE) -> 65% | W10: =VLOOKUP($C10,'RECAP SECT'!$G$6:$FJ$253,47,FALSE) -> 48% | X10: =VLOOKUP($C10,'RECAP SECT'!$G$6:$FJ$253,48,FALSE) -> 11
A11: 50 | B11: AUBE HAUTE MARNE | C11: 14 | D11: TROYES | E11: =VLOOKUP($C11,'RECAP SECT'!$G$6:$FJ$253,3,FALSE) -> 69.8 | F11: =VLOOKUP($C11,'RECAP SECT'!$G$6:$FJ$253,30,FALSE) -> -0.04 | G11: =VLOOKUP($C11,'RECAP SECT'!$G$6:$FJ$253,31,FALSE) -> -0.56 | H11: =VLOOKUP($C11,'RECAP SECT'!$G$6:$FJ$253,32,FALSE) -> 102% | I11: =VLOOKUP($C11,'RECAP SECT'!$G$6:$FJ$253,33,FALSE) -> 16 | J11: =VLOOKUP($C11,'RECAP SECT'!$G$6:$FJ$253,34,FALSE) -> 4.03 | K11: =VLOOKUP($C11,'RECAP SECT'!$G$6:$FJ$253,35,FALSE) -> 2.42 | L11: =VLOOKUP($C11,'RECAP SECT'!$G$6:$FJ$253,36,FALSE) -> 59% | M11: =VLOOKUP($C11,'RECAP SECT'!$G$6:$FJ$253,37,FALSE) -> 12 | N11: =VLOOKUP($C11,'RECAP SECT'!$G$6:$FJ$253,38,FALSE) -> 4.70 | O11: =VLOOKUP($C11,'RECAP SECT'!$G$6:$FJ$253,39,FALSE) -> 3.16 | P11: =VLOOKUP($C11,'RECAP SECT'!$G$6:$FJ$253,40,FALSE) -> 65% | Q11: =VLOOKUP($C11,'RECAP SECT'!$G$6:$FJ$253,41,FALSE) -> 17 | R11: =VLOOKUP($C11,'RECAP SECT'!$G$6:$FJ$253,42,FALSE) -> 0.87 | S11: =VLOOKUP($C11,'RECAP SECT'!$G$6:$FJ$253,43,FALSE) -> 0.64 | T11: =VLOOKUP($C11,'RECAP SECT'!$G$6:$FJ$253,44,FALSE) -> 23% | U11: =VLOOKUP($C11,'RECAP SECT'!$G$6:$FJ$253,45,FALSE) -> 4 | V11: =VLOOKUP($C11,'RECAP SECT'!$G$6:$FJ$253,46,FALSE) -> 65% | W11: =VLOOKUP($C11,'RECAP SECT'!$G$6:$FJ$253,47,FALSE) -> 48% | X11: =VLOOKUP($C11,'RECAP SECT'!$G$6:$FJ$253,48,FALSE) -> 9
A12: 262 | B12: BAS-RHIN | C12: 5060 | D12: HAGUENAU | E12: =VLOOKUP($C12,'RECAP SECT'!$G$6:$FJ$253,3,FALSE) -> 80.0 | F12: =VLOOKUP($C12,'RECAP SECT'!$G$6:$FJ$253,30,FALSE) -> 1.81 | G12: =VLOOKUP($C12,'RECAP SECT'!$G$6:$FJ$253,31,FALSE) -> 0.36 | H12: =VLOOKUP($C12,'RECAP SECT'!$G$6:$FJ$253,32,FALSE) -> 79% | I12: =VLOOKUP($C12,'RECAP SECT'!$G$6:$FJ$253,33,FALSE) -> 13 | J12: =VLOOKUP($C12,'RECAP SECT'!$G$6:$FJ$253,34,FALSE) -> 2.96 | K12: =VLOOKUP($C12,'RECAP SECT'!$G$6:$FJ$253,35,FALSE) -> 1.95 | L12: =VLOOKUP($C12,'RECAP SECT'!$G$6:$FJ$253,36,FALSE) -> 67% | M12: =VLOOKUP($C12,'RECAP SECT'!$G$6:$FJ$253,37,FALSE) -> 17 | N12: =VLOOKUP($C12,'RECAP SECT'!$G$6:$FJ$253,38,FALSE) -> 4.75 | O12: =VLOOKUP($C12,'RECAP SECT'!$G$6:$FJ$253,39,FALSE) -> 3.16 | P12: =VLOOKUP($C12,'RECAP SECT'!$G$6:$FJ$253,40,FALSE) -> 65% | Q12: =VLOOKUP($C12,'RECAP SECT'!$G$6:$FJ$253,41,FALSE) -> 16 | R12: =VLOOKUP($C12,'RECAP SECT'!$G$6:$FJ$253,42,FALSE) -> 0.48 | S12: =VLOOKUP($C12,'RECAP SECT'!$G$6:$FJ$253,43,FALSE) -> 0.14 | T12: =VLOOKUP($C12,'RECAP SECT'!$G$6:$FJ$253,44,FALSE) -> 84% | U12: =VLOOKUP($C12,'RECAP SECT'!$G$6:$FJ$253,45,FALSE) -> 12 | V12: =VLOOKUP($C12,'RECAP SECT'!$G$6:$FJ$253,46,FALSE) -> 73% | W12: =VLOOKUP($C12,'RECAP SECT'!$G$6:$FJ$253,47,FALSE) -> 56% | X12: =VLOOKUP($C12,'RECAP SECT'!$G$6:$FJ$253,48,FALSE) -> 15
A13: 262 | B13: BAS-RHIN | C13: 5101 | D13: SELESTAT | E13: =VLOOKUP($C13,'RECAP SECT'!$G$6:$FJ$253,3,FALSE) -> 64.8 | F13: =VLOOKUP($C13,'RECAP SECT'!$G$6:$FJ$253,30,FALSE) -> 1.25 | G13: =VLOOKUP($C13,'RECAP SECT'!$G$6:$FJ$253,31,FALSE) -> 0.42 | H13: =VLOOKUP($C13,'RECAP SECT'!$G$6:$FJ$253,32,FALSE) -> 78% | I13: =VLOOKUP($C13,'RECAP SECT'!$G$6:$FJ$253,33,FALSE) -> 12 | J13: =VLOOKUP($C13,'RECAP SECT'!$G$6:$FJ$253,34,FALSE) -> 3.64 | K13: =VLOOKUP($C13,'RECAP SECT'!$G$6:$FJ$253,35,FALSE) -> 2.48 | L13: =VLOOKUP($C13,'RECAP SECT'!$G$6:$FJ$253,36,FALSE) -> 58% | M13: =VLOOKUP($C13,'RECAP SECT'!$G$6:$FJ$253,37,FALSE) -> 11 | N13: =VLOOKUP($C13,'RECAP SECT'!$G$6:$FJ$253,38,FALSE) -> 6.14 | O13: =VLOOKUP($C13,'RECAP SECT'!$G$6:$FJ$253,39,FALSE) -> 4.03 | P13: =VLOOKUP($C13,'RECAP SECT'!$G$6:$FJ$253,40,FALSE) -> 55% | Q13: =VLOOKUP($C13,'RECAP SECT'!$G$6:$FJ$253,41,FALSE) -> 10 | R13: =VLOOKUP($C13,'RECAP SECT'!$G$6:$FJ$253,42,FALSE) -> -0.15 | S13: =VLOOKUP($C13,'RECAP SECT'!$G$6:$FJ$253,43,FALSE) -> -0.17 | T13: =VLOOKUP($C13,'RECAP SECT'!$G$6:$FJ$253,44,FALSE) -> 120% | U13: =VLOOKUP($C13,'RECAP SECT'!$G$6:$FJ$253,45,FALSE) -> 16 | V13: =VLOOKUP($C13,'RECAP SECT'!$G$6:$FJ$253,46,FALSE) -> 75% | W13: =VLOOKUP($C13,'RECAP SECT'!$G$6:$FJ$253,47,FALSE) -> 58% | X13: =VLOOKUP($C13,'RECAP SECT'!$G$6:$FJ$253,48,FALSE) -> 17
A14: 262 | B14: BAS-RHIN | C14: 5006 | D14: STRASBOURG | E14: =VLOOKUP($C14,'RECAP SECT'!$G$6:$FJ$253,3,FALSE) -> 79.3 | F14: =VLOOKUP($C14,'RECAP SECT'!$G$6:$FJ$253,30,FALSE) -> 3.26 | G14: =VLOOKUP($C14,'RECAP SECT'!$G$6:$FJ$253,31,FALSE) -> 1.00 | H14: =VLOOKUP($C14,'RECAP SECT'!$G$6:$FJ$253,32,FALSE) -> 64% | I14: =VLOOKUP($C14,'RECAP SECT'!$G$6:$FJ$253,33,FALSE) -> 8 | J14: =VLOOKUP($C14,'RECAP SECT'!$G$6:$FJ$253,34,FALSE) -> 8.95 | K14: =VLOOKUP($C14,'RECAP SECT'!$G$6:$FJ$253,35,FALSE) -> 5.96 | L14: =VLOOKUP($C14,'RECAP SECT'!$G$6:$FJ$253,36,FALSE) -> 0% | M14: =VLOOKUP($C14,'RECAP SECT'!$G$6:$FJ$253,37,FALSE) -> 1 | N14: =VLOOKUP($C14,'RECAP SECT'!$G$6:$FJ$253,38,FALSE) -> 13.46 | O14: =VLOOKUP($C14,'RECAP SECT'!$G$6:$FJ$253,39,FALSE) -> 8.99 | P14: =VLOOKUP($C14,'RECAP SECT'!$G$6:$FJ$253,40,FALSE) -> 0% | Q14: =VLOOKUP($C14,'RECAP SECT'!$G$6:$FJ$253,41,FALSE) -> 1 | R14: =VLOOKUP($C14,'RECAP SECT'!$G$6:$FJ$253,42,FALSE) -> 0.76 | S14: =VLOOKUP($C14,'RECAP SECT'!$G$6:$FJ$253,43,FALSE) -> 0.54 | T14: =VLOOKUP($C14,'RECAP SECT'!$G$6:$FJ$253,44,FALSE) -> 34% | U14: =VLOOKUP($C14,'RECAP SECT'!$G$6:$FJ$253,45,FALSE) -> 6 | V14: =VLOOKUP($C14,'RECAP SECT'!$G$6:$FJ$253,46,FALSE) -> 24% | W14: =VLOOKUP($C14,'RECAP SECT'!$G$6:$FJ$253,47,FALSE) -> 7% | X14: =VLOOKUP($C14,'RECAP SECT'!$G$6:$FJ$253,48,FALSE) -> 2
A15: 264 | B15: HAUT-RHIN | C15: 5130 | D15: COLMAR | E15: =VLOOKUP($C15,'RECAP SECT'!$G$6:$FJ$253,3,FALSE) -> 68.4 | F15: =VLOOKUP($C15,'RECAP SECT'!$G$6:$FJ$253,30,FALSE) -> 0.16 | G15: =VLOOKUP($C15,'RECAP SECT'!$G$6:$FJ$253,31,FALSE) -> 0.52 | H15: =VLOOKUP($C15,'RECAP SECT'!$G$6:$FJ$253,32,FALSE) -> 75% | I15: =VLOOKUP($C15,'RECAP SECT'!$G$6:$FJ$253,33,FALSE) -> 11 | J15: =VLOOKUP($C15,'RECAP SECT'!$G$6:$FJ$253,34,FALSE) -> 2.69 | K15: =VLOOKUP($C15,'RECAP SECT'!$G$6:$FJ$253,35,FALSE) -> 2.05 | L15: =VLOOKUP($C15,'RECAP SECT'!$G$6:$FJ$253,36,FALSE) -> 66% | M15: =VLOOKUP($C15,'RECAP SECT'!$G$6:$FJ$253,37,FALSE) -> 16 | N15: =VLOOKUP($C15,'RECAP SECT'!$G$6:$FJ$253,38,FALSE) -> 4.63 | O15: =VLOOKUP($C15,'RECAP SECT'!$G$6:$FJ$253,39,FALSE) -> 3.28 | P15: =VLOOKUP($C15,'RECAP SECT'!$G$6:$FJ$253,40,FALSE) -> 64% | Q15: =VLOOKUP($C15,'RECAP SECT'!$G$6:$FJ$253,41,FALSE) -> 14 | R15: =VLOOKUP($C15,'RECAP SECT'!$G$6:$FJ$253,42,FALSE) -> 0.64 | S15: =VLOOKUP($C15,'RECAP SECT'!$G$6:$FJ$253,43,FALSE) -> 0.40 | T15: =VLOOKUP($C15,'RECAP SECT'!$G$6:$FJ$253,44,FALSE) -> 52% | U15: =VLOOKUP($C15,'RECAP SECT'!$G$6:$FJ$253,45,FALSE) -> 9 | V15: =VLOOKUP($C15,'RECAP SECT'!$G$6:$FJ$253,46,FALSE) -> 65% | W15: =VLOOKUP($C15,'RECAP SECT'!$G$6:$FJ$253,47,FALSE) -> 48% | X15: =VLOOKUP($C15,'RECAP SECT'!$G$6:$FJ$253,48,FALSE) -> 10
A16: 264 | B16: HAUT-RHIN | C16: 5169 | D16: MULHOUSE | E16: =VLOOKUP($C16,'RECAP SECT'!$G$6:$FJ$253,3,FALSE) -> 64.5 | F16: =VLOOKUP($C16,'RECAP SECT'!$G$6:$FJ$253,30,FALSE) -> -2.88 | G16: =VLOOKUP($C16,'RECAP SECT'!$G$6:$FJ$253,31,FALSE) -> -2.54 | H16: =VLOOKUP($C16,'RECAP SECT'!$G$6:$FJ$253,32,FALSE) -> 150% | I16: =VLOOKUP($C16,'RECAP SECT'!$G$6:$FJ$253,33,FALSE) -> 18 | J16: =VLOOKUP($C16,'RECAP SECT'!$G$6:$FJ$253,34,FALSE) -> 1.89 | K16: =VLOOKUP($C16,'RECAP SECT'!$G$6:$FJ$253,35,FALSE) -> 1.18 | L16: =VLOOKUP($C16,'RECAP SECT'!$G$6:$FJ$253,36,FALSE) -> 80% | M16: =VLOOKUP($C16,'RECAP SECT'!$G$6:$FJ$253,37,FALSE) -> 18 | N16: =VLOOKUP($C16,'RECAP SECT'!$G$6:$FJ$253,38,FALSE) -> 3.27 | O16: =VLOOKUP($C16,'RECAP SECT'!$G$6:$FJ$253,39,FALSE) -> 2.30 | P16: =VLOOKUP($C16,'RECAP SECT'!$G$6:$FJ$253,40,FALSE) -> 74% | Q16: =VLOOKUP($C16,'RECAP SECT'!$G$6:$FJ$253,41,FALSE) -> 18 | R16: =VLOOKUP($C16,'RECAP SECT'!$G$6:$FJ$253,42,FALSE) -> -0.33 | S16: =VLOOKUP($C16,'RECAP SECT'!$G$6:$FJ$253,43,FALSE) -> -0.27 | T16: =VLOOKUP($C16,'RECAP SECT'!$G$6:$FJ$253,44,FALSE) -> 133% | U16: =VLOOKUP($C16,'RECAP SECT'!$G$6:$FJ$253,45,FALSE) -> 18 | V16: =VLOOKUP($C16,'RECAP SECT'!$G$6:$FJ$253,46,FALSE) -> 108% | W16: =VLOOKUP($C16,'RECAP SECT'!$G$6:$FJ$253,47,FALSE) -> 91% | X16: =VLOOKUP($C16,'RECAP SECT'!$G$6:$FJ$253,48,FALSE) -> 18
A17: 30 | B17: MARNE-ARDENNES | C17: 6 | D17: CHALONS EN CHAMPAGNE | E17: =VLOOKUP($C17,'RECAP SECT'!$G$6:$FJ$253,3,FALSE) -> 46.4 | F17: =VLOOKUP($C17,'RECAP SECT'!$G$6:$FJ$253,30,FALSE) -> 5.43 | G17: =VLOOKUP($C17,'RECAP SECT'!$G$6:$FJ$253,31,FALSE) -> 1.79 | H17: =VLOOKUP($C17,'RECAP SECT'!$G$6:$FJ$253,32,FALSE) -> 45% | I17: =VLOOKUP($C17,'RECAP SECT'!$G$6:$FJ$253,33,FALSE) -> 4 | J17: =VLOOKUP($C17,'RECAP SECT'!$G$6:$FJ$253,34,FALSE) -> 4.78 | K17: =VLOOKUP($C17,'RECAP SECT'!$G$6:$FJ$253,35,FALSE) -> 3.20 | L17: =VLOOKUP($C17,'RECAP SECT'!$G$6:$FJ$253,36,FALSE) -> 46% | M17: =VLOOKUP($C17,'RECAP SECT'!$G$6:$FJ$253,37,FALSE) -> 8 | N17: =VLOOKUP($C17,'RECAP SECT'!$G$6:$FJ$253,38,FALSE) -> 6.33 | O17: =VLOOKUP($C17,'RECAP SECT'!$G$6:$FJ$253,39,FALSE) -> 4.21 | P17: =VLOOKUP($C17,'RECAP SECT'!$G$6:$FJ$253,40,FALSE) -> 53% | Q17: =VLOOKUP($C17,'RECAP SECT'!$G$6:$FJ$253,41,FALSE) -> 8 | R17: =VLOOKUP($C17,'RECAP SECT'!$G$6:$FJ$253,42,FALSE) -> 0.30 | S17: =VLOOKUP($C17,'RECAP SECT'!$G$6:$FJ$253,43,FALSE) -> 0.09 | T17: =VLOOKUP($C17,'RECAP SECT'!$G$6:$FJ$253,44,FALSE) -> 89% | U17: =VLOOKUP($C17,'RECAP SECT'!$G$6:$FJ$253,45,FALSE) -> 13 | V17: =VLOOKUP($C17,'RECAP SECT'!$G$6:$FJ$253,46,FALSE) -> 56% | W17: =VLOOKUP($C17,'RECAP SECT'!$G$6:$FJ$253,47,FALSE) -> 39% | X17: =VLOOKUP($C17,'RECAP SECT'!$G$6:$FJ$253,48,FALSE) -> 7
A18: 30 | B18: MARNE-ARDENNES | C18: 2 | D18: CHARLEVILLE MEZIERES | E18: =VLOOKUP($C18,'RECAP SECT'!$G$6:$FJ$253,3,FALSE) -> 57.5 | F18: =VLOOKUP($C18,'RECAP SECT'!$G$6:$FJ$253,30,FALSE) -> 4.94 | G18: =VLOOKUP($C18,'RECAP SECT'!$G$6:$FJ$253,31,FALSE) -> 2.95 | H18: =VLOOKUP($C18,'RECAP SECT'!$G$6:$FJ$253,32,FALSE) -> 16% | I18: =VLOOKUP($C18,'RECAP SECT'!$G$6:$FJ$253,33,FALSE) -> 2 | J18: =VLOOKUP($C18,'RECAP SECT'!$G$6:$FJ$253,34,FALSE) -> 7.34 | K18: =VLOOKUP($C18,'RECAP SECT'!$G$6:$FJ$253,35,FALSE) -> 4.86 | L18: =VLOOKUP($C18,'RECAP SECT'!$G$6:$FJ$253,36,FALSE) -> 18% | M18: =VLOOKUP($C18,'RECAP SECT'!$G$6:$FJ$253,37,FALSE) -> 2 | N18: =VLOOKUP($C18,'RECAP SECT'!$G$6:$FJ$253,38,FALSE) -> 8.47 | O18: =VLOOKUP($C18,'RECAP SECT'!$G$6:$FJ$253,39,FALSE) -> 5.85 | P18: =VLOOKUP($C18,'RECAP SECT'!$G$6:$FJ$253,40,FALSE) -> 35% | Q18: =VLOOKUP($C18,'RECAP SECT'!$G$6:$FJ$253,41,FALSE) -> 3 | R18: =VLOOKUP($C18,'RECAP SECT'!$G$6:$FJ$253,42,FALSE) -> 1.08 | S18: =VLOOKUP($C18,'RECAP SECT'!$G$6:$FJ$253,43,FALSE) -> 0.59 | T18: =VLOOKUP($C18,'RECAP SECT'!$G$6:$FJ$253,44,FALSE) -> 29% | U18: =VLOOKUP($C18,'RECAP SECT'!$G$6:$FJ$253,45,FALSE) -> 5 | V18: =VLOOKUP($C18,'RECAP SECT'!$G$6:$FJ$253,46,FALSE) -> 24% | W18: =VLOOKUP($C18,'RECAP SECT'!$G$6:$FJ$253,47,FALSE) -> 7% | X18: =VLOOKUP($C18,'RECAP SECT'!$G$6:$FJ$253,48,FALSE) -> 3
A19: 30 | B19: MARNE-ARDENNES | C19: 11 | D19: REIMS | E19: =VLOOKUP($C19,'RECAP SECT'!$G$6:$FJ$253,3,FALSE) -> 80.4 | F19: =VLOOKUP($C19,'RECAP SECT'!$G$6:$FJ$253,30,FALSE) -> 4.28 | G19: =VLOOKUP($C19,'RECAP SECT'!$G$6:$FJ$253,31,FALSE) -> 2.16 | H19: =VLOOKUP($C19,'RECAP SECT'!$G$6:$FJ$253,32,FALSE) -> 36% | I19: =VLOOKUP($C19,'RECAP SECT'!$G$6:$FJ$253,33,FALSE) -> 3 | J19: =VLOOKUP($C19,'RECAP SECT'!$G$6:$FJ$253,34,FALSE) -> 5.91 | K19: =VLOOKUP($C19,'RECAP SECT'!$G$6:$FJ$253,35,FALSE) -> 3.97 | L19: =VLOOKUP($C19,'RECAP SECT'!$G$6:$FJ$253,36,FALSE) -> 33% | M19: =VLOOKUP($C19,'RECAP SECT'!$G$6:$FJ$253,37,FALSE) -> 4 | N19: =VLOOKUP($C19,'RECAP SECT'!$G$6:$FJ$253,38,FALSE) -> 5.90 | O19: =VLOOKUP($C19,'RECAP SECT'!$G$6:$FJ$253,39,FALSE) -> 4.08 | P19: =VLOOKUP($C19,'RECAP SECT'!$G$6:$FJ$253,40,FALSE) -> 55% | Q19: =VLOOKUP($C19,'RECAP SECT'!$G$6:$FJ$253,41,FALSE) -> 9 | R19: =VLOOKUP($C19,'RECAP SECT'!$G$6:$FJ$253,42,FALSE) -> 0.68 | S19: =VLOOKUP($C19,'RECAP SECT'!$G$6:$FJ$253,43,FALSE) -> 0.65 | T19: =VLOOKUP($C19,'RECAP SECT'!$G$6:$FJ$253,44,FALSE) -> 21% | U19: =VLOOKUP($C19,'RECAP SECT'!$G$6:$FJ$253,45,FALSE) -> 3 | V19: =VLOOKUP($C19,'RECAP SECT'!$G$6:$FJ$253,46,FALSE) -> 37% | W19: =VLOOKUP($C19,'RECAP SECT'!$G$6:$FJ$253,47,FALSE) -> 20% | X19: =VLOOKUP($C19,'RECAP SECT'!$G$6:$FJ$253,48,FALSE) -> 5
A20: 110 | B20: MEURTHE ET MOSELLE MEUSE | C20: 26 | D20: NANCY | E20: =VLOOKUP($C20,'RECAP SECT'!$G$6:$FJ$253,3,FALSE) -> 68.0 | F20: =VLOOKUP($C20,'RECAP SECT'!$G$6:$FJ$253,30,FALSE) -> 3.81 | G20: =VLOOKUP($C20,'RECAP SECT'!$G$6:$FJ$253,31,FALSE) -> 1.42 | H20: =VLOOKUP($C20,'RECAP SECT'!$G$6:$FJ$253,32,FALSE) -> 54% | I20: =VLOOKUP($C20,'RECAP SECT'!$G$6:$FJ$253,33,FALSE) -> 6 | J20: =VLOOKUP($C20,'RECAP SECT'!$G$6:$FJ$253,34,FALSE) -> 5.71 | K20: =VLOOKUP($C20,'RECAP SECT'!$G$6:$FJ$253,35,FALSE) -> 3.72 | L20: =VLOOKUP($C20,'RECAP SECT'!$G$6:$FJ$253,36,FALSE) -> 38% | M20: =VLOOKUP($C20,'RECAP SECT'!$G$6:$FJ$253,37,FALSE) -> 5 | N20: =VLOOKUP($C20,'RECAP SECT'!$G$6:$FJ$253,38,FALSE) -> 7.57 | O20: =VLOOKUP($C20,'RECAP SECT'!$G$6:$FJ$253,39,FALSE) -> 5.05 | P20: =VLOOKUP($C20,'RECAP SECT'!$G$6:$FJ$253,40,FALSE) -> 44% | Q20: =VLOOKUP($C20,'RECAP SECT'!$G$6:$FJ$253,41,FALSE) -> 5 | R20: =VLOOKUP($C20,'RECAP SECT'!$G$6:$FJ$253,42,FALSE) -> 1.49 | S20: =VLOOKUP($C20,'RECAP SECT'!$G$6:$FJ$253,43,FALSE) -> 0.83 | T20: =VLOOKUP($C20,'RECAP SECT'!$G$6:$FJ$253,44,FALSE) -> 0% | U20: =VLOOKUP($C20,'RECAP SECT'!$G$6:$FJ$253,45,FALSE) -> 1 | V20: =VLOOKUP($C20,'RECAP SECT'!$G$6:$FJ$253,46,FALSE) -> 36% | W20: =VLOOKUP($C20,'RECAP SECT'!$G$6:$FJ$253,47,FALSE) -> 19% | X20: =VLOOKUP($C20,'RECAP SECT'!$G$6:$FJ$253,48,FALSE) -> 4
A21: 110 | B21: MEURTHE ET MOSELLE MEUSE | C21: 27 | D21: PONT A MOUSSON | E21: =VLOOKUP($C21,'RECAP SECT'!$G$6:$FJ$253,3,FALSE) -> 76.5 | F21: =VLOOKUP($C21,'RECAP SECT'!$G$6:$FJ$253,30,FALSE) -> 7.41 | G21: =VLOOKUP($C21,'RECAP SECT'!$G$6:$FJ$253,31,FALSE) -> 3.63 | H21: =VLOOKUP($C21,'RECAP SECT'!$G$6:$FJ$253,32,FALSE) -> 0% | I21: =VLOOKUP($C21,'RECAP SECT'!$G$6:$FJ$253,33,FALSE) -> 1 | J21: =VLOOKUP($C21,'RECAP SECT'!$G$6:$FJ$253,34,FALSE) -> 6.87 | K21: =VLOOKUP($C21,'RECAP SECT'!$G$6:$FJ$253,35,FALSE) -> 4.48 | L21: =VLOOKUP($C21,'RECAP SECT'!$G$6:$FJ$253,36,FALSE) -> 25% | M21: =VLOOKUP($C21,'RECAP SECT'!$G$6:$FJ$253,37,FALSE) -> 3 | N21: =VLOOKUP($C21,'RECAP SECT'!$G$6:$FJ$253,38,FALSE) -> 8.89 | O21: =VLOOKUP($C21,'RECAP SECT'!$G$6:$FJ$253,39,FALSE) -> 5.98 | P21: =VLOOKUP($C21,'RECAP SECT'!$G$6:$FJ$253,40,FALSE) -> 33% | Q21: =VLOOKUP($C21,'RECAP SECT'!$G$6:$FJ$253,41,FALSE) -> 2 | R21: =VLOOKUP($C21,'RECAP SECT'!$G$6:$FJ$253,42,FALSE) -> 0.91 | S21: =VLOOKUP($C21,'RECAP SECT'!$G$6:$FJ$253,43,FALSE) -> 0.76 | T21: =VLOOKUP($C21,'RECAP SECT'!$G$6:$FJ$253,44,FALSE) -> 8% | U21: =VLOOKUP($C21,'RECAP SECT'!$G$6:$FJ$253,45,FALSE) -> 2 | V21: =VLOOKUP($C21,'RECAP SECT'!$G$6:$FJ$253,46,FALSE) -> 17% | W21: =VLOOKUP($C21,'RECAP SECT'!$G$6:$FJ$253,47,FALSE) -> 0% | X21: =VLOOKUP($C21,'RECAP SECT'!$G$6:$FJ$253,48,FALSE) -> 1
A22: 110 | B22: MEURTHE ET MOSELLE MEUSE | C22: 31 | D22: VERDUN | E22: =VLOOKUP($C22,'RECAP SECT'!$G$6:$FJ$253,3,FALSE) -> 54.4 | F22: =VLOOKUP($C22,'RECAP SECT'!$G$6:$FJ$253,30,FALSE) -> 1.10 | G22: =VLOOKUP($C22,'RECAP SECT'!$G$6:$FJ$253,31,FALSE) -> -0.19 | H22: =VLOOKUP($C22,'RECAP SECT'!$G$6:$FJ$253,32,FALSE) -> 93% | I22: =VLOOKUP($C22,'RECAP SECT'!$G$6:$FJ$253,33,FALSE) -> 14 | J22: =VLOOKUP($C22,'RECAP SECT'!$G$6:$FJ$253,34,FALSE) -> 4.63 | K22: =VLOOKUP($C22,'RECAP SECT'!$G$6:$FJ$253,35,FALSE) -> 3.04 | L22: =VLOOKUP($C22,'RECAP SECT'!$G$6:$FJ$253,36,FALSE) -> 49% | M22: =VLOOKUP($C22,'RECAP SECT'!$G$6:$FJ$253,37,FALSE) -> 10 | N22: =VLOOKUP($C22,'RECAP SECT'!$G$6:$FJ$253,38,FALSE) -> 7.08 | O22: =VLOOKUP($C22,'RECAP SECT'!$G$6:$FJ$253,39,FALSE) -> 4.76 | P22: =VLOOKUP($C22,'RECAP SECT'!$G$6:$FJ$253,40,FALSE) -> 47% | Q22: =VLOOKUP($C22,'RECAP SECT'!$G$6:$FJ$253,41,FALSE) -> 6 | R22: =VLOOKUP($C22,'RECAP SECT'!$G$6:$FJ$253,42,FALSE) -> 0.22 | S22: =VLOOKUP($C22,'RECAP SECT'!$G$6:$FJ$253,43,FALSE) -> 0.20 | T22: =VLOOKUP($C22,'RECAP SECT'!$G$6:$FJ$253,44,FALSE) -> 76% | U22: =VLOOKUP($C22,'RECAP SECT'!$G$6:$FJ$253,45,FALSE) -> 11 | V22: =VLOOKUP($C22,'RECAP SECT'!$G$6:$FJ$253,46,FALSE) -> 66% | W22: =VLOOKUP($C22,'RECAP SECT'!$G$6:$FJ$253,47,FALSE) -> 48% | X22: =VLOOKUP($C22,'RECAP SECT'!$G$6:$FJ$253,48,FALSE) -> 12
A23: 160 | B23: MOSELLE | C23: 45 | D23: METZ | E23: =VLOOKUP($C23,'RECAP SECT'!$G$6:$FJ$253,3,FALSE) -> 89.4 | F23: =VLOOKUP($C23,'RECAP SECT'!$G$6:$FJ$253,30,FALSE) -> 2.17 | G23: =VLOOKUP($C23,'RECAP SECT'!$G$6:$FJ$253,31,FALSE) -> 0.90 | H23: =VLOOKUP($C23,'RECAP SECT'!$G$6:$FJ$253,32,FALSE) -> 66% | I23: =VLOOKUP($C23,'RECAP SECT'!$G$6:$FJ$253,33,FALSE) -> 9 | J23: =VLOOKUP($C23,'RECAP SECT'!$G$6:$FJ$253,34,FALSE) -> 3.38 | K23: =VLOOKUP($C23,'RECAP SECT'!$G$6:$FJ$253,35,FALSE) -> 2.34 | L23: =VLOOKUP($C23,'RECAP SECT'!$G$6:$FJ$253,36,FALSE) -> 61% | M23: =VLOOKUP($C23,'RECAP SECT'!$G$6:$FJ$253,37,FALSE) -> 14 | N23: =VLOOKUP($C23,'RECAP SECT'!$G$6:$FJ$253,38,FALSE) -> 5.11 | O23: =VLOOKUP($C23,'RECAP SECT'!$G$6:$FJ$253,39,FALSE) -> 3.61 | P23: =VLOOKUP($C23,'RECAP SECT'!$G$6:$FJ$253,40,FALSE) -> 60% | Q23: =VLOOKUP($C23,'RECAP SECT'!$G$6:$FJ$253,41,FALSE) -> 13 | R23: =VLOOKUP($C23,'RECAP SECT'!$G$6:$FJ$253,42,FALSE) -> 0.08 | S23: =VLOOKUP($C23,'RECAP SECT'!$G$6:$FJ$253,43,FALSE) -> -0.17 | T23: =VLOOKUP($C23,'RECAP SECT'!$G$6:$FJ$253,44,FALSE) -> 121% | U23: =VLOOKUP($C23,'RECAP SECT'!$G$6:$FJ$253,45,FALSE) -> 17 | V23: =VLOOKUP($C23,'RECAP SECT'!$G$6:$FJ$253,46,FALSE) -> 74% | W23: =VLOOKUP($C23,'RECAP SECT'!$G$6:$FJ$253,47,FALSE) -> 57% | X23: =VLOOKUP($C23,'RECAP SECT'!$G$6:$FJ$253,48,FALSE) -> 16
A24: 160 | B24: MOSELLE | C24: 42 | D24: MOSELLE EST | E24: =VLOOKUP($C24,'RECAP SECT'!$G$6:$FJ$253,3,FALSE) -> 76.7 | F24: =VLOOKUP($C24,'RECAP SECT'!$G$6:$FJ$253,30,FALSE) -> 2.53 | G24: =VLOOKUP($C24,'RECAP SECT'!$G$6:$FJ$253,31,FALSE) -> 1.02 | H24: =VLOOKUP($C24,'RECAP SECT'!$G$6:$FJ$253,32,FALSE) -> 63% | I24: =VLOOKUP($C24,'RECAP SECT'!$G$6:$FJ$253,33,FALSE) -> 7 | J24: =VLOOKUP($C24,'RECAP SECT'!$G$6:$FJ$253,34,FALSE) -> 3.43 | K24: =VLOOKUP($C24,'RECAP SECT'!$G$6:$FJ$253,35,FALSE) -> 2.40 | L24: =VLOOKUP($C24,'RECAP SECT'!$G$6:$FJ$253,36,FALSE) -> 60% | M24: =VLOOKUP($C24,'RECAP SECT'!$G$6:$FJ$253,37,FALSE) -> 13 | N24: =VLOOKUP($C24,'RECAP SECT'!$G$6:$FJ$253,38,FALSE) -> 4.51 | O24: =VLOOKUP($C24,'RECAP SECT'!$G$6:$FJ$253,39,FALSE) -> 3.18 | P24: =VLOOKUP($C24,'RECAP SECT'!$G$6:$FJ$253,40,FALSE) -> 65% | Q24: =VLOOKUP($C24,'RECAP SECT'!$G$6:$FJ$253,41,FALSE) -> 15 | R24: =VLOOKUP($C24,'RECAP SECT'!$G$6:$FJ$253,42,FALSE) -> 0.04 | S24: =VLOOKUP($C24,'RECAP SECT'!$G$6:$FJ$253,43,FALSE) -> -0.09 | T24: =VLOOKUP($C24,'RECAP SECT'!$G$6:$FJ$253,44,FALSE) -> 110% | U24: =VLOOKUP($C24,'RECAP SECT'!$G$6:$FJ$253,45,FALSE) -> 14 | V24: =VLOOKUP($C24,'RECAP SECT'!$G$6:$FJ$253,46,FALSE) -> 72% | W24: =VLOOKUP($C24,'RECAP SECT'!$G$6:$FJ$253,47,FALSE) -> 55% | X24: =VLOOKUP($C24,'RECAP SECT'!$G$6:$FJ$253,48,FALSE) -> 14
A25: 160 | B25: MOSELLE | C25: 44 | D25: MOSELLE NORD | E25: =VLOOKUP($C25,'RECAP SECT'!$G$6:$FJ$253,3,FALSE) -> 69.6 | F25: =VLOOKUP($C25,'RECAP SECT'!$G$6:$FJ$253,30,FALSE) -> 2.84 | G25: =VLOOKUP($C25,'RECAP SECT'!$G$6:$FJ$253,31,FALSE) -> 1.51 | H25: =VLOOKUP($C25,'RECAP SECT'!$G$6:$FJ$253,32,FALSE) -> 52% | I25: =VLOOKUP($C25,'RECAP SECT'!$G$6:$FJ$253,33,FALSE) -> 5 | J25: =VLOOKUP($C25,'RECAP SECT'!$G$6:$FJ$253,34,FALSE) -> 5.14 | K25: =VLOOKUP($C25,'RECAP SECT'!$G$6:$FJ$253,35,FALSE) -> 3.41 | L25: =VLOOKUP($C25,'RECAP SECT'!$G$6:$FJ$253,36,FALSE) -> 43% | M25: =VLOOKUP($C25,'RECAP SECT'!$G$6:$FJ$253,37,FALSE) -> 7 | N25: =VLOOKUP($C25,'RECAP SECT'!$G$6:$FJ$253,38,FALSE) -> 6.52 | O25: =VLOOKUP($C25,'RECAP SECT'!$G$6:$FJ$253,39,FALSE) -> 4.48 | P25: =VLOOKUP($C25,'RECAP SECT'!$G$6:$FJ$253,40,FALSE) -> 50% | Q25: =VLOOKUP($C25,'RECAP SECT'!$G$6:$FJ$253,41,FALSE) -> 7 | R25: =VLOOKUP($C25,'RECAP SECT'!$G$6:$FJ$253,42,FALSE) -> 0.00 | S25: =VLOOKUP($C25,'RECAP SECT'!$G$6:$FJ$253,43,FALSE) -> -0.11 | T25: =VLOOKUP($C25,'RECAP SECT'!$G$6:$FJ$253,44,FALSE) -> 114% | U25: =VLOOKUP($C25,'RECAP SECT'!$G$6:$FJ$253,45,FALSE) -> 15 | V25: =VLOOKUP($C25,'RECAP SECT'!$G$6:$FJ$253,46,FALSE) -> 61% | W25: =VLOOKUP($C25,'RECAP SECT'!$G$6:$FJ$253,47,FALSE) -> 44% | X25: =VLOOKUP($C25,'RECAP SECT'!$G$6:$FJ$253,48,FALSE) -> 8
A26: 80 | B26: VOSGES | C26: 57 | D26: EPINAL | E26: =VLOOKUP($C26,'RECAP SECT'!$G$6:$FJ$253,3,FALSE) -> 62.9 | F26: =VLOOKUP($C26,'RECAP SECT'!$G$6:$FJ$253,30,FALSE) -> 1.19 | G26: =VLOOKUP($C26,'RECAP SECT'!$G$6:$FJ$253,31,FALSE) -> -0.33 | H26: =VLOOKUP($C26,'RECAP SECT'!$G$6:$FJ$253,32,FALSE) -> 96% | I26: =VLOOKUP($C26,'RECAP SECT'!$G$6:$FJ$253,33,FALSE) -> 15 | J26: =VLOOKUP($C26,'RECAP SECT'!$G$6:$FJ$253,34,FALSE) -> 3.51 | K26: =VLOOKUP($C26,'RECAP SECT'!$G$6:$FJ$253,35,FALSE) -> 2.32 | L26: =VLOOKUP($C26,'RECAP SECT'!$G$6:$FJ$253,36,FALSE) -> 61% | M26: =VLOOKUP($C26,'RECAP SECT'!$G$6:$FJ$253,37,FALSE) -> 15 | N26: =VLOOKUP($C26,'RECAP SECT'!$G$6:$FJ$253,38,FALSE) -> 5.53 | O26: =VLOOKUP($C26,'RECAP SECT'!$G$6:$FJ$253,39,FALSE) -> 3.64 | P26: =VLOOKUP($C26,'RECAP SECT'!$G$6:$FJ$253,40,FALSE) -> 60% | Q26: =VLOOKUP($C26,'RECAP SECT'!$G$6:$FJ$253,41,FALSE) -> 11 | R26: =VLOOKUP($C26,'RECAP SECT'!$G$6:$FJ$253,42,FALSE) -> 0.43 | S26: =VLOOKUP($C26,'RECAP SECT'!$G$6:$FJ$253,43,FALSE) -> 0.35 | T26: =VLOOKUP($C26,'RECAP SECT'!$G$6:$FJ$253,44,FALSE) -> 58% | U26: =VLOOKUP($C26,'RECAP SECT'!$G$6:$FJ$253,45,FALSE) -> 10 | V26: =VLOOKUP($C26,'RECAP SECT'!$G$6:$FJ$253,46,FALSE) -> 69% | W26: =VLOOKUP($C26,'RECAP SECT'!$G$6:$FJ$253,47,FALSE) -> 52% | X26: =VLOOKUP($C26,'RECAP SECT'!$G$6:$FJ$253,48,FALSE) -> 13
A27: 80 | B27: VOSGES | C27: 55 | D27: SAINT DIE | E27: =VLOOKUP($C27,'RECAP SECT'!$G$6:$FJ$253,3,FALSE) -> 50.2 | F27: =VLOOKUP($C27,'RECAP SECT'!$G$6:$FJ$253,30,FALSE) -> 2.47 | G27: =VLOOKUP($C27,'RECAP SECT'!$G$6:$FJ$253,31,FALSE) -> 0.78 | H27: =VLOOKUP($C27,'RECAP SECT'!$G$6:$FJ$253,32,FALSE) -> 69% | I27: =VLOOKUP($C27,'RECAP SECT'!$G$6:$FJ$253,33,FALSE) -> 10 | J27: =VLOOKUP($C27,'RECAP SECT'!$G$6:$FJ$253,34,FALSE) -> 5.67 | K27: =VLOOKUP($C27,'RECAP SECT'!$G$6:$FJ$253,35,FALSE) -> 3.67 | L27: =VLOOKUP($C27,'RECAP SECT'!$G$6:$FJ$253,36,FALSE) -> 38% | M27: =VLOOKUP($C27,'RECAP SECT'!$G$6:$FJ$253,37,FALSE) -> 6 | N27: =VLOOKUP($C27,'RECAP SECT'!$G$6:$FJ$253,38,FALSE) -> 8.58 | O27: =VLOOKUP($C27,'RECAP SECT'!$G$6:$FJ$253,39,FALSE) -> 5.76 | P27: =VLOOKUP($C27,'RECAP SECT'!$G$6:$FJ$253,40,FALSE) -> 36% | Q27: =VLOOKUP($C27,'RECAP SECT'!$G$6:$FJ$253,41,FALSE) -> 4 | R27: =VLOOKUP($C27,'RECAP SECT'!$G$6:$FJ$253,42,FALSE) -> 0.76 | S27: =VLOOKUP($C27,'RECAP SECT'!$G$6:$FJ$253,43,FALSE) -> 0.54 | T27: =VLOOKUP($C27,'RECAP SECT'!$G$6:$FJ$253,44,FALSE) -> 35% | U27: =VLOOKUP($C27,'RECAP SECT'!$G$6:$FJ$253,45,FALSE) -> 7 | V27: =VLOOKUP($C27,'RECAP SECT'!$G$6:$FJ$253,46,FALSE) -> 45% | W27: =VLOOKUP($C27,'RECAP SECT'!$G$6:$FJ$253,47,FALSE) -> 28% | X27: =VLOOKUP($C27,'RECAP SECT'!$G$6:$FJ$253,48,FALSE) -> 6
A28: Total CEGEE Directions Régionales | E28: =SUM(E10:E27) -> 1195

Sheet SE_EPARGNE
B1: Accueil | F1: BAROMETRE BDD - TERRITOIRES
F2: EPARGNE
F3: =ACCUEIL!F7 -> 2020-05-10
F7: Excédent Epargne Liquide | J7: CA UC + arbitrage | N7: Excédent Assurance Vie | R7: Total Epargne
H8: coef | I8: ='RECAP DIRCOM'!BL4 -> 3% | L8: coef | M8: ='RECAP DIRCOM'!BP4 -> 4% | P8: coef | Q8: ='RECAP DIRCOM'!BT4 -> 3% | S8: coef | T8: ='RECAP DIRCOM'!BW4 -> 10%
A9: eds | B9: Direction | C9: eds | D9: Territoire | E9: ETP perf | F9: Réal / ETP | G9: PNB / ETP | H9: % Ecart au 1er | I9: Rang | J9: Réal / ETP | K9: PNB / ETP | L9: % Ecart au 1er | M9: Rang | N9: Réal / ETP | O9: PNB / ETP | P9: % Ecart au 1er | Q9: Rang | R9: Moyenne ecart au 1er | S9: % Ecart au 1er | T9: Rang CEGEE
A10: 50 | B10: AUBE HAUTE MARNE | C10: 21 | D10: CHAUMONT | E10: =VLOOKUP($C10,'RECAP SECT'!$G$6:$FJ$253,3,FALSE) -> 36.2 | F10: =VLOOKUP($C10,'RECAP SECT'!$G$6:$FJ$253,55,FALSE) -> 307.23 | G10: =VLOOKUP($C10,'RECAP SECT'!$G$6:$FJ$253,56,FALSE) -> 6.60 | H10: =VLOOKUP($C10,'RECAP SECT'!$G$6:$FJ$253,57,FALSE) -> 39% | I10: =VLOOKUP($C10,'RECAP SECT'!$G$6:$FJ$253,58,FALSE) -> 10 | J10: =VLOOKUP($C10,'RECAP SECT'!$G$6:$FJ$253,59,FALSE) -> 51.74 | K10: =VLOOKUP($C10,'RECAP SECT'!$G$6:$FJ$253,60,FALSE) -> 0.37 | L10: =VLOOKUP($C10,'RECAP SECT'!$G$6:$FJ$253,61,FALSE) -> 67% | M10: =VLOOKUP($C10,'RECAP SECT'!$G$6:$FJ$253,62,FALSE) -> 17 | N10: =VLOOKUP($C10,'RECAP SECT'!$G$6:$FJ$253,63,FALSE) -> -36.26 | O10: =VLOOKUP($C10,'RECAP SECT'!$G$6:$FJ$253,64,FALSE) -> -1.30 | P10: =VLOOKUP($C10,'RECAP SECT'!$G$6:$FJ$253,65,FALSE) -> 76% | Q10: =VLOOKUP($C10,'RECAP SECT'!$G$6:$FJ$253,66,FALSE) -> 11 | R10: =VLOOKUP($C10,'RECAP SECT'!$G$6:$FJ$253,67,FALSE) -> 61% | S10: =VLOOKUP($C10,'RECAP SECT'!$G$6:$FJ$253,68,FALSE) -> 39% | T10: =VLOOKUP($C10,'RECAP SECT'!$G$6:$FJ$253,69,FALSE) -> 14
A11: 50 | B11: AUBE HAUTE MARNE | C11: 14 | D11: TROYES | E11: =VLOOKUP($C11,'RECAP SECT'!$G$6:$FJ$253,3,FALSE) -> 69.8 | F11: =VLOOKUP($C11,'RECAP SECT'!$G$6:$FJ$253,55,FALSE) -> 301.24 | G11: =VLOOKUP($C11,'RECAP SECT'!$G$6:$FJ$253,56,FALSE) -> 6.40 | H11: =VLOOKUP($C11,'RECAP SECT'!$G$6:$FJ$253,57,FALSE) -> 41% | I11: =VLOOKUP($C11,'RECAP SECT'!$G$6:$FJ$253,58,FALSE) -> 13 | J11: =VLOOKUP($C11,'RECAP SECT'!$G$6:$FJ$253,59,FALSE) -> 78.54 | K11: =VLOOKUP($C11,'RECAP SECT'!$G$6:$FJ$253,60,FALSE) -> 0.74 | L11: =VLOOKUP($C11,'RECAP SECT'!$G$6:$FJ$253,61,FALSE) -> 35% | M11: =VLOOKUP($C11,'RECAP SECT'!$G$6:$FJ$253,62,FALSE) -> 5 | N11: =VLOOKUP($C11,'RECAP SECT'!$G$6:$FJ$253,63,FALSE) -> -83.91 | O11: =VLOOKUP($C11,'RECAP SECT'!$G$6:$FJ$253,64,FALSE) -> -3.02 | P11: =VLOOKUP($C11,'RECAP SECT'!$G$6:$FJ$253,65,FALSE) -> 129% | Q11: =VLOOKUP($C11,'RECAP SECT'!$G$6:$FJ$253,66,FALSE) -> 16 | R11: =VLOOKUP($C11,'RECAP SECT'!$G$6:$FJ$253,67,FALSE) -> 65% | S11: =VLOOKUP($C11,'RECAP SECT'!$G$6:$FJ$253,68,FALSE) -> 43% | T11: =VLOOKUP($C11,'RECAP SECT'!$G$6:$FJ$253,69,FALSE) -> 16
A12: 262 | B12: BAS-RHIN | C12: 5060 | D12: HAGUENAU | E12: =VLOOKUP($C12,'RECAP SECT'!$G$6:$FJ$253,3,FALSE) -> 80.0 | F12: =VLOOKUP($C12,'RECAP SECT'!$G$6:$FJ$253,55,FALSE) -> 230.23 | G12: =VLOOKUP($C12,'RECAP SECT'!$G$6:$FJ$253,56,FALSE) -> 5.08 | H12: =VLOOKUP($C12,'RECAP SECT'!$G$6:$FJ$253,57,FALSE) -> 53% | I12: =VLOOKUP($C12,'RECAP SECT'!$G$6:$FJ$253,58,FALSE) -> 16 | J12: =VLOOKUP($C12,'RECAP SECT'!$G$6:$FJ$253,59,FALSE) -> 65.90 | K12: =VLOOKUP($C12,'RECAP SECT'!$G$6:$FJ$253,60,FALSE) -> 0.44 | L12: =VLOOKUP($C12,'RECAP SECT'!$G$6:$FJ$253,61,FALSE) -> 61% | M12: =VLOOKUP($C12,'RECAP SECT'!$G$6:$FJ$253,62,FALSE) -> 16 | N12: =VLOOKUP($C12,'RECAP SECT'!$G$6:$FJ$253,63,FALSE) -> -26.10 | O12: =VLOOKUP($C12,'RECAP SECT'!$G$6:$FJ$253,64,FALSE) -> -0.94 | P12: =VLOOKUP($C12,'RECAP SECT'!$G$6:$FJ$253,65,FALSE) -> 65% | Q12: =VLOOKUP($C12,'RECAP SECT'!$G$6:$FJ$253,66,FALSE) -> 9 | R12: =VLOOKUP($C12,'RECAP SECT'!$G$6:$FJ$253,67,FALSE) -> 60% | S12: =VLOOKUP($C12,'RECAP SECT'!$G$6:$FJ$253,68,FALSE) -> 38% | T12: =VLOOKUP($C12,'RECAP SECT'!$G$6:$FJ$253,69,FALSE) -> 13
A13: 262 | B13: BAS-RHIN | C13: 5101 | D13: SELESTAT | E13: =VLOOKUP($C13,'RECAP SECT'!$G$6:$FJ$253,3,FALSE) -> 64.8 | F13: =VLOOKUP($C13,'RECAP SECT'!$G$6:$FJ$253,55,FALSE) -> 359.21 | G13: =VLOOKUP($C13,'RECAP SECT'!$G$6:$FJ$253,56,FALSE) -> 7.71 | H13: =VLOOKUP($C13,'RECAP SECT'!$G$6:$FJ$253,57,FALSE) -> 28% | I13: =VLOOKUP($C13,'RECAP SECT'!$G$6:$FJ$253,58,FALSE) -> 6 | J13: =VLOOKUP($C13,'RECAP SECT'!$G$6:$FJ$253,59,FALSE) -> 84.11 | K13: =VLOOKUP($C13,'RECAP SECT'!$G$6:$FJ$253,60,FALSE) -> 0.65 | L13: =VLOOKUP($C13,'RECAP SECT'!$G$6:$FJ$253,61,FALSE) -> 42% | M13: =VLOOKUP($C13,'RECAP SECT'!$G$6:$FJ$253,62,FALSE) -> 8 | N13: =VLOOKUP($C13,'RECAP SECT'!$G$6:$FJ$253,63,FALSE) -> -13.64 | O13: =VLOOKUP($C13,'RECAP SECT'!$G$6:$FJ$253,64,FALSE) -> -0.49 | P13: =VLOOKUP($C13,'RECAP SECT'!$G$6:$FJ$253,65,FALSE) -> 51% | Q13: =VLOOKUP($C13,'RECAP SECT'!$G$6:$FJ$253,66,FALSE) -> 6 | R13: =VLOOKUP($C13,'RECAP SECT'!$G$6:$FJ$253,67,FALSE) -> 41% | S13: =VLOOKUP($C13,'RECAP SECT'!$G$6:$FJ$253,68,FALSE) -> 19% | T13: =VLOOKUP($C13,'RECAP SECT'!$G$6:$FJ$253,69,FALSE) -> 4
A14: 262 | B14: BAS-RHIN | C14: 5006 | D14: STRASBOURG | E14: =VLOOKUP($C14,'RECAP SECT'!$G$6:$FJ$253,3,FALSE) -> 79.3 | F14: =VLOOKUP($C14,'RECAP SECT'!$G$6:$FJ$253,55,FALSE) -> 423.49 | G14: =VLOOKUP($C14,'RECAP SECT'!$G$6:$FJ$253,56,FALSE) -> 9.15 | H14: =VLOOKUP($C14,'RECAP SECT'!$G$6:$FJ$253,57,FALSE) -> 15% | I14: =VLOOKUP($C14,'RECAP SECT'!$G$6:$FJ$253,58,FALSE) -> 3 | J14: =VLOOKUP($C14,'RECAP SECT'!$G$6:$FJ$253,59,FALSE) -> 99.24 | K14: =VLOOKUP($C14,'RECAP SECT'!$G$6:$FJ$253,60,FALSE) -> 0.91 | L14: =VLOOKUP($C14,'RECAP SECT'!$G$6:$FJ$253,61,FALSE) -> 19% | M14: =VLOOKUP($C14,'RECAP SECT'!$G$6:$FJ$253,62,FALSE) -> 2 | N14: =VLOOKUP($C14,'RECAP SECT'!$G$6:$FJ$253,63,FALSE) -> -35.33 | O14: =VLOOKUP($C14,'RECAP SECT'!$G$6:$FJ$253,64,FALSE) -> -1.27 | P14: =VLOOKUP($C14,'RECAP SECT'!$G$6:$FJ$253,65,FALSE) -> 75% | Q14: =VLOOKUP($C14,'RECAP SECT'!$G$6:$FJ$253,66,FALSE) -> 10 | R14: =VLOOKUP($C14,'RECAP SECT'!$G$6:$FJ$253,67,FALSE) -> 35% | S14: =VLOOKUP($C14,'RECAP SECT'!$G$6:$FJ$253,68,FALSE) -> 13% | T14: =VLOOKUP($C14,'RECAP SECT'!$G$6:$FJ$253,69,FALSE) -> 3
A15: 264 | B15: HAUT-RHIN | C15: 5130 | D15: COLMAR | E15: =VLOOKUP($C15,'RECAP SECT'!$G$6:$FJ$253,3,FALSE) -> 68.4 | F15: =VLOOKUP($C15,'RECAP SECT'!$G$6:$FJ$253,55,FALSE) -> 345.00 | G15: =VLOOKUP($C15,'RECAP SECT'!$G$6:$FJ$253,56,FALSE) -> 7.35 | H15: =VLOOKUP($C15,'RECAP SECT'!$G$6:$FJ$253,57,FALSE) -> 32% | I15: =VLOOKUP($C15,'RECAP SECT'!$G$6:$FJ$253,58,FALSE) -> 8 | J15: =VLOOKUP($C15,'RECAP SECT'!$G$6:$FJ$253,59,FALSE) -> 101.93 | K15: =VLOOKUP($C15,'RECAP SECT'!$G$6:$FJ$253,60,FALSE) -> 1.13 | L15: =VLOOKUP($C15,'RECAP SECT'!$G$6:$FJ$253,61,FALSE) -> 0% | M15: =VLOOKUP($C15,'RECAP SECT'!$G$6:$FJ$253,62,FALSE) -> 1 | N15: =VLOOKUP($C15,'RECAP SECT'!$G$6:$FJ$253,63,FALSE) -> -76.01 | O15: =VLOOKUP($C15,'RECAP SECT'!$G$6:$FJ$253,64,FALSE) -> -2.73 | P15: =VLOOKUP($C15,'RECAP SECT'!$G$6:$FJ$253,65,FALSE) -> 121% | Q15: =VLOOKUP($C15,'RECAP SECT'!$G$6:$FJ$253,66,FALSE) -> 14 | R15: =VLOOKUP($C15,'RECAP SECT'!$G$6:$FJ$253,67,FALSE) -> 46% | S15: =VLOOKUP($C15,'RECAP SECT'!$G$6:$FJ$253,68,FALSE) -> 23% | T15: =VLOOKUP($C15,'RECAP SECT'!$G$6:$FJ$253,69,FALSE) -> 9
A16: 264 | B16: HAUT-RHIN | C16: 5169 | D16: MULHOUSE | E16: =VLOOKUP($C16,'RECAP SECT'!$G$6:$FJ$253,3,FALSE) -> 64.5 | F16: =VLOOKUP($C16,'RECAP SECT'!$G$6:$FJ$253,55,FALSE) -> 312.74 | G16: =VLOOKUP($C16,'RECAP SECT'!$G$6:$FJ$253,56,FALSE) -> 6.53 | H16: =VLOOKUP($C16,'RECAP SECT'!$G$6:$FJ$253,57,FALSE) -> 39% | I16: =VLOOKUP($C16,'RECAP SECT'!$G$6:$FJ$253,58,FALSE) -> 11 | J16: =VLOOKUP($C16,'RECAP SECT'!$G$6:$FJ$253,59,FALSE) -> 41.80 | K16: =VLOOKUP($C16,'RECAP SECT'!$G$6:$FJ$253,60,FALSE) -> 0.30 | L16: =VLOOKUP($C16,'RECAP SECT'!$G$6:$FJ$253,61,FALSE) -> 74% | M16: =VLOOKUP($C16,'RECAP SECT'!$G$6:$FJ$253,62,FALSE) -> 18 | N16: =VLOOKUP($C16,'RECAP SECT'!$G$6:$FJ$253,63,FALSE) -> -79.17 | O16: =VLOOKUP($C16,'RECAP SECT'!$G$6:$FJ$253,64,FALSE) -> -2.85 | P16: =VLOOKUP($C16,'RECAP SECT'!$G$6:$FJ$253,65,FALSE) -> 124% | Q16: =VLOOKUP($C16,'RECAP SECT'!$G$6:$FJ$253,66,FALSE) -> 15 | R16: =VLOOKUP($C16,'RECAP SECT'!$G$6:$FJ$253,67,FALSE) -> 78% | S16: =VLOOKUP($C16,'RECAP SECT'!$G$6:$FJ$253,68,FALSE) -> 56% | T16: =VLOOKUP($C16,'RECAP SECT'!$G$6:$FJ$253,69,FALSE) -> 18
A17: 30 | B17: MARNE-ARDENNES | C17: 6 | D17: CHALONS EN CHAMPAGNE | E17: =VLOOKUP($C17,'RECAP SECT'!$G$6:$FJ$253,3,FALSE) -> 46.4 | F17: =VLOOKUP($C17,'RECAP SECT'!$G$6:$FJ$253,55,FALSE) -> 434.80 | G17: =VLOOKUP($C17,'RECAP SECT'!$G$6:$FJ$253,56,FALSE) -> 9.28 | H17: =VLOOKUP($C17,'RECAP SECT'!$G$6:$FJ$253,57,FALSE) -> 14% | I17: =VLOOKUP($C17,'RECAP SECT'!$G$6:$FJ$253,58,FALSE) -> 2 | J17: =VLOOKUP($C17,'RECAP SECT'!$G$6:$FJ$253,59,FALSE) -> 90.81 | K17: =VLOOKUP($C17,'RECAP SECT'!$G$6:$FJ$253,60,FALSE) -> 0.73 | L17: =VLOOKUP($C17,'RECAP SECT'!$G$6:$FJ$253,61,FALSE) -> 35% | M17: =VLOOKUP($C17,'RECAP SECT'!$G$6:$FJ$253,62,FALSE) -> 6 | N17: =VLOOKUP($C17,'RECAP SECT'!$G$6:$FJ$253,63,FALSE) -> -53.94 | O17: =VLOOKUP($C17,'RECAP SECT'!$G$6:$FJ$253,64,FALSE) -> -1.94 | P17: =VLOOKUP($C17,'RECAP SECT'!$G$6:$FJ$253,65,FALSE) -> 96% | Q17: =VLOOKUP($C17,'RECAP SECT'!$G$6:$FJ$253,66,FALSE) -> 13 | R17: =VLOOKUP($C17,'RECAP SECT'!$G$6:$FJ$253,67,FALSE) -> 47% | S17: =VLOOKUP($C17,'RECAP SECT'!$G$6:$FJ$253,68,FALSE) -> 25% | T17: =VLOOKUP($C17,'RECAP SECT'!$G$6:$FJ$253,69,FALSE) -> 10
A18: 30 | B18: MARNE-ARDENNES | C18: 2 | D18: CHARLEVILLE MEZIERES | E18: =VLOOKUP($C18,'RECAP SECT'!$G$6:$FJ$253,3,FALSE) -> 57.5 | F18: =VLOOKUP($C18,'RECAP SECT'!$G$6:$FJ$253,55,FALSE) -> 216.79 | G18: =VLOOKUP($C18,'RECAP SECT'!$G$6:$FJ$253,56,FALSE) -> 4.89 | H18: =VLOOKUP($C18,'RECAP SECT'!$G$6:$FJ$253,57,FALSE) -> 55% | I18: =VLOOKUP($C18,'RECAP SECT'!$G$6:$FJ$253,58,FALSE) -> 17 | J18: =VLOOKUP($C18,'RECAP SECT'!$G$6:$FJ$253,59,FALSE) -> 77.69 | K18: =VLOOKUP($C18,'RECAP SECT'!$G$6:$FJ$253,60,FALSE) -> 0.60 | L18: =VLOOKUP($C18,'RECAP SECT'!$G$6:$FJ$253,61,FALSE) -> 47% | M18: =VLOOKUP($C18,'RECAP SECT'!$G$6:$FJ$253,62,FALSE) -> 10 | N18: =VLOOKUP($C18,'RECAP SECT'!$G$6:$FJ$253,63,FALSE) -> 8.12 | O18: =VLOOKUP($C18,'RECAP SECT'!$G$6:$FJ$253,64,FALSE) -> 0.29 | P18: =VLOOKUP($C18,'RECAP SECT'!$G$6:$FJ$253,65,FALSE) -> 27% | Q18: =VLOOKUP($C18,'RECAP SECT'!$G$6:$FJ$253,66,FALSE) -> 3 | R18: =VLOOKUP($C18,'RECAP SECT'!$G$6:$FJ$253,67,FALSE) -> 43% | S18: =VLOOKUP($C18,'RECAP SECT'!$G$6:$FJ$253,68,FALSE) -> 21% | T18: =VLOOKUP($C18,'RECAP SECT'!$G$6:$FJ$253,69,FALSE) -> 5
A19: 30 | B19: MARNE-ARDENNES | C19: 11 | D19: REIMS | E19: =VLOOKUP($C19,'RECAP SECT'!$G$6:$FJ$253,3,FALSE) -> 80.4 | F19: =VLOOKUP($C19,'RECAP SECT'!$G$6:$FJ$253,55,FALSE) -> 482.44 | G19: =VLOOKUP($C19,'RECAP SECT'!$G$6:$FJ$253,56,FALSE) -> 10.75 | H19: =VLOOKUP($C19,'RECAP SECT'!$G$6:$FJ$253,57,FALSE) -> 0% | I19: =VLOOKUP($C19,'RECAP SECT'!$G$6:$FJ$253,58,FALSE) -> 1 | J19: =VLOOKUP($C19,'RECAP SECT'!$G$6:$FJ$253,59,FALSE) -> 89.26 | K19: =VLOOKUP($C19,'RECAP SECT'!$G$6:$FJ$253,60,FALSE) -> 0.61 | L19: =VLOOKUP($C19,'RECAP SECT'!$G$6:$FJ$253,61,FALSE) -> 46% | M19: =VLOOKUP($C19,'RECAP SECT'!$G$6:$FJ$253,62,FALSE) -> 9 | N19: =VLOOKUP($C19,'RECAP SECT'!$G$6:$FJ$253,63,FALSE) -> -45.65 | O19: =VLOOKUP($C19,'RECAP SECT'!$G$6:$FJ$253,64,FALSE) -> -1.64 | P19: =VLOOKUP($C19,'RECAP SECT'!$G$6:$FJ$253,65,FALSE) -> 87% | Q19: =VLOOKUP($C19,'RECAP SECT'!$G$6:$FJ$253,66,FALSE) -> 12 | R19: =VLOOKUP($C19,'RECAP SECT'!$G$6:$FJ$253,67,FALSE) -> 44% | S19: =VLOOKUP($C19,'RECAP SECT'!$G$6:$FJ$253,68,FALSE) -> 22% | T19: =VLOOKUP($C19,'RECAP SECT'!$G$6:$FJ$253,69,FALSE) -> 6
A20: 110 | B20: MEURTHE ET MOSELLE MEUSE | C20: 26 | D20: NANCY | E20: =VLOOKUP($C20,'RECAP SECT'!$G$6:$FJ$253,3,FALSE) -> 68.0 | F20: =VLOOKUP($C20,'RECAP SECT'!$G$6:$FJ$253,55,FALSE) -> 363.78 | G20: =VLOOKUP($C20,'RECAP SECT'!$G$6:$FJ$253,56,FALSE) -> 7.90 | H20: =VLOOKUP($C20,'RECAP SECT'!$G$6:$FJ$253,57,FALSE) -> 27% | I20: =VLOOKUP($C20,'RECAP SECT'!$G$6:$FJ$253,58,FALSE) -> 5 | J20: =VLOOKUP($C20,'RECAP SECT'!$G$6:$FJ$253,59,FALSE) -> 93.36 | K20: =VLOOKUP($C20,'RECAP SECT'!$G$6:$FJ$253,60,FALSE) -> 0.81 | L20: =VLOOKUP($C20,'RECAP SECT'!$G$6:$FJ$253,61,FALSE) -> 29% | M20: =VLOOKUP($C20,'RECAP SECT'!$G$6:$FJ$253,62,FALSE) -> 4 | N20: =VLOOKUP($C20,'RECAP SECT'!$G$6:$FJ$253,63,FALSE) -> -99.07 | O20: =VLOOKUP($C20,'RECAP SECT'!$G$6:$FJ$253,64,FALSE) -> -3.56 | P20: =VLOOKUP($C20,'RECAP SECT'!$G$6:$FJ$253,65,FALSE) -> 146% | Q20: =VLOOKUP($C20,'RECAP SECT'!$G$6:$FJ$253,66,FALSE) -> 17 | R20: =VLOOKUP($C20,'RECAP SECT'!$G$6:$FJ$253,67,FALSE) -> 63% | S20: =VLOOKUP($C20,'RECAP SECT'!$G$6:$FJ$253,68,FALSE) -> 41% | T20: =VLOOKUP($C20,'RECAP SECT'!$G$6:$FJ$253,69,FALSE) -> 15
A21: 110 | B21: MEURTHE ET MOSELLE MEUSE | C21: 27 | D21: PONT A MOUSSON | E21: =VLOOKUP($C21,'RECAP SECT'!$G$6:$FJ$253,3,FALSE) -> 76.5 | F21: =VLOOKUP($C21,'RECAP SECT'!$G$6:$FJ$253,55,FALSE) -> 359.41 | G21: =VLOOKUP($C21,'RECAP SECT'!$G$6:$FJ$253,56,FALSE) -> 7.98 | H21: =VLOOKUP($C21,'RECAP SECT'!$G$6:$FJ$253,57,FALSE) -> 26% | I21: =VLOOKUP($C21,'RECAP SECT'!$G$6:$FJ$253,58,FALSE) -> 4 | J21: =VLOOKUP($C21,'RECAP SECT'!$G$6:$FJ$253,59,FALSE) -> 75.45 | K21: =VLOOKUP($C21,'RECAP SECT'!$G$6:$FJ$253,60,FALSE) -> 0.50 | L21: =VLOOKUP($C21,'RECAP SECT'!$G$6:$FJ$253,61,FALSE) -> 56% | M21: =VLOOKUP($C21,'RECAP SECT'!$G$6:$FJ$253,62,FALSE) -> 14 | N21: =VLOOKUP($C21,'RECAP SECT'!$G$6:$FJ$253,63,FALSE) -> 20.42 | O21: =VLOOKUP($C21,'RECAP SECT'!$G$6:$FJ$253,64,FALSE) -> 0.73 | P21: =VLOOKUP($C21,'RECAP SECT'!$G$6:$FJ$253,65,FALSE) -> 14% | Q21: =VLOOKUP($C21,'RECAP SECT'!$G$6:$FJ$253,66,FALSE) -> 2 | R21: =VLOOKUP($C21,'RECAP SECT'!$G$6:$FJ$253,67,FALSE) -> 34% | S21: =VLOOKUP($C21,'RECAP SECT'!$G$6:$FJ$253,68,FALSE) -> 12% | T21: =VLOOKUP($C21,'RECAP SECT'!$G$6:$FJ$253,69,FALSE) -> 2
A22: 110 | B22: MEURTHE ET MOSELLE MEUSE | C22: 31 | D22: VERDUN | E22: =VLOOKUP($C22,'RECAP SECT'!$G$6:$FJ$253,3,FALSE) -> 54.4 | F22: =VLOOKUP($C22,'RECAP SECT'!$G$6:$FJ$253,55,FALSE) -> 304.29 | G22: =VLOOKUP($C22,'RECAP SECT'!$G$6:$FJ$253,56,FALSE) -> 6.68 | H22: =VLOOKUP($C22,'RECAP SECT'!$G$6:$FJ$253,57,FALSE) -> 38% | I22: =VLOOKUP($C22,'RECAP SECT'!$G$6:$FJ$253,58,FALSE) -> 9 | J22: =VLOOKUP($C22,'RECAP SECT'!$G$6:$FJ$253,59,FALSE) -> 88.29 | K22: =VLOOKUP($C22,'RECAP SECT'!$G$6:$FJ$253,60,FALSE) -> 0.57 | L22: =VLOOKUP($C22,'RECAP SECT'!$G$6:$FJ$253,61,FALSE) -> 49% | M22: =VLOOKUP($C22,'RECAP SECT'!$G$6:$FJ$253,62,FALSE) -> 12 | N22: =VLOOKUP($C22,'RECAP SECT'!$G$6:$FJ$253,63,FALSE) -> -10.82 | O22: =VLOOKUP($C22,'RECAP SECT'!$G$6:$FJ$253,64,FALSE) -> -0.39 | P22: =VLOOKUP($C22,'RECAP SECT'!$G$6:$FJ$253,65,FALSE) -> 48% | Q22: =VLOOKUP($C22,'RECAP SECT'!$G$6:$FJ$253,66,FALSE) -> 4 | R22: =VLOOKUP($C22,'RECAP SECT'!$G$6:$FJ$253,67,FALSE) -> 46% | S22: =VLOOKUP($C22,'RECAP SECT'!$G$6:$FJ$253,68,FALSE) -> 23% | T22: =VLOOKUP($C22,'RECAP SECT'!$G$6:$FJ$253,69,FALSE) -> 8
A23: 160 | B23: MOSELLE | C23: 45 | D23: METZ | E23: =VLOOKUP($C23,'RECAP SECT'!$G$6:$FJ$253,3,FALSE) -> 89.4 | F23: =VLOOKUP($C23,'RECAP SECT'!$G$6:$FJ$253,55,FALSE) -> 349.09 | G23: =VLOOKUP($C23,'RECAP SECT'!$G$6:$FJ$253,56,FALSE) -> 7.62 | H23: =VLOOKUP($C23,'RECAP SECT'!$G$6:$FJ$253,57,FALSE) -> 29% | I23: =VLOOKUP($C23,'RECAP SECT'!$G$6:$FJ$253,58,FALSE) -> 7 | J23: =VLOOKUP($C23,'RECAP SECT'!$G$6:$FJ$253,59,FALSE) -> 78.06 | K23: =VLOOKUP($C23,'RECAP SECT'!$G$6:$FJ$253,60,FALSE) -> 0.55 | L23: =VLOOKUP($C23,'RECAP SECT'!$G$6:$FJ$253,61,FALSE) -> 51% | M23: =VLOOKUP($C23,'RECAP SECT'!$G$6:$FJ$253,62,FALSE) -> 13 | N23: =VLOOKUP($C23,'RECAP SECT'!$G$6:$FJ$253,63,FALSE) -> -13.45 | O23: =VLOOKUP($C23,'RECAP SECT'!$G$6:$FJ$253,64,FALSE) -> -0.48 | P23: =VLOOKUP($C23,'RECAP SECT'!$G$6:$FJ$253,65,FALSE) -> 51% | Q23: =VLOOKUP($C23,'RECAP SECT'!$G$6:$FJ$253,66,FALSE) -> 5 | R23: =VLOOKUP($C23,'RECAP SECT'!$G$6:$FJ$253,67,FALSE) -> 45% | S23: =VLOOKUP($C23,'RECAP SECT'!$G$6:$FJ$253,68,FALSE) -> 22% | T23: =VLOOKUP($C23,'RECAP SECT'!$G$6:$FJ$253,69,FALSE) -> 7
A24: 160 | B24: MOSELLE | C24: 42 | D24: MOSELLE EST | E24: =VLOOKUP($C24,'RECAP SECT'!$G$6:$FJ$253,3,FALSE) -> 76.7 | F24: =VLOOKUP($C24,'RECAP SECT'!$G$6:$FJ$253,55,FALSE) -> 225.41 | G24: =VLOOKUP($C24,'RECAP SECT'!$G$6:$FJ$253,56,FALSE) -> 4.85 | H24: =VLOOKUP($C24,'RECAP SECT'!$G$6:$FJ$253,57,FALSE) -> 55% | I24: =VLOOKUP($C24,'RECAP SECT'!$G$6:$FJ$253,58,FALSE) -> 18 | J24: =VLOOKUP($C24,'RECAP SECT'!$G$6:$FJ$253,59,FALSE) -> 73.29 | K24: =VLOOKUP($C24,'RECAP SECT'!$G$6:$FJ$253,60,FALSE) -> 0.65 | L24: =VLOOKUP($C24,'RECAP SECT'!$G$6:$FJ$253,61,FALSE) -> 42% | M24: =VLOOKUP($C24,'RECAP SECT'!$G$6:$FJ$253,62,FALSE) -> 7 | N24: =VLOOKUP($C24,'RECAP SECT'!$G$6:$FJ$253,63,FALSE) -> -102.54 | O24: =VLOOKUP($C24,'RECAP SECT'!$G$6:$FJ$253,64,FALSE) -> -3.69 | P24: =VLOOKUP($C24,'RECAP SECT'!$G$6:$FJ$253,65,FALSE) -> 150% | Q24: =VLOOKUP($C24,'RECAP SECT'!$G$6:$FJ$253,66,FALSE) -> 18 | R24: =VLOOKUP($C24,'RECAP SECT'!$G$6:$FJ$253,67,FALSE) -> 78% | S24: =VLOOKUP($C24,'RECAP SECT'!$G$6:$FJ$253,68,FALSE) -> 56% | T24: =VLOOKUP($C24,'RECAP SECT'!$G$6:$FJ$253,69,FALSE) -> 17
A25: 160 | B25: MOSELLE | C25: 44 | D25: MOSELLE NORD | E25: =VLOOKUP($C25,'RECAP SECT'!$G$6:$FJ$253,3,FALSE) -> 69.6 | F25: =VLOOKUP($C25,'RECAP SECT'!$G$6:$FJ$253,55,FALSE) -> 258.11 | G25: =VLOOKUP($C25,'RECAP SECT'!$G$6:$FJ$253,56,FALSE) -> 5.61 | H25: =VLOOKUP($C25,'RECAP SECT'!$G$6:$FJ$253,57,FALSE) -> 48% | I25: =VLOOKUP($C25,'RECAP SECT'!$G$6:$FJ$253,58,FALSE) -> 15 | J25: =VLOOKUP($C25,'RECAP SECT'!$G$6:$FJ$253,59,FALSE) -> 78.26 | K25: =VLOOKUP($C25,'RECAP SECT'!$G$6:$FJ$253,60,FALSE) -> 0.59 | L25: =VLOOKUP($C25,'RECAP SECT'!$G$6:$FJ$253,61,FALSE) -> 48% | M25: =VLOOKUP($C25,'RECAP SECT'!$G$6:$FJ$253,62,FALSE) -> 11 | N25: =VLOOKUP($C25,'RECAP SECT'!$G$6:$FJ$253,63,FALSE) -> -25.70 | O25: =VLOOKUP($C25,'RECAP SECT'!$G$6:$FJ$253,64,FALSE) -> -0.92 | P25: =VLOOKUP($C25,'RECAP SECT'!$G$6:$FJ$253,65,FALSE) -> 65% | Q25: =VLOOKUP($C25,'RECAP SECT'!$G$6:$FJ$253,66,FALSE) -> 8 | R25: =VLOOKUP($C25,'RECAP SECT'!$G$6:$FJ$253,67,FALSE) -> 53% | S25: =VLOOKUP($C25,'RECAP SECT'!$G$6:$FJ$253,68,FALSE) -> 31% | T25: =VLOOKUP($C25,'RECAP SECT'!$G$6:$FJ$253,69,FALSE) -> 11
A26: 80 | B26: VOSGES | C26: 57 | D26: EPINAL | E26: =VLOOKUP($C26,'RECAP SECT'!$G$6:$FJ$253,3,FALSE) -> 62.9 | F26: =VLOOKUP($C26,'RECAP SECT'!$G$6:$FJ$253,55,FALSE) -> 250.92 | G26: =VLOOKUP($C26,'RECAP SECT'!$G$6:$FJ$253,56,FALSE) -> 5.81 | H26: =VLOOKUP($C26,'RECAP SECT'!$G$6:$FJ$253,57,FALSE) -> 46% | I26: =VLOOKUP($C26,'RECAP SECT'!$G$6:$FJ$253,58,FALSE) -> 14 | J26: =VLOOKUP($C26,'RECAP SECT'!$G$6:$FJ$253,59,FALSE) -> 72.72 | K26: =VLOOKUP($C26,'RECAP SECT'!$G$6:$FJ$253,60,FALSE) -> 0.44 | L26: =VLOOKUP($C26,'RECAP SECT'!$G$6:$FJ$253,61,FALSE) -> 61% | M26: =VLOOKUP($C26,'RECAP SECT'!$G$6:$FJ$253,62,FALSE) -> 15 | N26: =VLOOKUP($C26,'RECAP SECT'!$G$6:$FJ$253,63,FALSE) -> -17.81 | O26: =VLOOKUP($C26,'RECAP SECT'!$G$6:$FJ$253,64,FALSE) -> -0.64 | P26: =VLOOKUP($C26,'RECAP SECT'!$G$6:$FJ$253,65,FALSE) -> 56% | Q26: =VLOOKUP($C26,'RECAP SECT'!$G$6:$FJ$253,66,FALSE) -> 7 | R26: =VLOOKUP($C26,'RECAP SECT'!$G$6:$FJ$253,67,FALSE) -> 55% | S26: =VLOOKUP($C26,'RECAP SECT'!$G$6:$FJ$253,68,FALSE) -> 33% | T26: =VLOOKUP($C26,'RECAP SECT'!$G$6:$FJ$253,69,FALSE) -> 12
A27: 80 | B27: VOSGES | C27: 55 | D27: SAINT DIE | E27: =VLOOKUP($C27,'RECAP SECT'!$G$6:$FJ$253,3,FALSE) -> 50.2 | F27: =VLOOKUP($C27,'RECAP SECT'!$G$6:$FJ$253,55,FALSE) -> 265.78 | G27: =VLOOKUP($C27,'RECAP SECT'!$G$6:$FJ$253,56,FALSE) -> 6.51 | H27: =VLOOKUP($C27,'RECAP SECT'!$G$6:$FJ$253,57,FALSE) -> 39% | I27: =VLOOKUP($C27,'RECAP SECT'!$G$6:$FJ$253,58,FALSE) -> 12 | J27: =VLOOKUP($C27,'RECAP SECT'!$G$6:$FJ$253,59,FALSE) -> 117.25 | K27: =VLOOKUP($C27,'RECAP SECT'!$G$6:$FJ$253,60,FALSE) -> 0.84 | L27: =VLOOKUP($C27,'RECAP SECT'!$G$6:$FJ$253,61,FALSE) -> 26% | M27: =VLOOKUP($C27,'RECAP SECT'!$G$6:$FJ$253,62,FALSE) -> 3 | N27: =VLOOKUP($C27,'RECAP SECT'!$G$6:$FJ$253,63,FALSE) -> 32.72 | O27: =VLOOKUP($C27,'RECAP SECT'!$G$6:$FJ$253,64,FALSE) -> 1.18 | P27: =VLOOKUP($C27,'RECAP SECT'!$G$6:$FJ$253,65,FALSE) -> 0% | Q27: =VLOOKUP($C27,'RECAP SECT'!$G$6:$FJ$253,66,FALSE) -> 1 | R27: =VLOOKUP($C27,'RECAP SECT'!$G$6:$FJ$253,67,FALSE) -> 22% | S27: =VLOOKUP($C27,'RECAP SECT'!$G$6:$FJ$253,68,FALSE) -> 0% | T27: =VLOOKUP($C27,'RECAP SECT'!$G$6:$FJ$253,69,FALSE) -> 1
A28: Total CEGEE Directions Régionales | E28: =SUM(E10:E27) -> 1195

Sheet SE_CREDIT
B1: Accueil | F1: BAROMETRE BDD - TERRITOIRES
F2: CREDITS
F3: =ACCUEIL!F7 -> 2020-05-10
F7: Engagements crédits conso | J7: ADE crédits conso | N7: Engagements crédits immo | R7: ADE crédits immo | V7: SACCEF | Z7: Engagement Crédits MLT + Crédits Bail | AD7: Total Crédits
H8: coef | I8: ='RECAP DIRCOM'!CG4 -> 4% | L8: coef | M8: ='RECAP DIRCOM'!CK4 -> 1% | P8: coef | Q8: ='RECAP DIRCOM'!CO4 -> 4% | T8: coef | U8: ='RECAP DIRCOM'!CS4 -> 2% | X8: coef | Y8: ='RECAP DIRCOM'!CW4 -> 2% | AB8: coef | AC8: ='RECAP DIRCOM'!DA4 -> 2% | AE8: coef | AF8: ='RECAP DIRCOM'!DD4 -> 15%
B9: Direction | C9: eds | D9: Territoire | E9: ETP perf | F9: Réal / ETP | G9: PNB / ETP | H9: % Ecart au 1er | I9: Rang | K9: PNB / ETP | L9: % Ecart au 1er | M9: Rang | N9: Réal / ETP | O9: PNB / ETP | P9: % Ecart au 1er | Q9: Rang | S9: PNB / ETP | T9: % Ecart au 1er | U9: Rang | W9: PNB / ETP | X9: % Ecart au 1er | Y9: Rang | Z9: Réal / ETP | AA9: PNB / ETP | AB9: % Ecart au 1er | AC9: Rang | AD9: Moyenne ecart au 1er | AE9: % Ecart au 1er | AF9: Rang CEGEE
A10: 50 | B10: AUBE HAUTE MARNE | C10: 21 | D10: CHAUMONT | E10: =VLOOKUP($C10,'RECAP SECT'!$G$6:$FJ$253,3,FALSE) -> 36.2 | F10: =VLOOKUP($C10,'RECAP SECT'!$G$6:$FJ$253,76,FALSE) -> 230.13 | G10: =VLOOKUP($C10,'RECAP SECT'!$G$6:$FJ$253,77,FALSE) -> 22.09 | H10: =VLOOKUP($C10,'RECAP SECT'!$G$6:$FJ$253,78,FALSE) -> 0% | I10: =VLOOKUP($C10,'RECAP SECT'!$G$6:$FJ$253,79,FALSE) -> 1 | K10: =VLOOKUP($C10,'RECAP SECT'!$G$6:$FJ$253,81,FALSE) -> 4.52 | L10: =VLOOKUP($C10,'RECAP SECT'!$G$6:$FJ$253,82,FALSE) -> 7% | M10: =VLOOKUP($C10,'RECAP SECT'!$G$6:$FJ$253,83,FALSE) -> 2 | N10: =VLOOKUP($C10,'RECAP SECT'!$G$6:$FJ$253,84,FALSE) -> 451.57 | O10: =VLOOKUP($C10,'RECAP SECT'!$G$6:$FJ$253,85,FALSE) -> 17.67 | P10: =VLOOKUP($C10,'RECAP SECT'!$G$6:$FJ$253,86,FALSE) -> 53% | Q10: =VLOOKUP($C10,'RECAP SECT'!$G$6:$FJ$253,87,FALSE) -> 17 | S10: =VLOOKUP($C10,'RECAP SECT'!$G$6:$FJ$253,89,FALSE) -> 8.07 | T10: =VLOOKUP($C10,'RECAP SECT'!$G$6:$FJ$253,90,FALSE) -> 67% | U10: =VLOOKUP($C10,'RECAP SECT'!$G$6:$FJ$253,91,FALSE) -> 16 | W10: =VLOOKUP($C10,'RECAP SECT'!$G$6:$FJ$253,93,FALSE) -> 0.98 | X10: =VLOOKUP($C10,'RECAP SECT'!$G$6:$FJ$253,94,FALSE) -> 56% | Y10: =VLOOKUP($C10,'RECAP SECT'!$G$6:$FJ$253,95,FALSE) -> 15 | Z10: =VLOOKUP($C10,'RECAP SECT'!$G$6:$FJ$253,96,FALSE) -> 95.57 | AA10: =VLOOKUP($C10,'RECAP SECT'!$G$6:$FJ$253,97,FALSE) -> 5.14 | AB10: =VLOOKUP($C10,'RECAP SECT'!$G$6:$FJ$253,98,FALSE) -> 46% | AC10: =VLOOKUP($C10,'RECAP SECT'!$G$6:$FJ$253,99,FALSE) -> 4 | AD10: =VLOOKUP($C10,'RECAP SECT'!$G$6:$FJ$253,100,FALSE) -> 37% | AE10: =VLOOKUP($C10,'RECAP SECT'!$G$6:$FJ$253,101,FALSE) -> 24% | AF10: =VLOOKUP($C10,'RECAP SECT'!$G$6:$FJ$253,102,FALSE) -> 8
A11: 50 | B11: AUBE HAUTE MARNE | C11: 14 | D11: TROYES | E11: =VLOOKUP($C11,'RECAP SECT'!$G$6:$FJ$253,3,FALSE) -> 69.8 | F11: =VLOOKUP($C11,'RECAP SECT'!$G$6:$FJ$253,76,FALSE) -> 170.78 | G11: =VLOOKUP($C11,'RECAP SECT'!$G$6:$FJ$253,77,FALSE) -> 17.10 | H11: =VLOOKUP($C11,'RECAP SECT'!$G$6:$FJ$253,78,FALSE) -> 23% | I11: =VLOOKUP($C11,'RECAP SECT'!$G$6:$FJ$253,79,FALSE) -> 5 | K11: =VLOOKUP($C11,'RECAP SECT'!$G$6:$FJ$253,81,FALSE) -> 3.36 | L11: =VLOOKUP($C11,'RECAP SECT'!$G$6:$FJ$253,82,FALSE) -> 31% | M11: =VLOOKUP($C11,'RECAP SECT'!$G$6:$FJ$253,83,FALSE) -> 15 | N11: =VLOOKUP($C11,'RECAP SECT'!$G$6:$FJ$253,84,FALSE) -> 431.94 | O11: =VLOOKUP($C11,'RECAP SECT'!$G$6:$FJ$253,85,FALSE) -> 18.80 | P11: =VLOOKUP($C11,'RECAP SECT'!$G$6:$FJ$253,86,FALSE) -> 51% | Q11: =VLOOKUP($C11,'RECAP SECT'!$G$6:$FJ$253,87,FALSE) -> 14 | S11: =VLOOKUP($C11,'RECAP SECT'!$G$6:$FJ$253,89,FALSE) -> 7.76 | T11: =VLOOKUP($C11,'RECAP SECT'!$G$6:$FJ$253,90,FALSE) -> 68% | U11: =VLOOKUP($C11,'RECAP SECT'!$G$6:$FJ$253,91,FALSE) -> 18 | W11: =VLOOKUP($C11,'RECAP SECT'!$G$6:$FJ$253,93,FALSE) -> 1.03 | X11: =VLOOKUP($C11,'RECAP SECT'!$G$6:$FJ$253,94,FALSE) -> 54% | Y11: =VLOOKUP($C11,'RECAP SECT'!$G$6:$FJ$253,95,FALSE) -> 11 | Z11: =VLOOKUP($C11,'RECAP SECT'!$G$6:$FJ$253,96,FALSE) -> 178.09 | AA11: =VLOOKUP($C11,'RECAP SECT'!$G$6:$FJ$253,97,FALSE) -> 7.38 | AB11: =VLOOKUP($C11,'RECAP SECT'!$G$6:$FJ$253,98,FALSE) -> 22% | AC11: =VLOOKUP($C11,'RECAP SECT'!$G$6:$FJ$253,99,FALSE) -> 2 | AD11: =VLOOKUP($C11,'RECAP SECT'!$G$6:$FJ$253,100,FALSE) -> 41% | AE11: =VLOOKUP($C11,'RECAP SECT'!$G$6:$FJ$253,101,FALSE) -> 28% | AF11: =VLOOKUP($C11,'RECAP SECT'!$G$6:$FJ$253,102,FALSE) -> 10
A12: 262 | B12: BAS-RHIN | C12: 5060 | D12: HAGUENAU | E12: =VLOOKUP($C12,'RECAP SECT'!$G$6:$FJ$253,3,FALSE) -> 80.0 | F12: =VLOOKUP($C12,'RECAP SECT'!$G$6:$FJ$253,76,FALSE) -> 156.93 | G12: =VLOOKUP($C12,'RECAP SECT'!$G$6:$FJ$253,77,FALSE) -> 13.89 | H12: =VLOOKUP($C12,'RECAP SECT'!$G$6:$FJ$253,78,FALSE) -> 37% | I12: =VLOOKUP($C12,'RECAP SECT'!$G$6:$FJ$253,79,FALSE) -> 17 | K12: =VLOOKUP($C12,'RECAP SECT'!$G$6:$FJ$253,81,FALSE) -> 3.46 | L12: =VLOOKUP($C12,'RECAP SECT'!$G$6:$FJ$253,82,FALSE) -> 29% | M12: =VLOOKUP($C12,'RECAP SECT'!$G$6:$FJ$253,83,FALSE) -> 8 | N12: =VLOOKUP($C12,'RECAP SECT'!$G$6:$FJ$253,84,FALSE) -> 402.05 | O12: =VLOOKUP($C12,'RECAP SECT'!$G$6:$FJ$253,85,FALSE) -> 15.06 | P12: =VLOOKUP($C12,'RECAP SECT'!$G$6:$FJ$253,86,FALSE) -> 60% | Q12: =VLOOKUP($C12,'RECAP SECT'!$G$6:$FJ$253,87,FALSE) -> 18 | S12: =VLOOKUP($C12,'RECAP SECT'!$G$6:$FJ$253,89,FALSE) -> 8.75 | T12: =VLOOKUP($C12,'RECAP SECT'!$G$6:$FJ$253,90,FALSE) -> 64% | U12: =VLOOKUP($C12,'RECAP SECT'!$G$6:$FJ$253,91,FALSE) -> 15 | W12: =VLOOKUP($C12,'RECAP SECT'!$G$6:$FJ$253,93,FALSE) -> 0.87 | X12: =VLOOKUP($C12,'RECAP SECT'!$G$6:$FJ$253,94,FALSE) -> 61% | Y12: =VLOOKUP($C12,'RECAP SECT'!$G$6:$FJ$253,95,FALSE) -> 17 | Z12: =VLOOKUP($C12,'RECAP SECT'!$G$6:$FJ$253,96,FALSE) -> 40.30 | AA12: =VLOOKUP($C12,'RECAP SECT'!$G$6:$FJ$253,97,FALSE) -> 1.53 | AB12: =VLOOKUP($C12,'RECAP SECT'!$G$6:$FJ$253,98,FALSE) -> 84% | AC12: =VLOOKUP($C12,'RECAP SECT'!$G$6:$FJ$253,99,FALSE) -> 15 | AD12: =VLOOKUP($C12,'RECAP SECT'!$G$6:$FJ$253,100,FALSE) -> 56% | AE12: =VLOOKUP($C12,'RECAP SECT'!$G$6:$FJ$253,101,FALSE) -> 43% | AF12: =VLOOKUP($C12,'RECAP SECT'!$G$6:$FJ$253,102,FALSE) -> 18
A13: 262 | B13: BAS-RHIN | C13: 5101 | D13: SELESTAT | E13: =VLOOKUP($C13,'RECAP SECT'!$G$6:$FJ$253,3,FALSE) -> 64.8 | F13: =VLOOKUP($C13,'RECAP SECT'!$G$6:$FJ$253,76,FALSE) -> 164.40 | G13: =VLOOKUP($C13,'RECAP SECT'!$G$6:$FJ$253,77,FALSE) -> 14.35 | H13: =VLOOKUP($C13,'RECAP SECT'!$G$6:$FJ$253,78,FALSE) -> 35% | I13: =VLOOKUP($C13,'RECAP SECT'!$G$6:$FJ$253,79,FALSE) -> 14 | K13: =VLOOKUP($C13,'RECAP SECT'!$G$6:$FJ$253,81,FALSE) -> 3.38 | L13: =VLOOKUP($C13,'RECAP SECT'!$G$6:$FJ$253,82,FALSE) -> 30% | M13: =VLOOKUP($C13,'RECAP SECT'!$G$6:$FJ$253,83,FALSE) -> 11 | N13: =VLOOKUP($C13,'RECAP SECT'!$G$6:$FJ$253,84,FALSE) -> 533.53 | O13: =VLOOKUP($C13,'RECAP SECT'!$G$6:$FJ$253,85,FALSE) -> 18.90 | P13: =VLOOKUP($C13,'RECAP SECT'!$G$6:$FJ$253,86,FALSE) -> 50% | Q13: =VLOOKUP($C13,'RECAP SECT'!$G$6:$FJ$253,87,FALSE) -> 13 | S13: =VLOOKUP($C13,'RECAP SECT'!$G$6:$FJ$253,89,FALSE) -> 12.48 | T13: =VLOOKUP($C13,'RECAP SECT'!$G$6:$FJ$253,90,FALSE) -> 49% | U13: =VLOOKUP($C13,'RECAP SECT'!$G$6:$FJ$253,91,FALSE) -> 8 | W13: =VLOOKUP($C13,'RECAP SECT'!$G$6:$FJ$253,93,FALSE) -> 1.00 | X13: =VLOOKUP($C13,'RECAP SECT'!$G$6:$FJ$253,94,FALSE) -> 55% | Y13: =VLOOKUP($C13,'RECAP SECT'!$G$6:$FJ$253,95,FALSE) -> 13 | Z13: =VLOOKUP($C13,'RECAP SECT'!$G$6:$FJ$253,96,FALSE) -> 73.37 | AA13: =VLOOKUP($C13,'RECAP SECT'!$G$6:$FJ$253,97,FALSE) -> 3.44 | AB13: =VLOOKUP($C13,'RECAP SECT'!$G$6:$FJ$253,98,FALSE) -> 64% | AC13: =VLOOKUP($C13,'RECAP SECT'!$G$6:$FJ$253,99,FALSE) -> 7 | AD13: =VLOOKUP($C13,'RECAP SECT'!$G$6:$FJ$253,100,FALSE) -> 47% | AE13: =VLOOKUP($C13,'RECAP SECT'!$G$6:$FJ$253,101,FALSE) -> 34% | AF13: =VLOOKUP($C13,'RECAP SECT'!$G$6:$FJ$253,102,FALSE) -> 16
A14: 262 | B14: BAS-RHIN | C14: 5006 | D14: STRASBOURG | E14: =VLOOKUP($C14,'RECAP SECT'!$G$6:$FJ$253,3,FALSE) -> 79.3 | F14: =VLOOKUP($C14,'RECAP SECT'!$G$6:$FJ$253,76,FALSE) -> 150.96 | G14: =VLOOKUP($C14,'RECAP SECT'!$G$6:$FJ$253,77,FALSE) -> 14.16 | H14: =VLOOKUP($C14,'RECAP SECT'!$G$6:$FJ$253,78,FALSE) -> 36% | I14: =VLOOKUP($C14,'RECAP SECT'!$G$6:$FJ$253,79,FALSE) -> 16 | K14: =VLOOKUP($C14,'RECAP SECT'!$G$6:$FJ$253,81,FALSE) -> 3.73 | L14: =VLOOKUP($C14,'RECAP SECT'!$G$6:$FJ$253,82,FALSE) -> 23% | M14: =VLOOKUP($C14,'RECAP SECT'!$G$6:$FJ$253,83,FALSE) -> 5 | N14: =VLOOKUP($C14,'RECAP SECT'!$G$6:$FJ$253,84,FALSE) -> 684.42 | O14: =VLOOKUP($C14,'RECAP SECT'!$G$6:$FJ$253,85,FALSE) -> 18.73 | P14: =VLOOKUP($C14,'RECAP SECT'!$G$6:$FJ$253,86,FALSE) -> 51% | Q14: =VLOOKUP($C14,'RECAP SECT'!$G$6:$FJ$253,87,FALSE) -> 15 | S14: =VLOOKUP($C14,'RECAP SECT'!$G$6:$FJ$253,89,FALSE) -> 11.06 | T14: =VLOOKUP($C14,'RECAP SECT'!$G$6:$FJ$253,90,FALSE) -> 55% | U14: =VLOOKUP($C14,'RECAP SECT'!$G$6:$FJ$253,91,FALSE) -> 13 | W14: =VLOOKUP($C14,'RECAP SECT'!$G$6:$FJ$253,93,FALSE) -> 1.16 | X14: =VLOOKUP($C14,'RECAP SECT'!$G$6:$FJ$253,94,FALSE) -> 48% | Y14: =VLOOKUP($C14,'RECAP SECT'!$G$6:$FJ$253,95,FALSE) -> 9 | Z14: =VLOOKUP($C14,'RECAP SECT'!$G$6:$FJ$253,96,FALSE) -> 183.67 | AA14: =VLOOKUP($C14,'RECAP SECT'!$G$6:$FJ$253,97,FALSE) -> 6.85 | AB14: =VLOOKUP($C14,'RECAP SECT'!$G$6:$FJ$253,98,FALSE) -> 28% | AC14: =VLOOKUP($C14,'RECAP SECT'!$G$6:$FJ$253,99,FALSE) -> 3 | AD14: =VLOOKUP($C14,'RECAP SECT'!$G$6:$FJ$253,100,FALSE) -> 42% | AE14: =VLOOKUP($C14,'RECAP SECT'!$G$6:$FJ$253,101,FALSE) -> 29% | AF14: =VLOOKUP($C14,'RECAP SECT'!$G$6:$FJ$253,102,FALSE) -> 11
A15: 264 | B15: HAUT-RHIN | C15: 5130 | D15: COLMAR | E15: =VLOOKUP($C15,'RECAP SECT'!$G$6:$FJ$253,3,FALSE) -> 68.4 | F15: =VLOOKUP($C15,'RECAP SECT'!$G$6:$FJ$253,76,FALSE) -> 126.02 | G15: =VLOOKUP($C15,'RECAP SECT'!$G$6:$FJ$253,77,FALSE) -> 11.08 | H15: =VLOOKUP($C15,'RECAP SECT'!$G$6:$FJ$253,78,FALSE) -> 50% | I15: =VLOOKUP($C15,'RECAP SECT'!$G$6:$FJ$253,79,FALSE) -> 18 | K15: =VLOOKUP($C15,'RECAP SECT'!$G$6:$FJ$253,81,FALSE) -> 2.41 | L15: =VLOOKUP($C15,'RECAP SECT'!$G$6:$FJ$253,82,FALSE) -> 50% | M15: =VLOOKUP($C15,'RECAP SECT'!$G$6:$FJ$253,83,FALSE) -> 18 | N15: =VLOOKUP($C15,'RECAP SECT'!$G$6:$FJ$253,84,FALSE) -> 527.56 | O15: =VLOOKUP($C15,'RECAP SECT'!$G$6:$FJ$253,85,FALSE) -> 17.83 | P15: =VLOOKUP($C15,'RECAP SECT'!$G$6:$FJ$253,86,FALSE) -> 53% | Q15: =VLOOKUP($C15,'RECAP SECT'!$G$6:$FJ$253,87,FALSE) -> 16 | S15: =VLOOKUP($C15,'RECAP SECT'!$G$6:$FJ$253,89,FALSE) -> 8.00 | T15: =VLOOKUP($C15,'RECAP SECT'!$G$6:$FJ$253,90,FALSE) -> 67% | U15: =VLOOKUP($C15,'RECAP SECT'!$G$6:$FJ$253,91,FALSE) -> 17 | W15: =VLOOKUP($C15,'RECAP SECT'!$G$6:$FJ$253,93,FALSE) -> 0.99 | X15: =VLOOKUP($C15,'RECAP SECT'!$G$6:$FJ$253,94,FALSE) -> 56% | Y15: =VLOOKUP($C15,'RECAP SECT'!$G$6:$FJ$253,95,FALSE) -> 14 | Z15: =VLOOKUP($C15,'RECAP SECT'!$G$6:$FJ$253,96,FALSE) -> 96.80 | AA15: =VLOOKUP($C15,'RECAP SECT'!$G$6:$FJ$253,97,FALSE) -> 3.62 | AB15: =VLOOKUP($C15,'RECAP SECT'!$G$6:$FJ$253,98,FALSE) -> 62% | AC15: =VLOOKUP($C15,'RECAP SECT'!$G$6:$FJ$253,99,FALSE) -> 6 | AD15: =VLOOKUP($C15,'RECAP SECT'!$G$6:$FJ$253,100,FALSE) -> 55% | AE15: =VLOOKUP($C15,'RECAP SECT'!$G$6:$FJ$253,101,FALSE) -> 43% | AF15: =VLOOKUP($C15,'RECAP SECT'!$G$6:$FJ$253,102,FALSE) -> 17
A16: 264 | B16: HAUT-RHIN | C16: 5169 | D16: MULHOUSE | E16: =VLOOKUP($C16,'RECAP SECT'!$G$6:$FJ$253,3,FALSE) -> 64.5 | F16: =VLOOKUP($C16,'RECAP SECT'!$G$6:$FJ$253,76,FALSE) -> 162.70 | G16: =VLOOKUP($C16,'RECAP SECT'!$G$6:$FJ$253,77,FALSE) -> 15.28 | H16: =VLOOKUP($C16,'RECAP SECT'!$G$6:$FJ$253,78,FALSE) -> 31% | I16: =VLOOKUP($C16,'RECAP SECT'!$G$6:$FJ$253,79,FALSE) -> 11 | K16: =VLOOKUP($C16,'RECAP SECT'!$G$6:$FJ$253,81,FALSE) -> 3.41 | L16: =VLOOKUP($C16,'RECAP SECT'!$G$6:$FJ$253,82,FALSE) -> 30% | M16: =VLOOKUP($C16,'RECAP SECT'!$G$6:$FJ$253,83,FALSE) -> 9 | N16: =VLOOKUP($C16,'RECAP SECT'!$G$6:$FJ$253,84,FALSE) -> 551.30 | O16: =VLOOKUP($C16,'RECAP SECT'!$G$6:$FJ$253,85,FALSE) -> 20.94 | P16: =VLOOKUP($C16,'RECAP SECT'!$G$6:$FJ$253,86,FALSE) -> 45% | Q16: =VLOOKUP($C16,'RECAP SECT'!$G$6:$FJ$253,87,FALSE) -> 11 | S16: =VLOOKUP($C16,'RECAP SECT'!$G$6:$FJ$253,89,FALSE) -> 12.50 | T16: =VLOOKUP($C16,'RECAP SECT'!$G$6:$FJ$253,90,FALSE) -> 49% | U16: =VLOOKUP($C16,'RECAP SECT'!$G$6:$FJ$253,91,FALSE) -> 7 | W16: =VLOOKUP($C16,'RECAP SECT'!$G$6:$FJ$253,93,FALSE) -> 0.80 | X16: =VLOOKUP($C16,'RECAP SECT'!$G$6:$FJ$253,94,FALSE) -> 64% | Y16: =VLOOKUP($C16,'RECAP SECT'!$G$6:$FJ$253,95,FALSE) -> 18 | Z16: =VLOOKUP($C16,'RECAP SECT'!$G$6:$FJ$253,96,FALSE) -> 110.69 | AA16: =VLOOKUP($C16,'RECAP SECT'!$G$6:$FJ$253,97,FALSE) -> 3.22 | AB16: =VLOOKUP($C16,'RECAP SECT'!$G$6:$FJ$253,98,FALSE) -> 66% | AC16: =VLOOKUP($C16,'RECAP SECT'!$G$6:$FJ$253,99,FALSE) -> 8 | AD16: =VLOOKUP($C16,'RECAP SECT'!$G$6:$FJ$253,100,FALSE) -> 46% | AE16: =VLOOKUP($C16,'RECAP SECT'!$G$6:$FJ$253,101,FALSE) -> 33% | AF16: =VLOOKUP($C16,'RECAP SECT'!$G$6:$FJ$253,102,FALSE) -> 15
A17: 30 | B17: MARNE-ARDENNES | C17: 6 | D17: CHALONS EN CHAMPAGNE | E17: =VLOOKUP($C17,'RECAP SECT'!$G$6:$FJ$253,3,FALSE) -> 46.4 | F17: =VLOOKUP($C17,'RECAP SECT'!$G$6:$FJ$253,76,FALSE) -> 153.52 | G17: =VLOOKUP($C17,'RECAP SECT'!$G$6:$FJ$253,77,FALSE) -> 14.20 | H17: =VLOOKUP($C17,'RECAP SECT'!$G$6:$FJ$253,78,FALSE) -> 36% | I17: =VLOOKUP($C17,'RECAP SECT'!$G$6:$FJ$253,79,FALSE) -> 15 | K17: =VLOOKUP($C17,'RECAP SECT'!$G$6:$FJ$253,81,FALSE) -> 3.37 | L17: =VLOOKUP($C17,'RECAP SECT'!$G$6:$FJ$253,82,FALSE) -> 31% | M17: =VLOOKUP($C17,'RECAP SECT'!$G$6:$FJ$253,83,FALSE) -> 12 | N17: =VLOOKUP($C17,'RECAP SECT'!$G$6:$FJ$253,84,FALSE) -> 729.36 | O17: =VLOOKUP($C17,'RECAP SECT'!$G$6:$FJ$253,85,FALSE) -> 31.19 | P17: =VLOOKUP($C17,'RECAP SECT'!$G$6:$FJ$253,86,FALSE) -> 18% | Q17: =VLOOKUP($C17,'RECAP SECT'!$G$6:$FJ$253,87,FALSE) -> 5 | S17: =VLOOKUP($C17,'RECAP SECT'!$G$6:$FJ$253,89,FALSE) -> 19.98 | T17: =VLOOKUP($C17,'RECAP SECT'!$G$6:$FJ$253,90,FALSE) -> 18% | U17: =VLOOKUP($C17,'RECAP SECT'!$G$6:$FJ$253,91,FALSE) -> 3 | W17: =VLOOKUP($C17,'RECAP SECT'!$G$6:$FJ$253,93,FALSE) -> 1.67 | X17: =VLOOKUP($C17,'RECAP SECT'!$G$6:$FJ$253,94,FALSE) -> 25% | Y17: =VLOOKUP($C17,'RECAP SECT'!$G$6:$FJ$253,95,FALSE) -> 5 | Z17: =VLOOKUP($C17,'RECAP SECT'!$G$6:$FJ$253,96,FALSE) -> 91.06 | AA17: =VLOOKUP($C17,'RECAP SECT'!$G$6:$FJ$253,97,FALSE) -> 0.13 | AB17: =VLOOKUP($C17,'RECAP SECT'!$G$6:$FJ$253,98,FALSE) -> 99% | AC17: =VLOOKUP($C17,'RECAP SECT'!$G$6:$FJ$253,99,FALSE) -> 18 | AD17: =VLOOKUP($C17,'RECAP SECT'!$G$6:$FJ$253,100,FALSE) -> 35% | AE17: =VLOOKUP($C17,'RECAP SECT'!$G$6:$FJ$253,101,FALSE) -> 22% | AF17: =VLOOKUP($C17,'RECAP SECT'!$G$6:$FJ$253,102,FALSE) -> 6
A18: 30 | B18: MARNE-ARDENNES | C18: 2 | D18: CHARLEVILLE MEZIERES | E18: =VLOOKUP($C18,'RECAP SECT'!$G$6:$FJ$253,3,FALSE) -> 57.5 | F18: =VLOOKUP($C18,'RECAP SECT'!$G$6:$FJ$253,76,FALSE) -> 174.47 | G18: =VLOOKUP($C18,'RECAP SECT'!$G$6:$FJ$253,77,FALSE) -> 17.08 | H18: =VLOOKUP($C18,'RECAP SECT'!$G$6:$FJ$253,78,FALSE) -> 23% | I18: =VLOOKUP($C18,'RECAP SECT'!$G$6:$FJ$253,79,FALSE) -> 6 | K18: =VLOOKUP($C18,'RECAP SECT'!$G$6:$FJ$253,81,FALSE) -> 3.88 | L18: =VLOOKUP($C18,'RECAP SECT'!$G$6:$FJ$253,82,FALSE) -> 20% | M18: =VLOOKUP($C18,'RECAP SECT'!$G$6:$FJ$253,83,FALSE) -> 4 | N18: =VLOOKUP($C18,'RECAP SECT'!$G$6:$FJ$253,84,FALSE) -> 674.24 | O18: =VLOOKUP($C18,'RECAP SECT'!$G$6:$FJ$253,85,FALSE) -> 32.56 | P18: =VLOOKUP($C18,'RECAP SECT'!$G$6:$FJ$253,86,FALSE) -> 14% | Q18: =VLOOKUP($C18,'RECAP SECT'!$G$6:$FJ$253,87,FALSE) -> 3 | S18: =VLOOKUP($C18,'RECAP SECT'!$G$6:$FJ$253,89,FALSE) -> 18.37 | T18: =VLOOKUP($C18,'RECAP SECT'!$G$6:$FJ$253,90,FALSE) -> 25% | U18: =VLOOKUP($C18,'RECAP SECT'!$G$6:$FJ$253,91,FALSE) -> 5 | W18: =VLOOKUP($C18,'RECAP SECT'!$G$6:$FJ$253,93,FALSE) -> 1.64 | X18: =VLOOKUP($C18,'RECAP SECT'!$G$6:$FJ$253,94,FALSE) -> 27% | Y18: =VLOOKUP($C18,'RECAP SECT'!$G$6:$FJ$253,95,FALSE) -> 6 | Z18: =VLOOKUP($C18,'RECAP SECT'!$G$6:$FJ$253,96,FALSE) -> 81.20 | AA18: =VLOOKUP($C18,'RECAP SECT'!$G$6:$FJ$253,97,FALSE) -> 2.22 | AB18: =VLOOKUP($C18,'RECAP SECT'!$G$6:$FJ$253,98,FALSE) -> 77% | AC18: =VLOOKUP($C18,'RECAP SECT'!$G$6:$FJ$253,99,FALSE) -> 10 | AD18: =VLOOKUP($C18,'RECAP SECT'!$G$6:$FJ$253,100,FALSE) -> 28% | AE18: =VLOOKUP($C18,'RECAP SECT'!$G$6:$FJ$253,101,FALSE) -> 15% | AF18: =VLOOKUP($C18,'RECAP SECT'!$G$6:$FJ$253,102,FALSE) -> 3
A19: 30 | B19: MARNE-ARDENNES | C19: 11 | D19: REIMS | E19: =VLOOKUP($C19,'RECAP SECT'!$G$6:$FJ$253,3,FALSE) -> 80.4 | F19: =VLOOKUP($C19,'RECAP SECT'!$G$6:$FJ$253,76,FALSE) -> 171.26 | G19: =VLOOKUP($C19,'RECAP SECT'!$G$6:$FJ$253,77,FALSE) -> 14.82 | H19: =VLOOKUP($C19,'RECAP SECT'!$G$6:$FJ$253,78,FALSE) -> 33% | I19: =VLOOKUP($C19,'RECAP SECT'!$G$6:$FJ$253,79,FALSE) -> 12 | K19: =VLOOKUP($C19,'RECAP SECT'!$G$6:$FJ$253,81,FALSE) -> 3.35 | L19: =VLOOKUP($C19,'RECAP SECT'!$G$6:$FJ$253,82,FALSE) -> 31% | M19: =VLOOKUP($C19,'RECAP SECT'!$G$6:$FJ$253,83,FALSE) -> 16 | N19: =VLOOKUP($C19,'RECAP SECT'!$G$6:$FJ$253,84,FALSE) -> 984.10 | O19: =VLOOKUP($C19,'RECAP SECT'!$G$6:$FJ$253,85,FALSE) -> 34.33 | P19: =VLOOKUP($C19,'RECAP SECT'!$G$6:$FJ$253,86,FALSE) -> 10% | Q19: =VLOOKUP($C19,'RECAP SECT'!$G$6:$FJ$253,87,FALSE) -> 2 | S19: =VLOOKUP($C19,'RECAP SECT'!$G$6:$FJ$253,89,FALSE) -> 24.45 | T19: =VLOOKUP($C19,'RECAP SECT'!$G$6:$FJ$253,90,FALSE) -> 0% | U19: =VLOOKUP($C19,'RECAP SECT'!$G$6:$FJ$253,91,FALSE) -> 1 | W19: =VLOOKUP($C19,'RECAP SECT'!$G$6:$FJ$253,93,FALSE) -> 2.11 | X19: =VLOOKUP($C19,'RECAP SECT'!$G$6:$FJ$253,94,FALSE) -> 6% | Y19: =VLOOKUP($C19,'RECAP SECT'!$G$6:$FJ$253,95,FALSE) -> 2 | Z19: =VLOOKUP($C19,'RECAP SECT'!$G$6:$FJ$253,96,FALSE) -> 263.18 | AA19: =VLOOKUP($C19,'RECAP SECT'!$G$6:$FJ$253,97,FALSE) -> 9.45 | AB19: =VLOOKUP($C19,'RECAP SECT'!$G$6:$FJ$253,98,FALSE) -> 0% | AC19: =VLOOKUP($C19,'RECAP SECT'!$G$6:$FJ$253,99,FALSE) -> 1 | AD19: =VLOOKUP($C19,'RECAP SECT'!$G$6:$FJ$253,100,FALSE) -> 14% | AE19: =VLOOKUP($C19,'RECAP SECT'!$G$6:$FJ$253,101,FALSE) -> 1% | AF19: =VLOOKUP($C19,'RECAP SECT'!$G$6:$FJ$253,102,FALSE) -> 2
A20: 110 | B20: MEURTHE ET MOSELLE MEUSE | C20: 26 | D20: NANCY | E20: =VLOOKUP($C20,'RECAP SECT'!$G$6:$FJ$253,3,FALSE) -> 68.0 | F20: =VLOOKUP($C20,'RECAP SECT'!$G$6:$FJ$253,76,FALSE) -> 160.19 | G20: =VLOOKUP($C20,'RECAP SECT'!$G$6:$FJ$253,77,FALSE) -> 15.97 | H20: =VLOOKUP($C20,'RECAP SECT'!$G$6:$FJ$253,78,FALSE) -> 28% | I20: =VLOOKUP($C20,'RECAP SECT'!$G$6:$FJ$253,79,FALSE) -> 10 | K20: =VLOOKUP($C20,'RECAP SECT'!$G$6:$FJ$253,81,FALSE) -> 3.37 | L20: =VLOOKUP($C20,'RECAP SECT'!$G$6:$FJ$253,82,FALSE) -> 31% | M20: =VLOOKUP($C20,'RECAP SECT'!$G$6:$FJ$253,83,FALSE) -> 13 | N20: =VLOOKUP($C20,'RECAP SECT'!$G$6:$FJ$253,84,FALSE) -> 868.54 | O20: =VLOOKUP($C20,'RECAP SECT'!$G$6:$FJ$253,85,FALSE) -> 29.87 | P20: =VLOOKUP($C20,'RECAP SECT'!$G$6:$FJ$253,86,FALSE) -> 21% | Q20: =VLOOKUP($C20,'RECAP SECT'!$G$6:$FJ$253,87,FALSE) -> 6 | S20: =VLOOKUP($C20,'RECAP SECT'!$G$6:$FJ$253,89,FALSE) -> 18.64 | T20: =VLOOKUP($C20,'RECAP SECT'!$G$6:$FJ$253,90,FALSE) -> 24% | U20: =VLOOKUP($C20,'RECAP SECT'!$G$6:$FJ$253,91,FALSE) -> 4 | W20: =VLOOKUP($C20,'RECAP SECT'!$G$6:$FJ$253,93,FALSE) -> 1.97 | X20: =VLOOKUP($C20,'RECAP SECT'!$G$6:$FJ$253,94,FALSE) -> 12% | Y20: =VLOOKUP($C20,'RECAP SECT'!$G$6:$FJ$253,95,FALSE) -> 3 | Z20: =VLOOKUP($C20,'RECAP SECT'!$G$6:$FJ$253,96,FALSE) -> 44.54 | AA20: =VLOOKUP($C20,'RECAP SECT'!$G$6:$FJ$253,97,FALSE) -> 2.03 | AB20: =VLOOKUP($C20,'RECAP SECT'!$G$6:$FJ$253,98,FALSE) -> 78% | AC20: =VLOOKUP($C20,'RECAP SECT'!$G$6:$FJ$253,99,FALSE) -> 12 | AD20: =VLOOKUP($C20,'RECAP SECT'!$G$6:$FJ$253,100,FALSE) -> 30% | AE20: =VLOOKUP($C20,'RECAP SECT'!$G$6:$FJ$253,101,FALSE) -> 17% | AF20: =VLOOKUP($C20,'RECAP SECT'!$G$6:$FJ$253,102,FALSE) -> 4
A21: 110 | B21: MEURTHE ET MOSELLE MEUSE | C21: 27 | D21: PONT A MOUSSON | E21: =VLOOKUP($C21,'RECAP SECT'!$G$6:$FJ$253,3,FALSE) -> 76.5 | F21: =VLOOKUP($C21,'RECAP SECT'!$G$6:$FJ$253,76,FALSE) -> 210.16 | G21: =VLOOKUP($C21,'RECAP SECT'!$G$6:$FJ$253,77,FALSE) -> 19.81 | H21: =VLOOKUP($C21,'RECAP SECT'!$G$6:$FJ$253,78,FALSE) -> 10% | I21: =VLOOKUP($C21,'RECAP SECT'!$G$6:$FJ$253,79,FALSE) -> 2 | K21: =VLOOKUP($C21,'RECAP SECT'!$G$6:$FJ$253,81,FALSE) -> 4.86 | L21: =VLOOKUP($C21,'RECAP SECT'!$G$6:$FJ$253,82,FALSE) -> 0% | M21: =VLOOKUP($C21,'RECAP SECT'!$G$6:$FJ$253,83,FALSE) -> 1 | N21: =VLOOKUP($C21,'RECAP SECT'!$G$6:$FJ$253,84,FALSE) -> 963.10 | O21: =VLOOKUP($C21,'RECAP SECT'!$G$6:$FJ$253,85,FALSE) -> 37.98 | P21: =VLOOKUP($C21,'RECAP SECT'!$G$6:$FJ$253,86,FALSE) -> 0% | Q21: =VLOOKUP($C21,'RECAP SECT'!$G$6:$FJ$253,87,FALSE) -> 1 | S21: =VLOOKUP($C21,'RECAP SECT'!$G$6:$FJ$253,89,FALSE) -> 22.71 | T21: =VLOOKUP($C21,'RECAP SECT'!$G$6:$FJ$253,90,FALSE) -> 7% | U21: =VLOOKUP($C21,'RECAP SECT'!$G$6:$FJ$253,91,FALSE) -> 2 | W21: =VLOOKUP($C21,'RECAP SECT'!$G$6:$FJ$253,93,FALSE) -> 2.24 | X21: =VLOOKUP($C21,'RECAP SECT'!$G$6:$FJ$253,94,FALSE) -> 0% | Y21: =VLOOKUP($C21,'RECAP SECT'!$G$6:$FJ$253,95,FALSE) -> 1 | Z21: =VLOOKUP($C21,'RECAP SECT'!$G$6:$FJ$253,96,FALSE) -> 65.96 | AA21: =VLOOKUP($C21,'RECAP SECT'!$G$6:$FJ$253,97,FALSE) -> 2.92 | AB21: =VLOOKUP($C21,'RECAP SECT'!$G$6:$FJ$253,98,FALSE) -> 69% | AC21: =VLOOKUP($C21,'RECAP SECT'!$G$6:$FJ$253,99,FALSE) -> 9 | AD21: =VLOOKUP($C21,'RECAP SECT'!$G$6:$FJ$253,100,FALSE) -> 13% | AE21: =VLOOKUP($C21,'RECAP SECT'!$G$6:$FJ$253,101,FALSE) -> 0% | AF21: =VLOOKUP($C21,'RECAP SECT'!$G$6:$FJ$253,102,FALSE) -> 1
A22: 110 | B22: MEURTHE ET MOSELLE MEUSE | C22: 31 | D22: VERDUN | E22: =VLOOKUP($C22,'RECAP SECT'!$G$6:$FJ$253,3,FALSE) -> 54.4 | F22: =VLOOKUP($C22,'RECAP SECT'!$G$6:$FJ$253,76,FALSE) -> 188.74 | G22: =VLOOKUP($C22,'RECAP SECT'!$G$6:$FJ$253,77,FALSE) -> 18.00 | H22: =VLOOKUP($C22,'RECAP SECT'!$G$6:$FJ$253,78,FALSE) -> 19% | I22: =VLOOKUP($C22,'RECAP SECT'!$G$6:$FJ$253,79,FALSE) -> 3 | K22: =VLOOKUP($C22,'RECAP SECT'!$G$6:$FJ$253,81,FALSE) -> 3.72 | L22: =VLOOKUP($C22,'RECAP SECT'!$G$6:$FJ$253,82,FALSE) -> 24% | M22: =VLOOKUP($C22,'RECAP SECT'!$G$6:$FJ$253,83,FALSE) -> 6 | N22: =VLOOKUP($C22,'RECAP SECT'!$G$6:$FJ$253,84,FALSE) -> 547.87 | O22: =VLOOKUP($C22,'RECAP SECT'!$G$6:$FJ$253,85,FALSE) -> 26.35 | P22: =VLOOKUP($C22,'RECAP SECT'!$G$6:$FJ$253,86,FALSE) -> 31% | Q22: =VLOOKUP($C22,'RECAP SECT'!$G$6:$FJ$253,87,FALSE) -> 8 | S22: =VLOOKUP($C22,'RECAP SECT'!$G$6:$FJ$253,89,FALSE) -> 12.39 | T22: =VLOOKUP($C22,'RECAP SECT'!$G$6:$FJ$253,90,FALSE) -> 49% | U22: =VLOOKUP($C22,'RECAP SECT'!$G$6:$FJ$253,91,FALSE) -> 9 | W22: =VLOOKUP($C22,'RECAP SECT'!$G$6:$FJ$253,93,FALSE) -> 1.36 | X22: =VLOOKUP($C22,'RECAP SECT'!$G$6:$FJ$253,94,FALSE) -> 39% | Y22: =VLOOKUP($C22,'RECAP SECT'!$G$6:$FJ$253,95,FALSE) -> 8 | Z22: =VLOOKUP($C22,'RECAP SECT'!$G$6:$FJ$253,96,FALSE) -> 34.93 | AA22: =VLOOKUP($C22,'RECAP SECT'!$G$6:$FJ$253,97,FALSE) -> 1.72 | AB22: =VLOOKUP($C22,'RECAP SECT'!$G$6:$FJ$253,98,FALSE) -> 82% | AC22: =VLOOKUP($C22,'RECAP SECT'!$G$6:$FJ$253,99,FALSE) -> 13 | AD22: =VLOOKUP($C22,'RECAP SECT'!$G$6:$FJ$253,100,FALSE) -> 37% | AE22: =VLOOKUP($C22,'RECAP SECT'!$G$6:$FJ$253,101,FALSE) -> 24% | AF22: =VLOOKUP($C22,'RECAP SECT'!$G$6:$FJ$253,102,FALSE) -> 9
A23: 160 | B23: MOSELLE | C23: 45 | D23: METZ | E23: =VLOOKUP($C23,'RECAP SECT'!$G$6:$FJ$253,3,FALSE) -> 89.4 | F23: =VLOOKUP($C23,'RECAP SECT'!$G$6:$FJ$253,76,FALSE) -> 180.35 | G23: =VLOOKUP($C23,'RECAP SECT'!$G$6:$FJ$253,77,FALSE) -> 17.02 | H23: =VLOOKUP($C23,'RECAP SECT'!$G$6:$FJ$253,78,FALSE) -> 23% | I23: =VLOOKUP($C23,'RECAP SECT'!$G$6:$FJ$253,79,FALSE) -> 7 | K23: =VLOOKUP($C23,'RECAP SECT'!$G$6:$FJ$253,81,FALSE) -> 3.37 | L23: =VLOOKUP($C23,'RECAP SECT'!$G$6:$FJ$253,82,FALSE) -> 31% | M23: =VLOOKUP($C23,'RECAP SECT'!$G$6:$FJ$253,83,FALSE) -> 14 | N23: =VLOOKUP($C23,'RECAP SECT'!$G$6:$FJ$253,84,FALSE) -> 777.72 | O23: =VLOOKUP($C23,'RECAP SECT'!$G$6:$FJ$253,85,FALSE) -> 27.78 | P23: =VLOOKUP($C23,'RECAP SECT'!$G$6:$FJ$253,86,FALSE) -> 27% | Q23: =VLOOKUP($C23,'RECAP SECT'!$G$6:$FJ$253,87,FALSE) -> 7 | S23: =VLOOKUP($C23,'RECAP SECT'!$G$6:$FJ$253,89,FALSE) -> 12.24 | T23: =VLOOKUP($C23,'RECAP SECT'!$G$6:$FJ$253,90,FALSE) -> 50% | U23: =VLOOKUP($C23,'RECAP SECT'!$G$6:$FJ$253,91,FALSE) -> 10 | W23: =VLOOKUP($C23,'RECAP SECT'!$G$6:$FJ$253,93,FALSE) -> 1.58 | X23: =VLOOKUP($C23,'RECAP SECT'!$G$6:$FJ$253,94,FALSE) -> 29% | Y23: =VLOOKUP($C23,'RECAP SECT'!$G$6:$FJ$253,95,FALSE) -> 7 | Z23: =VLOOKUP($C23,'RECAP SECT'!$G$6:$FJ$253,96,FALSE) -> 37.06 | AA23: =VLOOKUP($C23,'RECAP SECT'!$G$6:$FJ$253,97,FALSE) -> 1.54 | AB23: =VLOOKUP($C23,'RECAP SECT'!$G$6:$FJ$253,98,FALSE) -> 84% | AC23: =VLOOKUP($C23,'RECAP SECT'!$G$6:$FJ$253,99,FALSE) -> 14 | AD23: =VLOOKUP($C23,'RECAP SECT'!$G$6:$FJ$253,100,FALSE) -> 37% | AE23: =VLOOKUP($C23,'RECAP SECT'!$G$6:$FJ$253,101,FALSE) -> 24% | AF23: =VLOOKUP($C23,'RECAP SECT'!$G$6:$FJ$253,102,FALSE) -> 7
A24: 160 | B24: MOSELLE | C24: 42 | D24: MOSELLE EST | E24: =VLOOKUP($C24,'RECAP SECT'!$G$6:$FJ$253,3,FALSE) -> 76.7 | F24: =VLOOKUP($C24,'RECAP SECT'!$G$6:$FJ$253,76,FALSE) -> 168.50 | G24: =VLOOKUP($C24,'RECAP SECT'!$G$6:$FJ$253,77,FALSE) -> 16.37 | H24: =VLOOKUP($C24,'RECAP SECT'!$G$6:$FJ$253,78,FALSE) -> 26% | I24: =VLOOKUP($C24,'RECAP SECT'!$G$6:$FJ$253,79,FALSE) -> 9 | K24: =VLOOKUP($C24,'RECAP SECT'!$G$6:$FJ$253,81,FALSE) -> 3.38 | L24: =VLOOKUP($C24,'RECAP SECT'!$G$6:$FJ$253,82,FALSE) -> 30% | M24: =VLOOKUP($C24,'RECAP SECT'!$G$6:$FJ$253,83,FALSE) -> 10 | N24: =VLOOKUP($C24,'RECAP SECT'!$G$6:$FJ$253,84,FALSE) -> 513.20 | O24: =VLOOKUP($C24,'RECAP SECT'!$G$6:$FJ$253,85,FALSE) -> 22.74 | P24: =VLOOKUP($C24,'RECAP SECT'!$G$6:$FJ$253,86,FALSE) -> 40% | Q24: =VLOOKUP($C24,'RECAP SECT'!$G$6:$FJ$253,87,FALSE) -> 9 | S24: =VLOOKUP($C24,'RECAP SECT'!$G$6:$FJ$253,89,FALSE) -> 11.15 | T24: =VLOOKUP($C24,'RECAP SECT'!$G$6:$FJ$253,90,FALSE) -> 54% | U24: =VLOOKUP($C24,'RECAP SECT'!$G$6:$FJ$253,91,FALSE) -> 12 | W24: =VLOOKUP($C24,'RECAP SECT'!$G$6:$FJ$253,93,FALSE) -> 1.07 | X24: =VLOOKUP($C24,'RECAP SECT'!$G$6:$FJ$253,94,FALSE) -> 52% | Y24: =VLOOKUP($C24,'RECAP SECT'!$G$6:$FJ$253,95,FALSE) -> 10 | Z24: =VLOOKUP($C24,'RECAP SECT'!$G$6:$FJ$253,96,FALSE) -> 32.64 | AA24: =VLOOKUP($C24,'RECAP SECT'!$G$6:$FJ$253,97,FALSE) -> 1.03 | AB24: =VLOOKUP($C24,'RECAP SECT'!$G$6:$FJ$253,98,FALSE) -> 89% | AC24: =VLOOKUP($C24,'RECAP SECT'!$G$6:$FJ$253,99,FALSE) -> 17 | AD24: =VLOOKUP($C24,'RECAP SECT'!$G$6:$FJ$253,100,FALSE) -> 46% | AE24: =VLOOKUP($C24,'RECAP SECT'!$G$6:$FJ$253,101,FALSE) -> 33% | AF24: =VLOOKUP($C24,'RECAP SECT'!$G$6:$FJ$253,102,FALSE) -> 14
A25: 160 | B25: MOSELLE | C25: 44 | D25: MOSELLE NORD | E25: =VLOOKUP($C25,'RECAP SECT'!$G$6:$FJ$253,3,FALSE) -> 69.6 | F25: =VLOOKUP($C25,'RECAP SECT'!$G$6:$FJ$253,76,FALSE) -> 177.97 | G25: =VLOOKUP($C25,'RECAP SECT'!$G$6:$FJ$253,77,FALSE) -> 16.49 | H25: =VLOOKUP($C25,'RECAP SECT'!$G$6:$FJ$253,78,FALSE) -> 25% | I25: =VLOOKUP($C25,'RECAP SECT'!$G$6:$FJ$253,79,FALSE) -> 8 | K25: =VLOOKUP($C25,'RECAP SECT'!$G$6:$FJ$253,81,FALSE) -> 3.61 | L25: =VLOOKUP($C25,'RECAP SECT'!$G$6:$FJ$253,82,FALSE) -> 26% | M25: =VLOOKUP($C25,'RECAP SECT'!$G$6:$FJ$253,83,FALSE) -> 7 | N25: =VLOOKUP($C25,'RECAP SECT'!$G$6:$FJ$253,84,FALSE) -> 820.50 | O25: =VLOOKUP($C25,'RECAP SECT'!$G$6:$FJ$253,85,FALSE) -> 31.31 | P25: =VLOOKUP($C25,'RECAP SECT'!$G$6:$FJ$253,86,FALSE) -> 18% | Q25: =VLOOKUP($C25,'RECAP SECT'!$G$6:$FJ$253,87,FALSE) -> 4 | S25: =VLOOKUP($C25,'RECAP SECT'!$G$6:$FJ$253,89,FALSE) -> 12.52 | T25: =VLOOKUP($C25,'RECAP SECT'!$G$6:$FJ$253,90,FALSE) -> 49% | U25: =VLOOKUP($C25,'RECAP SECT'!$G$6:$FJ$253,91,FALSE) -> 6 | W25: =VLOOKUP($C25,'RECAP SECT'!$G$6:$FJ$253,93,FALSE) -> 1.84 | X25: =VLOOKUP($C25,'RECAP SECT'!$G$6:$FJ$253,94,FALSE) -> 18% | Y25: =VLOOKUP($C25,'RECAP SECT'!$G$6:$FJ$253,95,FALSE) -> 4 | Z25: =VLOOKUP($C25,'RECAP SECT'!$G$6:$FJ$253,96,FALSE) -> 36.73 | AA25: =VLOOKUP($C25,'RECAP SECT'!$G$6:$FJ$253,97,FALSE) -> 1.32 | AB25: =VLOOKUP($C25,'RECAP SECT'!$G$6:$FJ$253,98,FALSE) -> 86% | AC25: =VLOOKUP($C25,'RECAP SECT'!$G$6:$FJ$253,99,FALSE) -> 16 | AD25: =VLOOKUP($C25,'RECAP SECT'!$G$6:$FJ$253,100,FALSE) -> 33% | AE25: =VLOOKUP($C25,'RECAP SECT'!$G$6:$FJ$253,101,FALSE) -> 21% | AF25: =VLOOKUP($C25,'RECAP SECT'!$G$6:$FJ$253,102,FALSE) -> 5
A26: 80 | B26: VOSGES | C26: 57 | D26: EPINAL | E26: =VLOOKUP($C26,'RECAP SECT'!$G$6:$FJ$253,3,FALSE) -> 62.9 | F26: =VLOOKUP($C26,'RECAP SECT'!$G$6:$FJ$253,76,FALSE) -> 157.07 | G26: =VLOOKUP($C26,'RECAP SECT'!$G$6:$FJ$253,77,FALSE) -> 14.43 | H26: =VLOOKUP($C26,'RECAP SECT'!$G$6:$FJ$253,78,FALSE) -> 35% | I26: =VLOOKUP($C26,'RECAP SECT'!$G$6:$FJ$253,79,FALSE) -> 13 | K26: =VLOOKUP($C26,'RECAP SECT'!$G$6:$FJ$253,81,FALSE) -> 3.16 | L26: =VLOOKUP($C26,'RECAP SECT'!$G$6:$FJ$253,82,FALSE) -> 35% | M26: =VLOOKUP($C26,'RECAP SECT'!$G$6:$FJ$253,83,FALSE) -> 17 | N26: =VLOOKUP($C26,'RECAP SECT'!$G$6:$FJ$253,84,FALSE) -> 467.86 | O26: =VLOOKUP($C26,'RECAP SECT'!$G$6:$FJ$253,85,FALSE) -> 20.95 | P26: =VLOOKUP($C26,'RECAP SECT'!$G$6:$FJ$253,86,FALSE) -> 45% | Q26: =VLOOKUP($C26,'RECAP SECT'!$G$6:$FJ$253,87,FALSE) -> 10 | S26: =VLOOKUP($C26,'RECAP SECT'!$G$6:$FJ$253,89,FALSE) -> 10.08 | T26: =VLOOKUP($C26,'RECAP SECT'!$G$6:$FJ$253,90,FALSE) -> 59% | U26: =VLOOKUP($C26,'RECAP SECT'!$G$6:$FJ$253,91,FALSE) -> 14 | W26: =VLOOKUP($C26,'RECAP SECT'!$G$6:$FJ$253,93,FALSE) -> 1.02 | X26: =VLOOKUP($C26,'RECAP SECT'!$G$6:$FJ$253,94,FALSE) -> 54% | Y26: =VLOOKUP($C26,'RECAP SECT'!$G$6:$FJ$253,95,FALSE) -> 12 | Z26: =VLOOKUP($C26,'RECAP SECT'!$G$6:$FJ$253,96,FALSE) -> 89.59 | AA26: =VLOOKUP($C26,'RECAP SECT'!$G$6:$FJ$253,97,FALSE) -> 4.75 | AB26: =VLOOKUP($C26,'RECAP SECT'!$G$6:$FJ$253,98,FALSE) -> 50% | AC26: =VLOOKUP($C26,'RECAP SECT'!$G$6:$FJ$253,99,FALSE) -> 5 | AD26: =VLOOKUP($C26,'RECAP SECT'!$G$6:$FJ$253,100,FALSE) -> 45% | AE26: =VLOOKUP($C26,'RECAP SECT'!$G$6:$FJ$253,101,FALSE) -> 32% | AF26: =VLOOKUP($C26,'RECAP SECT'!$G$6:$FJ$253,102,FALSE) -> 13
A27: 80 | B27: VOSGES | C27: 55 | D27: SAINT DIE | E27: =VLOOKUP($C27,'RECAP SECT'!$G$6:$FJ$253,3,FALSE) -> 50.2 | F27: =VLOOKUP($C27,'RECAP SECT'!$G$6:$FJ$253,76,FALSE) -> 186.30 | G27: =VLOOKUP($C27,'RECAP SECT'!$G$6:$FJ$253,77,FALSE) -> 17.22 | H27: =VLOOKUP($C27,'RECAP SECT'!$G$6:$FJ$253,78,FALSE) -> 22% | I27: =VLOOKUP($C27,'RECAP SECT'!$G$6:$FJ$253,79,FALSE) -> 4 | K27: =VLOOKUP($C27,'RECAP SECT'!$G$6:$FJ$253,81,FALSE) -> 3.91 | L27: =VLOOKUP($C27,'RECAP SECT'!$G$6:$FJ$253,82,FALSE) -> 20% | M27: =VLOOKUP($C27,'RECAP SECT'!$G$6:$FJ$253,83,FALSE) -> 3 | N27: =VLOOKUP($C27,'RECAP SECT'!$G$6:$FJ$253,84,FALSE) -> 427.14 | O27: =VLOOKUP($C27,'RECAP SECT'!$G$6:$FJ$253,85,FALSE) -> 20.26 | P27: =VLOOKUP($C27,'RECAP SECT'!$G$6:$FJ$253,86,FALSE) -> 47% | Q27: =VLOOKUP($C27,'RECAP SECT'!$G$6:$FJ$253,87,FALSE) -> 12 | S27: =VLOOKUP($C27,'RECAP SECT'!$G$6:$FJ$253,89,FALSE) -> 11.45 | T27: =VLOOKUP($C27,'RECAP SECT'!$G$6:$FJ$253,90,FALSE) -> 53% | U27: =VLOOKUP($C27,'RECAP SECT'!$G$6:$FJ$253,91,FALSE) -> 11 | W27: =VLOOKUP($C27,'RECAP SECT'!$G$6:$FJ$253,93,FALSE) -> 0.94 | X27: =VLOOKUP($C27,'RECAP SECT'!$G$6:$FJ$253,94,FALSE) -> 58% | Y27: =VLOOKUP($C27,'RECAP SECT'!$G$6:$FJ$253,95,FALSE) -> 16 | Z27: =VLOOKUP($C27,'RECAP SECT'!$G$6:$FJ$253,96,FALSE) -> 56.54 | AA27: =VLOOKUP($C27,'RECAP SECT'!$G$6:$FJ$253,97,FALSE) -> 2.04 | AB27: =VLOOKUP($C27,'RECAP SECT'!$G$6:$FJ$253,98,FALSE) -> 78% | AC27: =VLOOKUP($C27,'RECAP SECT'!$G$6:$FJ$253,99,FALSE) -> 11 | AD27: =VLOOKUP($C27,'RECAP SECT'!$G$6:$FJ$253,100,FALSE) -> 45% | AE27: =VLOOKUP($C27,'RECAP SECT'!$G$6:$FJ$253,101,FALSE) -> 32% | AF27: =VLOOKUP($C27,'RECAP SECT'!$G$6:$FJ$253,102,FALSE) -> 12
A28: Total CEGEE Directions Régionales | E28: =SUM(E10:E27) -> 1195

Sheet SE_IARD
B1: Accueil | F1: BAROMETRE BDD - TERRITOIRES
F2: IARD ET PREVOYANCE
F3: =ACCUEIL!F7 -> 2020-05-10
F7: Ventes nettes IARD | J7: Ventes nettes Prévoyance | N7: Total IARD Prévoyance
H8: coef | I8: ='RECAP DIRCOM'!DN4 -> 9% | L8: coef | M8: ='RECAP DIRCOM'!DR4 -> 6% | O8: coef | P8: ='RECAP DIRCOM'!DU4 -> 15%
B9: Direction | C9: eds | D9: Territoire | E9: ETP perf | F9: Nb / ETP | H9: % Ecart au 1er | I9: Rang | J9: Nb / ETP | L9: % Ecart au 1er | M9: Rang | N9: Moyenne ecart au 1er | O9: % Ecart au 1er | P9: Rang CEGEE
A10: 50 | B10: AUBE HAUTE MARNE | C10: 21 | D10: CHAUMONT | E10: =VLOOKUP($C10,'RECAP SECT'!$G$6:$FJ$253,3,FALSE) -> 36.2 | F10: =VLOOKUP($C10,'RECAP SECT'!$G$6:$FJ$253,109,FALSE) -> 4.20 | G10: =VLOOKUP($C10,'RECAP SECT'!$G$6:$FJ$253,110,FALSE) -> 0.38 | H10: =VLOOKUP($C10,'RECAP SECT'!$G$6:$FJ$253,111,FALSE) -> 63% | I10: =VLOOKUP($C10,'RECAP SECT'!$G$6:$FJ$253,112,FALSE) -> 7 | J10: =VLOOKUP($C10,'RECAP SECT'!$G$6:$FJ$253,113,FALSE) -> 1.16 | K10: =VLOOKUP($C10,'RECAP SECT'!$G$6:$FJ$253,114,FALSE) -> 0.23 | L10: =VLOOKUP($C10,'RECAP SECT'!$G$6:$FJ$253,115,FALSE) -> 64% | M10: =VLOOKUP($C10,'RECAP SECT'!$G$6:$FJ$253,116,FALSE) -> 13 | N10: =VLOOKUP($C10,'RECAP SECT'!$G$6:$FJ$253,117,FALSE) -> 64% | O10: =VLOOKUP($C10,'RECAP SECT'!$G$6:$FJ$253,118,FALSE) -> 58% | P10: =VLOOKUP($C10,'RECAP SECT'!$G$6:$FJ$253,119,FALSE) -> 10
A11: 50 | B11: AUBE HAUTE MARNE | C11: 14 | D11: TROYES | E11: =VLOOKUP($C11,'RECAP SECT'!$G$6:$FJ$253,3,FALSE) -> 69.8 | F11: =VLOOKUP($C11,'RECAP SECT'!$G$6:$FJ$253,109,FALSE) -> 1.89 | G11: =VLOOKUP($C11,'RECAP SECT'!$G$6:$FJ$253,110,FALSE) -> 0.22 | H11: =VLOOKUP($C11,'RECAP SECT'!$G$6:$FJ$253,111,FALSE) -> 79% | I11: =VLOOKUP($C11,'RECAP SECT'!$G$6:$FJ$253,112,FALSE) -> 12 | J11: =VLOOKUP($C11,'RECAP SECT'!$G$6:$FJ$253,113,FALSE) -> 1.75 | K11: =VLOOKUP($C11,'RECAP SECT'!$G$6:$FJ$253,114,FALSE) -> 0.33 | L11: =VLOOKUP($C11,'RECAP SECT'!$G$6:$FJ$253,115,FALSE) -> 49% | M11: =VLOOKUP($C11,'RECAP SECT'!$G$6:$FJ$253,116,FALSE) -> 8 | N11: =VLOOKUP($C11,'RECAP SECT'!$G$6:$FJ$253,117,FALSE) -> 67% | O11: =VLOOKUP($C11,'RECAP SECT'!$G$6:$FJ$253,118,FALSE) -> 61% | P11: =VLOOKUP($C11,'RECAP SECT'!$G$6:$FJ$253,119,FALSE) -> 11
A12: 262 | B12: BAS-RHIN | C12: 5060 | D12: HAGUENAU | E12: =VLOOKUP($C12,'RECAP SECT'!$G$6:$FJ$253,3,FALSE) -> 80.0 | F12: =VLOOKUP($C12,'RECAP SECT'!$G$6:$FJ$253,109,FALSE) -> 1.49 | G12: =VLOOKUP($C12,'RECAP SECT'!$G$6:$FJ$253,110,FALSE) -> 0.14 | H12: =VLOOKUP($C12,'RECAP SECT'!$G$6:$FJ$253,111,FALSE) -> 87% | I12: =VLOOKUP($C12,'RECAP SECT'!$G$6:$FJ$253,112,FALSE) -> 15 | J12: =VLOOKUP($C12,'RECAP SECT'!$G$6:$FJ$253,113,FALSE) -> 1.71 | K12: =VLOOKUP($C12,'RECAP SECT'!$G$6:$FJ$253,114,FALSE) -> 0.33 | L12: =VLOOKUP($C12,'RECAP SECT'!$G$6:$FJ$253,115,FALSE) -> 49% | M12: =VLOOKUP($C12,'RECAP SECT'!$G$6:$FJ$253,116,FALSE) -> 9 | N12: =VLOOKUP($C12,'RECAP SECT'!$G$6:$FJ$253,117,FALSE) -> 72% | O12: =VLOOKUP($C12,'RECAP SECT'!$G$6:$FJ$253,118,FALSE) -> 66% | P12: =VLOOKUP($C12,'RECAP SECT'!$G$6:$FJ$253,119,FALSE) -> 14
A13: 262 | B13: BAS-RHIN | C13: 5101 | D13: SELESTAT | E13: =VLOOKUP($C13,'RECAP SECT'!$G$6:$FJ$253,3,FALSE) -> 64.8 | F13: =VLOOKUP($C13,'RECAP SECT'!$G$6:$FJ$253,109,FALSE) -> -0.45 | G13: =VLOOKUP($C13,'RECAP SECT'!$G$6:$FJ$253,110,FALSE) -> -0.09 | H13: =VLOOKUP($C13,'RECAP SECT'!$G$6:$FJ$253,111,FALSE) -> 108% | I13: =VLOOKUP($C13,'RECAP SECT'!$G$6:$FJ$253,112,FALSE) -> 18 | J13: =VLOOKUP($C13,'RECAP SECT'!$G$6:$FJ$253,113,FALSE) -> 0.06 | K13: =VLOOKUP($C13,'RECAP SECT'!$G$6:$FJ$253,114,FALSE) -> 0.21 | L13: =VLOOKUP($C13,'RECAP SECT'!$G$6:$FJ$253,115,FALSE) -> 68% | M13: =VLOOKUP($C13,'RECAP SECT'!$G$6:$FJ$253,116,FALSE) -> 16 | N13: =VLOOKUP($C13,'RECAP SECT'!$G$6:$FJ$253,117,FALSE) -> 92% | O13: =VLOOKUP($C13,'RECAP SECT'!$G$6:$FJ$253,118,FALSE) -> 87% | P13: =VLOOKUP($C13,'RECAP SECT'!$G$6:$FJ$253,119,FALSE) -> 17
A14: 262 | B14: BAS-RHIN | C14: 5006 | D14: STRASBOURG | E14: =VLOOKUP($C14,'RECAP SECT'!$G$6:$FJ$253,3,FALSE) -> 79.3 | F14: =VLOOKUP($C14,'RECAP SECT'!$G$6:$FJ$253,109,FALSE) -> 2.02 | G14: =VLOOKUP($C14,'RECAP SECT'!$G$6:$FJ$253,110,FALSE) -> 0.20 | H14: =VLOOKUP($C14,'RECAP SECT'!$G$6:$FJ$253,111,FALSE) -> 80% | I14: =VLOOKUP($C14,'RECAP SECT'!$G$6:$FJ$253,112,FALSE) -> 14 | J14: =VLOOKUP($C14,'RECAP SECT'!$G$6:$FJ$253,113,FALSE) -> 4.95 | K14: =VLOOKUP($C14,'RECAP SECT'!$G$6:$FJ$253,114,FALSE) -> 0.65 | L14: =VLOOKUP($C14,'RECAP SECT'!$G$6:$FJ$253,115,FALSE) -> 0% | M14: =VLOOKUP($C14,'RECAP SECT'!$G$6:$FJ$253,116,FALSE) -> 1 | N14: =VLOOKUP($C14,'RECAP SECT'!$G$6:$FJ$253,117,FALSE) -> 48% | O14: =VLOOKUP($C14,'RECAP SECT'!$G$6:$FJ$253,118,FALSE) -> 43% | P14: =VLOOKUP($C14,'RECAP SECT'!$G$6:$FJ$253,119,FALSE) -> 5
A15: 264 | B15: HAUT-RHIN | C15: 5130 | D15: COLMAR | E15: =VLOOKUP($C15,'RECAP SECT'!$G$6:$FJ$253,3,FALSE) -> 68.4 | F15: =VLOOKUP($C15,'RECAP SECT'!$G$6:$FJ$253,109,FALSE) -> 0.89 | G15: =VLOOKUP($C15,'RECAP SECT'!$G$6:$FJ$253,110,FALSE) -> 0.08 | H15: =VLOOKUP($C15,'RECAP SECT'!$G$6:$FJ$253,111,FALSE) -> 93% | I15: =VLOOKUP($C15,'RECAP SECT'!$G$6:$FJ$253,112,FALSE) -> 16 | J15: =VLOOKUP($C15,'RECAP SECT'!$G$6:$FJ$253,113,FALSE) -> -0.45 | K15: =VLOOKUP($C15,'RECAP SECT'!$G$6:$FJ$253,114,FALSE) -> 0.16 | L15: =VLOOKUP($C15,'RECAP SECT'!$G$6:$FJ$253,115,FALSE) -> 75% | M15: =VLOOKUP($C15,'RECAP SECT'!$G$6:$FJ$253,116,FALSE) -> 17 | N15: =VLOOKUP($C15,'RECAP SECT'!$G$6:$FJ$253,117,FALSE) -> 86% | O15: =VLOOKUP($C15,'RECAP SECT'!$G$6:$FJ$253,118,FALSE) -> 80% | P15: =VLOOKUP($C15,'RECAP SECT'!$G$6:$FJ$253,119,FALSE) -> 16
A16: 264 | B16: HAUT-RHIN | C16: 5169 | D16: MULHOUSE | E16: =VLOOKUP($C16,'RECAP SECT'!$G$6:$FJ$253,3,FALSE) -> 64.5 | F16: =VLOOKUP($C16,'RECAP SECT'!$G$6:$FJ$253,109,FALSE) -> -0.51 | G16: =VLOOKUP($C16,'RECAP SECT'!$G$6:$FJ$253,110,FALSE) -> -0.06 | H16: =VLOOKUP($C16,'RECAP SECT'!$G$6:$FJ$253,111,FALSE) -> 106% | I16: =VLOOKUP($C16,'RECAP SECT'!$G$6:$FJ$253,112,FALSE) -> 17 | J16: =VLOOKUP($C16,'RECAP SECT'!$G$6:$FJ$253,113,FALSE) -> -0.79 | K16: =VLOOKUP($C16,'RECAP SECT'!$G$6:$FJ$253,114,FALSE) -> 0.06 | L16: =VLOOKUP($C16,'RECAP SECT'!$G$6:$FJ$253,115,FALSE) -> 91% | M16: =VLOOKUP($C16,'RECAP SECT'!$G$6:$FJ$253,116,FALSE) -> 18 | N16: =VLOOKUP($C16,'RECAP SECT'!$G$6:$FJ$253,117,FALSE) -> 100% | O16: =VLOOKUP($C16,'RECAP SECT'!$G$6:$FJ$253,118,FALSE) -> 95% | P16: =VLOOKUP($C16,'RECAP SECT'!$G$6:$FJ$253,119,FALSE) -> 18
A17: 30 | B17: MARNE-ARDENNES | C17: 6 | D17: CHALONS EN CHAMPAGNE | E17: =VLOOKUP($C17,'RECAP SECT'!$G$6:$FJ$253,3,FALSE) -> 46.4 | F17: =VLOOKUP($C17,'RECAP SECT'!$G$6:$FJ$253,109,FALSE) -> 3.96 | G17: =VLOOKUP($C17,'RECAP SECT'!$G$6:$FJ$253,110,FALSE) -> 0.41 | H17: =VLOOKUP($C17,'RECAP SECT'!$G$6:$FJ$253,111,FALSE) -> 61% | I17: =VLOOKUP($C17,'RECAP SECT'!$G$6:$FJ$253,112,FALSE) -> 6 | J17: =VLOOKUP($C17,'RECAP SECT'!$G$6:$FJ$253,113,FALSE) -> 3.42 | K17: =VLOOKUP($C17,'RECAP SECT'!$G$6:$FJ$253,114,FALSE) -> 0.49 | L17: =VLOOKUP($C17,'RECAP SECT'!$G$6:$FJ$253,115,FALSE) -> 24% | M17: =VLOOKUP($C17,'RECAP SECT'!$G$6:$FJ$253,116,FALSE) -> 3 | N17: =VLOOKUP($C17,'RECAP SECT'!$G$6:$FJ$253,117,FALSE) -> 46% | O17: =VLOOKUP($C17,'RECAP SECT'!$G$6:$FJ$253,118,FALSE) -> 41% | P17: =VLOOKUP($C17,'RECAP SECT'!$G$6:$FJ$253,119,FALSE) -> 3
A18: 30 | B18: MARNE-ARDENNES | C18: 2 | D18: CHARLEVILLE MEZIERES | E18: =VLOOKUP($C18,'RECAP SECT'!$G$6:$FJ$253,3,FALSE) -> 57.5 | F18: =VLOOKUP($C18,'RECAP SECT'!$G$6:$FJ$253,109,FALSE) -> 5.32 | G18: =VLOOKUP($C18,'RECAP SECT'!$G$6:$FJ$253,110,FALSE) -> 0.53 | H18: =VLOOKUP($C18,'RECAP SECT'!$G$6:$FJ$253,111,FALSE) -> 49% | I18: =VLOOKUP($C18,'RECAP SECT'!$G$6:$FJ$253,112,FALSE) -> 2 | J18: =VLOOKUP($C18,'RECAP SECT'!$G$6:$FJ$253,113,FALSE) -> 2.61 | K18: =VLOOKUP($C18,'RECAP SECT'!$G$6:$FJ$253,114,FALSE) -> 0.45 | L18: =VLOOKUP($C18,'RECAP SECT'!$G$6:$FJ$253,115,FALSE) -> 31% | M18: =VLOOKUP($C18,'RECAP SECT'!$G$6:$FJ$253,116,FALSE) -> 4 | N18: =VLOOKUP($C18,'RECAP SECT'!$G$6:$FJ$253,117,FALSE) -> 42% | O18: =VLOOKUP($C18,'RECAP SECT'!$G$6:$FJ$253,118,FALSE) -> 36% | P18: =VLOOKUP($C18,'RECAP SECT'!$G$6:$FJ$253,119,FALSE) -> 2
A19: 30 | B19: MARNE-ARDENNES | C19: 11 | D19: REIMS | E19: =VLOOKUP($C19,'RECAP SECT'!$G$6:$FJ$253,3,FALSE) -> 80.4 | F19: =VLOOKUP($C19,'RECAP SECT'!$G$6:$FJ$253,109,FALSE) -> 4.61 | G19: =VLOOKUP($C19,'RECAP SECT'!$G$6:$FJ$253,110,FALSE) -> 0.50 | H19: =VLOOKUP($C19,'RECAP SECT'!$G$6:$FJ$253,111,FALSE) -> 53% | I19: =VLOOKUP($C19,'RECAP SECT'!$G$6:$FJ$253,112,FALSE) -> 4 | J19: =VLOOKUP($C19,'RECAP SECT'!$G$6:$FJ$253,113,FALSE) -> 1.85 | K19: =VLOOKUP($C19,'RECAP SECT'!$G$6:$FJ$253,114,FALSE) -> 0.39 | L19: =VLOOKUP($C19,'RECAP SECT'!$G$6:$FJ$253,115,FALSE) -> 40% | M19: =VLOOKUP($C19,'RECAP SECT'!$G$6:$FJ$253,116,FALSE) -> 7 | N19: =VLOOKUP($C19,'RECAP SECT'!$G$6:$FJ$253,117,FALSE) -> 47% | O19: =VLOOKUP($C19,'RECAP SECT'!$G$6:$FJ$253,118,FALSE) -> 42% | P19: =VLOOKUP($C19,'RECAP SECT'!$G$6:$FJ$253,119,FALSE) -> 4
A20: 110 | B20: MEURTHE ET MOSELLE MEUSE | C20: 26 | D20: NANCY | E20: =VLOOKUP($C20,'RECAP SECT'!$G$6:$FJ$253,3,FALSE) -> 68.0 | F20: =VLOOKUP($C20,'RECAP SECT'!$G$6:$FJ$253,109,FALSE) -> 5.28 | G20: =VLOOKUP($C20,'RECAP SECT'!$G$6:$FJ$253,110,FALSE) -> 0.51 | H20: =VLOOKUP($C20,'RECAP SECT'!$G$6:$FJ$253,111,FALSE) -> 51% | I20: =VLOOKUP($C20,'RECAP SECT'!$G$6:$FJ$253,112,FALSE) -> 3 | J20: =VLOOKUP($C20,'RECAP SECT'!$G$6:$FJ$253,113,FALSE) -> 1.46 | K20: =VLOOKUP($C20,'RECAP SECT'!$G$6:$FJ$253,114,FALSE) -> 0.27 | L20: =VLOOKUP($C20,'RECAP SECT'!$G$6:$FJ$253,115,FALSE) -> 58% | M20: =VLOOKUP($C20,'RECAP SECT'!$G$6:$FJ$253,116,FALSE) -> 10 | N20: =VLOOKUP($C20,'RECAP SECT'!$G$6:$FJ$253,117,FALSE) -> 54% | O20: =VLOOKUP($C20,'RECAP SECT'!$G$6:$FJ$253,118,FALSE) -> 48% | P20: =VLOOKUP($C20,'RECAP SECT'!$G$6:$FJ$253,119,FALSE) -> 7
A21: 110 | B21: MEURTHE ET MOSELLE MEUSE | C21: 27 | D21: PONT A MOUSSON | E21: =VLOOKUP($C21,'RECAP SECT'!$G$6:$FJ$253,3,FALSE) -> 76.5 | F21: =VLOOKUP($C21,'RECAP SECT'!$G$6:$FJ$253,109,FALSE) -> 10.97 | G21: =VLOOKUP($C21,'RECAP SECT'!$G$6:$FJ$253,110,FALSE) -> 1.04 | H21: =VLOOKUP($C21,'RECAP SECT'!$G$6:$FJ$253,111,FALSE) -> 0% | I21: =VLOOKUP($C21,'RECAP SECT'!$G$6:$FJ$253,112,FALSE) -> 1 | J21: =VLOOKUP($C21,'RECAP SECT'!$G$6:$FJ$253,113,FALSE) -> 5.67 | K21: =VLOOKUP($C21,'RECAP SECT'!$G$6:$FJ$253,114,FALSE) -> 0.56 | L21: =VLOOKUP($C21,'RECAP SECT'!$G$6:$FJ$253,115,FALSE) -> 14% | M21: =VLOOKUP($C21,'RECAP SECT'!$G$6:$FJ$253,116,FALSE) -> 2 | N21: =VLOOKUP($C21,'RECAP SECT'!$G$6:$FJ$253,117,FALSE) -> 6% | O21: =VLOOKUP($C21,'RECAP SECT'!$G$6:$FJ$253,118,FALSE) -> 0% | P21: =VLOOKUP($C21,'RECAP SECT'!$G$6:$FJ$253,119,FALSE) -> 1
A22: 110 | B22: MEURTHE ET MOSELLE MEUSE | C22: 31 | D22: VERDUN | E22: =VLOOKUP($C22,'RECAP SECT'!$G$6:$FJ$253,3,FALSE) -> 54.4 | F22: =VLOOKUP($C22,'RECAP SECT'!$G$6:$FJ$253,109,FALSE) -> 3.60 | G22: =VLOOKUP($C22,'RECAP SECT'!$G$6:$FJ$253,110,FALSE) -> 0.38 | H22: =VLOOKUP($C22,'RECAP SECT'!$G$6:$FJ$253,111,FALSE) -> 64% | I22: =VLOOKUP($C22,'RECAP SECT'!$G$6:$FJ$253,112,FALSE) -> 8 | J22: =VLOOKUP($C22,'RECAP SECT'!$G$6:$FJ$253,113,FALSE) -> 2.08 | K22: =VLOOKUP($C22,'RECAP SECT'!$G$6:$FJ$253,114,FALSE) -> 0.41 | L22: =VLOOKUP($C22,'RECAP SECT'!$G$6:$FJ$253,115,FALSE) -> 37% | M22: =VLOOKUP($C22,'RECAP SECT'!$G$6:$FJ$253,116,FALSE) -> 5 | N22: =VLOOKUP($C22,'RECAP SECT'!$G$6:$FJ$253,117,FALSE) -> 53% | O22: =VLOOKUP($C22,'RECAP SECT'!$G$6:$FJ$253,118,FALSE) -> 48% | P22: =VLOOKUP($C22,'RECAP SECT'!$G$6:$FJ$253,119,FALSE) -> 6
A23: 160 | B23: MOSELLE | C23: 45 | D23: METZ | E23: =VLOOKUP($C23,'RECAP SECT'!$G$6:$FJ$253,3,FALSE) -> 89.4 | F23: =VLOOKUP($C23,'RECAP SECT'!$G$6:$FJ$253,109,FALSE) -> 2.69 | G23: =VLOOKUP($C23,'RECAP SECT'!$G$6:$FJ$253,110,FALSE) -> 0.27 | H23: =VLOOKUP($C23,'RECAP SECT'!$G$6:$FJ$253,111,FALSE) -> 74% | I23: =VLOOKUP($C23,'RECAP SECT'!$G$6:$FJ$253,112,FALSE) -> 11 | J23: =VLOOKUP($C23,'RECAP SECT'!$G$6:$FJ$253,113,FALSE) -> 1.02 | K23: =VLOOKUP($C23,'RECAP SECT'!$G$6:$FJ$253,114,FALSE) -> 0.26 | L23: =VLOOKUP($C23,'RECAP SECT'!$G$6:$FJ$253,115,FALSE) -> 60% | M23: =VLOOKUP($C23,'RECAP SECT'!$G$6:$FJ$253,116,FALSE) -> 11 | N23: =VLOOKUP($C23,'RECAP SECT'!$G$6:$FJ$253,117,FALSE) -> 68% | O23: =VLOOKUP($C23,'RECAP SECT'!$G$6:$FJ$253,118,FALSE) -> 63% | P23: =VLOOKUP($C23,'RECAP SECT'!$G$6:$FJ$253,119,FALSE) -> 12
A24: 160 | B24: MOSELLE | C24: 42 | D24: MOSELLE EST | E24: =VLOOKUP($C24,'RECAP SECT'!$G$6:$FJ$253,3,FALSE) -> 76.7 | F24: =VLOOKUP($C24,'RECAP SECT'!$G$6:$FJ$253,109,FALSE) -> 2.14 | G24: =VLOOKUP($C24,'RECAP SECT'!$G$6:$FJ$253,110,FALSE) -> 0.20 | H24: =VLOOKUP($C24,'RECAP SECT'!$G$6:$FJ$253,111,FALSE) -> 80% | I24: =VLOOKUP($C24,'RECAP SECT'!$G$6:$FJ$253,112,FALSE) -> 13 | J24: =VLOOKUP($C24,'RECAP SECT'!$G$6:$FJ$253,113,FALSE) -> 0.82 | K24: =VLOOKUP($C24,'RECAP SECT'!$G$6:$FJ$253,114,FALSE) -> 0.23 | L24: =VLOOKUP($C24,'RECAP SECT'!$G$6:$FJ$253,115,FALSE) -> 64% | M24: =VLOOKUP($C24,'RECAP SECT'!$G$6:$FJ$253,116,FALSE) -> 12 | N24: =VLOOKUP($C24,'RECAP SECT'!$G$6:$FJ$253,117,FALSE) -> 74% | O24: =VLOOKUP($C24,'RECAP SECT'!$G$6:$FJ$253,118,FALSE) -> 68% | P24: =VLOOKUP($C24,'RECAP SECT'!$G$6:$FJ$253,119,FALSE) -> 15
A25: 160 | B25: MOSELLE | C25: 44 | D25: MOSELLE NORD | E25: =VLOOKUP($C25,'RECAP SECT'!$G$6:$FJ$253,3,FALSE) -> 69.6 | F25: =VLOOKUP($C25,'RECAP SECT'!$G$6:$FJ$253,109,FALSE) -> 4.81 | G25: =VLOOKUP($C25,'RECAP SECT'!$G$6:$FJ$253,110,FALSE) -> 0.48 | H25: =VLOOKUP($C25,'RECAP SECT'!$G$6:$FJ$253,111,FALSE) -> 54% | I25: =VLOOKUP($C25,'RECAP SECT'!$G$6:$FJ$253,112,FALSE) -> 5 | J25: =VLOOKUP($C25,'RECAP SECT'!$G$6:$FJ$253,113,FALSE) -> 0.56 | K25: =VLOOKUP($C25,'RECAP SECT'!$G$6:$FJ$253,114,FALSE) -> 0.22 | L25: =VLOOKUP($C25,'RECAP SECT'!$G$6:$FJ$253,115,FALSE) -> 67% | M25: =VLOOKUP($C25,'RECAP SECT'!$G$6:$FJ$253,116,FALSE) -> 15 | N25: =VLOOKUP($C25,'RECAP SECT'!$G$6:$FJ$253,117,FALSE) -> 59% | O25: =VLOOKUP($C25,'RECAP SECT'!$G$6:$FJ$253,118,FALSE) -> 53% | P25: =VLOOKUP($C25,'RECAP SECT'!$G$6:$FJ$253,119,FALSE) -> 9
A26: 80 | B26: VOSGES | C26: 57 | D26: EPINAL | E26: =VLOOKUP($C26,'RECAP SECT'!$G$6:$FJ$253,3,FALSE) -> 62.9 | F26: =VLOOKUP($C26,'RECAP SECT'!$G$6:$FJ$253,109,FALSE) -> 2.43 | G26: =VLOOKUP($C26,'RECAP SECT'!$G$6:$FJ$253,110,FALSE) -> 0.28 | H26: =VLOOKUP($C26,'RECAP SECT'!$G$6:$FJ$253,111,FALSE) -> 73% | I26: =VLOOKUP($C26,'RECAP SECT'!$G$6:$FJ$253,112,FALSE) -> 10 | J26: =VLOOKUP($C26,'RECAP SECT'!$G$6:$FJ$253,113,FALSE) -> 0.52 | K26: =VLOOKUP($C26,'RECAP SECT'!$G$6:$FJ$253,114,FALSE) -> 0.22 | L26: =VLOOKUP($C26,'RECAP SECT'!$G$6:$FJ$253,115,FALSE) -> 66% | M26: =VLOOKUP($C26,'RECAP SECT'!$G$6:$FJ$253,116,FALSE) -> 14 | N26: =VLOOKUP($C26,'RECAP SECT'!$G$6:$FJ$253,117,FALSE) -> 70% | O26: =VLOOKUP($C26,'RECAP SECT'!$G$6:$FJ$253,118,FALSE) -> 65% | P26: =VLOOKUP($C26,'RECAP SECT'!$G$6:$FJ$253,119,FALSE) -> 13
A27: 80 | B27: VOSGES | C27: 55 | D27: SAINT DIE | E27: =VLOOKUP($C27,'RECAP SECT'!$G$6:$FJ$253,3,FALSE) -> 50.2 | F27: =VLOOKUP($C27,'RECAP SECT'!$G$6:$FJ$253,109,FALSE) -> 3.19 | G27: =VLOOKUP($C27,'RECAP SECT'!$G$6:$FJ$253,110,FALSE) -> 0.32 | H27: =VLOOKUP($C27,'RECAP SECT'!$G$6:$FJ$253,111,FALSE) -> 69% | I27: =VLOOKUP($C27,'RECAP SECT'!$G$6:$FJ$253,112,FALSE) -> 9 | J27: =VLOOKUP($C27,'RECAP SECT'!$G$6:$FJ$253,113,FALSE) -> 2.17 | K27: =VLOOKUP($C27,'RECAP SECT'!$G$6:$FJ$253,114,FALSE) -> 0.40 | L27: =VLOOKUP($C27,'RECAP SECT'!$G$6:$FJ$253,115,FALSE) -> 38% | M27: =VLOOKUP($C27,'RECAP SECT'!$G$6:$FJ$253,116,FALSE) -> 6 | N27: =VLOOKUP($C27,'RECAP SECT'!$G$6:$FJ$253,117,FALSE) -> 57% | O27: =VLOOKUP($C27,'RECAP SECT'!$G$6:$FJ$253,118,FALSE) -> 51% | P27: =VLOOKUP($C27,'RECAP SECT'!$G$6:$FJ$253,119,FALSE) -> 8
A28: Total CEGEE Directions Régionales | E28: =SUM(E10:E27) -> 1195

Sheet SE_CONQUETE
B1: Accueil | F1: BAROMETRE BDD - TERRITOIRES
F2: CLIENTS
F3: =ACCUEIL!F7 -> 2020-05-10
F7: Evolution nette clients Bancarisés Principaux | J7: Evolution nette relations PREMIUM | N7: Evolution nette clients Jeunes équipés | R7: Evolution nette clients Pro actif équipés | V7: Total Clients
H8: coef | I8: ='RECAP DIRCOM'!N4 -> 4% | L8: coef | M8: ='RECAP DIRCOM'!R4 -> 5% | P8: coef | Q8: ='RECAP DIRCOM'!V4 -> 3% | T8: coef | U8: ='RECAP DIRCOM'!Z4 -> 3% | W8: coef | X8: ='RECAP DIRCOM'!AC4 -> 15%
B9: Direction | C9: eds | D9: Territoire | E9: ETP perf | F9: Nb / ETP | G9: PNB / ETP | H9: % Ecart au 1er | I9: Rang | J9: Nb / ETP | K9: PNB / ETP | L9: % Ecart au 1er | M9: Rang | N9: Nb / ETP | O9: PNB / ETP | P9: % Ecart au 1er | Q9: Rang | R9: Nb / ETP | S9: PNB / ETP | T9: % Ecart au 1er | U9: Rang | V9: Moyenne ecart au 1er | W9: % Ecart au 1er | X9: Rang CEGEE
A10: 50 | B10: AUBE HAUTE MARNE | C10: 21 | D10: CHAUMONT | E10: =VLOOKUP($C10,'RECAP SECT'!$G$6:$FJ$253,3,FALSE) -> 36.2 | F10: =VLOOKUP($C10,'RECAP SECT'!$G$6:$FJ$253,5,FALSE) -> -0.11 | G10: =VLOOKUP($C10,'RECAP SECT'!$G$6:$FJ$253,6,FALSE) -> -0.06 | H10: =VLOOKUP($C10,'RECAP SECT'!$G$6:$FJ$253,7,FALSE) -> 28% | I10: =VLOOKUP($C10,'RECAP SECT'!$G$6:$FJ$253,8,FALSE) -> 4 | J10: =VLOOKUP($C10,'RECAP SECT'!$G$6:$FJ$253,9,FALSE) -> 0.33 | K10: =VLOOKUP($C10,'RECAP SECT'!$G$6:$FJ$253,10,FALSE) -> 0.23 | L10: =VLOOKUP($C10,'RECAP SECT'!$G$6:$FJ$253,11,FALSE) -> 75% | M10: =VLOOKUP($C10,'RECAP SECT'!$G$6:$FJ$253,12,FALSE) -> 15 | N10: =VLOOKUP($C10,'RECAP SECT'!$G$6:$FJ$253,13,FALSE) -> -2.60 | O10: =VLOOKUP($C10,'RECAP SECT'!$G$6:$FJ$253,14,FALSE) -> -0.39 | P10: =VLOOKUP($C10,'RECAP SECT'!$G$6:$FJ$253,15,FALSE) -> 87% | Q10: =VLOOKUP($C10,'RECAP SECT'!$G$6:$FJ$253,16,FALSE) -> 11 | R10: =VLOOKUP($C10,'RECAP SECT'!$G$6:$FJ$253,17,FALSE) -> 17% | S10: =VLOOKUP($C10,'RECAP SECT'!$G$6:$FJ$253,18,FALSE) -> 41% | T10: =VLOOKUP($C10,'RECAP SECT'!$G$6:$FJ$253,19,FALSE) -> 0% | U10: =VLOOKUP($C10,'RECAP SECT'!$G$6:$FJ$253,20,FALSE) -> 1 | V10: =VLOOKUP($C10,'RECAP SECT'!$G$6:$FJ$253,21,FALSE) -> 50% | W10: =VLOOKUP($C10,'RECAP SECT'!$G$6:$FJ$253,22,FALSE) -> 39% | X10: =VLOOKUP($C10,'RECAP SECT'!$G$6:$FJ$253,23,FALSE) -> 3
A11: 50 | B11: AUBE HAUTE MARNE | C11: 14 | D11: TROYES | E11: =VLOOKUP($C11,'RECAP SECT'!$G$6:$FJ$253,3,FALSE) -> 69.8 | F11: =VLOOKUP($C11,'RECAP SECT'!$G$6:$FJ$253,5,FALSE) -> -1.38 | G11: =VLOOKUP($C11,'RECAP SECT'!$G$6:$FJ$253,6,FALSE) -> -0.69 | H11: =VLOOKUP($C11,'RECAP SECT'!$G$6:$FJ$253,7,FALSE) -> 65% | I11: =VLOOKUP($C11,'RECAP SECT'!$G$6:$FJ$253,8,FALSE) -> 11 | J11: =VLOOKUP($C11,'RECAP SECT'!$G$6:$FJ$253,9,FALSE) -> 1.30 | K11: =VLOOKUP($C11,'RECAP SECT'!$G$6:$FJ$253,10,FALSE) -> 0.91 | L11: =VLOOKUP($C11,'RECAP SECT'!$G$6:$FJ$253,11,FALSE) -> 0% | M11: =VLOOKUP($C11,'RECAP SECT'!$G$6:$FJ$253,12,FALSE) -> 1 | N11: =VLOOKUP($C11,'RECAP SECT'!$G$6:$FJ$253,13,FALSE) -> -3.21 | O11: =VLOOKUP($C11,'RECAP SECT'!$G$6:$FJ$253,14,FALSE) -> -0.48 | P11: =VLOOKUP($C11,'RECAP SECT'!$G$6:$FJ$253,15,FALSE) -> 118% | Q11: =VLOOKUP($C11,'RECAP SECT'!$G$6:$FJ$253,16,FALSE) -> 15 | R11: =VLOOKUP($C11,'RECAP SECT'!$G$6:$FJ$253,17,FALSE) -> -4% | S11: =VLOOKUP($C11,'RECAP SECT'!$G$6:$FJ$253,18,FALSE) -> -11% | T11: =VLOOKUP($C11,'RECAP SECT'!$G$6:$FJ$253,19,FALSE) -> 114% | U11: =VLOOKUP($C11,'RECAP SECT'!$G$6:$FJ$253,20,FALSE) -> 13 | V11: =VLOOKUP($C11,'RECAP SECT'!$G$6:$FJ$253,21,FALSE) -> 64% | W11: =VLOOKUP($C11,'RECAP SECT'!$G$6:$FJ$253,22,FALSE) -> 53% | X11: =VLOOKUP($C11,'RECAP SECT'!$G$6:$FJ$253,23,FALSE) -> 9
A12: 262 | B12: BAS-RHIN | C12: 5060 | D12: HAGUENAU | E12: =VLOOKUP($C12,'RECAP SECT'!$G$6:$FJ$253,3,FALSE) -> 80.0 | F12: =VLOOKUP($C12,'RECAP SECT'!$G$6:$FJ$253,5,FALSE) -> -1.38 | G12: =VLOOKUP($C12,'RECAP SECT'!$G$6:$FJ$253,6,FALSE) -> -0.69 | H12: =VLOOKUP($C12,'RECAP SECT'!$G$6:$FJ$253,7,FALSE) -> 65% | I12: =VLOOKUP($C12,'RECAP SECT'!$G$6:$FJ$253,8,FALSE) -> 10 | J12: =VLOOKUP($C12,'RECAP SECT'!$G$6:$FJ$253,9,FALSE) -> 0.78 | K12: =VLOOKUP($C12,'RECAP SECT'!$G$6:$FJ$253,10,FALSE) -> 0.54 | L12: =VLOOKUP($C12,'RECAP SECT'!$G$6:$FJ$253,11,FALSE) -> 41% | M12: =VLOOKUP($C12,'RECAP SECT'!$G$6:$FJ$253,12,FALSE) -> 8 | N12: =VLOOKUP($C12,'RECAP SECT'!$G$6:$FJ$253,13,FALSE) -> -2.59 | O12: =VLOOKUP($C12,'RECAP SECT'!$G$6:$FJ$253,14,FALSE) -> -0.39 | P12: =VLOOKUP($C12,'RECAP SECT'!$G$6:$FJ$253,15,FALSE) -> 87% | Q12: =VLOOKUP($C12,'RECAP SECT'!$G$6:$FJ$253,16,FALSE) -> 10 | R12: =VLOOKUP($C12,'RECAP SECT'!$G$6:$FJ$253,17,FALSE) -> -10% | S12: =VLOOKUP($C12,'RECAP SECT'!$G$6:$FJ$253,18,FALSE) -> -25% | T12: =VLOOKUP($C12,'RECAP SECT'!$G$6:$FJ$253,19,FALSE) -> 146% | U12: =VLOOKUP($C12,'RECAP SECT'!$G$6:$FJ$253,20,FALSE) -> 17 | V12: =VLOOKUP($C12,'RECAP SECT'!$G$6:$FJ$253,21,FALSE) -> 77% | W12: =VLOOKUP($C12,'RECAP SECT'!$G$6:$FJ$253,22,FALSE) -> 67% | X12: =VLOOKUP($C12,'RECAP SECT'!$G$6:$FJ$253,23,FALSE) -> 15
A13: 262 | B13: BAS-RHIN | C13: 5101 | D13: SELESTAT | E13: =VLOOKUP($C13,'RECAP SECT'!$G$6:$FJ$253,3,FALSE) -> 64.8 | F13: =VLOOKUP($C13,'RECAP SECT'!$G$6:$FJ$253,5,FALSE) -> -3.19 | G13: =VLOOKUP($C13,'RECAP SECT'!$G$6:$FJ$253,6,FALSE) -> -1.60 | H13: =VLOOKUP($C13,'RECAP SECT'!$G$6:$FJ$253,7,FALSE) -> 119% | I13: =VLOOKUP($C13,'RECAP SECT'!$G$6:$FJ$253,8,FALSE) -> 17 | J13: =VLOOKUP($C13,'RECAP SECT'!$G$6:$FJ$253,9,FALSE) -> 0.43 | K13: =VLOOKUP($C13,'RECAP SECT'!$G$6:$FJ$253,10,FALSE) -> 0.30 | L13: =VLOOKUP($C13,'RECAP SECT'!$G$6:$FJ$253,11,FALSE) -> 67% | M13: =VLOOKUP($C13,'RECAP SECT'!$G$6:$FJ$253,12,FALSE) -> 13 | N13: =VLOOKUP($C13,'RECAP SECT'!$G$6:$FJ$253,13,FALSE) -> -3.86 | O13: =VLOOKUP($C13,'RECAP SECT'!$G$6:$FJ$253,14,FALSE) -> -0.58 | P13: =VLOOKUP($C13,'RECAP SECT'!$G$6:$FJ$253,15,FALSE) -> 150% | Q13: =VLOOKUP($C13,'RECAP SECT'!$G$6:$FJ$253,16,FALSE) -> 18 | R13: =VLOOKUP($C13,'RECAP SECT'!$G$6:$FJ$253,17,FALSE) -> -11% | S13: =VLOOKUP($C13,'RECAP SECT'!$G$6:$FJ$253,18,FALSE) -> -27% | T13: =VLOOKUP($C13,'RECAP SECT'!$G$6:$FJ$253,19,FALSE) -> 150% | U13: =VLOOKUP($C13,'RECAP SECT'!$G$6:$FJ$253,20,FALSE) -> 18 | V13: =VLOOKUP($C13,'RECAP SECT'!$G$6:$FJ$253,21,FALSE) -> 114% | W13: =VLOOKUP($C13,'RECAP SECT'!$G$6:$FJ$253,22,FALSE) -> 103% | X13: =VLOOKUP($C13,'RECAP SECT'!$G$6:$FJ$253,23,FALSE) -> 18
A14: 262 | B14: BAS-RHIN | C14: 5006 | D14: STRASBOURG | E14: =VLOOKUP($C14,'RECAP SECT'!$G$6:$FJ$253,3,FALSE) -> 79.3 | F14: =VLOOKUP($C14,'RECAP SECT'!$G$6:$FJ$253,5,FALSE) -> -1.41 | G14: =VLOOKUP($C14,'RECAP SECT'!$G$6:$FJ$253,6,FALSE) -> -0.71 | H14: =VLOOKUP($C14,'RECAP SECT'!$G$6:$FJ$253,7,FALSE) -> 66% | I14: =VLOOKUP($C14,'RECAP SECT'!$G$6:$FJ$253,8,FALSE) -> 12 | J14: =VLOOKUP($C14,'RECAP SECT'!$G$6:$FJ$253,9,FALSE) -> 0.67 | K14: =VLOOKUP($C14,'RECAP SECT'!$G$6:$FJ$253,10,FALSE) -> 0.47 | L14: =VLOOKUP($C14,'RECAP SECT'!$G$6:$FJ$253,11,FALSE) -> 49% | M14: =VLOOKUP($C14,'RECAP SECT'!$G$6:$FJ$253,12,FALSE) -> 11 | N14: =VLOOKUP($C14,'RECAP SECT'!$G$6:$FJ$253,13,FALSE) -> -1.30 | O14: =VLOOKUP($C14,'RECAP SECT'!$G$6:$FJ$253,14,FALSE) -> -0.19 | P14: =VLOOKUP($C14,'RECAP SECT'!$G$6:$FJ$253,15,FALSE) -> 23% | Q14: =VLOOKUP($C14,'RECAP SECT'!$G$6:$FJ$253,16,FALSE) -> 3 | R14: =VLOOKUP($C14,'RECAP SECT'!$G$6:$FJ$253,17,FALSE) -> 4% | S14: =VLOOKUP($C14,'RECAP SECT'!$G$6:$FJ$253,18,FALSE) -> 9% | T14: =VLOOKUP($C14,'RECAP SECT'!$G$6:$FJ$253,19,FALSE) -> 70% | U14: =VLOOKUP($C14,'RECAP SECT'!$G$6:$FJ$253,20,FALSE) -> 8 | V14: =VLOOKUP($C14,'RECAP SECT'!$G$6:$FJ$253,21,FALSE) -> 53% | W14: =VLOOKUP($C14,'RECAP SECT'!$G$6:$FJ$253,22,FALSE) -> 42% | X14: =VLOOKUP($C14,'RECAP SECT'!$G$6:$FJ$253,23,FALSE) -> 5
A15: 264 | B15: HAUT-RHIN | C15: 5130 | D15: COLMAR | E15: =VLOOKUP($C15,'RECAP SECT'!$G$6:$FJ$253,3,FALSE) -> 68.4 | F15: =VLOOKUP($C15,'RECAP SECT'!$G$6:$FJ$253,5,FALSE) -> -3.08 | G15: =VLOOKUP($C15,'RECAP SECT'!$G$6:$FJ$253,6,FALSE) -> -1.54 | H15: =VLOOKUP($C15,'RECAP SECT'!$G$6:$FJ$253,7,FALSE) -> 115% | I15: =VLOOKUP($C15,'RECAP SECT'!$G$6:$FJ$253,8,FALSE) -> 16 | J15: =VLOOKUP($C15,'RECAP SECT'!$G$6:$FJ$253,9,FALSE) -> 0.95 | K15: =VLOOKUP($C15,'RECAP SECT'!$G$6:$FJ$253,10,FALSE) -> 0.67 | L15: =VLOOKUP($C15,'RECAP SECT'!$G$6:$FJ$253,11,FALSE) -> 27% | M15: =VLOOKUP($C15,'RECAP SECT'!$G$6:$FJ$253,12,FALSE) -> 7 | N15: =VLOOKUP($C15,'RECAP SECT'!$G$6:$FJ$253,13,FALSE) -> -3.27 | O15: =VLOOKUP($C15,'RECAP SECT'!$G$6:$FJ$253,14,FALSE) -> -0.49 | P15: =VLOOKUP($C15,'RECAP SECT'!$G$6:$FJ$253,15,FALSE) -> 121% | Q15: =VLOOKUP($C15,'RECAP SECT'!$G$6:$FJ$253,16,FALSE) -> 16 | R15: =VLOOKUP($C15,'RECAP SECT'!$G$6:$FJ$253,17,FALSE) -> 10% | S15: =VLOOKUP($C15,'RECAP SECT'!$G$6:$FJ$253,18,FALSE) -> 26% | T15: =VLOOKUP($C15,'RECAP SECT'!$G$6:$FJ$253,19,FALSE) -> 35% | U15: =VLOOKUP($C15,'RECAP SECT'!$G$6:$FJ$253,20,FALSE) -> 2 | V15: =VLOOKUP($C15,'RECAP SECT'!$G$6:$FJ$253,21,FALSE) -> 71% | W15: =VLOOKUP($C15,'RECAP SECT'!$G$6:$FJ$253,22,FALSE) -> 60% | X15: =VLOOKUP($C15,'RECAP SECT'!$G$6:$FJ$253,23,FALSE) -> 14
A16: 264 | B16: HAUT-RHIN | C16: 5169 | D16: MULHOUSE | E16: =VLOOKUP($C16,'RECAP SECT'!$G$6:$FJ$253,3,FALSE) -> 64.5 | F16: =VLOOKUP($C16,'RECAP SECT'!$G$6:$FJ$253,5,FALSE) -> -4.27 | G16: =VLOOKUP($C16,'RECAP SECT'!$G$6:$FJ$253,6,FALSE) -> -2.13 | H16: =VLOOKUP($C16,'RECAP SECT'!$G$6:$FJ$253,7,FALSE) -> 150% | I16: =VLOOKUP($C16,'RECAP SECT'!$G$6:$FJ$253,8,FALSE) -> 18 | J16: =VLOOKUP($C16,'RECAP SECT'!$G$6:$FJ$253,9,FALSE) -> 0.76 | K16: =VLOOKUP($C16,'RECAP SECT'!$G$6:$FJ$253,10,FALSE) -> 0.53 | L16: =VLOOKUP($C16,'RECAP SECT'!$G$6:$FJ$253,11,FALSE) -> 42% | M16: =VLOOKUP($C16,'RECAP SECT'!$G$6:$FJ$253,12,FALSE) -> 9 | N16: =VLOOKUP($C16,'RECAP SECT'!$G$6:$FJ$253,13,FALSE) -> -3.78 | O16: =VLOOKUP($C16,'RECAP SECT'!$G$6:$FJ$253,14,FALSE) -> -0.57 | P16: =VLOOKUP($C16,'RECAP SECT'!$G$6:$FJ$253,15,FALSE) -> 146% | Q16: =VLOOKUP($C16,'RECAP SECT'!$G$6:$FJ$253,16,FALSE) -> 17 | R16: =VLOOKUP($C16,'RECAP SECT'!$G$6:$FJ$253,17,FALSE) -> 6% | S16: =VLOOKUP($C16,'RECAP SECT'!$G$6:$FJ$253,18,FALSE) -> 16% | T16: =VLOOKUP($C16,'RECAP SECT'!$G$6:$FJ$253,19,FALSE) -> 57% | U16: =VLOOKUP($C16,'RECAP SECT'!$G$6:$FJ$253,20,FALSE) -> 5 | V16: =VLOOKUP($C16,'RECAP SECT'!$G$6:$FJ$253,21,FALSE) -> 95% | W16: =VLOOKUP($C16,'RECAP SECT'!$G$6:$FJ$253,22,FALSE) -> 84% | X16: =VLOOKUP($C16,'RECAP SECT'!$G$6:$FJ$253,23,FALSE) -> 17
A17: 30 | B17: MARNE-ARDENNES | C17: 6 | D17: CHALONS EN CHAMPAGNE | E17: =VLOOKUP($C17,'RECAP SECT'!$G$6:$FJ$253,3,FALSE) -> 46.4 | F17: =VLOOKUP($C17,'RECAP SECT'!$G$6:$FJ$253,5,FALSE) -> 0.84 | G17: =VLOOKUP($C17,'RECAP SECT'!$G$6:$FJ$253,6,FALSE) -> 0.42 | H17: =VLOOKUP($C17,'RECAP SECT'!$G$6:$FJ$253,7,FALSE) -> 0% | I17: =VLOOKUP($C17,'RECAP SECT'!$G$6:$FJ$253,8,FALSE) -> 1 | J17: =VLOOKUP($C17,'RECAP SECT'!$G$6:$FJ$253,9,FALSE) -> 0.06 | K17: =VLOOKUP($C17,'RECAP SECT'!$G$6:$FJ$253,10,FALSE) -> 0.05 | L17: =VLOOKUP($C17,'RECAP SECT'!$G$6:$FJ$253,11,FALSE) -> 95% | M17: =VLOOKUP($C17,'RECAP SECT'!$G$6:$FJ$253,12,FALSE) -> 17 | N17: =VLOOKUP($C17,'RECAP SECT'!$G$6:$FJ$253,13,FALSE) -> -1.01 | O17: =VLOOKUP($C17,'RECAP SECT'!$G$6:$FJ$253,14,FALSE) -> -0.15 | P17: =VLOOKUP($C17,'RECAP SECT'!$G$6:$FJ$253,15,FALSE) -> 9% | Q17: =VLOOKUP($C17,'RECAP SECT'!$G$6:$FJ$253,16,FALSE) -> 2 | R17: =VLOOKUP($C17,'RECAP SECT'!$G$6:$FJ$253,17,FALSE) -> -2% | S17: =VLOOKUP($C17,'RECAP SECT'!$G$6:$FJ$253,18,FALSE) -> -5% | T17: =VLOOKUP($C17,'RECAP SECT'!$G$6:$FJ$253,19,FALSE) -> 103% | U17: =VLOOKUP($C17,'RECAP SECT'!$G$6:$FJ$253,20,FALSE) -> 12 | V17: =VLOOKUP($C17,'RECAP SECT'!$G$6:$FJ$253,21,FALSE) -> 54% | W17: =VLOOKUP($C17,'RECAP SECT'!$G$6:$FJ$253,22,FALSE) -> 43% | X17: =VLOOKUP($C17,'RECAP SECT'!$G$6:$FJ$253,23,FALSE) -> 7
A18: 30 | B18: MARNE-ARDENNES | C18: 2 | D18: CHARLEVILLE MEZIERES | E18: =VLOOKUP($C18,'RECAP SECT'!$G$6:$FJ$253,3,FALSE) -> 57.5 | F18: =VLOOKUP($C18,'RECAP SECT'!$G$6:$FJ$253,5,FALSE) -> -0.75 | G18: =VLOOKUP($C18,'RECAP SECT'!$G$6:$FJ$253,6,FALSE) -> -0.37 | H18: =VLOOKUP($C18,'RECAP SECT'!$G$6:$FJ$253,7,FALSE) -> 47% | I18: =VLOOKUP($C18,'RECAP SECT'!$G$6:$FJ$253,8,FALSE) -> 6 | J18: =VLOOKUP($C18,'RECAP SECT'!$G$6:$FJ$253,9,FALSE) -> -0.02 | K18: =VLOOKUP($C18,'RECAP SECT'!$G$6:$FJ$253,10,FALSE) -> -0.01 | L18: =VLOOKUP($C18,'RECAP SECT'!$G$6:$FJ$253,11,FALSE) -> 101% | M18: =VLOOKUP($C18,'RECAP SECT'!$G$6:$FJ$253,12,FALSE) -> 18 | N18: =VLOOKUP($C18,'RECAP SECT'!$G$6:$FJ$253,13,FALSE) -> -1.77 | O18: =VLOOKUP($C18,'RECAP SECT'!$G$6:$FJ$253,14,FALSE) -> -0.27 | P18: =VLOOKUP($C18,'RECAP SECT'!$G$6:$FJ$253,15,FALSE) -> 47% | Q18: =VLOOKUP($C18,'RECAP SECT'!$G$6:$FJ$253,16,FALSE) -> 5 | R18: =VLOOKUP($C18,'RECAP SECT'!$G$6:$FJ$253,17,FALSE) -> 5% | S18: =VLOOKUP($C18,'RECAP SECT'!$G$6:$FJ$253,18,FALSE) -> 13% | T18: =VLOOKUP($C18,'RECAP SECT'!$G$6:$FJ$253,19,FALSE) -> 62% | U18: =VLOOKUP($C18,'RECAP SECT'!$G$6:$FJ$253,20,FALSE) -> 7 | V18: =VLOOKUP($C18,'RECAP SECT'!$G$6:$FJ$253,21,FALSE) -> 68% | W18: =VLOOKUP($C18,'RECAP SECT'!$G$6:$FJ$253,22,FALSE) -> 57% | X18: =VLOOKUP($C18,'RECAP SECT'!$G$6:$FJ$253,23,FALSE) -> 10
A19: 30 | B19: MARNE-ARDENNES | C19: 11 | D19: REIMS | E19: =VLOOKUP($C19,'RECAP SECT'!$G$6:$FJ$253,3,FALSE) -> 80.4 | F19: =VLOOKUP($C19,'RECAP SECT'!$G$6:$FJ$253,5,FALSE) -> 0.58 | G19: =VLOOKUP($C19,'RECAP SECT'!$G$6:$FJ$253,6,FALSE) -> 0.29 | H19: =VLOOKUP($C19,'RECAP SECT'!$G$6:$FJ$253,7,FALSE) -> 7% | I19: =VLOOKUP($C19,'RECAP SECT'!$G$6:$FJ$253,8,FALSE) -> 3 | J19: =VLOOKUP($C19,'RECAP SECT'!$G$6:$FJ$253,9,FALSE) -> 1.11 | K19: =VLOOKUP($C19,'RECAP SECT'!$G$6:$FJ$253,10,FALSE) -> 0.77 | L19: =VLOOKUP($C19,'RECAP SECT'!$G$6:$FJ$253,11,FALSE) -> 15% | M19: =VLOOKUP($C19,'RECAP SECT'!$G$6:$FJ$253,12,FALSE) -> 4 | N19: =VLOOKUP($C19,'RECAP SECT'!$G$6:$FJ$253,13,FALSE) -> -2.13 | O19: =VLOOKUP($C19,'RECAP SECT'!$G$6:$FJ$253,14,FALSE) -> -0.32 | P19: =VLOOKUP($C19,'RECAP SECT'!$G$6:$FJ$253,15,FALSE) -> 64% | Q19: =VLOOKUP($C19,'RECAP SECT'!$G$6:$FJ$253,16,FALSE) -> 6 | R19: =VLOOKUP($C19,'RECAP SECT'!$G$6:$FJ$253,17,FALSE) -> -5% | S19: =VLOOKUP($C19,'RECAP SECT'!$G$6:$FJ$253,18,FALSE) -> -12% | T19: =VLOOKUP($C19,'RECAP SECT'!$G$6:$FJ$253,19,FALSE) -> 118% | U19: =VLOOKUP($C19,'RECAP SECT'!$G$6:$FJ$253,20,FALSE) -> 16 | V19: =VLOOKUP($C19,'RECAP SECT'!$G$6:$FJ$253,21,FALSE) -> 43% | W19: =VLOOKUP($C19,'RECAP SECT'!$G$6:$FJ$253,22,FALSE) -> 33% | X19: =VLOOKUP($C19,'RECAP SECT'!$G$6:$FJ$253,23,FALSE) -> 2
A20: 110 | B20: MEURTHE ET MOSELLE MEUSE | C20: 26 | D20: NANCY | E20: =VLOOKUP($C20,'RECAP SECT'!$G$6:$FJ$253,3,FALSE) -> 68.0 | F20: =VLOOKUP($C20,'RECAP SECT'!$G$6:$FJ$253,5,FALSE) -> -0.68 | G20: =VLOOKUP($C20,'RECAP SECT'!$G$6:$FJ$253,6,FALSE) -> -0.34 | H20: =VLOOKUP($C20,'RECAP SECT'!$G$6:$FJ$253,7,FALSE) -> 45% | I20: =VLOOKUP($C20,'RECAP SECT'!$G$6:$FJ$253,8,FALSE) -> 5 | J20: =VLOOKUP($C20,'RECAP SECT'!$G$6:$FJ$253,9,FALSE) -> 0.97 | K20: =VLOOKUP($C20,'RECAP SECT'!$G$6:$FJ$253,10,FALSE) -> 0.68 | L20: =VLOOKUP($C20,'RECAP SECT'!$G$6:$FJ$253,11,FALSE) -> 26% | M20: =VLOOKUP($C20,'RECAP SECT'!$G$6:$FJ$253,12,FALSE) -> 6 | N20: =VLOOKUP($C20,'RECAP SECT'!$G$6:$FJ$253,13,FALSE) -> -1.54 | O20: =VLOOKUP($C20,'RECAP SECT'!$G$6:$FJ$253,14,FALSE) -> -0.23 | P20: =VLOOKUP($C20,'RECAP SECT'!$G$6:$FJ$253,15,FALSE) -> 35% | Q20: =VLOOKUP($C20,'RECAP SECT'!$G$6:$FJ$253,16,FALSE) -> 4 | R20: =VLOOKUP($C20,'RECAP SECT'!$G$6:$FJ$253,17,FALSE) -> -4% | S20: =VLOOKUP($C20,'RECAP SECT'!$G$6:$FJ$253,18,FALSE) -> -11% | T20: =VLOOKUP($C20,'RECAP SECT'!$G$6:$FJ$253,19,FALSE) -> 115% | U20: =VLOOKUP($C20,'RECAP SECT'!$G$6:$FJ$253,20,FALSE) -> 14 | V20: =VLOOKUP($C20,'RECAP SECT'!$G$6:$FJ$253,21,FALSE) -> 50% | W20: =VLOOKUP($C20,'RECAP SECT'!$G$6:$FJ$253,22,FALSE) -> 40% | X20: =VLOOKUP($C20,'RECAP SECT'!$G$6:$FJ$253,23,FALSE) -> 4
A21: 110 | B21: MEURTHE ET MOSELLE MEUSE | C21: 27 | D21: PONT A MOUSSON | E21: =VLOOKUP($C21,'RECAP SECT'!$G$6:$FJ$253,3,FALSE) -> 76.5 | F21: =VLOOKUP($C21,'RECAP SECT'!$G$6:$FJ$253,5,FALSE) -> 0.64 | G21: =VLOOKUP($C21,'RECAP SECT'!$G$6:$FJ$253,6,FALSE) -> 0.32 | H21: =VLOOKUP($C21,'RECAP SECT'!$G$6:$FJ$253,7,FALSE) -> 6% | I21: =VLOOKUP($C21,'RECAP SECT'!$G$6:$FJ$253,8,FALSE) -> 2 | J21: =VLOOKUP($C21,'RECAP SECT'!$G$6:$FJ$253,9,FALSE) -> 1.27 | K21: =VLOOKUP($C21,'RECAP SECT'!$G$6:$FJ$253,10,FALSE) -> 0.89 | L21: =VLOOKUP($C21,'RECAP SECT'!$G$6:$FJ$253,11,FALSE) -> 3% | M21: =VLOOKUP($C21,'RECAP SECT'!$G$6:$FJ$253,12,FALSE) -> 2 | N21: =VLOOKUP($C21,'RECAP SECT'!$G$6:$FJ$253,13,FALSE) -> -0.84 | O21: =VLOOKUP($C21,'RECAP SECT'!$G$6:$FJ$253,14,FALSE) -> -0.13 | P21: =VLOOKUP($C21,'RECAP SECT'!$G$6:$FJ$253,15,FALSE) -> 0% | Q21: =VLOOKUP($C21,'RECAP SECT'!$G$6:$FJ$253,16,FALSE) -> 1 | R21: =VLOOKUP($C21,'RECAP SECT'!$G$6:$FJ$253,17,FALSE) -> 9% | S21: =VLOOKUP($C21,'RECAP SECT'!$G$6:$FJ$253,18,FALSE) -> 23% | T21: =VLOOKUP($C21,'RECAP SECT'!$G$6:$FJ$253,19,FALSE) -> 41% | U21: =VLOOKUP($C21,'RECAP SECT'!$G$6:$FJ$253,20,FALSE) -> 3 | V21: =VLOOKUP($C21,'RECAP SECT'!$G$6:$FJ$253,21,FALSE) -> 11% | W21: =VLOOKUP($C21,'RECAP SECT'!$G$6:$FJ$253,22,FALSE) -> 0% | X21: =VLOOKUP($C21,'RECAP SECT'!$G$6:$FJ$253,23,FALSE) -> 1
A22: 110 | B22: MEURTHE ET MOSELLE MEUSE | C22: 31 | D22: VERDUN | E22: =VLOOKUP($C22,'RECAP SECT'!$G$6:$FJ$253,3,FALSE) -> 54.4 | F22: =VLOOKUP($C22,'RECAP SECT'!$G$6:$FJ$253,5,FALSE) -> -1.12 | G22: =VLOOKUP($C22,'RECAP SECT'!$G$6:$FJ$253,6,FALSE) -> -0.56 | H22: =VLOOKUP($C22,'RECAP SECT'!$G$6:$FJ$253,7,FALSE) -> 58% | I22: =VLOOKUP($C22,'RECAP SECT'!$G$6:$FJ$253,8,FALSE) -> 9 | J22: =VLOOKUP($C22,'RECAP SECT'!$G$6:$FJ$253,9,FALSE) -> 0.17 | K22: =VLOOKUP($C22,'RECAP SECT'!$G$6:$FJ$253,10,FALSE) -> 0.12 | L22: =VLOOKUP($C22,'RECAP SECT'!$G$6:$FJ$253,11,FALSE) -> 87% | M22: =VLOOKUP($C22,'RECAP SECT'!$G$6:$FJ$253,12,FALSE) -> 16 | N22: =VLOOKUP($C22,'RECAP SECT'!$G$6:$FJ$253,13,FALSE) -> -2.28 | O22: =VLOOKUP($C22,'RECAP SECT'!$G$6:$FJ$253,14,FALSE) -> -0.34 | P22: =VLOOKUP($C22,'RECAP SECT'!$G$6:$FJ$253,15,FALSE) -> 72% | Q22: =VLOOKUP($C22,'RECAP SECT'!$G$6:$FJ$253,16,FALSE) -> 8 | R22: =VLOOKUP($C22,'RECAP SECT'!$G$6:$FJ$253,17,FALSE) -> 6% | S22: =VLOOKUP($C22,'RECAP SECT'!$G$6:$FJ$253,18,FALSE) -> 14% | T22: =VLOOKUP($C22,'RECAP SECT'!$G$6:$FJ$253,19,FALSE) -> 61% | U22: =VLOOKUP($C22,'RECAP SECT'!$G$6:$FJ$253,20,FALSE) -> 6 | V22: =VLOOKUP($C22,'RECAP SECT'!$G$6:$FJ$253,21,FALSE) -> 71% | W22: =VLOOKUP($C22,'RECAP SECT'!$G$6:$FJ$253,22,FALSE) -> 60% | X22: =VLOOKUP($C22,'RECAP SECT'!$G$6:$FJ$253,23,FALSE) -> 13
A23: 160 | B23: MOSELLE | C23: 45 | D23: METZ | E23: =VLOOKUP($C23,'RECAP SECT'!$G$6:$FJ$253,3,FALSE) -> 89.4 | F23: =VLOOKUP($C23,'RECAP SECT'!$G$6:$FJ$253,5,FALSE) -> -0.78 | G23: =VLOOKUP($C23,'RECAP SECT'!$G$6:$FJ$253,6,FALSE) -> -0.39 | H23: =VLOOKUP($C23,'RECAP SECT'!$G$6:$FJ$253,7,FALSE) -> 48% | I23: =VLOOKUP($C23,'RECAP SECT'!$G$6:$FJ$253,8,FALSE) -> 7 | J23: =VLOOKUP($C23,'RECAP SECT'!$G$6:$FJ$253,9,FALSE) -> 1.19 | K23: =VLOOKUP($C23,'RECAP SECT'!$G$6:$FJ$253,10,FALSE) -> 0.83 | L23: =VLOOKUP($C23,'RECAP SECT'!$G$6:$FJ$253,11,FALSE) -> 9% | M23: =VLOOKUP($C23,'RECAP SECT'!$G$6:$FJ$253,12,FALSE) -> 3 | N23: =VLOOKUP($C23,'RECAP SECT'!$G$6:$FJ$253,13,FALSE) -> -2.23 | O23: =VLOOKUP($C23,'RECAP SECT'!$G$6:$FJ$253,14,FALSE) -> -0.33 | P23: =VLOOKUP($C23,'RECAP SECT'!$G$6:$FJ$253,15,FALSE) -> 69% | Q23: =VLOOKUP($C23,'RECAP SECT'!$G$6:$FJ$253,16,FALSE) -> 7 | R23: =VLOOKUP($C23,'RECAP SECT'!$G$6:$FJ$253,17,FALSE) -> -4% | S23: =VLOOKUP($C23,'RECAP SECT'!$G$6:$FJ$253,18,FALSE) -> -11% | T23: =VLOOKUP($C23,'RECAP SECT'!$G$6:$FJ$253,19,FALSE) -> 115% | U23: =VLOOKUP($C23,'RECAP SECT'!$G$6:$FJ$253,20,FALSE) -> 15 | V23: =VLOOKUP($C23,'RECAP SECT'!$G$6:$FJ$253,21,FALSE) -> 53% | W23: =VLOOKUP($C23,'RECAP SECT'!$G$6:$FJ$253,22,FALSE) -> 42% | X23: =VLOOKUP($C23,'RECAP SECT'!$G$6:$FJ$253,23,FALSE) -> 6
A24: 160 | B24: MOSELLE | C24: 42 | D24: MOSELLE EST | E24: =VLOOKUP($C24,'RECAP SECT'!$G$6:$FJ$253,3,FALSE) -> 76.7 | F24: =VLOOKUP($C24,'RECAP SECT'!$G$6:$FJ$253,5,FALSE) -> -1.43 | G24: =VLOOKUP($C24,'RECAP SECT'!$G$6:$FJ$253,6,FALSE) -> -0.72 | H24: =VLOOKUP($C24,'RECAP SECT'!$G$6:$FJ$253,7,FALSE) -> 67% | I24: =VLOOKUP($C24,'RECAP SECT'!$G$6:$FJ$253,8,FALSE) -> 13 | J24: =VLOOKUP($C24,'RECAP SECT'!$G$6:$FJ$253,9,FALSE) -> 0.69 | K24: =VLOOKUP($C24,'RECAP SECT'!$G$6:$FJ$253,10,FALSE) -> 0.48 | L24: =VLOOKUP($C24,'RECAP SECT'!$G$6:$FJ$253,11,FALSE) -> 47% | M24: =VLOOKUP($C24,'RECAP SECT'!$G$6:$FJ$253,12,FALSE) -> 10 | N24: =VLOOKUP($C24,'RECAP SECT'!$G$6:$FJ$253,13,FALSE) -> -2.90 | O24: =VLOOKUP($C24,'RECAP SECT'!$G$6:$FJ$253,14,FALSE) -> -0.43 | P24: =VLOOKUP($C24,'RECAP SECT'!$G$6:$FJ$253,15,FALSE) -> 102% | Q24: =VLOOKUP($C24,'RECAP SECT'!$G$6:$FJ$253,16,FALSE) -> 12 | R24: =VLOOKUP($C24,'RECAP SECT'!$G$6:$FJ$253,17,FALSE) -> 1% | S24: =VLOOKUP($C24,'RECAP SECT'!$G$6:$FJ$253,18,FALSE) -> 3% | T24: =VLOOKUP($C24,'RECAP SECT'!$G$6:$FJ$253,19,FALSE) -> 84% | U24: =VLOOKUP($C24,'RECAP SECT'!$G$6:$FJ$253,20,FALSE) -> 10 | V24: =VLOOKUP($C24,'RECAP SECT'!$G$6:$FJ$253,21,FALSE) -> 71% | W24: =VLOOKUP($C24,'RECAP SECT'!$G$6:$FJ$253,22,FALSE) -> 60% | X24: =VLOOKUP($C24,'RECAP SECT'!$G$6:$FJ$253,23,FALSE) -> 11
A25: 160 | B25: MOSELLE | C25: 44 | D25: MOSELLE NORD | E25: =VLOOKUP($C25,'RECAP SECT'!$G$6:$FJ$253,3,FALSE) -> 69.6 | F25: =VLOOKUP($C25,'RECAP SECT'!$G$6:$FJ$253,5,FALSE) -> -1.97 | G25: =VLOOKUP($C25,'RECAP SECT'!$G$6:$FJ$253,6,FALSE) -> -0.98 | H25: =VLOOKUP($C25,'RECAP SECT'!$G$6:$FJ$253,7,FALSE) -> 82% | I25: =VLOOKUP($C25,'RECAP SECT'!$G$6:$FJ$253,8,FALSE) -> 15 | J25: =VLOOKUP($C25,'RECAP SECT'!$G$6:$FJ$253,9,FALSE) -> 0.60 | K25: =VLOOKUP($C25,'RECAP SECT'!$G$6:$FJ$253,10,FALSE) -> 0.42 | L25: =VLOOKUP($C25,'RECAP SECT'!$G$6:$FJ$253,11,FALSE) -> 54% | M25: =VLOOKUP($C25,'RECAP SECT'!$G$6:$FJ$253,12,FALSE) -> 12 | N25: =VLOOKUP($C25,'RECAP SECT'!$G$6:$FJ$253,13,FALSE) -> -2.90 | O25: =VLOOKUP($C25,'RECAP SECT'!$G$6:$FJ$253,14,FALSE) -> -0.44 | P25: =VLOOKUP($C25,'RECAP SECT'!$G$6:$FJ$253,15,FALSE) -> 102% | Q25: =VLOOKUP($C25,'RECAP SECT'!$G$6:$FJ$253,16,FALSE) -> 13 | R25: =VLOOKUP($C25,'RECAP SECT'!$G$6:$FJ$253,17,FALSE) -> 7% | S25: =VLOOKUP($C25,'RECAP SECT'!$G$6:$FJ$253,18,FALSE) -> 18% | T25: =VLOOKUP($C25,'RECAP SECT'!$G$6:$FJ$253,19,FALSE) -> 51% | U25: =VLOOKUP($C25,'RECAP SECT'!$G$6:$FJ$253,20,FALSE) -> 4 | V25: =VLOOKUP($C25,'RECAP SECT'!$G$6:$FJ$253,21,FALSE) -> 71% | W25: =VLOOKUP($C25,'RECAP SECT'!$G$6:$FJ$253,22,FALSE) -> 60% | X25: =VLOOKUP($C25,'RECAP SECT'!$G$6:$FJ$253,23,FALSE) -> 12
A26: 80 | B26: VOSGES | C26: 57 | D26: EPINAL | E26: =VLOOKUP($C26,'RECAP SECT'!$G$6:$FJ$253,3,FALSE) -> 62.9 | F26: =VLOOKUP($C26,'RECAP SECT'!$G$6:$FJ$253,5,FALSE) -> -1.11 | G26: =VLOOKUP($C26,'RECAP SECT'!$G$6:$FJ$253,6,FALSE) -> -0.56 | H26: =VLOOKUP($C26,'RECAP SECT'!$G$6:$FJ$253,7,FALSE) -> 57% | I26: =VLOOKUP($C26,'RECAP SECT'!$G$6:$FJ$253,8,FALSE) -> 8 | J26: =VLOOKUP($C26,'RECAP SECT'!$G$6:$FJ$253,9,FALSE) -> 1.05 | K26: =VLOOKUP($C26,'RECAP SECT'!$G$6:$FJ$253,10,FALSE) -> 0.73 | L26: =VLOOKUP($C26,'RECAP SECT'!$G$6:$FJ$253,11,FALSE) -> 20% | M26: =VLOOKUP($C26,'RECAP SECT'!$G$6:$FJ$253,12,FALSE) -> 5 | N26: =VLOOKUP($C26,'RECAP SECT'!$G$6:$FJ$253,13,FALSE) -> -2.45 | O26: =VLOOKUP($C26,'RECAP SECT'!$G$6:$FJ$253,14,FALSE) -> -0.37 | P26: =VLOOKUP($C26,'RECAP SECT'!$G$6:$FJ$253,15,FALSE) -> 80% | Q26: =VLOOKUP($C26,'RECAP SECT'!$G$6:$FJ$253,16,FALSE) -> 9 | R26: =VLOOKUP($C26,'RECAP SECT'!$G$6:$FJ$253,17,FALSE) -> 0% | S26: =VLOOKUP($C26,'RECAP SECT'!$G$6:$FJ$253,18,FALSE) -> 0% | T26: =VLOOKUP($C26,'RECAP SECT'!$G$6:$FJ$253,19,FALSE) -> 91% | U26: =VLOOKUP($C26,'RECAP SECT'!$G$6:$FJ$253,20,FALSE) -> 11 | V26: =VLOOKUP($C26,'RECAP SECT'!$G$6:$FJ$253,21,FALSE) -> 56% | W26: =VLOOKUP($C26,'RECAP SECT'!$G$6:$FJ$253,22,FALSE) -> 45% | X26: =VLOOKUP($C26,'RECAP SECT'!$G$6:$FJ$253,23,FALSE) -> 8
A27: 80 | B27: VOSGES | C27: 55 | D27: SAINT DIE | E27: =VLOOKUP($C27,'RECAP SECT'!$G$6:$FJ$253,3,FALSE) -> 50.2 | F27: =VLOOKUP($C27,'RECAP SECT'!$G$6:$FJ$253,5,FALSE) -> -1.93 | G27: =VLOOKUP($C27,'RECAP SECT'!$G$6:$FJ$253,6,FALSE) -> -0.97 | H27: =VLOOKUP($C27,'RECAP SECT'!$G$6:$FJ$253,7,FALSE) -> 81% | I27: =VLOOKUP($C27,'RECAP SECT'!$G$6:$FJ$253,8,FALSE) -> 14 | J27: =VLOOKUP($C27,'RECAP SECT'!$G$6:$FJ$253,9,FALSE) -> 0.42 | K27: =VLOOKUP($C27,'RECAP SECT'!$G$6:$FJ$253,10,FALSE) -> 0.29 | L27: =VLOOKUP($C27,'RECAP SECT'!$G$6:$FJ$253,11,FALSE) -> 68% | M27: =VLOOKUP($C27,'RECAP SECT'!$G$6:$FJ$253,12,FALSE) -> 14 | N27: =VLOOKUP($C27,'RECAP SECT'!$G$6:$FJ$253,13,FALSE) -> -2.97 | O27: =VLOOKUP($C27,'RECAP SECT'!$G$6:$FJ$253,14,FALSE) -> -0.44 | P27: =VLOOKUP($C27,'RECAP SECT'!$G$6:$FJ$253,15,FALSE) -> 106% | Q27: =VLOOKUP($C27,'RECAP SECT'!$G$6:$FJ$253,16,FALSE) -> 14 | R27: =VLOOKUP($C27,'RECAP SECT'!$G$6:$FJ$253,17,FALSE) -> 2% | S27: =VLOOKUP($C27,'RECAP SECT'!$G$6:$FJ$253,18,FALSE) -> 5% | T27: =VLOOKUP($C27,'RECAP SECT'!$G$6:$FJ$253,19,FALSE) -> 80% | U27: =VLOOKUP($C27,'RECAP SECT'!$G$6:$FJ$253,20,FALSE) -> 9 | V27: =VLOOKUP($C27,'RECAP SECT'!$G$6:$FJ$253,21,FALSE) -> 81% | W27: =VLOOKUP($C27,'RECAP SECT'!$G$6:$FJ$253,22,FALSE) -> 71% | X27: =VLOOKUP($C27,'RECAP SECT'!$G$6:$FJ$253,23,FALSE) -> 16
A28: Total CEGEE Directions Régionales | E28: =SUM(E10:E27) -> 1195

Sheet SE_ACCELER
B1: Accueil | F1: BAROMETRE BDD - TERRITOIRES
F2: ACCELERATEURS DE PNB
F3: =ACCUEIL!F7 -> 2020-05-10
F7: Ventes brutes SED finalisées | J7: Clients Equipés E documents | N7: Economie Opt'in | R7: Remises Commerciales | V7: Total Accélérateurs PNB
H8: coef | I8: ='RECAP DIRCOM'!EE4 -> 6% | L8: coef | M8: ='RECAP DIRCOM'!EI4 -> 3% | P8: coef | Q8: ='RECAP DIRCOM'!EM4 -> 3% | T8: coef | U8: ='RECAP DIRCOM'!EQ4 -> 3% | W8: coef | X8: ='RECAP DIRCOM'!ET4 -> 15%
B9: Direction | C9: eds | D9: Territoire | E9: ETP perf | F9: Nb / ETP | G9: PNB / ETP | H9: % Ecart au 1er | I9: Rang | J9: Nb / ETP | K9: PNB / ETP | L9: % Ecart au 1er | M9: Rang | N9: Nb / ETP | O9: PNB / ETP | P9: % Ecart au 1er | Q9: Rang | R9: Rem / ETP | S9: PNB / ETP | T9: % Ecart au 1er | U9: Rang | V9: Moyenne ecart au 1er | W9: % Ecart au 1er | X9: Rang CEGEE
A10: 50 | B10: AUBE HAUTE MARNE | C10: 21 | D10: CHAUMONT | E10: =VLOOKUP($C10,'RECAP SECT'!$G$6:$FJ$253,3,FALSE) -> 36.2 | F10: =VLOOKUP($C10,'RECAP SECT'!$G$6:$FJ$253,126,FALSE) -> 21.05 | G10: =VLOOKUP($C10,'RECAP SECT'!$G$6:$FJ$253,127,FALSE) -> 0.21 | H10: =VLOOKUP($C10,'RECAP SECT'!$G$6:$FJ$253,128,FALSE) -> 26% | I10: =VLOOKUP($C10,'RECAP SECT'!$G$6:$FJ$253,129,FALSE) -> 6 | J10: =VLOOKUP($C10,'RECAP SECT'!$G$6:$FJ$253,130,FALSE) -> 9.23 | K10: =VLOOKUP($C10,'RECAP SECT'!$G$6:$FJ$253,131,FALSE) -> 0.46 | L10: =VLOOKUP($C10,'RECAP SECT'!$G$6:$FJ$253,132,FALSE) -> 41% | M10: =VLOOKUP($C10,'RECAP SECT'!$G$6:$FJ$253,133,FALSE) -> 14 | N10: =VLOOKUP($C10,'RECAP SECT'!$G$6:$FJ$253,134,FALSE) -> 8.59 | O10: =VLOOKUP($C10,'RECAP SECT'!$G$6:$FJ$253,135,FALSE) -> 0.13 | P10: =VLOOKUP($C10,'RECAP SECT'!$G$6:$FJ$253,136,FALSE) -> 72% | Q10: =VLOOKUP($C10,'RECAP SECT'!$G$6:$FJ$253,137,FALSE) -> 12 | R10: =VLOOKUP($C10,'RECAP SECT'!$G$6:$FJ$253,138,FALSE) -> -28.31 | S10: =VLOOKUP($C10,'RECAP SECT'!$G$6:$FJ$253,139,FALSE) -> -0.78 | T10: =VLOOKUP($C10,'RECAP SECT'!$G$6:$FJ$253,140,FALSE) -> 9% | U10: =VLOOKUP($C10,'RECAP SECT'!$G$6:$FJ$253,141,FALSE) -> 3 | V10: =VLOOKUP($C10,'RECAP SECT'!$G$6:$FJ$253,142,FALSE) -> 35% | W10: =VLOOKUP($C10,'RECAP SECT'!$G$6:$FJ$253,143,FALSE) -> 21% | X10: =VLOOKUP($C10,'RECAP SECT'!$G$6:$FJ$253,144,FALSE) -> 6
A11: 50 | B11: AUBE HAUTE MARNE | C11: 14 | D11: TROYES | E11: =VLOOKUP($C11,'RECAP SECT'!$G$6:$FJ$253,3,FALSE) -> 69.8 | F11: =VLOOKUP($C11,'RECAP SECT'!$G$6:$FJ$253,126,FALSE) -> 14.66 | G11: =VLOOKUP($C11,'RECAP SECT'!$G$6:$FJ$253,127,FALSE) -> 0.15 | H11: =VLOOKUP($C11,'RECAP SECT'!$G$6:$FJ$253,128,FALSE) -> 49% | I11: =VLOOKUP($C11,'RECAP SECT'!$G$6:$FJ$253,129,FALSE) -> 15 | J11: =VLOOKUP($C11,'RECAP SECT'!$G$6:$FJ$253,130,FALSE) -> 11.49 | K11: =VLOOKUP($C11,'RECAP SECT'!$G$6:$FJ$253,131,FALSE) -> 0.57 | L11: =VLOOKUP($C11,'RECAP SECT'!$G$6:$FJ$253,132,FALSE) -> 27% | M11: =VLOOKUP($C11,'RECAP SECT'!$G$6:$FJ$253,133,FALSE) -> 8 | N11: =VLOOKUP($C11,'RECAP SECT'!$G$6:$FJ$253,134,FALSE) -> 15.72 | O11: =VLOOKUP($C11,'RECAP SECT'!$G$6:$FJ$253,135,FALSE) -> 0.24 | P11: =VLOOKUP($C11,'RECAP SECT'!$G$6:$FJ$253,136,FALSE) -> 48% | Q11: =VLOOKUP($C11,'RECAP SECT'!$G$6:$FJ$253,137,FALSE) -> 3 | R11: =VLOOKUP($C11,'RECAP SECT'!$G$6:$FJ$253,138,FALSE) -> -71.76 | S11: =VLOOKUP($C11,'RECAP SECT'!$G$6:$FJ$253,139,FALSE) -> -1.03 | T11: =VLOOKUP($C11,'RECAP SECT'!$G$6:$FJ$253,140,FALSE) -> 44% | U11: =VLOOKUP($C11,'RECAP SECT'!$G$6:$FJ$253,141,FALSE) -> 7 | V11: =VLOOKUP($C11,'RECAP SECT'!$G$6:$FJ$253,142,FALSE) -> 43% | W11: =VLOOKUP($C11,'RECAP SECT'!$G$6:$FJ$253,143,FALSE) -> 30% | X11: =VLOOKUP($C11,'RECAP SECT'!$G$6:$FJ$253,144,FALSE) -> 9
A12: 262 | B12: BAS-RHIN | C12: 5060 | D12: HAGUENAU | E12: =VLOOKUP($C12,'RECAP SECT'!$G$6:$FJ$253,3,FALSE) -> 80.0 | F12: =VLOOKUP($C12,'RECAP SECT'!$G$6:$FJ$253,126,FALSE) -> 18.14 | G12: =VLOOKUP($C12,'RECAP SECT'!$G$6:$FJ$253,127,FALSE) -> 0.18 | H12: =VLOOKUP($C12,'RECAP SECT'!$G$6:$FJ$253,128,FALSE) -> 36% | I12: =VLOOKUP($C12,'RECAP SECT'!$G$6:$FJ$253,129,FALSE) -> 10 | J12: =VLOOKUP($C12,'RECAP SECT'!$G$6:$FJ$253,130,FALSE) -> 8.83 | K12: =VLOOKUP($C12,'RECAP SECT'!$G$6:$FJ$253,131,FALSE) -> 0.44 | L12: =VLOOKUP($C12,'RECAP SECT'!$G$6:$FJ$253,132,FALSE) -> 44% | M12: =VLOOKUP($C12,'RECAP SECT'!$G$6:$FJ$253,133,FALSE) -> 15 | N12: =VLOOKUP($C12,'RECAP SECT'!$G$6:$FJ$253,134,FALSE) -> 16.00 | O12: =VLOOKUP($C12,'RECAP SECT'!$G$6:$FJ$253,135,FALSE) -> 0.24 | P12: =VLOOKUP($C12,'RECAP SECT'!$G$6:$FJ$253,136,FALSE) -> 48% | Q12: =VLOOKUP($C12,'RECAP SECT'!$G$6:$FJ$253,137,FALSE) -> 2 | R12: =VLOOKUP($C12,'RECAP SECT'!$G$6:$FJ$253,138,FALSE) -> -80.76 | S12: =VLOOKUP($C12,'RECAP SECT'!$G$6:$FJ$253,139,FALSE) -> -1.01 | T12: =VLOOKUP($C12,'RECAP SECT'!$G$6:$FJ$253,140,FALSE) -> 41% | U12: =VLOOKUP($C12,'RECAP SECT'!$G$6:$FJ$253,141,FALSE) -> 5 | V12: =VLOOKUP($C12,'RECAP SECT'!$G$6:$FJ$253,142,FALSE) -> 41% | W12: =VLOOKUP($C12,'RECAP SECT'!$G$6:$FJ$253,143,FALSE) -> 28% | X12: =VLOOKUP($C12,'RECAP SECT'!$G$6:$FJ$253,144,FALSE) -> 8
A13: 262 | B13: BAS-RHIN | C13: 5101 | D13: SELESTAT | E13: =VLOOKUP($C13,'RECAP SECT'!$G$6:$FJ$253,3,FALSE) -> 64.8 | F13: =VLOOKUP($C13,'RECAP SECT'!$G$6:$FJ$253,126,FALSE) -> 15.87 | G13: =VLOOKUP($C13,'RECAP SECT'!$G$6:$FJ$253,127,FALSE) -> 0.16 | H13: =VLOOKUP($C13,'RECAP SECT'!$G$6:$FJ$253,128,FALSE) -> 44% | I13: =VLOOKUP($C13,'RECAP SECT'!$G$6:$FJ$253,129,FALSE) -> 13 | J13: =VLOOKUP($C13,'RECAP SECT'!$G$6:$FJ$253,130,FALSE) -> 10.40 | K13: =VLOOKUP($C13,'RECAP SECT'!$G$6:$FJ$253,131,FALSE) -> 0.52 | L13: =VLOOKUP($C13,'RECAP SECT'!$G$6:$FJ$253,132,FALSE) -> 34% | M13: =VLOOKUP($C13,'RECAP SECT'!$G$6:$FJ$253,133,FALSE) -> 12 | N13: =VLOOKUP($C13,'RECAP SECT'!$G$6:$FJ$253,134,FALSE) -> 14.14 | O13: =VLOOKUP($C13,'RECAP SECT'!$G$6:$FJ$253,135,FALSE) -> 0.21 | P13: =VLOOKUP($C13,'RECAP SECT'!$G$6:$FJ$253,136,FALSE) -> 54% | Q13: =VLOOKUP($C13,'RECAP SECT'!$G$6:$FJ$253,137,FALSE) -> 5 | R13: =VLOOKUP($C13,'RECAP SECT'!$G$6:$FJ$253,138,FALSE) -> -74.91 | S13: =VLOOKUP($C13,'RECAP SECT'!$G$6:$FJ$253,139,FALSE) -> -1.16 | T13: =VLOOKUP($C13,'RECAP SECT'!$G$6:$FJ$253,140,FALSE) -> 62% | U13: =VLOOKUP($C13,'RECAP SECT'!$G$6:$FJ$253,141,FALSE) -> 10 | V13: =VLOOKUP($C13,'RECAP SECT'!$G$6:$FJ$253,142,FALSE) -> 48% | W13: =VLOOKUP($C13,'RECAP SECT'!$G$6:$FJ$253,143,FALSE) -> 34% | X13: =VLOOKUP($C13,'RECAP SECT'!$G$6:$FJ$253,144,FALSE) -> 11
A14: 262 | B14: BAS-RHIN | C14: 5006 | D14: STRASBOURG | E14: =VLOOKUP($C14,'RECAP SECT'!$G$6:$FJ$253,3,FALSE) -> 79.3 | F14: =VLOOKUP($C14,'RECAP SECT'!$G$6:$FJ$253,126,FALSE) -> 20.97 | G14: =VLOOKUP($C14,'RECAP SECT'!$G$6:$FJ$253,127,FALSE) -> 0.21 | H14: =VLOOKUP($C14,'RECAP SECT'!$G$6:$FJ$253,128,FALSE) -> 26% | I14: =VLOOKUP($C14,'RECAP SECT'!$G$6:$FJ$253,129,FALSE) -> 7 | J14: =VLOOKUP($C14,'RECAP SECT'!$G$6:$FJ$253,130,FALSE) -> 15.69 | K14: =VLOOKUP($C14,'RECAP SECT'!$G$6:$FJ$253,131,FALSE) -> 0.78 | L14: =VLOOKUP($C14,'RECAP SECT'!$G$6:$FJ$253,132,FALSE) -> 0% | M14: =VLOOKUP($C14,'RECAP SECT'!$G$6:$FJ$253,133,FALSE) -> 1 | N14: =VLOOKUP($C14,'RECAP SECT'!$G$6:$FJ$253,134,FALSE) -> 30.50 | O14: =VLOOKUP($C14,'RECAP SECT'!$G$6:$FJ$253,135,FALSE) -> 0.46 | P14: =VLOOKUP($C14,'RECAP SECT'!$G$6:$FJ$253,136,FALSE) -> 0% | Q14: =VLOOKUP($C14,'RECAP SECT'!$G$6:$FJ$253,137,FALSE) -> 1 | R14: =VLOOKUP($C14,'RECAP SECT'!$G$6:$FJ$253,138,FALSE) -> -101.36 | S14: =VLOOKUP($C14,'RECAP SECT'!$G$6:$FJ$253,139,FALSE) -> -1.28 | T14: =VLOOKUP($C14,'RECAP SECT'!$G$6:$FJ$253,140,FALSE) -> 79% | U14: =VLOOKUP($C14,'RECAP SECT'!$G$6:$FJ$253,141,FALSE) -> 16 | V14: =VLOOKUP($C14,'RECAP SECT'!$G$6:$FJ$253,142,FALSE) -> 26% | W14: =VLOOKUP($C14,'RECAP SECT'!$G$6:$FJ$253,143,FALSE) -> 13% | X14: =VLOOKUP($C14,'RECAP SECT'!$G$6:$FJ$253,144,FALSE) -> 2
A15: 264 | B15: HAUT-RHIN | C15: 5130 | D15: COLMAR | E15: =VLOOKUP($C15,'RECAP SECT'!$G$6:$FJ$253,3,FALSE) -> 68.4 | F15: =VLOOKUP($C15,'RECAP SECT'!$G$6:$FJ$253,126,FALSE) -> 13.89 | G15: =VLOOKUP($C15,'RECAP SECT'!$G$6:$FJ$253,127,FALSE) -> 0.14 | H15: =VLOOKUP($C15,'RECAP SECT'!$G$6:$FJ$253,128,FALSE) -> 51% | I15: =VLOOKUP($C15,'RECAP SECT'!$G$6:$FJ$253,129,FALSE) -> 16 | J15: =VLOOKUP($C15,'RECAP SECT'!$G$6:$FJ$253,130,FALSE) -> 9.50 | K15: =VLOOKUP($C15,'RECAP SECT'!$G$6:$FJ$253,131,FALSE) -> 0.48 | L15: =VLOOKUP($C15,'RECAP SECT'!$G$6:$FJ$253,132,FALSE) -> 39% | M15: =VLOOKUP($C15,'RECAP SECT'!$G$6:$FJ$253,133,FALSE) -> 13 | N15: =VLOOKUP($C15,'RECAP SECT'!$G$6:$FJ$253,134,FALSE) -> 9.17 | O15: =VLOOKUP($C15,'RECAP SECT'!$G$6:$FJ$253,135,FALSE) -> 0.14 | P15: =VLOOKUP($C15,'RECAP SECT'!$G$6:$FJ$253,136,FALSE) -> 70% | Q15: =VLOOKUP($C15,'RECAP SECT'!$G$6:$FJ$253,137,FALSE) -> 11 | R15: =VLOOKUP($C15,'RECAP SECT'!$G$6:$FJ$253,138,FALSE) -> -84.27 | S15: =VLOOKUP($C15,'RECAP SECT'!$G$6:$FJ$253,139,FALSE) -> -1.23 | T15: =VLOOKUP($C15,'RECAP SECT'!$G$6:$FJ$253,140,FALSE) -> 72% | U15: =VLOOKUP($C15,'RECAP SECT'!$G$6:$FJ$253,141,FALSE) -> 15 | V15: =VLOOKUP($C15,'RECAP SECT'!$G$6:$FJ$253,142,FALSE) -> 57% | W15: =VLOOKUP($C15,'RECAP SECT'!$G$6:$FJ$253,143,FALSE) -> 43% | X15: =VLOOKUP($C15,'RECAP SECT'!$G$6:$FJ$253,144,FALSE) -> 16
A16: 264 | B16: HAUT-RHIN | C16: 5169 | D16: MULHOUSE | E16: =VLOOKUP($C16,'RECAP SECT'!$G$6:$FJ$253,3,FALSE) -> 64.5 | F16: =VLOOKUP($C16,'RECAP SECT'!$G$6:$FJ$253,126,FALSE) -> 11.52 | G16: =VLOOKUP($C16,'RECAP SECT'!$G$6:$FJ$253,127,FALSE) -> 0.12 | H16: =VLOOKUP($C16,'RECAP SECT'!$G$6:$FJ$253,128,FALSE) -> 60% | I16: =VLOOKUP($C16,'RECAP SECT'!$G$6:$FJ$253,129,FALSE) -> 17 | J16: =VLOOKUP($C16,'RECAP SECT'!$G$6:$FJ$253,130,FALSE) -> 10.41 | K16: =VLOOKUP($C16,'RECAP SECT'!$G$6:$FJ$253,131,FALSE) -> 0.52 | L16: =VLOOKUP($C16,'RECAP SECT'!$G$6:$FJ$253,132,FALSE) -> 34% | M16: =VLOOKUP($C16,'RECAP SECT'!$G$6:$FJ$253,133,FALSE) -> 11 | N16: =VLOOKUP($C16,'RECAP SECT'!$G$6:$FJ$253,134,FALSE) -> 6.47 | O16: =VLOOKUP($C16,'RECAP SECT'!$G$6:$FJ$253,135,FALSE) -> 0.10 | P16: =VLOOKUP($C16,'RECAP SECT'!$G$6:$FJ$253,136,FALSE) -> 79% | Q16: =VLOOKUP($C16,'RECAP SECT'!$G$6:$FJ$253,137,FALSE) -> 15 | R16: =VLOOKUP($C16,'RECAP SECT'!$G$6:$FJ$253,138,FALSE) -> -77.43 | S16: =VLOOKUP($C16,'RECAP SECT'!$G$6:$FJ$253,139,FALSE) -> -1.20 | T16: =VLOOKUP($C16,'RECAP SECT'!$G$6:$FJ$253,140,FALSE) -> 68% | U16: =VLOOKUP($C16,'RECAP SECT'!$G$6:$FJ$253,141,FALSE) -> 12 | V16: =VLOOKUP($C16,'RECAP SECT'!$G$6:$FJ$253,142,FALSE) -> 60% | W16: =VLOOKUP($C16,'RECAP SECT'!$G$6:$FJ$253,143,FALSE) -> 46% | X16: =VLOOKUP($C16,'RECAP SECT'!$G$6:$FJ$253,144,FALSE) -> 17
A17: 30 | B17: MARNE-ARDENNES | C17: 6 | D17: CHALONS EN CHAMPAGNE | E17: =VLOOKUP($C17,'RECAP SECT'!$G$6:$FJ$253,3,FALSE) -> 46.4 | F17: =VLOOKUP($C17,'RECAP SECT'!$G$6:$FJ$253,126,FALSE) -> 20.71 | G17: =VLOOKUP($C17,'RECAP SECT'!$G$6:$FJ$253,127,FALSE) -> 0.21 | H17: =VLOOKUP($C17,'RECAP SECT'!$G$6:$FJ$253,128,FALSE) -> 27% | I17: =VLOOKUP($C17,'RECAP SECT'!$G$6:$FJ$253,129,FALSE) -> 8 | J17: =VLOOKUP($C17,'RECAP SECT'!$G$6:$FJ$253,130,FALSE) -> 12.75 | K17: =VLOOKUP($C17,'RECAP SECT'!$G$6:$FJ$253,131,FALSE) -> 0.64 | L17: =VLOOKUP($C17,'RECAP SECT'!$G$6:$FJ$253,132,FALSE) -> 19% | M17: =VLOOKUP($C17,'RECAP SECT'!$G$6:$FJ$253,133,FALSE) -> 6 | N17: =VLOOKUP($C17,'RECAP SECT'!$G$6:$FJ$253,134,FALSE) -> 10.01 | O17: =VLOOKUP($C17,'RECAP SECT'!$G$6:$FJ$253,135,FALSE) -> 0.15 | P17: =VLOOKUP($C17,'RECAP SECT'!$G$6:$FJ$253,136,FALSE) -> 67% | Q17: =VLOOKUP($C17,'RECAP SECT'!$G$6:$FJ$253,137,FALSE) -> 9 | R17: =VLOOKUP($C17,'RECAP SECT'!$G$6:$FJ$253,138,FALSE) -> -35.85 | S17: =VLOOKUP($C17,'RECAP SECT'!$G$6:$FJ$253,139,FALSE) -> -0.77 | T17: =VLOOKUP($C17,'RECAP SECT'!$G$6:$FJ$253,140,FALSE) -> 8% | U17: =VLOOKUP($C17,'RECAP SECT'!$G$6:$FJ$253,141,FALSE) -> 2 | V17: =VLOOKUP($C17,'RECAP SECT'!$G$6:$FJ$253,142,FALSE) -> 30% | W17: =VLOOKUP($C17,'RECAP SECT'!$G$6:$FJ$253,143,FALSE) -> 16% | X17: =VLOOKUP($C17,'RECAP SECT'!$G$6:$FJ$253,144,FALSE) -> 5
A18: 30 | B18: MARNE-ARDENNES | C18: 2 | D18: CHARLEVILLE MEZIERES | E18: =VLOOKUP($C18,'RECAP SECT'!$G$6:$FJ$253,3,FALSE) -> 57.5 | F18: =VLOOKUP($C18,'RECAP SECT'!$G$6:$FJ$253,126,FALSE) -> 28.24 | G18: =VLOOKUP($C18,'RECAP SECT'!$G$6:$FJ$253,127,FALSE) -> 0.28 | H18: =VLOOKUP($C18,'RECAP SECT'!$G$6:$FJ$253,128,FALSE) -> 1% | I18: =VLOOKUP($C18,'RECAP SECT'!$G$6:$FJ$253,129,FALSE) -> 2 | J18: =VLOOKUP($C18,'RECAP SECT'!$G$6:$FJ$253,130,FALSE) -> 14.81 | K18: =VLOOKUP($C18,'RECAP SECT'!$G$6:$FJ$253,131,FALSE) -> 0.74 | L18: =VLOOKUP($C18,'RECAP SECT'!$G$6:$FJ$253,132,FALSE) -> 6% | M18: =VLOOKUP($C18,'RECAP SECT'!$G$6:$FJ$253,133,FALSE) -> 2 | N18: =VLOOKUP($C18,'RECAP SECT'!$G$6:$FJ$253,134,FALSE) -> 12.25 | O18: =VLOOKUP($C18,'RECAP SECT'!$G$6:$FJ$253,135,FALSE) -> 0.18 | P18: =VLOOKUP($C18,'RECAP SECT'!$G$6:$FJ$253,136,FALSE) -> 60% | Q18: =VLOOKUP($C18,'RECAP SECT'!$G$6:$FJ$253,137,FALSE) -> 6 | R18: =VLOOKUP($C18,'RECAP SECT'!$G$6:$FJ$253,138,FALSE) -> -41.05 | S18: =VLOOKUP($C18,'RECAP SECT'!$G$6:$FJ$253,139,FALSE) -> -0.71 | T18: =VLOOKUP($C18,'RECAP SECT'!$G$6:$FJ$253,140,FALSE) -> 0% | U18: =VLOOKUP($C18,'RECAP SECT'!$G$6:$FJ$253,141,FALSE) -> 1 | V18: =VLOOKUP($C18,'RECAP SECT'!$G$6:$FJ$253,142,FALSE) -> 13% | W18: =VLOOKUP($C18,'RECAP SECT'!$G$6:$FJ$253,143,FALSE) -> 0% | X18: =VLOOKUP($C18,'RECAP SECT'!$G$6:$FJ$253,144,FALSE) -> 1
A19: 30 | B19: MARNE-ARDENNES | C19: 11 | D19: REIMS | E19: =VLOOKUP($C19,'RECAP SECT'!$G$6:$FJ$253,3,FALSE) -> 80.4 | F19: =VLOOKUP($C19,'RECAP SECT'!$G$6:$FJ$253,126,FALSE) -> 22.17 | G19: =VLOOKUP($C19,'RECAP SECT'!$G$6:$FJ$253,127,FALSE) -> 0.22 | H19: =VLOOKUP($C19,'RECAP SECT'!$G$6:$FJ$253,128,FALSE) -> 22% | I19: =VLOOKUP($C19,'RECAP SECT'!$G$6:$FJ$253,129,FALSE) -> 5 | J19: =VLOOKUP($C19,'RECAP SECT'!$G$6:$FJ$253,130,FALSE) -> 14.11 | K19: =VLOOKUP($C19,'RECAP SECT'!$G$6:$FJ$253,131,FALSE) -> 0.71 | L19: =VLOOKUP($C19,'RECAP SECT'!$G$6:$FJ$253,132,FALSE) -> 10% | M19: =VLOOKUP($C19,'RECAP SECT'!$G$6:$FJ$253,133,FALSE) -> 4 | N19: =VLOOKUP($C19,'RECAP SECT'!$G$6:$FJ$253,134,FALSE) -> 4.53 | O19: =VLOOKUP($C19,'RECAP SECT'!$G$6:$FJ$253,135,FALSE) -> 0.07 | P19: =VLOOKUP($C19,'RECAP SECT'!$G$6:$FJ$253,136,FALSE) -> 85% | Q19: =VLOOKUP($C19,'RECAP SECT'!$G$6:$FJ$253,137,FALSE) -> 16 | R19: =VLOOKUP($C19,'RECAP SECT'!$G$6:$FJ$253,138,FALSE) -> -114.56 | S19: =VLOOKUP($C19,'RECAP SECT'!$G$6:$FJ$253,139,FALSE) -> -1.43 | T19: =VLOOKUP($C19,'RECAP SECT'!$G$6:$FJ$253,140,FALSE) -> 100% | U19: =VLOOKUP($C19,'RECAP SECT'!$G$6:$FJ$253,141,FALSE) -> 18 | V19: =VLOOKUP($C19,'RECAP SECT'!$G$6:$FJ$253,142,FALSE) -> 48% | W19: =VLOOKUP($C19,'RECAP SECT'!$G$6:$FJ$253,143,FALSE) -> 34% | X19: =VLOOKUP($C19,'RECAP SECT'!$G$6:$FJ$253,144,FALSE) -> 12
A20: 110 | B20: MEURTHE ET MOSELLE MEUSE | C20: 26 | D20: NANCY | E20: =VLOOKUP($C20,'RECAP SECT'!$G$6:$FJ$253,3,FALSE) -> 68.0 | F20: =VLOOKUP($C20,'RECAP SECT'!$G$6:$FJ$253,126,FALSE) -> 28.51 | G20: =VLOOKUP($C20,'RECAP SECT'!$G$6:$FJ$253,127,FALSE) -> 0.29 | H20: =VLOOKUP($C20,'RECAP SECT'!$G$6:$FJ$253,128,FALSE) -> 0% | I20: =VLOOKUP($C20,'RECAP SECT'!$G$6:$FJ$253,129,FALSE) -> 1 | J20: =VLOOKUP($C20,'RECAP SECT'!$G$6:$FJ$253,130,FALSE) -> 13.76 | K20: =VLOOKUP($C20,'RECAP SECT'!$G$6:$FJ$253,131,FALSE) -> 0.69 | L20: =VLOOKUP($C20,'RECAP SECT'!$G$6:$FJ$253,132,FALSE) -> 12% | M20: =VLOOKUP($C20,'RECAP SECT'!$G$6:$FJ$253,133,FALSE) -> 5 | N20: =VLOOKUP($C20,'RECAP SECT'!$G$6:$FJ$253,134,FALSE) -> 14.15 | O20: =VLOOKUP($C20,'RECAP SECT'!$G$6:$FJ$253,135,FALSE) -> 0.21 | P20: =VLOOKUP($C20,'RECAP SECT'!$G$6:$FJ$253,136,FALSE) -> 54% | Q20: =VLOOKUP($C20,'RECAP SECT'!$G$6:$FJ$253,137,FALSE) -> 4 | R20: =VLOOKUP($C20,'RECAP SECT'!$G$6:$FJ$253,138,FALSE) -> -87.33 | S20: =VLOOKUP($C20,'RECAP SECT'!$G$6:$FJ$253,139,FALSE) -> -1.28 | T20: =VLOOKUP($C20,'RECAP SECT'!$G$6:$FJ$253,140,FALSE) -> 80% | U20: =VLOOKUP($C20,'RECAP SECT'!$G$6:$FJ$253,141,FALSE) -> 17 | V20: =VLOOKUP($C20,'RECAP SECT'!$G$6:$FJ$253,142,FALSE) -> 29% | W20: =VLOOKUP($C20,'RECAP SECT'!$G$6:$FJ$253,143,FALSE) -> 16% | X20: =VLOOKUP($C20,'RECAP SECT'!$G$6:$FJ$253,144,FALSE) -> 4
A21: 110 | B21: MEURTHE ET MOSELLE MEUSE | C21: 27 | D21: PONT A MOUSSON | E21: =VLOOKUP($C21,'RECAP SECT'!$G$6:$FJ$253,3,FALSE) -> 76.5 | F21: =VLOOKUP($C21,'RECAP SECT'!$G$6:$FJ$253,126,FALSE) -> 25.98 | G21: =VLOOKUP($C21,'RECAP SECT'!$G$6:$FJ$253,127,FALSE) -> 0.26 | H21: =VLOOKUP($C21,'RECAP SECT'!$G$6:$FJ$253,128,FALSE) -> 9% | I21: =VLOOKUP($C21,'RECAP SECT'!$G$6:$FJ$253,129,FALSE) -> 3 | J21: =VLOOKUP($C21,'RECAP SECT'!$G$6:$FJ$253,130,FALSE) -> 14.22 | K21: =VLOOKUP($C21,'RECAP SECT'!$G$6:$FJ$253,131,FALSE) -> 0.71 | L21: =VLOOKUP($C21,'RECAP SECT'!$G$6:$FJ$253,132,FALSE) -> 9% | M21: =VLOOKUP($C21,'RECAP SECT'!$G$6:$FJ$253,133,FALSE) -> 3 | N21: =VLOOKUP($C21,'RECAP SECT'!$G$6:$FJ$253,134,FALSE) -> 10.64 | O21: =VLOOKUP($C21,'RECAP SECT'!$G$6:$FJ$253,135,FALSE) -> 0.16 | P21: =VLOOKUP($C21,'RECAP SECT'!$G$6:$FJ$253,136,FALSE) -> 65% | Q21: =VLOOKUP($C21,'RECAP SECT'!$G$6:$FJ$253,137,FALSE) -> 7 | R21: =VLOOKUP($C21,'RECAP SECT'!$G$6:$FJ$253,138,FALSE) -> -81.45 | S21: =VLOOKUP($C21,'RECAP SECT'!$G$6:$FJ$253,139,FALSE) -> -1.06 | T21: =VLOOKUP($C21,'RECAP SECT'!$G$6:$FJ$253,140,FALSE) -> 49% | U21: =VLOOKUP($C21,'RECAP SECT'!$G$6:$FJ$253,141,FALSE) -> 8 | V21: =VLOOKUP($C21,'RECAP SECT'!$G$6:$FJ$253,142,FALSE) -> 28% | W21: =VLOOKUP($C21,'RECAP SECT'!$G$6:$FJ$253,143,FALSE) -> 15% | X21: =VLOOKUP($C21,'RECAP SECT'!$G$6:$FJ$253,144,FALSE) -> 3
A22: 110 | B22: MEURTHE ET MOSELLE MEUSE | C22: 31 | D22: VERDUN | E22: =VLOOKUP($C22,'RECAP SECT'!$G$6:$FJ$253,3,FALSE) -> 54.4 | F22: =VLOOKUP($C22,'RECAP SECT'!$G$6:$FJ$253,126,FALSE) -> 15.35 | G22: =VLOOKUP($C22,'RECAP SECT'!$G$6:$FJ$253,127,FALSE) -> 0.15 | H22: =VLOOKUP($C22,'RECAP SECT'!$G$6:$FJ$253,128,FALSE) -> 46% | I22: =VLOOKUP($C22,'RECAP SECT'!$G$6:$FJ$253,129,FALSE) -> 14 | J22: =VLOOKUP($C22,'RECAP SECT'!$G$6:$FJ$253,130,FALSE) -> 11.13 | K22: =VLOOKUP($C22,'RECAP SECT'!$G$6:$FJ$253,131,FALSE) -> 0.56 | L22: =VLOOKUP($C22,'RECAP SECT'!$G$6:$FJ$253,132,FALSE) -> 29% | M22: =VLOOKUP($C22,'RECAP SECT'!$G$6:$FJ$253,133,FALSE) -> 10 | N22: =VLOOKUP($C22,'RECAP SECT'!$G$6:$FJ$253,134,FALSE) -> 10.41 | O22: =VLOOKUP($C22,'RECAP SECT'!$G$6:$FJ$253,135,FALSE) -> 0.16 | P22: =VLOOKUP($C22,'RECAP SECT'!$G$6:$FJ$253,136,FALSE) -> 66% | Q22: =VLOOKUP($C22,'RECAP SECT'!$G$6:$FJ$253,137,FALSE) -> 8 | R22: =VLOOKUP($C22,'RECAP SECT'!$G$6:$FJ$253,138,FALSE) -> -60.61 | S22: =VLOOKUP($C22,'RECAP SECT'!$G$6:$FJ$253,139,FALSE) -> -1.11 | T22: =VLOOKUP($C22,'RECAP SECT'!$G$6:$FJ$253,140,FALSE) -> 56% | U22: =VLOOKUP($C22,'RECAP SECT'!$G$6:$FJ$253,141,FALSE) -> 9 | V22: =VLOOKUP($C22,'RECAP SECT'!$G$6:$FJ$253,142,FALSE) -> 49% | W22: =VLOOKUP($C22,'RECAP SECT'!$G$6:$FJ$253,143,FALSE) -> 35% | X22: =VLOOKUP($C22,'RECAP SECT'!$G$6:$FJ$253,144,FALSE) -> 13
A23: 160 | B23: MOSELLE | C23: 45 | D23: METZ | E23: =VLOOKUP($C23,'RECAP SECT'!$G$6:$FJ$253,3,FALSE) -> 89.4 | F23: =VLOOKUP($C23,'RECAP SECT'!$G$6:$FJ$253,126,FALSE) -> 22.50 | G23: =VLOOKUP($C23,'RECAP SECT'!$G$6:$FJ$253,127,FALSE) -> 0.23 | H23: =VLOOKUP($C23,'RECAP SECT'!$G$6:$FJ$253,128,FALSE) -> 21% | I23: =VLOOKUP($C23,'RECAP SECT'!$G$6:$FJ$253,129,FALSE) -> 4 | J23: =VLOOKUP($C23,'RECAP SECT'!$G$6:$FJ$253,130,FALSE) -> 11.60 | K23: =VLOOKUP($C23,'RECAP SECT'!$G$6:$FJ$253,131,FALSE) -> 0.58 | L23: =VLOOKUP($C23,'RECAP SECT'!$G$6:$FJ$253,132,FALSE) -> 26% | M23: =VLOOKUP($C23,'RECAP SECT'!$G$6:$FJ$253,133,FALSE) -> 7 | N23: =VLOOKUP($C23,'RECAP SECT'!$G$6:$FJ$253,134,FALSE) -> 3.55 | O23: =VLOOKUP($C23,'RECAP SECT'!$G$6:$FJ$253,135,FALSE) -> 0.05 | P23: =VLOOKUP($C23,'RECAP SECT'!$G$6:$FJ$253,136,FALSE) -> 88% | Q23: =VLOOKUP($C23,'RECAP SECT'!$G$6:$FJ$253,137,FALSE) -> 17 | R23: =VLOOKUP($C23,'RECAP SECT'!$G$6:$FJ$253,138,FALSE) -> -108.51 | S23: =VLOOKUP($C23,'RECAP SECT'!$G$6:$FJ$253,139,FALSE) -> -1.21 | T23: =VLOOKUP($C23,'RECAP SECT'!$G$6:$FJ$253,140,FALSE) -> 70% | U23: =VLOOKUP($C23,'RECAP SECT'!$G$6:$FJ$253,141,FALSE) -> 14 | V23: =VLOOKUP($C23,'RECAP SECT'!$G$6:$FJ$253,142,FALSE) -> 45% | W23: =VLOOKUP($C23,'RECAP SECT'!$G$6:$FJ$253,143,FALSE) -> 32% | X23: =VLOOKUP($C23,'RECAP SECT'!$G$6:$FJ$253,144,FALSE) -> 10
A24: 160 | B24: MOSELLE | C24: 42 | D24: MOSELLE EST | E24: =VLOOKUP($C24,'RECAP SECT'!$G$6:$FJ$253,3,FALSE) -> 76.7 | F24: =VLOOKUP($C24,'RECAP SECT'!$G$6:$FJ$253,126,FALSE) -> 16.82 | G24: =VLOOKUP($C24,'RECAP SECT'!$G$6:$FJ$253,127,FALSE) -> 0.17 | H24: =VLOOKUP($C24,'RECAP SECT'!$G$6:$FJ$253,128,FALSE) -> 41% | I24: =VLOOKUP($C24,'RECAP SECT'!$G$6:$FJ$253,129,FALSE) -> 12 | J24: =VLOOKUP($C24,'RECAP SECT'!$G$6:$FJ$253,130,FALSE) -> 8.41 | K24: =VLOOKUP($C24,'RECAP SECT'!$G$6:$FJ$253,131,FALSE) -> 0.42 | L24: =VLOOKUP($C24,'RECAP SECT'!$G$6:$FJ$253,132,FALSE) -> 46% | M24: =VLOOKUP($C24,'RECAP SECT'!$G$6:$FJ$253,133,FALSE) -> 16 | N24: =VLOOKUP($C24,'RECAP SECT'!$G$6:$FJ$253,134,FALSE) -> 2.82 | O24: =VLOOKUP($C24,'RECAP SECT'!$G$6:$FJ$253,135,FALSE) -> 0.04 | P24: =VLOOKUP($C24,'RECAP SECT'!$G$6:$FJ$253,136,FALSE) -> 91% | Q24: =VLOOKUP($C24,'RECAP SECT'!$G$6:$FJ$253,137,FALSE) -> 18 | R24: =VLOOKUP($C24,'RECAP SECT'!$G$6:$FJ$253,138,FALSE) -> -74.29 | S24: =VLOOKUP($C24,'RECAP SECT'!$G$6:$FJ$253,139,FALSE) -> -0.97 | T24: =VLOOKUP($C24,'RECAP SECT'!$G$6:$FJ$253,140,FALSE) -> 36% | U24: =VLOOKUP($C24,'RECAP SECT'!$G$6:$FJ$253,141,FALSE) -> 4 | V24: =VLOOKUP($C24,'RECAP SECT'!$G$6:$FJ$253,142,FALSE) -> 51% | W24: =VLOOKUP($C24,'RECAP SECT'!$G$6:$FJ$253,143,FALSE) -> 37% | X24: =VLOOKUP($C24,'RECAP SECT'!$G$6:$FJ$253,144,FALSE) -> 14
A25: 160 | B25: MOSELLE | C25: 44 | D25: MOSELLE NORD | E25: =VLOOKUP($C25,'RECAP SECT'!$G$6:$FJ$253,3,FALSE) -> 69.6 | F25: =VLOOKUP($C25,'RECAP SECT'!$G$6:$FJ$253,126,FALSE) -> 20.44 | G25: =VLOOKUP($C25,'RECAP SECT'!$G$6:$FJ$253,127,FALSE) -> 0.20 | H25: =VLOOKUP($C25,'RECAP SECT'!$G$6:$FJ$253,128,FALSE) -> 28% | I25: =VLOOKUP($C25,'RECAP SECT'!$G$6:$FJ$253,129,FALSE) -> 9 | J25: =VLOOKUP($C25,'RECAP SECT'!$G$6:$FJ$253,130,FALSE) -> 11.25 | K25: =VLOOKUP($C25,'RECAP SECT'!$G$6:$FJ$253,131,FALSE) -> 0.56 | L25: =VLOOKUP($C25,'RECAP SECT'!$G$6:$FJ$253,132,FALSE) -> 28% | M25: =VLOOKUP($C25,'RECAP SECT'!$G$6:$FJ$253,133,FALSE) -> 9 | N25: =VLOOKUP($C25,'RECAP SECT'!$G$6:$FJ$253,134,FALSE) -> 9.51 | O25: =VLOOKUP($C25,'RECAP SECT'!$G$6:$FJ$253,135,FALSE) -> 0.14 | P25: =VLOOKUP($C25,'RECAP SECT'!$G$6:$FJ$253,136,FALSE) -> 69% | Q25: =VLOOKUP($C25,'RECAP SECT'!$G$6:$FJ$253,137,FALSE) -> 10 | R25: =VLOOKUP($C25,'RECAP SECT'!$G$6:$FJ$253,138,FALSE) -> -70.78 | S25: =VLOOKUP($C25,'RECAP SECT'!$G$6:$FJ$253,139,FALSE) -> -1.02 | T25: =VLOOKUP($C25,'RECAP SECT'!$G$6:$FJ$253,140,FALSE) -> 42% | U25: =VLOOKUP($C25,'RECAP SECT'!$G$6:$FJ$253,141,FALSE) -> 6 | V25: =VLOOKUP($C25,'RECAP SECT'!$G$6:$FJ$253,142,FALSE) -> 39% | W25: =VLOOKUP($C25,'RECAP SECT'!$G$6:$FJ$253,143,FALSE) -> 26% | X25: =VLOOKUP($C25,'RECAP SECT'!$G$6:$FJ$253,144,FALSE) -> 7
A26: 80 | B26: VOSGES | C26: 57 | D26: EPINAL | E26: =VLOOKUP($C26,'RECAP SECT'!$G$6:$FJ$253,3,FALSE) -> 62.9 | F26: =VLOOKUP($C26,'RECAP SECT'!$G$6:$FJ$253,126,FALSE) -> 11.34 | G26: =VLOOKUP($C26,'RECAP SECT'!$G$6:$FJ$253,127,FALSE) -> 0.11 | H26: =VLOOKUP($C26,'RECAP SECT'!$G$6:$FJ$253,128,FALSE) -> 60% | I26: =VLOOKUP($C26,'RECAP SECT'!$G$6:$FJ$253,129,FALSE) -> 18 | J26: =VLOOKUP($C26,'RECAP SECT'!$G$6:$FJ$253,130,FALSE) -> 8.30 | K26: =VLOOKUP($C26,'RECAP SECT'!$G$6:$FJ$253,131,FALSE) -> 0.42 | L26: =VLOOKUP($C26,'RECAP SECT'!$G$6:$FJ$253,132,FALSE) -> 47% | M26: =VLOOKUP($C26,'RECAP SECT'!$G$6:$FJ$253,133,FALSE) -> 18 | N26: =VLOOKUP($C26,'RECAP SECT'!$G$6:$FJ$253,134,FALSE) -> 6.52 | O26: =VLOOKUP($C26,'RECAP SECT'!$G$6:$FJ$253,135,FALSE) -> 0.10 | P26: =VLOOKUP($C26,'RECAP SECT'!$G$6:$FJ$253,136,FALSE) -> 79% | Q26: =VLOOKUP($C26,'RECAP SECT'!$G$6:$FJ$253,137,FALSE) -> 14 | R26: =VLOOKUP($C26,'RECAP SECT'!$G$6:$FJ$253,138,FALSE) -> -73.62 | S26: =VLOOKUP($C26,'RECAP SECT'!$G$6:$FJ$253,139,FALSE) -> -1.17 | T26: =VLOOKUP($C26,'RECAP SECT'!$G$6:$FJ$253,140,FALSE) -> 64% | U26: =VLOOKUP($C26,'RECAP SECT'!$G$6:$FJ$253,141,FALSE) -> 11 | V26: =VLOOKUP($C26,'RECAP SECT'!$G$6:$FJ$253,142,FALSE) -> 62% | W26: =VLOOKUP($C26,'RECAP SECT'!$G$6:$FJ$253,143,FALSE) -> 49% | X26: =VLOOKUP($C26,'RECAP SECT'!$G$6:$FJ$253,144,FALSE) -> 18
A27: 80 | B27: VOSGES | C27: 55 | D27: SAINT DIE | E27: =VLOOKUP($C27,'RECAP SECT'!$G$6:$FJ$253,3,FALSE) -> 50.2 | F27: =VLOOKUP($C27,'RECAP SECT'!$G$6:$FJ$253,126,FALSE) -> 17.88 | G27: =VLOOKUP($C27,'RECAP SECT'!$G$6:$FJ$253,127,FALSE) -> 0.18 | H27: =VLOOKUP($C27,'RECAP SECT'!$G$6:$FJ$253,128,FALSE) -> 37% | I27: =VLOOKUP($C27,'RECAP SECT'!$G$6:$FJ$253,129,FALSE) -> 11 | J27: =VLOOKUP($C27,'RECAP SECT'!$G$6:$FJ$253,130,FALSE) -> 8.38 | K27: =VLOOKUP($C27,'RECAP SECT'!$G$6:$FJ$253,131,FALSE) -> 0.42 | L27: =VLOOKUP($C27,'RECAP SECT'!$G$6:$FJ$253,132,FALSE) -> 47% | M27: =VLOOKUP($C27,'RECAP SECT'!$G$6:$FJ$253,133,FALSE) -> 17 | N27: =VLOOKUP($C27,'RECAP SECT'!$G$6:$FJ$253,134,FALSE) -> 6.55 | O27: =VLOOKUP($C27,'RECAP SECT'!$G$6:$FJ$253,135,FALSE) -> 0.10 | P27: =VLOOKUP($C27,'RECAP SECT'!$G$6:$FJ$253,136,FALSE) -> 79% | Q27: =VLOOKUP($C27,'RECAP SECT'!$G$6:$FJ$253,137,FALSE) -> 13 | R27: =VLOOKUP($C27,'RECAP SECT'!$G$6:$FJ$253,138,FALSE) -> -60.87 | S27: =VLOOKUP($C27,'RECAP SECT'!$G$6:$FJ$253,139,FALSE) -> -1.21 | T27: =VLOOKUP($C27,'RECAP SECT'!$G$6:$FJ$253,140,FALSE) -> 70% | U27: =VLOOKUP($C27,'RECAP SECT'!$G$6:$FJ$253,141,FALSE) -> 13 | V27: =VLOOKUP($C27,'RECAP SECT'!$G$6:$FJ$253,142,FALSE) -> 54% | W27: =VLOOKUP($C27,'RECAP SECT'!$G$6:$FJ$253,143,FALSE) -> 40% | X27: =VLOOKUP($C27,'RECAP SECT'!$G$6:$FJ$253,144,FALSE) -> 15
A28: Total CEGEE Directions Régionales | E28: =SUM(E10:E27) -> 1195

Sheet SE_SATISFACTION
B1: Accueil | F1: BAROMETRE BDD - TERRITOIRES
F2: QUALITE / SATISFACTION
F3: =ACCUEIL!F7 -> 2020-05-10
F7: N P S | I7: Enquête Qualité Haute Définition | L7: Total Satisfaction Clients
G8: coef | H8: ='RECAP DIRCOM'!FC4 -> 8% | J8: coef | K8: ='RECAP DIRCOM'!FF4 -> 7% | M8: coef | N8: ='RECAP DIRCOM'!FI4 -> 15%
B9: Direction | C9: eds | D9: Territoire | E9: ETP perf | G9: % Ecart au 1er | H9: Rang | J9: % Ecart au 1er | K9: Rang | L9: Moyenne ecart au 1er | M9: % Ecart au 1er | N9: Rang CEGEE
A10: 50 | B10: AUBE HAUTE MARNE | C10: 21 | D10: CHAUMONT | E10: =VLOOKUP($C10,'RECAP SECT'!$G$6:$FJ$253,3,FALSE) -> 36.2 | F10: =VLOOKUP($C10,'RECAP SECT'!$G$6:$FJ$253,151,FALSE) -> -4 | G10: =VLOOKUP($C10,'RECAP SECT'!$G$6:$FJ$253,152,FALSE) -> 11% | H10: =VLOOKUP($C10,'RECAP SECT'!$G$6:$FJ$253,153,FALSE) -> 2 | I10: =VLOOKUP($C10,'RECAP SECT'!$G$6:$FJ$253,154,FALSE) -> 46% | J10: =VLOOKUP($C10,'RECAP SECT'!$G$6:$FJ$253,155,FALSE) -> 28% | K10: =VLOOKUP($C10,'RECAP SECT'!$G$6:$FJ$253,156,FALSE) -> 12 | L10: =VLOOKUP($C10,'RECAP SECT'!$G$6:$FJ$253,157,FALSE) -> 19% | M10: =VLOOKUP($C10,'RECAP SECT'!$G$6:$FJ$253,158,FALSE) -> 13% | N10: =VLOOKUP($C10,'RECAP SECT'!$G$6:$FJ$253,159,FALSE) -> 2
A11: 50 | B11: AUBE HAUTE MARNE | C11: 14 | D11: TROYES | E11: =VLOOKUP($C11,'RECAP SECT'!$G$6:$FJ$253,3,FALSE) -> 69.8 | F11: =VLOOKUP($C11,'RECAP SECT'!$G$6:$FJ$253,151,FALSE) -> -14 | G11: =VLOOKUP($C11,'RECAP SECT'!$G$6:$FJ$253,152,FALSE) -> 64% | H11: =VLOOKUP($C11,'RECAP SECT'!$G$6:$FJ$253,153,FALSE) -> 11 | I11: =VLOOKUP($C11,'RECAP SECT'!$G$6:$FJ$253,154,FALSE) -> 44% | J11: =VLOOKUP($C11,'RECAP SECT'!$G$6:$FJ$253,155,FALSE) -> 32% | K11: =VLOOKUP($C11,'RECAP SECT'!$G$6:$FJ$253,156,FALSE) -> 13 | L11: =VLOOKUP($C11,'RECAP SECT'!$G$6:$FJ$253,157,FALSE) -> 49% | M11: =VLOOKUP($C11,'RECAP SECT'!$G$6:$FJ$253,158,FALSE) -> 43% | N11: =VLOOKUP($C11,'RECAP SECT'!$G$6:$FJ$253,159,FALSE) -> 12
A12: 262 | B12: BAS-RHIN | C12: 5060 | D12: HAGUENAU | E12: =VLOOKUP($C12,'RECAP SECT'!$G$6:$FJ$253,3,FALSE) -> 80.0 | F12: =VLOOKUP($C12,'RECAP SECT'!$G$6:$FJ$253,151,FALSE) -> -8 | G12: =VLOOKUP($C12,'RECAP SECT'!$G$6:$FJ$253,152,FALSE) -> 32% | H12: =VLOOKUP($C12,'RECAP SECT'!$G$6:$FJ$253,153,FALSE) -> 6 | I12: =VLOOKUP($C12,'RECAP SECT'!$G$6:$FJ$253,154,FALSE) -> 48% | J12: =VLOOKUP($C12,'RECAP SECT'!$G$6:$FJ$253,155,FALSE) -> 26% | K12: =VLOOKUP($C12,'RECAP SECT'!$G$6:$FJ$253,156,FALSE) -> 10 | L12: =VLOOKUP($C12,'RECAP SECT'!$G$6:$FJ$253,157,FALSE) -> 29% | M12: =VLOOKUP($C12,'RECAP SECT'!$G$6:$FJ$253,158,FALSE) -> 23% | N12: =VLOOKUP($C12,'RECAP SECT'!$G$6:$FJ$253,159,FALSE) -> 7
A13: 262 | B13: BAS-RHIN | C13: 5101 | D13: SELESTAT | E13: =VLOOKUP($C13,'RECAP SECT'!$G$6:$FJ$253,3,FALSE) -> 64.8 | F13: =VLOOKUP($C13,'RECAP SECT'!$G$6:$FJ$253,151,FALSE) -> -25 | G13: =VLOOKUP($C13,'RECAP SECT'!$G$6:$FJ$253,152,FALSE) -> 123% | H13: =VLOOKUP($C13,'RECAP SECT'!$G$6:$FJ$253,153,FALSE) -> 16 | I13: =VLOOKUP($C13,'RECAP SECT'!$G$6:$FJ$253,154,FALSE) -> 40% | J13: =VLOOKUP($C13,'RECAP SECT'!$G$6:$FJ$253,155,FALSE) -> 38% | K13: =VLOOKUP($C13,'RECAP SECT'!$G$6:$FJ$253,156,FALSE) -> 15 | L13: =VLOOKUP($C13,'RECAP SECT'!$G$6:$FJ$253,157,FALSE) -> 84% | M13: =VLOOKUP($C13,'RECAP SECT'!$G$6:$FJ$253,158,FALSE) -> 77% | N13: =VLOOKUP($C13,'RECAP SECT'!$G$6:$FJ$253,159,FALSE) -> 16
A14: 262 | B14: BAS-RHIN | C14: 5006 | D14: STRASBOURG | E14: =VLOOKUP($C14,'RECAP SECT'!$G$6:$FJ$253,3,FALSE) -> 79.3 | F14: =VLOOKUP($C14,'RECAP SECT'!$G$6:$FJ$253,151,FALSE) -> -30 | G14: =VLOOKUP($C14,'RECAP SECT'!$G$6:$FJ$253,152,FALSE) -> 150% | H14: =VLOOKUP($C14,'RECAP SECT'!$G$6:$FJ$253,153,FALSE) -> 18 | I14: =VLOOKUP($C14,'RECAP SECT'!$G$6:$FJ$253,154,FALSE) -> 30% | J14: =VLOOKUP($C14,'RECAP SECT'!$G$6:$FJ$253,155,FALSE) -> 53% | K14: =VLOOKUP($C14,'RECAP SECT'!$G$6:$FJ$253,156,FALSE) -> 18 | L14: =VLOOKUP($C14,'RECAP SECT'!$G$6:$FJ$253,157,FALSE) -> 105% | M14: =VLOOKUP($C14,'RECAP SECT'!$G$6:$FJ$253,158,FALSE) -> 98% | N14: =VLOOKUP($C14,'RECAP SECT'!$G$6:$FJ$253,159,FALSE) -> 18
A15: 264 | B15: HAUT-RHIN | C15: 5130 | D15: COLMAR | E15: =VLOOKUP($C15,'RECAP SECT'!$G$6:$FJ$253,3,FALSE) -> 68.4 | F15: =VLOOKUP($C15,'RECAP SECT'!$G$6:$FJ$253,151,FALSE) -> -18 | G15: =VLOOKUP($C15,'RECAP SECT'!$G$6:$FJ$253,152,FALSE) -> 86% | H15: =VLOOKUP($C15,'RECAP SECT'!$G$6:$FJ$253,153,FALSE) -> 13 | I15: =VLOOKUP($C15,'RECAP SECT'!$G$6:$FJ$253,154,FALSE) -> 41% | J15: =VLOOKUP($C15,'RECAP SECT'!$G$6:$FJ$253,155,FALSE) -> 36% | K15: =VLOOKUP($C15,'RECAP SECT'!$G$6:$FJ$253,156,FALSE) -> 14 | L15: =VLOOKUP($C15,'RECAP SECT'!$G$6:$FJ$253,157,FALSE) -> 63% | M15: =VLOOKUP($C15,'RECAP SECT'!$G$6:$FJ$253,158,FALSE) -> 56% | N15: =VLOOKUP($C15,'RECAP SECT'!$G$6:$FJ$253,159,FALSE) -> 14
A16: 264 | B16: HAUT-RHIN | C16: 5169 | D16: MULHOUSE | E16: =VLOOKUP($C16,'RECAP SECT'!$G$6:$FJ$253,3,FALSE) -> 64.5 | F16: =VLOOKUP($C16,'RECAP SECT'!$G$6:$FJ$253,151,FALSE) -> -26 | G16: =VLOOKUP($C16,'RECAP SECT'!$G$6:$FJ$253,152,FALSE) -> 129% | H16: =VLOOKUP($C16,'RECAP SECT'!$G$6:$FJ$253,153,FALSE) -> 17 | I16: =VLOOKUP($C16,'RECAP SECT'!$G$6:$FJ$253,154,FALSE) -> 31% | J16: =VLOOKUP($C16,'RECAP SECT'!$G$6:$FJ$253,155,FALSE) -> 52% | K16: =VLOOKUP($C16,'RECAP SECT'!$G$6:$FJ$253,156,FALSE) -> 17 | L16: =VLOOKUP($C16,'RECAP SECT'!$G$6:$FJ$253,157,FALSE) -> 93% | M16: =VLOOKUP($C16,'RECAP SECT'!$G$6:$FJ$253,158,FALSE) -> 87% | N16: =VLOOKUP($C16,'RECAP SECT'!$G$6:$FJ$253,159,FALSE) -> 17
A17: 30 | B17: MARNE-ARDENNES | C17: 6 | D17: CHALONS EN CHAMPAGNE | E17: =VLOOKUP($C17,'RECAP SECT'!$G$6:$FJ$253,3,FALSE) -> 46.4 | F17: =VLOOKUP($C17,'RECAP SECT'!$G$6:$FJ$253,151,FALSE) -> -11 | G17: =VLOOKUP($C17,'RECAP SECT'!$G$6:$FJ$253,152,FALSE) -> 48% | H17: =VLOOKUP($C17,'RECAP SECT'!$G$6:$FJ$253,153,FALSE) -> 8 | I17: =VLOOKUP($C17,'RECAP SECT'!$G$6:$FJ$253,154,FALSE) -> 64% | J17: =VLOOKUP($C17,'RECAP SECT'!$G$6:$FJ$253,155,FALSE) -> 0% | K17: =VLOOKUP($C17,'RECAP SECT'!$G$6:$FJ$253,156,FALSE) -> 1 | L17: =VLOOKUP($C17,'RECAP SECT'!$G$6:$FJ$253,157,FALSE) -> 26% | M17: =VLOOKUP($C17,'RECAP SECT'!$G$6:$FJ$253,158,FALSE) -> 19% | N17: =VLOOKUP($C17,'RECAP SECT'!$G$6:$FJ$253,159,FALSE) -> 6
A18: 30 | B18: MARNE-ARDENNES | C18: 2 | D18: CHARLEVILLE MEZIERES | E18: =VLOOKUP($C18,'RECAP SECT'!$G$6:$FJ$253,3,FALSE) -> 57.5 | F18: =VLOOKUP($C18,'RECAP SECT'!$G$6:$FJ$253,151,FALSE) -> -12 | G18: =VLOOKUP($C18,'RECAP SECT'!$G$6:$FJ$253,152,FALSE) -> 54% | H18: =VLOOKUP($C18,'RECAP SECT'!$G$6:$FJ$253,153,FALSE) -> 9 | I18: =VLOOKUP($C18,'RECAP SECT'!$G$6:$FJ$253,154,FALSE) -> 57% | J18: =VLOOKUP($C18,'RECAP SECT'!$G$6:$FJ$253,155,FALSE) -> 12% | K18: =VLOOKUP($C18,'RECAP SECT'!$G$6:$FJ$253,156,FALSE) -> 2 | L18: =VLOOKUP($C18,'RECAP SECT'!$G$6:$FJ$253,157,FALSE) -> 34% | M18: =VLOOKUP($C18,'RECAP SECT'!$G$6:$FJ$253,158,FALSE) -> 28% | N18: =VLOOKUP($C18,'RECAP SECT'!$G$6:$FJ$253,159,FALSE) -> 8
A19: 30 | B19: MARNE-ARDENNES | C19: 11 | D19: REIMS | E19: =VLOOKUP($C19,'RECAP SECT'!$G$6:$FJ$253,3,FALSE) -> 80.4 | F19: =VLOOKUP($C19,'RECAP SECT'!$G$6:$FJ$253,151,FALSE) -> -6 | G19: =VLOOKUP($C19,'RECAP SECT'!$G$6:$FJ$253,152,FALSE) -> 21% | H19: =VLOOKUP($C19,'RECAP SECT'!$G$6:$FJ$253,153,FALSE) -> 4 | I19: =VLOOKUP($C19,'RECAP SECT'!$G$6:$FJ$253,154,FALSE) -> 54% | J19: =VLOOKUP($C19,'RECAP SECT'!$G$6:$FJ$253,155,FALSE) -> 17% | K19: =VLOOKUP($C19,'RECAP SECT'!$G$6:$FJ$253,156,FALSE) -> 5 | L19: =VLOOKUP($C19,'RECAP SECT'!$G$6:$FJ$253,157,FALSE) -> 19% | M19: =VLOOKUP($C19,'RECAP SECT'!$G$6:$FJ$253,158,FALSE) -> 13% | N19: =VLOOKUP($C19,'RECAP SECT'!$G$6:$FJ$253,159,FALSE) -> 3
A20: 110 | B20: MEURTHE ET MOSELLE MEUSE | C20: 26 | D20: NANCY | E20: =VLOOKUP($C20,'RECAP SECT'!$G$6:$FJ$253,3,FALSE) -> 68.0 | F20: =VLOOKUP($C20,'RECAP SECT'!$G$6:$FJ$253,151,FALSE) -> -5 | G20: =VLOOKUP($C20,'RECAP SECT'!$G$6:$FJ$253,152,FALSE) -> 16% | H20: =VLOOKUP($C20,'RECAP SECT'!$G$6:$FJ$253,153,FALSE) -> 3 | I20: =VLOOKUP($C20,'RECAP SECT'!$G$6:$FJ$253,154,FALSE) -> 48% | J20: =VLOOKUP($C20,'RECAP SECT'!$G$6:$FJ$253,155,FALSE) -> 26% | K20: =VLOOKUP($C20,'RECAP SECT'!$G$6:$FJ$253,156,FALSE) -> 11 | L20: =VLOOKUP($C20,'RECAP SECT'!$G$6:$FJ$253,157,FALSE) -> 21% | M20: =VLOOKUP($C20,'RECAP SECT'!$G$6:$FJ$253,158,FALSE) -> 14% | N20: =VLOOKUP($C20,'RECAP SECT'!$G$6:$FJ$253,159,FALSE) -> 4
A21: 110 | B21: MEURTHE ET MOSELLE MEUSE | C21: 27 | D21: PONT A MOUSSON | E21: =VLOOKUP($C21,'RECAP SECT'!$G$6:$FJ$253,3,FALSE) -> 76.5 | F21: =VLOOKUP($C21,'RECAP SECT'!$G$6:$FJ$253,151,FALSE) -> -19 | G21: =VLOOKUP($C21,'RECAP SECT'!$G$6:$FJ$253,152,FALSE) -> 91% | H21: =VLOOKUP($C21,'RECAP SECT'!$G$6:$FJ$253,153,FALSE) -> 14 | I21: =VLOOKUP($C21,'RECAP SECT'!$G$6:$FJ$253,154,FALSE) -> 48% | J21: =VLOOKUP($C21,'RECAP SECT'!$G$6:$FJ$253,155,FALSE) -> 25% | K21: =VLOOKUP($C21,'RECAP SECT'!$G$6:$FJ$253,156,FALSE) -> 8 | L21: =VLOOKUP($C21,'RECAP SECT'!$G$6:$FJ$253,157,FALSE) -> 60% | M21: =VLOOKUP($C21,'RECAP SECT'!$G$6:$FJ$253,158,FALSE) -> 54% | N21: =VLOOKUP($C21,'RECAP SECT'!$G$6:$FJ$253,159,FALSE) -> 13
A22: 110 | B22: MEURTHE ET MOSELLE MEUSE | C22: 31 | D22: VERDUN | E22: =VLOOKUP($C22,'RECAP SECT'!$G$6:$FJ$253,3,FALSE) -> 54.4 | F22: =VLOOKUP($C22,'RECAP SECT'!$G$6:$FJ$253,151,FALSE) -> -2 | G22: =VLOOKUP($C22,'RECAP SECT'!$G$6:$FJ$253,152,FALSE) -> 0% | H22: =VLOOKUP($C22,'RECAP SECT'!$G$6:$FJ$253,153,FALSE) -> 1 | I22: =VLOOKUP($C22,'RECAP SECT'!$G$6:$FJ$253,154,FALSE) -> 56% | J22: =VLOOKUP($C22,'RECAP SECT'!$G$6:$FJ$253,155,FALSE) -> 13% | K22: =VLOOKUP($C22,'RECAP SECT'!$G$6:$FJ$253,156,FALSE) -> 3 | L22: =VLOOKUP($C22,'RECAP SECT'!$G$6:$FJ$253,157,FALSE) -> 6% | M22: =VLOOKUP($C22,'RECAP SECT'!$G$6:$FJ$253,158,FALSE) -> 0% | N22: =VLOOKUP($C22,'RECAP SECT'!$G$6:$FJ$253,159,FALSE) -> 1
A23: 160 | B23: MOSELLE | C23: 45 | D23: METZ | E23: =VLOOKUP($C23,'RECAP SECT'!$G$6:$FJ$253,3,FALSE) -> 89.4 | F23: =VLOOKUP($C23,'RECAP SECT'!$G$6:$FJ$253,151,FALSE) -> -12 | G23: =VLOOKUP($C23,'RECAP SECT'!$G$6:$FJ$253,152,FALSE) -> 54% | H23: =VLOOKUP($C23,'RECAP SECT'!$G$6:$FJ$253,153,FALSE) -> 9 | I23: =VLOOKUP($C23,'RECAP SECT'!$G$6:$FJ$253,154,FALSE) -> 54% | J23: =VLOOKUP($C23,'RECAP SECT'!$G$6:$FJ$253,155,FALSE) -> 16% | K23: =VLOOKUP($C23,'RECAP SECT'!$G$6:$FJ$253,156,FALSE) -> 4 | L23: =VLOOKUP($C23,'RECAP SECT'!$G$6:$FJ$253,157,FALSE) -> 36% | M23: =VLOOKUP($C23,'RECAP SECT'!$G$6:$FJ$253,158,FALSE) -> 30% | N23: =VLOOKUP($C23,'RECAP SECT'!$G$6:$FJ$253,159,FALSE) -> 10
A24: 160 | B24: MOSELLE | C24: 42 | D24: MOSELLE EST | E24: =VLOOKUP($C24,'RECAP SECT'!$G$6:$FJ$253,3,FALSE) -> 76.7 | F24: =VLOOKUP($C24,'RECAP SECT'!$G$6:$FJ$253,151,FALSE) -> -10 | G24: =VLOOKUP($C24,'RECAP SECT'!$G$6:$FJ$253,152,FALSE) -> 43% | H24: =VLOOKUP($C24,'RECAP SECT'!$G$6:$FJ$253,153,FALSE) -> 7 | I24: =VLOOKUP($C24,'RECAP SECT'!$G$6:$FJ$253,154,FALSE) -> 48% | J24: =VLOOKUP($C24,'RECAP SECT'!$G$6:$FJ$253,155,FALSE) -> 26% | K24: =VLOOKUP($C24,'RECAP SECT'!$G$6:$FJ$253,156,FALSE) -> 9 | L24: =VLOOKUP($C24,'RECAP SECT'!$G$6:$FJ$253,157,FALSE) -> 35% | M24: =VLOOKUP($C24,'RECAP SECT'!$G$6:$FJ$253,158,FALSE) -> 29% | N24: =VLOOKUP($C24,'RECAP SECT'!$G$6:$FJ$253,159,FALSE) -> 9
A25: 160 | B25: MOSELLE | C25: 44 | D25: MOSELLE NORD | E25: =VLOOKUP($C25,'RECAP SECT'!$G$6:$FJ$253,3,FALSE) -> 69.6 | F25: =VLOOKUP($C25,'RECAP SECT'!$G$6:$FJ$253,151,FALSE) -> -22 | G25: =VLOOKUP($C25,'RECAP SECT'!$G$6:$FJ$253,152,FALSE) -> 107% | H25: =VLOOKUP($C25,'RECAP SECT'!$G$6:$FJ$253,153,FALSE) -> 15 | I25: =VLOOKUP($C25,'RECAP SECT'!$G$6:$FJ$253,154,FALSE) -> 37% | J25: =VLOOKUP($C25,'RECAP SECT'!$G$6:$FJ$253,155,FALSE) -> 42% | K25: =VLOOKUP($C25,'RECAP SECT'!$G$6:$FJ$253,156,FALSE) -> 16 | L25: =VLOOKUP($C25,'RECAP SECT'!$G$6:$FJ$253,157,FALSE) -> 77% | M25: =VLOOKUP($C25,'RECAP SECT'!$G$6:$FJ$253,158,FALSE) -> 71% | N25: =VLOOKUP($C25,'RECAP SECT'!$G$6:$FJ$253,159,FALSE) -> 15
A26: 80 | B26: VOSGES | C26: 57 | D26: EPINAL | E26: =VLOOKUP($C26,'RECAP SECT'!$G$6:$FJ$253,3,FALSE) -> 62.9 | F26: =VLOOKUP($C26,'RECAP SECT'!$G$6:$FJ$253,151,FALSE) -> -14 | G26: =VLOOKUP($C26,'RECAP SECT'!$G$6:$FJ$253,152,FALSE) -> 64% | H26: =VLOOKUP($C26,'RECAP SECT'!$G$6:$FJ$253,153,FALSE) -> 11 | I26: =VLOOKUP($C26,'RECAP SECT'!$G$6:$FJ$253,154,FALSE) -> 51% | J26: =VLOOKUP($C26,'RECAP SECT'!$G$6:$FJ$253,155,FALSE) -> 21% | K26: =VLOOKUP($C26,'RECAP SECT'!$G$6:$FJ$253,156,FALSE) -> 6 | L26: =VLOOKUP($C26,'RECAP SECT'!$G$6:$FJ$253,157,FALSE) -> 44% | M26: =VLOOKUP($C26,'RECAP SECT'!$G$6:$FJ$253,158,FALSE) -> 38% | N26: =VLOOKUP($C26,'RECAP SECT'!$G$6:$FJ$253,159,FALSE) -> 11
A27: 80 | B27: VOSGES | C27: 55 | D27: SAINT DIE | E27: =VLOOKUP($C27,'RECAP SECT'!$G$6:$FJ$253,3,FALSE) -> 50.2 | F27: =VLOOKUP($C27,'RECAP SECT'!$G$6:$FJ$253,151,FALSE) -> -6 | G27: =VLOOKUP($C27,'RECAP SECT'!$G$6:$FJ$253,152,FALSE) -> 21% | H27: =VLOOKUP($C27,'RECAP SECT'!$G$6:$FJ$253,153,FALSE) -> 4 | I27: =VLOOKUP($C27,'RECAP SECT'!$G$6:$FJ$253,154,FALSE) -> 49% | J27: =VLOOKUP($C27,'RECAP SECT'!$G$6:$FJ$253,155,FALSE) -> 24% | K27: =VLOOKUP($C27,'RECAP SECT'!$G$6:$FJ$253,156,FALSE) -> 7 | L27: =VLOOKUP($C27,'RECAP SECT'!$G$6:$FJ$253,157,FALSE) -> 23% | M27: =VLOOKUP($C27,'RECAP SECT'!$G$6:$FJ$253,158,FALSE) -> 16% | N27: =VLOOKUP($C27,'RECAP SECT'!$G$6:$FJ$253,159,FALSE) -> 5
A28: Total CEGEE Directions Régionales | E28: =SUM(E10:E27) -> 1195

Sheet AG_CLASS
B1: Accueil | H1: BAROMETRE BDD - AGENCES
H2: CLASSEMENTS
H3: =ACCUEIL!F7 -> 2020-05-10
H8: CLASSEMENT GENERAL | I8: CRITERE CLIENTS | J8: Evolution nette clients Bancarisés Principaux | K8: Evolution nette relations PREMIUM | L8: Evolution nette clients Jeunes équipés | M8: Evolution nette clients Pro actif équipés | N8: CRITERE BANCARISATION | O8: Ventes nettes FORFAITS | P8: Ventes nettes IZICARTES débit différé | Q8: Ventes nettes Cartes HDG débit différé | R8: Ventes nettes Forfaits Pro Cartes Pro | S8: CRITERE EPARGNE | T8: Excédent Epargne Liquide | U8: CA UC + arbitrage | V8: Excédent Assurance Vie | W8: CRITERE CREDITS | X8: Engagements crédits conso | Y8: ADE crédits conso | Z8: Engagements crédits immo | AA8: ADE crédits immo | AB8: SACCEF | AC8: Engagement Crédits MLT + Crédits Bail | AD8: CRITERE IARD PREVOYANCE | AE8: Ventes nettes IARD | AF8: Ventes nettes Prévoyance | AG8: CRITERE ACCELERATEURS PNB | AH8: Ventes brutes SED finalisées | AI8: Clients Equipés E documents | AJ8: Economie Opt'in | AK8: Remises Commerciales | AL8: CRITERE Qualité Satisfaction Clients | AM8: Objectifs NPS* | AN8: Enquête Qualité Haute Définition
B9: Direction | C9: eds | D9: Territoire | E9: eds | F9: Agence | G9: ETP perf | H9: Rang | I9: Rang | J9: Rang | K9: Rang | L9: Rang | M9: Rang | N9: Rang | O9: Rang | P9: Rang | Q9: Rang | R9: Rang | S9: Rang | T9: Rang | U9: Rang | V9: Rang | W9: Rang | X9: Rang | Y9: Rang | Z9: Rang | AA9: Rang | AB9: Rang | AC9: Rang | AD9: Rang | AE9: Rang | AF9: Rang | AG9: Rang | AH9: Rang | AI9: Rang | AJ9: Rang | AK9: Rang | AL9: Rang | AM9: Rang | AN9: Rang
A10: 110 | B10: MEURTHE ET MOSELLE MEUSE | C10: 27 | D10: PONT A MOUSSON | E10: 454651 | F10: TOUL REPUBLIQUE | G10: 10.9 | H10: 1 | I10: 13 | J10: 48 | K10: 110 | L10: 10 | M10: 89 | N10: 1 | O10: 1 | P10: 2 | Q10: 1 | R10: 17 | S10: 17 | T10: 51 | U10: 69 | V10: 15 | W10: 1 | X10: 1 | Y10: 1 | Z10: 1 | AA10: 1 | AB10: 1 | AC10: 44 | AD10: 1 | AE10: 1 | AF10: 4 | AG10: 1 | AH10: 1 | AI10: 1 | AJ10: 9 | AK10: 51 | AL10: 263 | AM10: 265 | AN10: 230
A11: 80 | B11: VOSGES | C11: 57 | D11: EPINAL | E11: 488288 | F11: EPINAL LEOPOLD BOURG | G11: 1.8 | H11: 2 | I11: 38 | J11: 67 | K11: 4 | L11: 296 | M11: 89 | N11: 10 | O11: 27 | P11: 88 | Q11: 53 | R11: 2 | S11: 4 | T11: 3 | U11: 70 | V11: 26 | W11: 2 | X11: 26 | Y11: 47 | Z11: 2 | AA11: 6 | AB11: 37 | AC11: 1 | AD11: 15 | AE11: 3 | AF11: 155 | AG11: 105 | AH11: 45 | AI11: 64 | AJ11: 197 | AK11: 273 | AL11: 4 | AM11: 4 | AN11: 67
A12: 80 | B12: VOSGES | C12: 55 | D12: SAINT DIE | E12: 488346 | F12: GRANGES AUMONTZEY | G12: 1.8 | H12: 3 | I12: 275 | J12: 143 | K12: 292 | L12: 208 | M12: 89 | N12: 3 | O12: 43 | P12: 3 | Q12: 4 | R12: 61 | S12: 100 | T12: 302 | U12: 139 | V12: 18 | W12: 41 | X12: 8 | Y12: 7 | Z12: 234 | AA12: 90 | AB12: 160 | AC12: 217 | AD12: 4 | AE12: 7 | AF12: 8 | AG12: 10 | AH12: 5 | AI12: 132 | AJ12: 145 | AK12: 37 | AL12: 7 | AM12: 10 | AN12: 28
A13: 110 | B13: MEURTHE ET MOSELLE MEUSE | C13: 26 | D13: NANCY | E13: 454481 | F13: NANCY PLACE DOMBASLE | G13: 10.5 | H13: 4 | I13: 11 | J13: 4 | K13: 192 | L13: 9 | M13: 89 | N13: 6 | O13: 2 | P13: 24 | Q13: 32 | R13: 18 | S13: 166 | T13: 41 | U13: 30 | V13: 275 | W13: 19 | X13: 250 | Y13: 214 | Z13: 9 | AA13: 12 | AB13: 4 | AC13: 28 | AD13: 11 | AE13: 8 | AF13: 26 | AG13: 2 | AH13: 2 | AI13: 14 | AJ13: 18 | AK13: 262 | AL13: 152 | AM13: 123 | AN13: 193
A14: 30 | B14: MARNE-ARDENNES | C14: 11 | D14: REIMS | E14: 551369 | F14: DAMERY | G14: 3.0 | H14: 5 | I14: 53 | J14: 38 | K14: 260 | L14: 39 | M14: 15 | N14: 5 | O14: 4 | P14: 43 | Q14: 46 | R14: 4 | S14: 37 | T14: 238 | U14: 201 | V14: 7 | W14: 5 | X14: 53 | Y14: 20 | Z14: 10 | AA14: 2 | AB14: 6 | AC14: 13 | AD14: 17 | AE14: 41 | AF14: 15 | AG14: 222 | AH14: 156 | AI14: 89 | AJ14: 290 | AK14: 242 | AL14: 24 | AM14: 31 | AN14: 53
A15: 30 | B15: MARNE-ARDENNES | C15: 6 | D15: CHALONS EN CHAMPAGNE | E15: 551103 | F15: FAGNIERES LECLERC | G15: 3.0 | H15: 6 | I15: 9 | J15: 1 | K15: 182 | L15: 217 | M15: 56 | N15: 27 | O15: 7 | P15: 183 | Q15: 170 | R15: 15 | S15: 20 | T15: 5 | U15: 146 | V15: 182 | W15: 7 | X15: 85 | Y15: 76 | Z15: 3 | AA15: 3 | AB15: 3 | AC15: 170 | AD15: 89 | AE15: 57 | AF15: 144 | AG15: 18 | AH15: 57 | AI15: 4 | AJ15: 52 | AK15: 41 | AL15: 46 | AM15: 51 | AN15: 49
A16: 110 | B16: MEURTHE ET MOSELLE MEUSE | C16: 27 | D16: PONT A MOUSSON | E16: 554531 | F16: POMPEY | G16: 2.2 | H16: 7 | I16: 14 | J16: 63 | K16: 145 | L16: 4 | M16: 89 | N16: 9 | O16: 26 | P16: 11 | Q16: 14 | R16: 37 | S16: 274 | T16: 285 | U16: 252 | V16: 217 | W16: 6 | X16: 14 | Y16: 5 | Z16: 7 | AA16: 4 | AB16: 13 | AC16: 217 | AD16: 14 | AE16: 10 | AF16: 33 | AG16: 4 | AH16: 7 | AI16: 10 | AJ16: 62 | AK16: 5 | AL16: 201 | AM16: 212 | AN16: 169
A17: 160 | B17: MOSELLE | C17: 44 | D17: MOSELLE NORD | E17: 557508 | F17: NILVANGE | G17: 2.7 | H17: 8 | I17: 149 | J17: 271 | K17: 275 | L17: 3 | M17: 89 | N17: 13 | O17: 18 | P17: 6 | Q17: 11 | R17: 158 | S17: 180 | T17: 196 | U17: 114 | V17: 155 | W17: 21 | X17: 21 | Y17: 10 | Z17: 16 | AA17: 160 | AB17: 19 | AC17: 217 | AD17: 2 | AE17: 6 | AF17: 5 | AG17: 26 | AH17: 23 | AI17: 159 | AJ17: 7 | AK17: 221 | AL17: 86 | AM17: 87 | AN17: 100
A18: 160 | B18: MOSELLE | C18: 44 | D18: MOSELLE NORD | E18: 557660 | F18: UCKANGE JEANNE D ARC | G18: 1.9 | H18: 9 | I18: 12 | J18: 183 | K18: 6 | L18: 204 | M18: 26 | N18: 4 | O18: 19 | P18: 8 | Q18: 9 | R18: 12 | S18: 42 | T18: 145 | U18: 31 | V18: 52 | W18: 8 | X18: 7 | Y18: 19 | Z18: 11 | AA18: 26 | AB18: 9 | AC18: 68 | AD18: 39 | AE18: 47 | AF18: 50 | AG18: 20 | AH18: 9 | AI18: 70 | AJ18: 187 | AK18: 168 | AL18: 195 | AM18: 204 | AN18: 160
A19: 160 | B19: MOSELLE | C19: 45 | D19: METZ | E19: 557447 | F19: METZ SAINT MAXIMIN | G19: 2.9 | H19: 10 | I19: 4 | J19: 6 | K19: 73 | L19: 15 | M19: 52 | N19: 26 | O19: 3 | P19: 116 | Q19: 200 | R19: 43 | S19: 238 | T19: 151 | U19: 219 | V19: 227 | W19: 23 | X19: 136 | Y19: 169 | Z19: 23 | AA19: 5 | AB19: 17 | AC19: 217 | AD19: 25 | AE19: 38 | AF19: 35 | AG19: 15 | AH19: 10 | AI19: 48 | AJ19: 256 | AK19: 43 | AL19: 92 | AM19: 67 | AN19: 168
A20: 30 | B20: MARNE-ARDENNES | C20: 2 | D20: CHARLEVILLE MEZIERES | E20: 408822 | F20: CHARLEVILLE MEZIERES | G20: 4.0 | H20: 11 | I20: 121 | J20: 11 | K20: 261 | L20: 17 | M20: 296 | N20: 32 | O20: 17 | P20: 25 | Q20: 45 | R20: 213 | S20: 29 | T20: 252 | U20: 77 | V20: 2 | W20: 15 | X20: 112 | Y20: 167 | Z20: 6 | AA20: 11 | AB20: 11 | AC20: 71 | AD20: 24 | AE20: 17 | AF20: 46 | AG20: 8 | AH20: 11 | AI20: 26 | AJ20: 70 | AK20: 74 | AL20: 72 | AM20: 108 | AN20: 10
A21: 30 | B21: MARNE-ARDENNES | C21: 11 | D21: REIMS | E21: 551340 | F21: BETHENY | G21: 3.0 | H21: 12 | I21: 10 | J21: 78 | K21: 2 | L21: 156 | M21: 249 | N21: 161 | O21: 36 | P21: 55 | Q21: 136 | R21: 299 | S21: 6 | T21: 12 | U21: 55 | V21: 5 | W21: 16 | X21: 39 | Y21: 78 | Z21: 18 | AA21: 15 | AB21: 16 | AC21: 128 | AD21: 12 | AE21: 12 | AF21: 19 | AG21: 31 | AH21: 19 | AI21: 79 | AJ21: 123 | AK21: 104 | AL21: 100 | AM21: 145 | AN21: 21
A22: 110 | B22: MEURTHE ET MOSELLE MEUSE | C22: 26 | D22: NANCY | E22: 554266 | F22: DOMBASLE SUR MEURTHE | G22: 3.9 | H22: 13 | I22: 163 | J22: 103 | K22: 158 | L22: 267 | M22: 72 | N22: 7 | O22: 91 | P22: 16 | Q22: 19 | R22: 3 | S22: 178 | T22: 70 | U22: 44 | V22: 260 | W22: 10 | X22: 28 | Y22: 12 | Z22: 12 | AA22: 16 | AB22: 8 | AC22: 217 | AD22: 60 | AE22: 53 | AF22: 89 | AG22: 30 | AH22: 12 | AI22: 60 | AJ22: 105 | AK22: 258 | AL22: 55 | AM22: 54 | AN22: 83
A23: 30 | B23: MARNE-ARDENNES | C23: 2 | D23: CHARLEVILLE MEZIERES | E23: 508833 | F23: VILLERS SEMEUSE CORA | G23: 2.9 | H23: 14 | I23: 147 | J23: 60 | K23: 180 | L23: 206 | M23: 89 | N23: 25 | O23: 6 | P23: 30 | Q23: 21 | R23: 230 | S23: 118 | T23: 94 | U23: 293 | V23: 107 | W23: 40 | X23: 173 | Y23: 130 | Z23: 15 | AA23: 50 | AB23: 27 | AC23: 217 | AD23: 8 | AE23: 34 | AF23: 7 | AG23: 6 | AH23: 4 | AI23: 17 | AJ23: 168 | AK23: 70 | AL23: 113 | AM23: 90 | AN23: 155
A24: 50 | B24: AUBE HAUTE MARNE | C24: 21 | D24: CHAUMONT | E24: 410539 | F24: CHATEAUVILLAIN | G24: 1.8 | H24: 15 | I24: 43 | J24: 3 | K24: 264 | L24: 7 | M24: 283 | N24: 250 | O24: 171 | P24: 147 | Q24: 181 | R24: 289 | S24: 63 | T24: 260 | U24: 121 | V24: 20 | W24: 92 | X24: 17 | Y24: 113 | Z24: 220 | AA24: 136 | AB24: 199 | AC24: 148 | AD24: 22 | AE24: 18 | AF24: 39 | AG24: 79 | AH24: 76 | AI24: 247 | AJ24: 213 | AK24: 14 | AL24: 1 | AM24: 3 | AN24: 2
A25: 50 | B25: AUBE HAUTE MARNE | C25: 14 | D25: TROYES | E25: 410551 | F25: BRIENNE LE CHÂTEAU | G25: 2.7 | H25: 16 | I25: 153 | J25: 159 | K25: 179 | L25: 116 | M25: 89 | N25: 138 | O25: 146 | P25: 110 | Q25: 130 | R25: 158 | S25: 280 | T25: 305 | U25: 208 | V25: 161 | W25: 165 | X25: 25 | Y25: 23 | Z25: 280 | AA25: 258 | AB25: 281 | AC25: 129 | AD25: 6 | AE25: 36 | AF25: 2 | AG25: 92 | AH25: 181 | AI25: 191 | AJ25: 111 | AK25: 2 | AL25: 2 | AM25: 2 | AN25: 34
A26: 30 | B26: MARNE-ARDENNES | C26: 2 | D26: CHARLEVILLE MEZIERES | E26: 408814 | F26: VRIGNE AUX BOIS | G26: 1.3 | H26: 17 | I26: 139 | J26: 39 | K26: 299 | L26: 1 | M26: 297 | N26: 39 | O26: 176 | P26: 17 | Q26: 38 | R26: 64 | S26: 40 | T26: 32 | U26: 28 | V26: 186 | W26: 55 | X26: 48 | Y26: 74 | Z26: 61 | AA26: 69 | AB26: 112 | AC26: 116 | AD26: 3 | AE26: 2 | AF26: 21 | AG26: 32 | AH26: 69 | AI26: 35 | AJ26: 54 | AK26: 45 | AL26: 146 | AM26: 191 | AN26: 76
A27: 30 | B27: MARNE-ARDENNES | C27: 11 | D27: REIMS | E27: 551310 | F27: REIMS CHATILLONS | G27: 4.2 | H27: 18 | I27: 98 | J27: 31 | K27: 20 | L27: 244 | M27: 294 | N27: 17 | O27: 12 | P27: 47 | Q27: 47 | R27: 50 | S27: 108 | T27: 271 | U27: 158 | V27: 39 | W27: 29 | X27: 64 | Y27: 34 | Z27: 54 | AA27: 22 | AB27: 38 | AC27: 66 | AD27: 86 | AE27: 29 | AF27: 204 | AG27: 3 | AH27: 3 | AI27: 27 | AJ27: 16 | AK27: 135 | AL27: 137 | AM27: 97 | AN27: 217
A28: 50 | B28: AUBE HAUTE MARNE | C28: 14 | D28: TROYES | E28: 410524 | F28: SAINT JULIEN LES VILLAS | G28: 5.2 | H28: 19 | I28: 94 | J28: 29 | K28: 89 | L28: 158 | M28: 265 | N28: 89 | O28: 71 | P28: 158 | Q28: 182 | R28: 45 | S28: 116 | T28: 6 | U28: 60 | V28: 294 | W28: 25 | X28: 194 | Y28: 199 | Z28: 30 | AA28: 59 | AB28: 23 | AC28: 5 | AD28: 53 | AE28: 49 | AF28: 83 | AG28: 121 | AH28: 123 | AI28: 164 | AJ28: 104 | AK28: 137 | AL28: 9 | AM28: 10 | AN28: 62
A29: 30 | B29: MARNE-ARDENNES | C29: 6 | D29: CHALONS EN CHAMPAGNE | E29: 551330 | F29: MONTMIRAIL | G29: 3.2 | H29: 20 | I29: 28 | J29: 19 | K29: 166 | L29: 23 | M29: 89 | N29: 113 | O29: 48 | P29: 128 | Q29: 131 | R29: 158 | S29: 198 | T29: 43 | U29: 179 | V29: 261 | W29: 113 | X29: 207 | Y29: 186 | Z29: 106 | AA29: 32 | AB29: 64 | AC29: 216 | AD29: 47 | AE29: 149 | AF29: 20 | AG29: 27 | AH29: 34 | AI29: 68 | AJ29: 130 | AK29: 6 | AL29: 25 | AM29: 25 | AN29: 78
A30: 160 | B30: MOSELLE | C30: 44 | D30: MOSELLE NORD | E30: 557633 | F30: THIONVILLE COTE DES ROSES | G30: 1.8 | H30: 21 | I30: 85 | J30: 12 | K30: 129 | L30: 211 | M30: 89 | N30: 82 | O30: 39 | P30: 73 | Q30: 105 | R30: 158 | S30: 167 | T30: 15 | U30: 78 | V30: 288 | W30: 4 | X30: 2 | Y30: 3 | Z30: 40 | AA30: 38 | AB30: 5 | AC30: 217 | AD30: 29 | AE30: 4 | AF30: 268 | AG30: 13 | AH30: 6 | AI30: 13 | AJ30: 299 | AK30: 123 | AL30: 208 | AM30: 258 | AN30: 58
A31: 160 | B31: MOSELLE | C31: 44 | D31: MOSELLE NORD | E31: 457449 | F31: METZERVISSE | G31: 2.3 | H31: 22 | I31: 111 | J31: 65 | K31: 35 | L31: 250 | M31: 270 | N31: 124 | O31: 65 | P31: 33 | Q31: 68 | R31: 295 | S31: 46 | T31: 167 | U31: 63 | V31: 34 | W31: 233 | X31: 82 | Y31: 117 | Z31: 282 | AA31: 267 | AB31: 273 | AC31: 210 | AD31: 27 | AE31: 13 | AF31: 81 | AG31: 35 | AH31: 99 | AI31: 18 | AJ31: 80 | AK31: 24 | AL31: 10 | AM31: 6 | AN31: 77
A32: 30 | B32: MARNE-ARDENNES | C32: 2 | D32: CHARLEVILLE MEZIERES | E32: 508819 | F32: MOUZON | G32: 2.0 | H32: 23 | I32: 52 | J32: 269 | K32: 13 | L32: 65 | M32: 89 | N32: 234 | O32: 73 | P32: 278 | Q32: 259 | R32: 229 | S32: 267 | T32: 191 | U32: 299 | V32: 244 | W32: 3 | X32: 9 | Y32: 6 | Z32: 4 | AA32: 9 | AB32: 7 | AC32: 217 | AD32: 191 | AE32: 171 | AF32: 190 | AG32: 41 | AH32: 36 | AI32: 56 | AJ32: 92 | AK32: 202 | AL32: 16 | AM32: 25 | AN32: 32
A33: 160 | B33: MOSELLE | C33: 45 | D33: METZ | E33: 557441 | F33: METZ PLAPPEVILLE | G33: 2.5 | H33: 24 | I33: 125 | J33: 217 | K33: 8 | L33: 199 | M33: 299 | N33: 122 | O33: 102 | P33: 107 | Q33: 91 | R33: 196 | S33: 11 | T33: 13 | U33: 81 | V33: 38 | W33: 12 | X33: 6 | Y33: 8 | Z33: 41 | AA33: 49 | AB33: 39 | AC33: 207 | AD33: 92 | AE33: 168 | AF33: 52 | AG33: 170 | AH33: 31 | AI33: 102 | AJ33: 280 | AK33: 298 | AL33: 27 | AM33: 44 | AN33: 25
A34: 262 | B34: BAS-RHIN | C34: 5006 | D34: STRASBOURG | E34: 4010 | F34: STRASBOURG MEINAU | G34: 3.2 | H34: 25 | I34: 31 | J34: 186 | K34: 121 | L34: 12 | M34: 61 | N34: 8 | O34: 150 | P34: 5 | Q34: 3 | R34: 157 | S34: 94 | T34: 268 | U34: 181 | V34: 31 | W34: 223 | X34: 83 | Y34: 61 | Z34: 250 | AA34: 253 | AB34: 293 | AC34: 153 | AD34: 7 | AE34: 52 | AF34: 3 | AG34: 19 | AH34: 39 | AI34: 25 | AJ34: 11 | AK34: 95 | AL34: 269 | AM34: 264 | AN34: 240
A35: 30 | B35: MARNE-ARDENNES | C35: 2 | D35: CHARLEVILLE MEZIERES | E35: 508839 | F35: GIVET | G35: 2.5 | H35: 26 | I35: 30 | J35: 227 | K35: 195 | L35: 6 | M35: 9 | N35: 58 | O35: 158 | P35: 46 | Q35: 35 | R35: 111 | S35: 93 | T35: 192 | U35: 4 | V35: 235 | W35: 63 | X35: 61 | Y35: 95 | Z35: 64 | AA35: 89 | AB35: 98 | AC35: 150 | AD35: 33 | AE35: 45 | AF35: 45 | AG35: 29 | AH35: 26 | AI35: 20 | AJ35: 98 | AK35: 184 | AL35: 124 | AM35: 145 | AN35: 99
A36: 262 | B36: BAS-RHIN | C36: 5006 | D36: STRASBOURG | E36: 4054 | F36: STRASBOURG MONTAGNE VERTE | G36: 2.5 | H36: 27 | I36: 3 | J36: 21 | K36: 5 | L36: 142 | M36: 36 | N36: 143 | O36: 230 | P36: 105 | Q36: 96 | R36: 139 | S36: 68 | T36: 220 | U36: 185 | V36: 24 | W36: 151 | X36: 45 | Y36: 99 | Z36: 257 | AA36: 280 | AB36: 209 | AC36: 22 | AD36: 5 | AE36: 56 | AF36: 1 | AG36: 103 | AH36: 237 | AI36: 5 | AJ36: 29 | AK36: 264 | AL36: 205 | AM36: 246 | AN36: 98
A37: 110 | B37: MEURTHE ET MOSELLE MEUSE | C37: 31 | D37: VERDUN | E37: 555679 | F37: VERDUN MAZEL | G37: 3.9 | H37: 28 | I37: 150 | J37: 57 | K37: 277 | L37: 66 | M37: 89 | N37: 188 | O37: 89 | P37: 175 | Q37: 145 | R37: 245 | S37: 149 | T37: 87 | U37: 58 | V37: 210 | W37: 142 | X37: 49 | Y37: 51 | Z37: 200 | AA37: 242 | AB37: 151 | AC37: 217 | AD37: 18 | AE37: 165 | AF37: 6 | AG37: 76 | AH37: 40 | AI37: 281 | AJ37: 103 | AK37: 117 | AL37: 6 | AM37: 12 | AN37: 14
A38: 30 | B38: MARNE-ARDENNES | C38: 11 | D38: REIMS | E38: 451370 | F38: EPERNAY VERRON | G38: 9.1 | H38: 29 | I38: 109 | J38: 51 | K38: 195 | L38: 93 | M38: 89 | N38: 46 | O38: 88 | P38: 26 | Q38: 75 | R38: 95 | S38: 212 | T38: 130 | U38: 14 | V38: 272 | W38: 108 | X38: 217 | Y38: 154 | Z38: 100 | AA38: 61 | AB38: 83 | AC38: 35 | AD38: 30 | AE38: 20 | AF38: 53 | AG38: 142 | AH38: 55 | AI38: 122 | AJ38: 278 | AK38: 240 | AL38: 20 | AM38: 20 | AN38: 71
A39: 80 | B39: VOSGES | C39: 55 | D39: SAINT DIE | E39: 488616 | F39: SENONES | G39: 1.9 | H39: 30 | I39: 7 | J39: 56 | K39: 68 | L39: 8 | M39: 89 | N39: 31 | O39: 44 | P39: 98 | Q39: 147 | R39: 10 | S39: 190 | T39: 152 | U39: 24 | V39: 245 | W39: 82 | X39: 24 | Y39: 14 | Z39: 178 | AA39: 165 | AB39: 193 | AC39: 217 | AD39: 43 | AE39: 81 | AF39: 42 | AG39: 62 | AH39: 124 | AI39: 121 | AJ39: 45 | AK39: 57 | AL39: 120 | AM39: 97 | AN39: 175
A40: 30 | B40: MARNE-ARDENNES | C40: 2 | D40: CHARLEVILLE MEZIERES | E40: 408862 | F40: REVIN | G40: 4.1 | H40: 31 | I40: 96 | J40: 134 | K40: 160 | L40: 83 | M40: 74 | N40: 21 | O40: 22 | P40: 66 | Q40: 81 | R40: 19 | S40: 291 | T40: 282 | U40: 297 | V40: 266 | W40: 149 | X40: 130 | Y40: 77 | Z40: 150 | AA40: 128 | AB40: 177 | AC40: 108 | AD40: 45 | AE40: 43 | AF40: 66 | AG40: 36 | AH40: 37 | AI40: 116 | AJ40: 155 | AK40: 19 | AL40: 50 | AM40: 67 | AN40: 35
A41: 110 | B41: MEURTHE ET MOSELLE MEUSE | C41: 27 | D41: PONT A MOUSSON | E41: 554416 | F41: LUDRES | G41: 3.9 | H41: 32 | I41: 87 | J41: 87 | K41: 60 | L41: 180 | M41: 89 | N41: 56 | O41: 25 | P41: 135 | Q41: 176 | R41: 41 | S41: 5 | T41: 10 | U41: 12 | V41: 10 | W41: 180 | X41: 277 | Y41: 264 | Z41: 192 | AA41: 77 | AB41: 22 | AC41: 149 | AD41: 120 | AE41: 112 | AF41: 139 | AG41: 46 | AH41: 29 | AI41: 47 | AJ41: 118 | AK41: 239 | AL41: 51 | AM41: 87 | AN41: 9
A42: 30 | B42: MARNE-ARDENNES | C42: 2 | D42: CHARLEVILLE MEZIERES | E42: 508820 | F42: VOUZIERS | G42: 2.8 | H42: 33 | I42: 293 | J42: 299 | K42: 136 | L42: 300 | M42: 89 | N42: 2 | O42: 29 | P42: 1 | Q42: 2 | R42: 66 | S42: 148 | T42: 240 | U42: 188 | V42: 62 | W42: 18 | X42: 4 | Y42: 2 | Z42: 90 | AA42: 120 | AB42: 128 | AC42: 204 | AD42: 10 | AE42: 9 | AF42: 22 | AG42: 22 | AH42: 15 | AI42: 158 | AJ42: 61 | AK42: 58 | AL42: 283 | AM42: 290 | AN42: 222
A43: 50 | B43: AUBE HAUTE MARNE | C43: 14 | D43: TROYES | E43: 510570 | F43: NOGENT SUR SEINE | G43: 4.2 | H43: 34 | I43: 90 | J43: 155 | K43: 123 | L43: 39 | M43: 89 | N43: 200 | O43: 172 | P43: 194 | Q43: 132 | R43: 223 | S43: 127 | T43: 179 | U43: 54 | V43: 139 | W43: 57 | X43: 29 | Y43: 52 | Z43: 79 | AA43: 177 | AB43: 109 | AC43: 155 | AD43: 93 | AE43: 82 | AF43: 112 | AG43: 182 | AH43: 278 | AI43: 141 | AJ43: 42 | AK43: 150 | AL43: 3 | AM43: 1 | AN43: 75
A44: 160 | B44: MOSELLE | C44: 45 | D44: METZ | E44: 557434 | F44: MARLY | G44: 3.6 | H44: 35 | I44: 8 | J44: 73 | K44: 27 | L44: 71 | M44: 66 | N44: 44 | O44: 13 | P44: 86 | Q44: 56 | R44: 156 | S44: 164 | T44: 36 | U44: 258 | V44: 230 | W44: 133 | X44: 245 | Y44: 221 | Z44: 57 | AA44: 181 | AB44: 26 | AC44: 194 | AD44: 218 | AE44: 196 | AF44: 205 | AG44: 11 | AH44: 8 | AI44: 113 | AJ44: 39 | AK44: 159 | AL44: 99 | AM44: 165 | AN44: 12
A45: 262 | B45: BAS-RHIN | C45: 5006 | D45: STRASBOURG | E45: 4019 | F45: STRASBOURG ANVERS | G45: 4.4 | H45: 36 | I45: 176 | J45: 164 | K45: 84 | L45: 269 | M45: 89 | N45: 12 | O45: 10 | P45: 54 | Q45: 18 | R45: 21 | S45: 130 | T45: 19 | U45: 17 | V45: 291 | W45: 11 | X45: 221 | Y45: 17 | Z45: 8 | AA45: 10 | AB45: 25 | AC45: 6 | AD45: 16 | AE45: 11 | AF45: 43 | AG45: 134 | AH45: 87 | AI45: 24 | AJ45: 79 | AK45: 295 | AL45: 230 | AM45: 204 | AN45: 237
A46: 110 | B46: MEURTHE ET MOSELLE MEUSE | C46: 27 | D46: PONT A MOUSSON | E46: 554496 | F46: NANCY TROIS MAISONS | G46: 2.8 | H46: 37 | I46: 62 | J46: 122 | K46: 104 | L46: 35 | M46: 89 | N46: 156 | O46: 126 | P46: 201 | Q46: 77 | R46: 219 | S46: 195 | T46: 83 | U46: 106 | V46: 232 | W46: 106 | X46: 78 | Y46: 161 | Z46: 110 | AA46: 98 | AB46: 143 | AC46: 217 | AD46: 26 | AE46: 24 | AF46: 51 | AG46: 107 | AH46: 64 | AI46: 99 | AJ46: 287 | AK46: 144 | AL46: 45 | AM46: 34 | AN46: 107
A47: 160 | B47: MOSELLE | C47: 45 | D47: METZ | E47: 457453 | F47: MONTIGNY CENTRALE | G47: 6.8 | H47: 38 | I47: 36 | J47: 37 | K47: 113 | L47: 74 | M47: 86 | N47: 115 | O47: 69 | P47: 207 | Q47: 236 | R47: 52 | S47: 91 | T47: 52 | U47: 7 | V47: 263 | W47: 27 | X47: 99 | Y47: 62 | Z47: 20 | AA47: 121 | AB47: 14 | AC47: 41 | AD47: 176 | AE47: 131 | AF47: 195 | AG47: 61 | AH47: 33 | AI47: 30 | AJ47: 96 | AK47: 283 | AL47: 71 | AM47: 97 | AN47: 20
A48: 30 | B48: MARNE-ARDENNES | C48: 6 | D48: CHALONS EN CHAMPAGNE | E48: 551354 | F48: VERTUS | G48: 2.9 | H48: 39 | I48: 24 | J48: 52 | K48: 195 | L48: 13 | M48: 49 | N48: 235 | O48: 157 | P48: 226 | Q48: 159 | R48: 263 | S48: 128 | T48: 158 | U48: 207 | V48: 84 | W48: 254 | X48: 123 | Y48: 128 | Z48: 204 | AA48: 246 | AB48: 276 | AC48: 306 | AD48: 110 | AE48: 166 | AF48: 70 | AG48: 74 | AH48: 62 | AI48: 202 | AJ48: 147 | AK48: 80 | AL48: 5 | AM48: 16 | AN48: 4
A49: 264 | B49: HAUT-RHIN | C49: 5169 | D49: MULHOUSE | E49: 4180 | F49: RIEDISHEIM | G49: 3.3 | H49: 40 | I49: 42 | J49: 87 | K49: 57 | L49: 128 | M49: 62 | N49: 103 | O49: 72 | P49: 111 | Q49: 86 | R49: 198 | S49: 50 | T49: 38 | U49: 75 | V49: 120 | W49: 68 | X49: 100 | Y49: 148 | Z49: 71 | AA49: 71 | AB49: 78 | AC49: 55 | AD49: 178 | AE49: 101 | AF49: 246 | AG49: 59 | AH49: 93 | AI49: 161 | AJ49: 37 | AK49: 91 | AL49: 57 | AM49: 37 | AN49: 158
A50: 262 | B50: BAS-RHIN | C50: 5006 | D50: STRASBOURG | E50: 4043 | F50: STRASBOURG HALLES | G50: 8.9 | H50: 41 | I50: 35 | J50: 40 | K50: 101 | L50: 28 | M50: 232 | N50: 11 | O50: 37 | P50: 28 | Q50: 28 | R50: 11 | S50: 102 | T50: 107 | U50: 91 | V50: 137 | W50: 72 | X50: 156 | Y50: 105 | Z50: 111 | AA50: 157 | AB50: 116 | AC50: 9 | AD50: 32 | AE50: 65 | AF50: 30 | AG50: 71 | AH50: 179 | AI50: 22 | AJ50: 48 | AK50: 118 | AL50: 244 | AM50: 236 | AN50: 236
A51: 80 | B51: VOSGES | C51: 55 | D51: SAINT DIE | E51: 488556 | F51: RAON L ETAPE | G51: 3.5 | H51: 42 | I51: 118 | J51: 234 | K51: 10 | L51: 226 | M51: 242 | N51: 22 | O51: 136 | P51: 68 | Q51: 42 | R51: 7 | S51: 140 | T51: 217 | U51: 189 | V51: 71 | W51: 53 | X51: 13 | Y51: 18 | Z51: 144 | AA51: 145 | AB51: 183 | AC51: 78 | AD51: 164 | AE51: 211 | AF51: 94 | AG51: 271 | AH51: 243 | AI51: 237 | AJ51: 279 | AK51: 197 | AL51: 22 | AM51: 54 | AN51: 5
A52: 30 | B52: MARNE-ARDENNES | C52: 11 | D52: REIMS | E52: 551309 | F52: REIMS EUROPE | G52: 3.3 | H52: 43 | I52: 137 | J52: 36 | K52: 229 | L52: 161 | M52: 89 | N52: 29 | O52: 5 | P52: 35 | Q52: 54 | R52: 158 | S52: 60 | T52: 39 | U52: 265 | V52: 79 | W52: 103 | X52: 47 | Y52: 97 | Z52: 122 | AA52: 186 | AB52: 120 | AC52: 109 | AD52: 157 | AE52: 120 | AF52: 187 | AG52: 104 | AH52: 189 | AI52: 8 | AJ52: 44 | AK52: 261 | AL52: 47 | AM52: 20 | AN52: 172
A53: 110 | B53: MEURTHE ET MOSELLE MEUSE | C53: 26 | D53: NANCY | E53: 554636 | F53: TOMBLAINE | G53: 2.9 | H53: 44 | I53: 143 | J53: 196 | K53: 69 | L53: 207 | M53: 89 | N53: 100 | O53: 142 | P53: 131 | Q53: 186 | R53: 36 | S53: 32 | T53: 63 | U53: 50 | V53: 50 | W53: 152 | X53: 51 | Y53: 70 | Z53: 238 | AA53: 133 | AB53: 186 | AC53: 217 | AD53: 49 | AE53: 46 | AF53: 78 | AG53: 73 | AH53: 79 | AI53: 78 | AJ53: 95 | AK53: 162 | AL53: 59 | AM53: 76 | AN53: 33
A54: 262 | B54: BAS-RHIN | C54: 5101 | D54: SELESTAT | E54: 4113 | F54: BARR | G54: 2.9 | H54: 45 | I54: 198 | J54: 121 | K54: 109 | L54: 234 | M54: 255 | N54: 60 | O54: 34 | P54: 114 | Q54: 113 | R54: 70 | S54: 142 | T54: 136 | U54: 103 | V54: 143 | W54: 73 | X54: 258 | Y54: 282 | Z54: 37 | AA54: 27 | AB54: 80 | AC54: 23 | AD54: 114 | AE54: 143 | AF54: 90 | AG54: 136 | AH54: 110 | AI54: 101 | AJ54: 97 | AK54: 246 | AL54: 15 | AM54: 12 | AN54: 102
A55: 30 | B55: MARNE-ARDENNES | C55: 11 | D55: REIMS | E55: 551314 | F55: FISMES | G55: 2.7 | H55: 46 | I55: 45 | J55: 10 | K55: 195 | L55: 103 | M55: 43 | N55: 118 | O55: 11 | P55: 217 | Q55: 153 | R55: 226 | S55: 299 | T55: 278 | U55: 303 | V55: 292 | W55: 22 | X55: 103 | Y55: 104 | Z55: 29 | AA55: 8 | AB55: 18 | AC55: 83 | AD55: 69 | AE55: 85 | AF55: 75 | AG55: 259 | AH55: 297 | AI55: 100 | AJ55: 300 | AK55: 79 | AL55: 30 | AM55: 37 | AN55: 52
A56: 264 | B56: HAUT-RHIN | C56: 5130 | D56: COLMAR | E56: 4162 | F56: ENSISHEIM | G56: 4.4 | H56: 47 | I56: 5 | J56: 87 | K56: 24 | L56: 80 | M56: 13 | N56: 48 | O56: 51 | P56: 92 | Q56: 123 | R56: 31 | S56: 92 | T56: 97 | U56: 162 | V56: 97 | W56: 136 | X56: 276 | Y56: 176 | Z56: 58 | AA56: 127 | AB56: 40 | AC56: 190 | AD56: 44 | AE56: 98 | AF56: 29 | AG56: 51 | AH56: 59 | AI56: 57 | AJ56: 56 | AK56: 207 | AL56: 214 | AM56: 236 | AN56: 140
A57: 110 | B57: MEURTHE ET MOSELLE MEUSE | C57: 27 | D57: PONT A MOUSSON | E57: 454696 | F57: VILLERS GENERAL LECLERC | G57: 4.8 | H57: 48 | I57: 1 | J57: 2 | K57: 9 | L57: 62 | M57: 33 | N57: 64 | O57: 160 | P57: 193 | Q57: 192 | R57: 6 | S57: 26 | T57: 14 | U57: 115 | V57: 88 | W57: 20 | X57: 65 | Y57: 21 | Z57: 35 | AA57: 42 | AB57: 31 | AC57: 12 | AD57: 40 | AE57: 113 | AF57: 23 | AG57: 201 | AH57: 46 | AI57: 143 | AJ57: 267 | AK57: 296 | AL57: 289 | AM57: 292 | AN57: 253
A58: 50 | B58: AUBE HAUTE MARNE | C58: 21 | D58: CHAUMONT | E58: 551157 | F58: SAINT DIZIER EUROPE | G58: 2.6 | H58: 49 | I58: 32 | J58: 162 | K58: 77 | L58: 14 | M58: 89 | N58: 83 | O58: 264 | P58: 60 | Q58: 27 | R58: 114 | S58: 18 | T58: 65 | U58: 228 | V58: 3 | W58: 143 | X58: 101 | Y58: 98 | Z58: 149 | AA58: 219 | AB58: 79 | AC58: 217 | AD58: 152 | AE58: 252 | AF58: 57 | AG58: 168 | AH58: 175 | AI58: 120 | AJ58: 225 | AK58: 115 | AL58: 63 | AM58: 44 | AN58: 154
A59: 160 | B59: MOSELLE | C59: 42 | D59: MOSELLE EST | E59: 457163 | F59: BEHREN LES FORBACH | G59: 2.3 | H59: 50 | I59: 269 | J59: 238 | K59: 290 | L59: 197 | M59: 30 | N59: 140 | O59: 135 | P59: 83 | Q59: 62 | R59: 268 | S59: 261 | T59: 270 | U59: 280 | V59: 199 | W59: 43 | X59: 12 | Y59: 31 | Z59: 99 | AA59: 140 | AB59: 161 | AC59: 124 | AD59: 42 | AE59: 32 | AF59: 79 | AG59: 82 | AH59: 90 | AI59: 118 | AJ59: 209 | AK59: 56 | AL59: 17 | AM59: 6 | AN59: 133
A60: 110 | B60: MEURTHE ET MOSELLE MEUSE | C60: 31 | D60: VERDUN | E60: 554700 | F60: VILLERUPT | G60: 3.0 | H60: 51 | I60: 21 | J60: 151 | K60: 19 | L60: 39 | M60: 89 | N60: 53 | O60: 147 | P60: 41 | Q60: 26 | R60: 121 | S60: 48 | T60: 242 | U60: 174 | V60: 11 | W60: 179 | X60: 129 | Y60: 212 | Z60: 165 | AA60: 137 | AB60: 182 | AC60: 217 | AD60: 202 | AE60: 190 | AF60: 180 | AG60: 151 | AH60: 260 | AI60: 86 | AJ60: 38 | AK60: 153 | AL60: 58 | AM60: 74 | AN60: 46
A61: 50 | B61: AUBE HAUTE MARNE | C61: 21 | D61: CHAUMONT | E61: 410541 | F61: LANGRES | G61: 5.3 | H61: 52 | I61: 164 | J61: 81 | K61: 234 | L61: 153 | M61: 89 | N61: 107 | O61: 209 | P61: 74 | Q61: 188 | R61: 49 | S61: 119 | T61: 81 | U61: 123 | V61: 164 | W61: 172 | X61: 121 | Y61: 187 | Z61: 222 | AA61: 232 | AB61: 148 | AC61: 32 | AD61: 61 | AE61: 40 | AF61: 113 | AG61: 68 | AH61: 50 | AI61: 241 | AJ61: 152 | AK61: 77 | AL61: 37 | AM61: 25 | AN61: 112
A62: 264 | B62: HAUT-RHIN | C62: 5130 | D62: COLMAR | E62: 4132 | F62: COLMAR MARAICHERS | G62: 2.7 | H62: 53 | I62: 39 | J62: 111 | K62: 63 | L62: 101 | M62: 44 | N62: 94 | O62: 118 | P62: 52 | Q62: 73 | R62: 153 | S62: 105 | T62: 273 | U62: 48 | V62: 70 | W62: 126 | X62: 70 | Y62: 54 | Z62: 162 | AA62: 273 | AB62: 224 | AC62: 19 | AD62: 237 | AE62: 268 | AF62: 153 | AG62: 45 | AH62: 21 | AI62: 190 | AJ62: 200 | AK62: 108 | AL62: 52 | AM62: 20 | AN62: 205
A63: 160 | B63: MOSELLE | C63: 42 | D63: MOSELLE EST | E63: 457165 | F63: BITCHE | G63: 3.5 | H63: 54 | I63: 161 | J63: 53 | K63: 187 | L63: 237 | M63: 89 | N63: 14 | O63: 16 | P63: 93 | Q63: 30 | R63: 22 | S63: 121 | T63: 200 | U63: 92 | V63: 92 | W63: 158 | X63: 135 | Y63: 91 | Z63: 129 | AA63: 250 | AB63: 110 | AC63: 203 | AD63: 145 | AE63: 220 | AF63: 73 | AG63: 115 | AH63: 100 | AI63: 184 | AJ63: 235 | AK63: 78 | AL63: 62 | AM63: 90 | AN63: 18
A64: 80 | B64: VOSGES | C64: 55 | D64: SAINT DIE | E64: 588186 | F64: BRUYERES | G64: 2.5 | H64: 55 | I64: 279 | J64: 251 | K64: 195 | L64: 282 | M64: 89 | N64: 59 | O64: 61 | P64: 37 | Q64: 34 | R64: 222 | S64: 23 | T64: 71 | U64: 33 | V64: 30 | W64: 14 | X64: 15 | Y64: 4 | Z64: 17 | AA64: 30 | AB64: 103 | AC64: 217 | AD64: 41 | AE64: 175 | AF64: 14 | AG64: 253 | AH64: 127 | AI64: 66 | AJ64: 203 | AK64: 300 | AL64: 82 | AM64: 67 | AN64: 139
A65: 80 | B65: VOSGES | C65: 55 | D65: SAINT DIE | E65: 588551 | F65: RAMBERVILLERS | G65: 3.6 | H65: 56 | I65: 34 | J65: 42 | K65: 189 | L65: 54 | M65: 24 | N65: 47 | O65: 21 | P65: 153 | Q65: 43 | R65: 110 | S65: 144 | T65: 246 | U65: 180 | V65: 61 | W65: 51 | X65: 94 | Y65: 55 | Z65: 43 | AA65: 25 | AB65: 124 | AC65: 122 | AD65: 108 | AE65: 177 | AF65: 61 | AG65: 274 | AH65: 247 | AI65: 231 | AJ65: 199 | AK65: 249 | AL65: 84 | AM65: 90 | AN65: 80
A66: 262 | B66: BAS-RHIN | C66: 5006 | D66: STRASBOURG | E66: 4037 | F66: MUNDOLSHEIM | G66: 4.2 | H66: 57 | I66: 33 | J66: 244 | K66: 142 | L66: 18 | M66: 6 | N66: 33 | O66: 114 | P66: 13 | Q66: 22 | R66: 134 | S66: 111 | T66: 170 | U66: 23 | V66: 175 | W66: 160 | X66: 76 | Y66: 44 | Z66: 236 | AA66: 198 | AB66: 157 | AC66: 163 | AD66: 138 | AE66: 228 | AF66: 59 | AG66: 66 | AH66: 73 | AI66: 71 | AJ66: 91 | AK66: 189 | AL66: 115 | AM66: 97 | AN66: 165
A67: 160 | B67: MOSELLE | C67: 44 | D67: MOSELLE NORD | E67: 557113 | F67: AUDUN LE TICHE | G67: 2.2 | H67: 58 | I67: 253 | J67: 282 | K67: 144 | L67: 240 | M67: 89 | N67: 28 | O67: 15 | P67: 61 | Q67: 13 | R67: 239 | S67: 85 | T67: 297 | U67: 118 | V67: 16 | W67: 54 | X67: 69 | Y67: 28 | Z67: 83 | AA67: 43 | AB67: 60 | AC67: 217 | AD67: 48 | AE67: 91 | AF67: 41 | AG67: 17 | AH67: 48 | AI67: 3 | AJ67: 36 | AK67: 177 | AL67: 192 | AM67: 236 | AN67: 81
A68: 30 | B68: MARNE-ARDENNES | C68: 11 | D68: REIMS | E68: 551307 | F68: REIMS SAINTE ANNE | G68: 3.4 | H68: 59 | I68: 99 | J68: 45 | K68: 147 | L68: 22 | M68: 301 | N68: 63 | O68: 41 | P68: 101 | Q68: 157 | R68: 55 | S68: 295 | T68: 289 | U68: 175 | V68: 277 | W68: 145 | X68: 151 | Y68: 236 | Z68: 135 | AA68: 109 | AB68: 94 | AC68: 131 | AD68: 13 | AE68: 16 | AF68: 17 | AG68: 85 | AH68: 104 | AI68: 32 | AJ68: 122 | AK68: 206 | AL68: 133 | AM68: 81 | AN68: 239
A69: 30 | B69: MARNE-ARDENNES | C69: 2 | D69: CHARLEVILLE MEZIERES | E69: 408840 | F69: RETHEL | G69: 6.7 | H69: 60 | I69: 155 | J69: 87 | K69: 239 | L69: 121 | M69: 84 | N69: 84 | O69: 87 | P69: 40 | Q69: 65 | R69: 195 | S69: 273 | T69: 293 | U69: 149 | V69: 219 | W69: 146 | X69: 176 | Y69: 129 | Z69: 155 | AA69: 68 | AB69: 136 | AC69: 144 | AD69: 158 | AE69: 126 | AF69: 183 | AG69: 14 | AH69: 17 | AI69: 42 | AJ69: 82 | AK69: 11 | AL69: 53 | AM69: 25 | AN69: 182
A70: 262 | B70: BAS-RHIN | C70: 5060 | D70: HAGUENAU | E70: 4071 | F70: WISSEMBOURG | G70: 9.2 | H70: 61 | I70: 101 | J70: 149 | K70: 157 | L70: 99 | M70: 59 | N70: 170 | O70: 133 | P70: 218 | Q70: 191 | R70: 115 | S70: 112 | T70: 141 | U70: 120 | V70: 113 | W70: 234 | X70: 202 | Y70: 204 | Z70: 217 | AA70: 222 | AB70: 222 | AC70: 104 | AD70: 76 | AE70: 104 | AF70: 68 | AG70: 108 | AH70: 192 | AI70: 233 | AJ70: 24 | AK70: 60 | AL70: 19 | AM70: 14 | AN70: 97
A71: 30 | B71: MARNE-ARDENNES | C71: 6 | D71: CHALONS EN CHAMPAGNE | E71: 551110 | F71: CHALONS ROOSEVELT | G71: 5.8 | H71: 62 | I71: 173 | J71: 120 | K71: 174 | L71: 162 | M71: 226 | N71: 110 | O71: 75 | P71: 64 | Q71: 155 | R71: 186 | S71: 10 | T71: 4 | U71: 88 | V71: 150 | W71: 206 | X71: 229 | Y71: 218 | Z71: 182 | AA71: 100 | AB71: 140 | AC71: 217 | AD71: 94 | AE71: 93 | AF71: 98 | AG71: 153 | AH71: 170 | AI71: 165 | AJ71: 129 | AK71: 113 | AL71: 33 | AM71: 44 | AN71: 41
A72: 50 | B72: AUBE HAUTE MARNE | C72: 21 | D72: CHAUMONT | E72: 510590 | F72: CHAUMONT REPUBLIQUE | G72: 2.9 | H72: 63 | I72: 2 | J72: 5 | K72: 14 | L72: 27 | M72: 48 | N72: 167 | O72: 64 | P72: 292 | Q72: 297 | R72: 42 | S72: 168 | T72: 176 | U72: 124 | V72: 149 | W72: 56 | X72: 16 | Y72: 26 | Z72: 119 | AA72: 190 | AB72: 101 | AC72: 173 | AD72: 301 | AE72: 303 | AF72: 269 | AG72: 179 | AH72: 280 | AI72: 74 | AJ72: 65 | AK72: 163 | AL72: 29 | AM72: 34 | AN72: 63
A73: 30 | B73: MARNE-ARDENNES | C73: 11 | D73: REIMS | E73: 551305 | F73: REIMS HIPPODROME | G73: 3.6 | H73: 64 | I73: 16 | J73: 13 | K73: 22 | L73: 201 | M73: 89 | N73: 201 | O73: 119 | P73: 256 | Q73: 240 | R73: 132 | S73: 78 | T73: 48 | U73: 292 | V73: 106 | W73: 34 | X73: 291 | Y73: 224 | Z73: 14 | AA73: 7 | AB73: 10 | AC73: 168 | AD73: 179 | AE73: 173 | AF73: 160 | AG73: 265 | AH73: 186 | AI73: 21 | AJ73: 286 | AK73: 297 | AL73: 43 | AM73: 16 | AN73: 162
A74: 160 | B74: MOSELLE | C74: 42 | D74: MOSELLE EST | E74: 557305 | F74: FAULQUEMONT | G74: 3.0 | H74: 65 | I74: 232 | J74: 136 | K74: 195 | L74: 263 | M74: 89 | N74: 54 | O74: 76 | P74: 27 | Q74: 51 | R74: 187 | S74: 84 | T74: 186 | U74: 145 | V74: 48 | W74: 31 | X74: 81 | Y74: 162 | Z74: 33 | AA74: 21 | AB74: 28 | AC74: 217 | AD74: 54 | AE74: 39 | AF74: 101 | AG74: 28 | AH74: 13 | AI74: 168 | AJ74: 201 | AK74: 48 | AL74: 181 | AM74: 242 | AN74: 36
A75: 160 | B75: MOSELLE | C75: 45 | D75: METZ | E75: 557444 | F75: METZ SAINT JULIEN | G75: 6.0 | H75: 66 | I75: 100 | J75: 180 | K75: 48 | L75: 94 | M75: 247 | N75: 52 | O75: 50 | P75: 53 | Q75: 49 | R75: 131 | S75: 43 | T75: 111 | U75: 110 | V75: 35 | W75: 137 | X75: 228 | Y75: 273 | Z75: 55 | AA75: 95 | AB75: 118 | AC75: 181 | AD75: 75 | AE75: 66 | AF75: 105 | AG75: 233 | AH75: 126 | AI75: 221 | AJ75: 236 | AK75: 256 | AL75: 74 | AM75: 51 | AN75: 147
A76: 110 | B76: MEURTHE ET MOSELLE MEUSE | C76: 26 | D76: NANCY | E76: 454671 | F76: VANDOEUVRE LES NANCY | G76: 4.0 | H76: 67 | I76: 105 | J76: 188 | K76: 98 | L76: 75 | M76: 89 | N76: 199 | O76: 205 | P76: 120 | Q76: 222 | R76: 158 | S76: 44 | T76: 44 | U76: 104 | V76: 82 | W76: 121 | X76: 55 | Y76: 79 | Z76: 159 | AA76: 97 | AB76: 203 | AC76: 217 | AD76: 247 | AE76: 260 | AF76: 196 | AG76: 58 | AH76: 120 | AI76: 46 | AJ76: 28 | AK76: 178 | AL76: 11 | AM76: 5 | AN76: 138
A77: 50 | B77: AUBE HAUTE MARNE | C77: 21 | D77: CHAUMONT | E77: 410560 | F77: BOURBONNE LES BAINS | G77: 1.7 | H77: 68 | I77: 144 | J77: 80 | K77: 267 | L77: 169 | M77: 22 | N77: 135 | O77: 66 | P77: 90 | Q77: 112 | R77: 248 | S77: 139 | T77: 144 | U77: 266 | V77: 94 | W77: 199 | X77: 35 | Y77: 22 | Z77: 286 | AA77: 272 | AB77: 285 | AC77: 217 | AD77: 173 | AE77: 181 | AF77: 141 | AG77: 38 | AH77: 27 | AI77: 223 | AJ77: 159 | AK77: 20 | AL77: 21 | AM77: 24 | AN77: 65
A78: 30 | B78: MARNE-ARDENNES | C78: 2 | D78: CHARLEVILLE MEZIERES | E78: 508802 | F78: CHARLEVILLE NEVERS | G78: 3.8 | H78: 69 | I78: 80 | J78: 17 | K78: 153 | L78: 107 | M78: 238 | N78: 78 | O78: 47 | P78: 96 | Q78: 124 | R78: 105 | S78: 160 | T78: 188 | U78: 218 | V78: 110 | W78: 70 | X78: 71 | Y78: 119 | Z78: 88 | AA78: 78 | AB78: 105 | AC78: 95 | AD78: 38 | AE78: 76 | AF78: 32 | AG78: 99 | AH78: 78 | AI78: 167 | AJ78: 150 | AK78: 124 | AL78: 161 | AM78: 174 | AN78: 137
A79: 160 | B79: MOSELLE | C79: 44 | D79: MOSELLE NORD | E79: 557622 | F79: SIERCK LES BAINS | G79: 1.9 | H79: 70 | I79: 65 | J79: 32 | K79: 34 | L79: 278 | M79: 89 | N79: 95 | O79: 20 | P79: 166 | Q79: 204 | R79: 93 | S79: 279 | T79: 53 | U79: 111 | V79: 298 | W79: 164 | X79: 285 | Y79: 292 | Z79: 39 | AA79: 167 | AB79: 54 | AC79: 217 | AD79: 118 | AE79: 22 | AF79: 285 | AG79: 132 | AH79: 161 | AI79: 65 | AJ79: 180 | AK79: 143 | AL79: 36 | AM79: 6 | AN79: 210
A80: 80 | B80: VOSGES | C80: 57 | D80: EPINAL | E80: 588716 | F80: XERTIGNY | G80: 2.9 | H80: 71 | I80: 117 | J80: 109 | K80: 70 | L80: 144 | M80: 256 | N80: 37 | O80: 84 | P80: 9 | Q80: 15 | R80: 244 | S80: 136 | T80: 129 | U80: 276 | V80: 96 | W80: 59 | X80: 56 | Y80: 56 | Z80: 47 | AA80: 116 | AB80: 91 | AC80: 217 | AD80: 107 | AE80: 92 | AF80: 119 | AG80: 231 | AH80: 294 | AI80: 210 | AJ80: 31 | AK80: 195 | AL80: 93 | AM80: 81 | AN80: 129
A81: 160 | B81: MOSELLE | C81: 45 | D81: METZ | E81: 457443 | F81: METZ REPUBLIQUE | G81: 4.1 | H81: 72 | I81: 67 | J81: 102 | K81: 65 | L81: 112 | M81: 89 | N81: 180 | O81: 231 | P81: 104 | Q81: 63 | R81: 256 | S81: 70 | T81: 60 | U81: 25 | V81: 176 | W81: 100 | X81: 241 | Y81: 205 | Z81: 59 | AA81: 184 | AB81: 65 | AC81: 17 | AD81: 177 | AE81: 221 | AF81: 97 | AG81: 257 | AH81: 103 | AI81: 149 | AJ81: 245 | AK81: 299 | AL81: 12 | AM81: 20 | AN81: 44
A82: 262 | B82: BAS-RHIN | C82: 5060 | D82: HAGUENAU | E82: 4031 | F82: TRUCHTERSHEIM | G82: 2.9 | H82: 73 | I82: 41 | J82: 16 | K82: 195 | L82: 73 | M82: 53 | N82: 40 | O82: 23 | P82: 75 | Q82: 67 | R82: 69 | S82: 31 | T82: 16 | U82: 96 | V82: 115 | W82: 98 | X82: 214 | Y82: 45 | Z82: 131 | AA82: 18 | AB82: 52 | AC82: 126 | AD82: 256 | AE82: 236 | AF82: 255 | AG82: 173 | AH82: 144 | AI82: 148 | AJ82: 69 | AK82: 257 | AL82: 87 | AM82: 123 | AN82: 31
A83: 262 | B83: BAS-RHIN | C83: 5006 | D83: STRASBOURG | E83: 4029 | F83: SCHILTIGHEIM KLEBER | G83: 2.0 | H83: 74 | I83: 66 | J83: 197 | K83: 237 | L83: 33 | M83: 5 | N83: 30 | O83: 219 | P83: 7 | Q83: 7 | R83: 240 | S83: 169 | T83: 93 | U83: 100 | V83: 207 | W83: 197 | X83: 113 | Y83: 253 | Z83: 206 | AA83: 153 | AB83: 192 | AC83: 147 | AD83: 64 | AE83: 283 | AF83: 11 | AG83: 78 | AH83: 72 | AI83: 54 | AJ83: 21 | AK83: 289 | AL83: 159 | AM83: 97 | AN83: 243
A84: 110 | B84: MEURTHE ET MOSELLE MEUSE | C84: 31 | D84: VERDUN | E84: 455566 | F84: REVIGNY SUR ORNAIN | G84: 3.0 | H84: 75 | I84: 239 | J84: 189 | K84: 183 | L84: 214 | M84: 246 | N84: 87 | O84: 166 | P84: 59 | Q84: 41 | R84: 154 | S84: 165 | T84: 113 | U84: 250 | V84: 154 | W84: 118 | X84: 11 | Y84: 37 | Z84: 273 | AA84: 262 | AB84: 256 | AC84: 217 | AD84: 97 | AE84: 254 | AF84: 24 | AG84: 96 | AH84: 94 | AI84: 187 | AJ84: 266 | AK84: 23 | AL84: 38 | AM84: 25 | AN84: 116
A85: 80 | B85: VOSGES | C85: 55 | D85: SAINT DIE | E85: 488326 | F85: GERARDMER | G85: 5.1 | H85: 76 | I85: 246 | J85: 101 | K85: 177 | L85: 276 | M85: 266 | N85: 112 | O85: 83 | P85: 100 | Q85: 93 | R85: 202 | S85: 7 | T85: 29 | U85: 40 | V85: 4 | W85: 161 | X85: 145 | Y85: 92 | Z85: 147 | AA85: 164 | AB85: 164 | AC85: 88 | AD85: 111 | AE85: 86 | AF85: 148 | AG85: 212 | AH85: 60 | AI85: 251 | AJ85: 190 | AK85: 291 | AL85: 26 | AM85: 44 | AN85: 24
A86: 30 | B86: MARNE-ARDENNES | C86: 6 | D86: CHALONS EN CHAMPAGNE | E86: 451115 | F86: MOURMELON suippes | G86: 3.0 | H86: 77 | I86: 57 | J86: 87 | K86: 195 | L86: 2 | M86: 293 | N86: 176 | O86: 77 | P86: 197 | Q86: 228 | R86: 188 | S86: 249 | T86: 135 | U86: 224 | V86: 253 | W86: 77 | X86: 50 | Y86: 15 | Z86: 118 | AA86: 81 | AB86: 170 | AC86: 192 | AD86: 23 | AE86: 26 | AF86: 36 | AG86: 16 | AH86: 24 | AI86: 52 | AJ86: 20 | AK86: 66 | AL86: 236 | AM86: 283 | AN86: 55
A87: 160 | B87: MOSELLE | C87: 44 | D87: MOSELLE NORD | E87: 557307 | F87: FONTOY | G87: 3.0 | H87: 78 | I87: 171 | J87: 27 | K87: 245 | L87: 139 | M87: 251 | N87: 45 | O87: 95 | P87: 71 | Q87: 76 | R87: 29 | S87: 77 | T87: 153 | U87: 131 | V87: 49 | W87: 78 | X87: 36 | Y87: 85 | Z87: 86 | AA87: 131 | AB87: 206 | AC87: 217 | AD87: 186 | AE87: 114 | AF87: 237 | AG87: 48 | AH87: 108 | AI87: 181 | AJ87: 78 | AK87: 4 | AL87: 105 | AM87: 137 | AN87: 47
A88: 30 | B88: MARNE-ARDENNES | C88: 6 | D88: CHALONS EN CHAMPAGNE | E88: 451120 | F88: SARRY | G88: 2.7 | H88: 79 | I88: 17 | J88: 87 | K88: 127 | L88: 5 | M88: 89 | N88: 205 | O88: 93 | P88: 187 | Q88: 214 | R88: 236 | S88: 59 | T88: 198 | U88: 41 | V88: 40 | W88: 273 | X88: 254 | Y88: 210 | Z88: 248 | AA88: 193 | AB88: 246 | AC88: 217 | AD88: 168 | AE88: 54 | AF88: 288 | AG88: 93 | AH88: 257 | AI88: 220 | AJ88: 22 | AK88: 3 | AL88: 49 | AM88: 81 | AN88: 11
A89: 110 | B89: MEURTHE ET MOSELLE MEUSE | C89: 27 | D89: PONT A MOUSSON | E89: 454466 | F89: NANCY PLATEAU DE HAYE | G89: 2.0 | H89: 80 | I89: 19 | J89: 9 | K89: 76 | L89: 82 | M89: 89 | N89: 212 | O89: 261 | P89: 208 | Q89: 165 | R89: 135 | S89: 225 | T89: 303 | U89: 286 | V89: 57 | W89: 17 | X89: 10 | Y89: 11 | Z89: 70 | AA89: 14 | AB89: 49 | AC89: 217 | AD89: 209 | AE89: 241 | AF89: 138 | AG89: 139 | AH89: 83 | AI89: 37 | AJ89: 193 | AK89: 276 | AL89: 111 | AM89: 113 | AN89: 96
A90: 110 | B90: MEURTHE ET MOSELLE MEUSE | C90: 31 | D90: VERDUN | E90: 455678 | F90: VERDUN CENTRALE | G90: 7.8 | H90: 81 | I90: 186 | J90: 87 | K90: 270 | L90: 76 | M90: 220 | N90: 133 | O90: 196 | P90: 167 | Q90: 174 | R90: 51 | S90: 107 | T90: 42 | U90: 101 | V90: 213 | W90: 28 | X90: 127 | Y90: 75 | Z90: 22 | AA90: 45 | AB90: 32 | AC90: 30 | AD90: 113 | AE90: 59 | AF90: 198 | AG90: 207 | AH90: 200 | AI90: 151 | AJ90: 87 | AK90: 237 | AL90: 67 | AM90: 90 | AN90: 22
A91: 50 | B91: AUBE HAUTE MARNE | C91: 14 | D91: TROYES | E91: 510511 | F91: TROYES BROSSOLETTE | G91: 3.4 | H91: 82 | I91: 56 | J91: 30 | K91: 169 | L91: 55 | M91: 89 | N91: 68 | O91: 55 | P91: 20 | Q91: 29 | R91: 287 | S91: 133 | T91: 215 | U91: 107 | V91: 81 | W91: 62 | X91: 80 | Y91: 137 | Z91: 51 | AA91: 92 | AB91: 61 | AC91: 217 | AD91: 266 | AE91: 299 | AF91: 130 | AG91: 69 | AH91: 143 | AI91: 200 | AJ91: 13 | AK91: 96 | AL91: 102 | AM91: 123 | AN91: 61
A92: 30 | B92: MARNE-ARDENNES | C92: 11 | D92: REIMS | E92: 451336 | F92: TINQUEUX | G92: 5.2 | H92: 83 | I92: 145 | J92: 87 | K92: 282 | L92: 95 | M92: 21 | N92: 163 | O92: 151 | P92: 242 | Q92: 268 | R92: 46 | S92: 2 | T92: 1 | U92: 132 | V92: 59 | W92: 49 | X92: 226 | Y92: 185 | Z92: 87 | AA92: 62 | AB92: 70 | AC92: 4 | AD92: 212 | AE92: 183 | AF92: 210 | AG92: 90 | AH92: 54 | AI92: 103 | AJ92: 184 | AK92: 196 | AL92: 131 | AM92: 123 | AN92: 152
A93: 110 | B93: MEURTHE ET MOSELLE MEUSE | C93: 31 | D93: VERDUN | E93: 455151 | F93: BAR LE DUC | G93: 9.4 | H93: 84 | I93: 187 | J93: 87 | K93: 251 | L93: 146 | M93: 89 | N93: 69 | O93: 141 | P93: 48 | Q93: 50 | R93: 119 | S93: 145 | T93: 166 | U93: 66 | V93: 151 | W93: 128 | X93: 58 | Y93: 90 | Z93: 156 | AA93: 196 | AB93: 146 | AC93: 175 | AD93: 56 | AE93: 145 | AF93: 27 | AG93: 167 | AH93: 199 | AI93: 147 | AJ93: 93 | AK93: 158 | AL93: 85 | AM93: 60 | AN93: 179
A94: 30 | B94: MARNE-ARDENNES | C94: 11 | D94: REIMS | E94: 551341 | F94: REIMS JEAN JAURES | G94: 3.9 | H94: 85 | I94: 51 | J94: 22 | K94: 97 | L94: 37 | M94: 276 | N94: 256 | O94: 109 | P94: 261 | Q94: 270 | R94: 241 | S94: 176 | T94: 55 | U94: 255 | V94: 220 | W94: 35 | X94: 154 | Y94: 143 | Z94: 26 | AA94: 20 | AB94: 20 | AC94: 103 | AD94: 127 | AE94: 162 | AF94: 104 | AG94: 21 | AH94: 42 | AI94: 11 | AJ94: 101 | AK94: 47 | AL94: 169 | AM94: 145 | AN94: 187
A95: 160 | B95: MOSELLE | C95: 42 | D95: MOSELLE EST | E95: 457345 | F95: GROSBLIEDERSTROFF | G95: 2.9 | H95: 86 | I95: 48 | J95: 108 | K95: 88 | L95: 36 | M95: 89 | N95: 217 | O95: 57 | P95: 210 | Q95: 198 | R95: 279 | S95: 247 | T95: 187 | U95: 257 | V95: 223 | W95: 167 | X95: 158 | Y95: 145 | Z95: 153 | AA95: 101 | AB95: 180 | AC95: 171 | AD95: 81 | AE95: 60 | AF95: 121 | AG95: 228 | AH95: 306 | AI95: 108 | AJ95: 185 | AK95: 38 | AL95: 35 | AM95: 76 | AN95: 3
A96: 30 | B96: MARNE-ARDENNES | C96: 11 | D96: REIMS | E96: 451318 | F96: VERZY | G96: 1.7 | H96: 87 | I96: 238 | J96: 288 | K96: 23 | L96: 270 | M96: 290 | N96: 15 | O96: 14 | P96: 109 | Q96: 55 | R96: 14 | S96: 13 | T96: 2 | U96: 213 | V96: 208 | W96: 102 | X96: 190 | Y96: 183 | Z96: 134 | AA96: 80 | AB96: 132 | AC96: 15 | AD96: 224 | AE96: 180 | AF96: 249 | AG96: 135 | AH96: 204 | AI96: 124 | AJ96: 223 | AK96: 22 | AL96: 107 | AM96: 108 | AN96: 106
A97: 262 | B97: BAS-RHIN | C97: 5006 | D97: STRASBOURG | E97: 4033 | F97: LA WANTZENAU | G97: 1.7 | H97: 88 | I97: 242 | J97: 229 | K97: 83 | L97: 24 | M97: 306 | N97: 139 | O97: 251 | P97: 189 | Q97: 103 | R97: 67 | S97: 1 | T97: 23 | U97: 1 | V97: 287 | W97: 139 | X97: 187 | Y97: 142 | Z97: 65 | AA97: 282 | AB97: 73 | AC97: 91 | AD97: 211 | AE97: 172 | AF97: 226 | AG97: 269 | AH97: 223 | AI97: 208 | AJ97: 86 | AK97: 284 | AL97: 28 | AM97: 44 | AN97: 26
A98: 160 | B98: MOSELLE | C98: 45 | D98: METZ | E98: 557105 | F98: ARS SUR MOSELLE | G98: 4.6 | H98: 89 | I98: 296 | J98: 140 | K98: 302 | L98: 261 | M98: 89 | N98: 66 | O98: 35 | P98: 186 | Q98: 72 | R98: 86 | S98: 152 | T98: 134 | U98: 52 | V98: 193 | W98: 13 | X98: 3 | Y98: 16 | Z98: 76 | AA98: 106 | AB98: 89 | AC98: 133 | AD98: 79 | AE98: 58 | AF98: 120 | AG98: 34 | AH98: 32 | AI98: 59 | AJ98: 146 | AK98: 68 | AL98: 150 | AM98: 212 | AN98: 42
A99: 30 | B99: MARNE-ARDENNES | C99: 2 | D99: CHARLEVILLE MEZIERES | E99: 408806 | F99: SEDAN LA HALLE | G99: 8.9 | H99: 90 | I99: 159 | J99: 144 | K99: 231 | L99: 106 | M99: 87 | N99: 106 | O99: 154 | P99: 127 | Q99: 166 | R99: 54 | S99: 22 | T99: 160 | U99: 98 | V99: 6 | W99: 210 | X99: 251 | Y99: 278 | Z99: 152 | AA99: 117 | AB99: 135 | AC99: 96 | AD99: 70 | AE99: 87 | AF99: 80 | AG99: 52 | AH99: 109 | AI99: 80 | AJ99: 73 | AK99: 50 | AL99: 129 | AM99: 137 | AN99: 124
A100: 80 | B100: VOSGES | C100: 57 | D100: EPINAL | E100: 488561 | F100: REMIREMONT | G100: 6.7 | H100: 91 | I100: 26 | J100: 192 | K100: 41 | L100: 109 | M100: 10 | N100: 111 | O100: 132 | P100: 136 | Q100: 162 | R100: 62 | S100: 53 | T100: 114 | U100: 45 | V100: 65 | W100: 222 | X100: 240 | Y100: 234 | Z100: 197 | AA100: 206 | AB100: 155 | AC100: 40 | AD100: 115 | AE100: 130 | AF100: 100 | AG100: 114 | AH100: 154 | AI100: 172 | AJ100: 23 | AK100: 201 | AL100: 132 | AM100: 137 | AN100: 128
A101: 110 | B101: MEURTHE ET MOSELLE MEUSE | C101: 27 | D101: PONT A MOUSSON | E101: 454355 | F101: JARNY | G101: 4.0 | H101: 92 | I101: 84 | J101: 293 | K101: 17 | L101: 39 | M101: 89 | N101: 240 | O101: 245 | P101: 221 | Q101: 216 | R101: 158 | S101: 86 | T101: 132 | U101: 245 | V101: 54 | W101: 169 | X101: 163 | Y101: 140 | Z101: 157 | AA101: 112 | AB101: 167 | AC101: 174 | AD101: 171 | AE101: 74 | AF101: 267 | AG101: 143 | AH101: 128 | AI101: 94 | AJ101: 90 | AK101: 241 | AL101: 32 | AM101: 44 | AN101: 38
A102: 110 | B102: MEURTHE ET MOSELLE MEUSE | C102: 31 | D102: VERDUN | E102: 555406 | F102: LIGNY EN BARROIS | G102: 2.7 | H102: 93 | I102: 47 | J102: 113 | K102: 39 | L102: 118 | M102: 89 | N102: 246 | O102: 263 | P102: 240 | Q102: 233 | R102: 140 | S102: 110 | T102: 257 | U102: 167 | V102: 43 | W102: 86 | X102: 184 | Y102: 131 | Z102: 36 | AA102: 93 | AB102: 106 | AC102: 198 | AD102: 174 | AE102: 96 | AF102: 241 | AG102: 239 | AH102: 230 | AI102: 225 | AJ102: 43 | AK102: 263 | AL102: 40 | AM102: 16 | AN102: 156
A103: 160 | B103: MOSELLE | C103: 42 | D103: MOSELLE EST | E103: 557503 | F103: NEUNKIRCH | G103: 3.4 | H103: 94 | I103: 116 | J103: 171 | K103: 102 | L103: 114 | M103: 89 | N103: 76 | O103: 80 | P103: 94 | Q103: 126 | R103: 63 | S103: 207 | T103: 139 | U103: 240 | V103: 185 | W103: 150 | X103: 222 | Y103: 276 | Z103: 67 | AA103: 47 | AB103: 241 | AC103: 187 | AD103: 155 | AE103: 135 | AF103: 170 | AG103: 236 | AH103: 253 | AI103: 300 | AJ103: 167 | AK103: 39 | AL103: 48 | AM103: 54 | AN103: 51
A104: 30 | B104: MARNE-ARDENNES | C104: 2 | D104: CHARLEVILLE MEZIERES | E104: 508815 | F104: CARIGNAN | G104: 2.8 | H104: 95 | I104: 162 | J104: 185 | K104: 195 | L104: 88 | M104: 89 | N104: 62 | O104: 52 | P104: 78 | Q104: 98 | R104: 92 | S104: 124 | T104: 99 | U104: 187 | V104: 125 | W104: 170 | X104: 116 | Y104: 96 | Z104: 166 | AA104: 175 | AB104: 245 | AC104: 60 | AD104: 150 | AE104: 251 | AF104: 55 | AG104: 23 | AH104: 47 | AI104: 16 | AJ104: 63 | AK104: 42 | AL104: 139 | AM104: 165 | AN104: 111
A105: 30 | B105: MARNE-ARDENNES | C105: 2 | D105: CHARLEVILLE MEZIERES | E105: 408801 | F105: CHARLEVILLE JEAN JAURES | G105: 9.6 | H105: 96 | I105: 130 | J105: 123 | K105: 143 | L105: 195 | M105: 81 | N105: 80 | O105: 40 | P105: 119 | Q105: 152 | R105: 71 | S105: 104 | T105: 98 | U105: 47 | V105: 177 | W105: 30 | X105: 104 | Y105: 68 | Z105: 25 | AA105: 29 | AB105: 34 | AC105: 76 | AD105: 244 | AE105: 200 | AF105: 264 | AG105: 55 | AH105: 70 | AI105: 93 | AJ105: 139 | AK105: 72 | AL105: 126 | AM105: 137 | AN105: 117
A106: 30 | B106: MARNE-ARDENNES | C106: 11 | D106: REIMS | E106: 551365 | F106: DORMANS | G106: 2.4 | H106: 97 | I106: 81 | J106: 23 | K106: 52 | L106: 111 | M106: 300 | N106: 285 | O106: 68 | P106: 266 | Q106: 289 | R106: 303 | S106: 120 | T106: 49 | U106: 192 | V106: 190 | W106: 90 | X106: 278 | Y106: 237 | Z106: 31 | AA106: 54 | AB106: 51 | AC106: 73 | AD106: 242 | AE106: 247 | AF106: 193 | AG106: 81 | AH106: 75 | AI106: 125 | AJ106: 143 | AK106: 119 | AL106: 23 | AM106: 14 | AN106: 120
A107: 160 | B107: MOSELLE | C107: 42 | D107: MOSELLE EST | E107: 557458 | F107: MORHANGE | G107: 2.8 | H107: 98 | I107: 294 | J107: 110 | K107: 301 | L107: 184 | M107: 258 | N107: 34 | O107: 60 | P107: 12 | Q107: 24 | R107: 225 | S107: 83 | T107: 296 | U107: 206 | V107: 13 | W107: 110 | X107: 169 | Y107: 166 | Z107: 84 | AA107: 51 | AB107: 121 | AC107: 217 | AD107: 85 | AE107: 50 | AF107: 150 | AG107: 65 | AH107: 25 | AI107: 295 | AJ107: 273 | AK107: 32 | AL107: 94 | AM107: 113 | AN107: 60
